{"text_format":"1","workbook":"xlsx","n_sheets":4,"sheets":["Stammdaten_Analysenprogramm","PN+AN","STGW","Parameter"],"not_rendered":{"charts":0,"images":0,"macros":0,"external_links":0,"defined_names":10,"comments":1,"pivot_tables":0},"unopened":[],"bounds":{"document_bytes":16777216,"sheet_cells":100000,"rows_first":2000,"rows_last":500,"rows_between":2000,"halvings":0,"cell_chars":16384,"cell_head_chars":4096},"cells_cut":0,"cells_raw":0,"read":"whole","date_system":"1900"}

{"sheet":"Stammdaten_Analysenprogramm","index":0,"n_rows":267,"n_cols":60,"rows_kept":267,"cut":false,"hidden":false,"merged":[]}
["Pegelbezeichnung\nlang","zusätzliche/ optionale Bez.","Name des Messpunktes (GeODin)","Rechtswert","Hochwert","Höhe ROK","Höhe GOK","Pegel-\nmaterial","Rohr-\nüberstand","Lage\nPegel-\nabschluss","Filter-\nober-\nkante","Filter-\nunter-\nkante","Filter-\nober-\nkante","Filter-\nunter-\nkante","Über-schüttung","Unter-schüttung","Filter-\nlänge","wirksame Filterlänge","Bohr-\ndurch-\nmesser","mittlere\nDruck-\nspiegel-\nhöhe\n[DSH]","Einhäng-\ntiefe\nTauch-\npumpe","Einhäng-\ntiefe\nTauch-\npumpe","Rohr-\ndurch-\nmesser\n(innen)","Filter-\nlage\nGWS/FOK","wasser-\nerfülltes\nAufsatz-\nrohr-\nvolumen\n(netto)","Filter-\nvolumen","Rohr-\nvolumen","Förder-\nmenge \nSOLL","Pump-\ndauer \nSOLL","Klarpump-\nstrom \nSOLL","Stichtagsmessung \nGrundwasserstände","Übersicht Beprobung Pegel",null,"BAM Kontrollanalyse","LCKW","FCKW","MKW","PAK","NSO-HET","BTEX","CN ges./lf.","Arsen","Aniline","Alkyl-phenole","Chlor-benzole","Chlornitro-benzole","STV","PFAS","DDA / Clofibrin-säure","Eisen (ges) / Eisen-2","Sulfat","Nitrat","Nitrit","Ammon-ium","Spuren-elemente (Sb, Ba, B, Co, Mo, Se, Tl, V)","Schwer-metalle (Cd, Cr, Cu, Hg, Ni, Pb, Zn)","Fluorid","Chlorid","AOX","NA-Para-meter"]
[null,null,null,null,null,"mNN/ \nNHN","mNN/ \nNHN","","m","","m uGOK","m uGOK","m uROK","m uROK","m","m","m","m","mm","m uROK","Lage FOK","m uROK","mm","unter/ über: \nGWS unterhalb/ oberhalb FOK\nk.A.: keine Angabe","m3","m3","m3","L","min","L/min","Messung Pegel","Beprobung Pegel","Summe Analysen","Messung Pegel"]
["Eingabe","Eingabe","Eingabe","Eingabe","Eingabe","Eingabe","Eingabe","Eingabe","Formel","Formel","Eingabe","Eingabe","Formel","Formel","Eingabe","Eingabe","Formel","Formel","Eingabe","Eingabe","Auswahl","Formel","Eingabe","Formel","Formel","Formel","Formel","Formel","Formel","Eingabe","Eingabe","Formel","Formel","Eingabe","Eingabe","Eingabe","Eingabe","Eingabe","Eingabe","Eingabe","Eingabe","Eingabe","Eingabe","Eingabe","Eingabe","Eingabe","Eingabe","Eingabe","Eingabe","Eingabe","Eingabe","Eingabe","Eingabe","Eingabe","Eingabe","Eingabe","Eingabe","Eingabe","Eingabe","Eingabe"]
[null,null,"Eintragungen des INVNAME zur schnelleren Zuordnung beim Import in GeODin empfohlen",null,null,null,null,null,null,"\"über Flur\"\noder\n\"unter Flur\"",null,null,null,null,null,null,null,null,null,null,"A","max. zulässige Absenkung [m uDSH]",null,null,null,null,null,"Faktor \nZuschlag",null,"abhängig von z.B. Ergiebigkeit GWMS und Leistung Pumpe","Eingabe \"Ja\", wenn Stichtagsmessung erfolgen soll",null,null,"Eingabe \"Ja\", wenn Kontrollanalytik mit der BAM vorgesehen ist","Eingabe \"1\", wenn Untersuchung auf diese Parametergruppe erfolgen soll"]
[null,null,null,null,null,null,null,null,null,null,null,null,null,null,null,null,null,null,null,null,"B",2,null,null,null,null,null,1.5]
["Filter"]
["Beispiel GWMS XX/XX","WUH XXX","GWMS XX/XX (FOK - FUK m)",123456,7654321,31,30.5,"HDPE",{"$f":"IF(OR(ISBLANK(F7)=TRUE,ISBLANK(G7)=TRUE),\"k.A.\",F7-G7)","v":0.5},{"$f":"IF(OR(I7=\"k.A.\",ISNUMBER(I7)=FALSE),\"k.A.\",IF(I7>0,\"über Flur\",\"unter Flur\"))","v":"über Flur"},7,10,{"$f":"IF(OR(I7=\"k.A.\",ISNUMBER(K7)=FALSE),\"k.A.\",K7+I7)","v":7.5},{"$f":"IF(OR(I7=\"k.A.\",ISNUMBER(L7)=FALSE),\"k.A.\",L7+I7)","v":10.5},0.5,0.5,{"$f":"L7-K7","v":3},{"$f":"IF(ISNUMBER(Q7),Q7+O7+P7,\"\")","v":4},327,3.44,"B",{"$f":"IF(ISBLANK(U7),\"k.A.\",IF(ISNUMBER(T7),IF(AND(U7=\"A\",X7=\"unter\"),\"PN nicht mgl.\",IF(U7=\"B\",T7+$V$5,M7-1)),\"mittlere DSH fehlt\"))","v":5.4399999999999995},50,{"$f":"IF(T7>0,(IF(Y7>0,\"über\", \"unter\")),\"k.A.\")","v":"über"},{"$f":"IF((((PI()*POWER(W7/1000,2))/4)*(M7-T7))<0,0,((PI()*POWER(W7/1000,2))/4*(M7-T7)))","v":7.9717913584841024E-3},{"$f":"IF(Y7>0,((PI()*POWER(S7/1000,2)/4)*(Q7)),((PI()*POWER(S7/1000,2)/4)*(Q7+(M7-T7))))","v":0.25194552064177728},{"$f":"((PI()*POWER(W7/1000,2)/4)*(N7-T7))","v":1.3862277583964964E-2},{"$f":"IF(U7=\"A\",Z7*1000*$AB$5,(Y7+(Z7*$AB$5))*1000)","v":385.89007232114994},{"$f":"(AB7)/AD7","v":19.294503616057497},20,"Ja",{"$f":"IF(AG7=0,\"\",\"ja\")","v":"ja"},{"$f":"SUM(AI7:BH7)","v":26},"Ja",1,1,1,1,1,1,1,1,1,1,1,1,1,1,1,1,1,1,1,1,1,1,1,1,1,1]
[null,null,null,null,null,null,null,null,{"$f":"IF(OR(ISBLANK(F8)=TRUE,ISBLANK(G8)=TRUE),\"k.A.\",F8-G8)","v":"k.A."},"k.A.",null,null,{"$f":"IF(OR(I8=\"k.A.\",ISNUMBER(K8)=FALSE),\"k.A.\",K8+I8)","v":"k.A."},"k.A.",null,null,{"$f":"L8-K8","v":0},{"$f":"IF(ISNUMBER(Q8),Q8+O8+P8,\"\")","v":0},null,null,null,{"$f":"IF(ISBLANK(U8),\"k.A.\",IF(ISNUMBER(T8),IF(AND(U8=\"A\",X8=\"unter\"),\"PN nicht mgl.\",IF(U8=\"B\",T8+$V$5,M8-1)),\"mittlere DSH fehlt\"))","v":"k.A."},null,"k.A.",{"$f":"IF(((PI()*POWER(W8/1000,2))/4*(M8-T8))<0,0,((PI()*POWER(W8/1000,2))/4*(M8-T8)))","v":{"$error":"#VALUE!"}},{"$f":"IF(Y8>0,((PI()*POWER(S8/1000,2)/4)*(Q8)),((PI()*POWER(S8/1000,2)/4)*(Q8+(M8-T8))))","v":{"$error":"#VALUE!"}},{"$f":"((PI()*POWER(W8/1000,2)/4)*(N8-T8))","v":{"$error":"#VALUE!"}},{"$f":"IF(U8=\"A\",Z8*1000*$AB$5,(Y8+(Z8*$AB$5))*1000)","v":{"$error":"#VALUE!"}},{"$f":"(AB8)/AD8","v":{"$error":"#VALUE!"}},null,null,"",{"$f":"SUM(AI8:BH8)","v":0}]
[null,null,null,null,null,null,null,null,{"$f":"IF(OR(ISBLANK(F9)=TRUE,ISBLANK(G9)=TRUE),\"k.A.\",F9-G9)","v":"k.A."},"k.A.",null,null,"k.A.","k.A.",null,null,{"$f":"L9-K9","v":0},{"$f":"IF(ISNUMBER(Q9),Q9+O9+P9,\"\")","v":0},null,null,null,{"$f":"IF(ISBLANK(U9),\"k.A.\",IF(ISNUMBER(T9),IF(AND(U9=\"A\",X9=\"unter\"),\"PN nicht mgl.\",IF(U9=\"B\",T9+$V$5,M9-1)),\"mittlere DSH fehlt\"))","v":"k.A."},null,"k.A.",{"$error":"#VALUE!"},{"$f":"IF(Y9>0,((PI()*POWER(S9/1000,2)/4)*(Q9)),((PI()*POWER(S9/1000,2)/4)*(Q9+(M9-T9))))","v":{"$error":"#VALUE!"}},{"$f":"((PI()*POWER(W9/1000,2)/4)*(N9-T9))","v":{"$error":"#VALUE!"}},{"$f":"IF(U9=\"A\",Z9*1000*$AB$5,(Y9+(Z9*$AB$5))*1000)","v":{"$error":"#VALUE!"}},{"$f":"(AB9)/AD9","v":{"$error":"#VALUE!"}},null,null,"",0]
[null,null,null,null,null,null,null,null,"k.A.","k.A.",null,null,"k.A.","k.A.",null,null,0,0,null,null,null,"k.A.",null,"k.A.",{"$error":"#VALUE!"},{"$error":"#VALUE!"},{"$error":"#VALUE!"},{"$error":"#VALUE!"},{"$error":"#VALUE!"},null,null,"",0]
[null,null,null,null,null,null,null,null,"k.A.","k.A.",null,null,"k.A.","k.A.",null,null,0,0,null,null,null,"k.A.",null,"k.A.",{"$error":"#VALUE!"},{"$error":"#VALUE!"},{"$error":"#VALUE!"},{"$error":"#VALUE!"},{"$error":"#VALUE!"},null,null,"",0]
[null,null,null,null,null,null,null,null,"k.A.","k.A.",null,null,"k.A.","k.A.",null,null,0,0,null,null,null,"k.A.",null,"k.A.",{"$error":"#VALUE!"},{"$error":"#VALUE!"},{"$error":"#VALUE!"},{"$error":"#VALUE!"},{"$error":"#VALUE!"},null,null,"",0]
[null,null,null,null,null,null,null,null,"k.A.","k.A.",null,null,"k.A.","k.A.",null,null,0,0,null,null,null,"k.A.",null,"k.A.",{"$error":"#VALUE!"},{"$error":"#VALUE!"},{"$error":"#VALUE!"},{"$error":"#VALUE!"},{"$error":"#VALUE!"},null,null,"",0]
[null,null,null,null,null,null,null,null,"k.A.","k.A.",null,null,"k.A.","k.A.",null,null,0,0,null,null,null,"k.A.",null,"k.A.",{"$error":"#VALUE!"},{"$error":"#VALUE!"},{"$error":"#VALUE!"},{"$error":"#VALUE!"},{"$error":"#VALUE!"},null,null,"",0]
[null,null,null,null,null,null,null,null,"k.A.","k.A.",null,null,"k.A.","k.A.",null,null,0,0,null,null,null,"k.A.",null,"k.A.",{"$error":"#VALUE!"},{"$error":"#VALUE!"},{"$error":"#VALUE!"},{"$error":"#VALUE!"},{"$error":"#VALUE!"},null,null,"",0]
[null,null,null,null,null,null,null,null,"k.A.","k.A.",null,null,"k.A.","k.A.",null,null,0,0,null,null,null,"k.A.",null,"k.A.",{"$error":"#VALUE!"},{"$error":"#VALUE!"},{"$error":"#VALUE!"},{"$error":"#VALUE!"},{"$error":"#VALUE!"},null,null,"",0]
[null,null,null,null,null,null,null,null,"k.A.","k.A.",null,null,"k.A.","k.A.",null,null,0,0,null,null,null,"k.A.",null,"k.A.",{"$error":"#VALUE!"},{"$error":"#VALUE!"},{"$error":"#VALUE!"},{"$error":"#VALUE!"},{"$error":"#VALUE!"},null,null,"",0]
[null,null,null,null,null,null,null,null,"k.A.","k.A.",null,null,"k.A.","k.A.",null,null,0,0,null,null,null,"k.A.",null,"k.A.",{"$error":"#VALUE!"},{"$error":"#VALUE!"},{"$error":"#VALUE!"},{"$error":"#VALUE!"},{"$error":"#VALUE!"},null,null,"",0]
[null,null,null,null,null,null,null,null,"k.A.","k.A.",null,null,"k.A.","k.A.",null,null,0,0,null,null,null,"k.A.",null,"k.A.",{"$error":"#VALUE!"},{"$error":"#VALUE!"},{"$error":"#VALUE!"},{"$error":"#VALUE!"},{"$error":"#VALUE!"},null,null,"",0]
[null,null,null,null,null,null,null,null,"k.A.","k.A.",null,null,"k.A.","k.A.",null,null,0,0,null,null,null,"k.A.",null,"k.A.",{"$error":"#VALUE!"},{"$error":"#VALUE!"},{"$error":"#VALUE!"},{"$error":"#VALUE!"},{"$error":"#VALUE!"},null,null,"",0]
[null,null,null,null,null,null,null,null,"k.A.","k.A.",null,null,"k.A.","k.A.",null,null,0,0,null,null,null,"k.A.",null,"k.A.",{"$error":"#VALUE!"},{"$error":"#VALUE!"},{"$error":"#VALUE!"},{"$error":"#VALUE!"},{"$error":"#VALUE!"},null,null,"",0]
[null,null,null,null,null,null,null,null,"k.A.","k.A.",null,null,"k.A.","k.A.",null,null,0,0,null,null,null,"k.A.",null,"k.A.",{"$error":"#VALUE!"},{"$error":"#VALUE!"},{"$error":"#VALUE!"},{"$error":"#VALUE!"},{"$error":"#VALUE!"},null,null,"",0]
[null,null,null,null,null,null,null,null,"k.A.","k.A.",null,null,"k.A.","k.A.",null,null,0,0,null,null,null,"k.A.",null,"k.A.",{"$error":"#VALUE!"},{"$error":"#VALUE!"},{"$error":"#VALUE!"},{"$error":"#VALUE!"},{"$error":"#VALUE!"},null,null,"",0]
[null,null,null,null,null,null,null,null,"k.A.","k.A.",null,null,"k.A.","k.A.",null,null,0,0,null,null,null,"k.A.",null,"k.A.",{"$error":"#VALUE!"},{"$error":"#VALUE!"},{"$error":"#VALUE!"},{"$error":"#VALUE!"},{"$error":"#VALUE!"},null,null,"",0]
[null,null,null,null,null,null,null,null,"k.A.","k.A.",null,null,"k.A.","k.A.",null,null,0,0,null,null,null,"k.A.",null,"k.A.",{"$error":"#VALUE!"},{"$error":"#VALUE!"},{"$error":"#VALUE!"},{"$error":"#VALUE!"},{"$error":"#VALUE!"},null,null,"",0]
[null,null,null,null,null,null,null,null,"k.A.","k.A.",null,null,"k.A.","k.A.",null,null,0,0,null,null,null,"k.A.",null,"k.A.",{"$error":"#VALUE!"},{"$error":"#VALUE!"},{"$error":"#VALUE!"},{"$error":"#VALUE!"},{"$error":"#VALUE!"},null,null,"",0]
[null,null,null,null,null,null,null,null,"k.A.","k.A.",null,null,"k.A.","k.A.",null,null,0,0,null,null,null,"k.A.",null,"k.A.",{"$error":"#VALUE!"},{"$error":"#VALUE!"},{"$error":"#VALUE!"},{"$error":"#VALUE!"},{"$error":"#VALUE!"},null,null,"",0]
[null,null,null,null,null,null,null,null,"k.A.","k.A.",null,null,"k.A.","k.A.",null,null,0,0,null,null,null,"k.A.",null,"k.A.",{"$error":"#VALUE!"},{"$error":"#VALUE!"},{"$error":"#VALUE!"},{"$error":"#VALUE!"},{"$error":"#VALUE!"},null,null,"",0]
[null,null,null,null,null,null,null,null,"k.A.","k.A.",null,null,"k.A.","k.A.",null,null,0,0,null,null,null,"k.A.",null,"k.A.",{"$error":"#VALUE!"},{"$error":"#VALUE!"},{"$error":"#VALUE!"},{"$error":"#VALUE!"},{"$error":"#VALUE!"},null,null,"",0]
[null,null,null,null,null,null,null,null,"k.A.","k.A.",null,null,"k.A.","k.A.",null,null,0,0,null,null,null,"k.A.",null,"k.A.",{"$error":"#VALUE!"},{"$error":"#VALUE!"},{"$error":"#VALUE!"},{"$error":"#VALUE!"},{"$error":"#VALUE!"},null,null,"",0]
[null,null,null,null,null,null,null,null,"k.A.","k.A.",null,null,"k.A.","k.A.",null,null,0,0,null,null,null,"k.A.",null,"k.A.",{"$error":"#VALUE!"},{"$error":"#VALUE!"},{"$error":"#VALUE!"},{"$error":"#VALUE!"},{"$error":"#VALUE!"},null,null,"",0]
[null,null,null,null,null,null,null,null,"k.A.","k.A.",null,null,"k.A.","k.A.",null,null,0,0,null,null,null,"k.A.",null,"k.A.",{"$error":"#VALUE!"},{"$error":"#VALUE!"},{"$error":"#VALUE!"},{"$error":"#VALUE!"},{"$error":"#VALUE!"},null,null,"",0]
[null,null,null,null,null,null,null,null,"k.A.","k.A.",null,null,"k.A.","k.A.",null,null,0,0,null,null,null,"k.A.",null,"k.A.",{"$error":"#VALUE!"},{"$error":"#VALUE!"},{"$error":"#VALUE!"},{"$error":"#VALUE!"},{"$error":"#VALUE!"},null,null,"",0]
[null,null,null,null,null,null,null,null,"k.A.","k.A.",null,null,"k.A.","k.A.",null,null,0,0,null,null,null,"k.A.",null,"k.A.",{"$error":"#VALUE!"},{"$error":"#VALUE!"},{"$error":"#VALUE!"},{"$error":"#VALUE!"},{"$error":"#VALUE!"},null,null,"",0]
[null,null,null,null,null,null,null,null,"k.A.","k.A.",null,null,"k.A.","k.A.",null,null,0,0,null,null,null,"k.A.",null,"k.A.",{"$error":"#VALUE!"},{"$error":"#VALUE!"},{"$error":"#VALUE!"},{"$error":"#VALUE!"},{"$error":"#VALUE!"},null,null,"",0]
[null,null,null,null,null,null,null,null,"k.A.","k.A.",null,null,"k.A.","k.A.",null,null,0,0,null,null,null,"k.A.",null,"k.A.",{"$error":"#VALUE!"},{"$error":"#VALUE!"},{"$error":"#VALUE!"},{"$error":"#VALUE!"},{"$error":"#VALUE!"},null,null,"",0]
[null,null,null,null,null,null,null,null,"k.A.","k.A.",null,null,"k.A.","k.A.",null,null,0,0,null,null,null,"k.A.",null,"k.A.",{"$error":"#VALUE!"},{"$error":"#VALUE!"},{"$error":"#VALUE!"},{"$error":"#VALUE!"},{"$error":"#VALUE!"},null,null,"",0]
[null,null,null,null,null,null,null,null,"k.A.","k.A.",null,null,"k.A.","k.A.",null,null,0,0,null,null,null,"k.A.",null,"k.A.",{"$error":"#VALUE!"},{"$error":"#VALUE!"},{"$error":"#VALUE!"},{"$error":"#VALUE!"},{"$error":"#VALUE!"},null,null,"",0]
[null,null,null,null,null,null,null,null,"k.A.","k.A.",null,null,"k.A.","k.A.",null,null,0,0,null,null,null,"k.A.",null,"k.A.",{"$error":"#VALUE!"},{"$error":"#VALUE!"},{"$error":"#VALUE!"},{"$error":"#VALUE!"},{"$error":"#VALUE!"},null,null,"",0]
[null,null,null,null,null,null,null,null,"k.A.","k.A.",null,null,"k.A.","k.A.",null,null,0,0,null,null,null,"k.A.",null,"k.A.",{"$error":"#VALUE!"},{"$error":"#VALUE!"},{"$error":"#VALUE!"},{"$error":"#VALUE!"},{"$error":"#VALUE!"},null,null,"",0]
[null,null,null,null,null,null,null,null,"k.A.","k.A.",null,null,"k.A.","k.A.",null,null,0,0,null,null,null,"k.A.",null,"k.A.",{"$error":"#VALUE!"},{"$error":"#VALUE!"},{"$error":"#VALUE!"},{"$error":"#VALUE!"},{"$error":"#VALUE!"},null,null,"",0]
[null,null,null,null,null,null,null,null,"k.A.","k.A.",null,null,"k.A.","k.A.",null,null,0,0,null,null,null,"k.A.",null,"k.A.",{"$error":"#VALUE!"},{"$error":"#VALUE!"},{"$error":"#VALUE!"},{"$error":"#VALUE!"},{"$error":"#VALUE!"},null,null,"",0]
[null,null,null,null,null,null,null,null,"k.A.","k.A.",null,null,"k.A.","k.A.",null,null,0,0,null,null,null,"k.A.",null,"k.A.",{"$error":"#VALUE!"},{"$error":"#VALUE!"},{"$error":"#VALUE!"},{"$error":"#VALUE!"},{"$error":"#VALUE!"},null,null,"",0]
[null,null,null,null,null,null,null,null,"k.A.","k.A.",null,null,"k.A.","k.A.",null,null,0,0,null,null,null,"k.A.",null,"k.A.",{"$error":"#VALUE!"},{"$error":"#VALUE!"},{"$error":"#VALUE!"},{"$error":"#VALUE!"},{"$error":"#VALUE!"},null,null,"",0]
[null,null,null,null,null,null,null,null,"k.A.","k.A.",null,null,"k.A.","k.A.",null,null,0,0,null,null,null,"k.A.",null,"k.A.",{"$error":"#VALUE!"},{"$error":"#VALUE!"},{"$error":"#VALUE!"},{"$error":"#VALUE!"},{"$error":"#VALUE!"},null,null,"",0]
[null,null,null,null,null,null,null,null,"k.A.","k.A.",null,null,"k.A.","k.A.",null,null,0,0,null,null,null,"k.A.",null,"k.A.",{"$error":"#VALUE!"},{"$error":"#VALUE!"},{"$error":"#VALUE!"},{"$error":"#VALUE!"},{"$error":"#VALUE!"},null,null,"",0]
[null,null,null,null,null,null,null,null,"k.A.","k.A.",null,null,"k.A.","k.A.",null,null,0,0,null,null,null,"k.A.",null,"k.A.",{"$error":"#VALUE!"},{"$error":"#VALUE!"},{"$error":"#VALUE!"},{"$error":"#VALUE!"},{"$error":"#VALUE!"},null,null,"",0]
[null,null,null,null,null,null,null,null,"k.A.","k.A.",null,null,"k.A.","k.A.",null,null,0,0,null,null,null,"k.A.",null,"k.A.",{"$error":"#VALUE!"},{"$error":"#VALUE!"},{"$error":"#VALUE!"},{"$error":"#VALUE!"},{"$error":"#VALUE!"},null,null,"",0]
[null,null,null,null,null,null,null,null,"k.A.","k.A.",null,null,"k.A.","k.A.",null,null,0,0,null,null,null,"k.A.",null,"k.A.",{"$error":"#VALUE!"},{"$error":"#VALUE!"},{"$error":"#VALUE!"},{"$error":"#VALUE!"},{"$error":"#VALUE!"},null,null,"",0]
[null,null,null,null,null,null,null,null,"k.A.","k.A.",null,null,"k.A.","k.A.",null,null,0,0,null,null,null,"k.A.",null,"k.A.",{"$error":"#VALUE!"},{"$error":"#VALUE!"},{"$error":"#VALUE!"},{"$error":"#VALUE!"},{"$error":"#VALUE!"},null,null,"",0]
[null,null,null,null,null,null,null,null,"k.A.","k.A.",null,null,"k.A.","k.A.",null,null,0,0,null,null,null,"k.A.",null,"k.A.",{"$error":"#VALUE!"},{"$error":"#VALUE!"},{"$error":"#VALUE!"},{"$error":"#VALUE!"},{"$error":"#VALUE!"},null,null,"",0]
[null,null,null,null,null,null,null,null,"k.A.","k.A.",null,null,"k.A.","k.A.",null,null,0,0,null,null,null,"k.A.",null,"k.A.",{"$error":"#VALUE!"},{"$error":"#VALUE!"},{"$error":"#VALUE!"},{"$error":"#VALUE!"},{"$error":"#VALUE!"},null,null,"",0]
[null,null,null,null,null,null,null,null,"k.A.","k.A.",null,null,"k.A.","k.A.",null,null,0,0,null,null,null,"k.A.",null,"k.A.",{"$error":"#VALUE!"},{"$error":"#VALUE!"},{"$error":"#VALUE!"},{"$error":"#VALUE!"},{"$error":"#VALUE!"},null,null,"",0]
[null,null,null,null,null,null,null,null,"k.A.","k.A.",null,null,"k.A.","k.A.",null,null,0,0,null,null,null,"k.A.",null,"k.A.",{"$error":"#VALUE!"},{"$error":"#VALUE!"},{"$error":"#VALUE!"},{"$error":"#VALUE!"},{"$error":"#VALUE!"},null,null,"",0]
[null,null,null,null,null,null,null,null,"k.A.","k.A.",null,null,"k.A.","k.A.",null,null,0,0,null,null,null,"k.A.",null,"k.A.",{"$error":"#VALUE!"},{"$error":"#VALUE!"},{"$error":"#VALUE!"},{"$error":"#VALUE!"},{"$error":"#VALUE!"},null,null,"",0]
[null,null,null,null,null,null,null,null,"k.A.","k.A.",null,null,"k.A.","k.A.",null,null,0,0,null,null,null,"k.A.",null,"k.A.",{"$error":"#VALUE!"},{"$error":"#VALUE!"},{"$error":"#VALUE!"},{"$error":"#VALUE!"},{"$error":"#VALUE!"},null,null,"",0]
[null,null,null,null,null,null,null,null,"k.A.","k.A.",null,null,"k.A.","k.A.",null,null,0,0,null,null,null,"k.A.",null,"k.A.",{"$error":"#VALUE!"},{"$error":"#VALUE!"},{"$error":"#VALUE!"},{"$error":"#VALUE!"},{"$error":"#VALUE!"},null,null,"",0]
[null,null,null,null,null,null,null,null,"k.A.","k.A.",null,null,"k.A.","k.A.",null,null,0,0,null,null,null,"k.A.",null,"k.A.",{"$error":"#VALUE!"},{"$error":"#VALUE!"},{"$error":"#VALUE!"},{"$error":"#VALUE!"},{"$error":"#VALUE!"},null,null,"",0]
[null,null,null,null,null,null,null,null,"k.A.","k.A.",null,null,"k.A.","k.A.",null,null,0,0,null,null,null,"k.A.",null,"k.A.",{"$error":"#VALUE!"},{"$error":"#VALUE!"},{"$error":"#VALUE!"},{"$error":"#VALUE!"},{"$error":"#VALUE!"},null,null,"",0]
[null,null,null,null,null,null,null,null,"k.A.","k.A.",null,null,"k.A.","k.A.",null,null,0,0,null,null,null,"k.A.",null,"k.A.",{"$error":"#VALUE!"},{"$error":"#VALUE!"},{"$error":"#VALUE!"},{"$error":"#VALUE!"},{"$error":"#VALUE!"},null,null,"",0]
[null,null,null,null,null,null,null,null,"k.A.","k.A.",null,null,"k.A.","k.A.",null,null,0,0,null,null,null,"k.A.",null,"k.A.",{"$error":"#VALUE!"},{"$error":"#VALUE!"},{"$error":"#VALUE!"},{"$error":"#VALUE!"},{"$error":"#VALUE!"},null,null,"",0]
[null,null,null,null,null,null,null,null,"k.A.","k.A.",null,null,"k.A.","k.A.",null,null,0,0,null,null,null,"k.A.",null,"k.A.",{"$error":"#VALUE!"},{"$error":"#VALUE!"},{"$error":"#VALUE!"},{"$error":"#VALUE!"},{"$error":"#VALUE!"},null,null,"",0]
[null,null,null,null,null,null,null,null,"k.A.","k.A.",null,null,"k.A.","k.A.",null,null,0,0,null,null,null,"k.A.",null,"k.A.",{"$error":"#VALUE!"},{"$error":"#VALUE!"},{"$error":"#VALUE!"},{"$error":"#VALUE!"},{"$error":"#VALUE!"},null,null,"",0]
[null,null,null,null,null,null,null,null,"k.A.","k.A.",null,null,"k.A.","k.A.",null,null,0,0,null,null,null,"k.A.",null,"k.A.",{"$error":"#VALUE!"},{"$error":"#VALUE!"},{"$error":"#VALUE!"},{"$error":"#VALUE!"},{"$error":"#VALUE!"},null,null,"",0]
[null,null,null,null,null,null,null,null,"k.A.","k.A.",null,null,"k.A.","k.A.",null,null,0,0,null,null,null,"k.A.",null,"k.A.",{"$error":"#VALUE!"},{"$error":"#VALUE!"},{"$error":"#VALUE!"},{"$error":"#VALUE!"},{"$error":"#VALUE!"},null,null,"",0]
[null,null,null,null,null,null,null,null,"k.A.","k.A.",null,null,"k.A.","k.A.",null,null,0,0,null,null,null,"k.A.",null,"k.A.",{"$error":"#VALUE!"},{"$error":"#VALUE!"},{"$error":"#VALUE!"},{"$error":"#VALUE!"},{"$error":"#VALUE!"},null,null,"",0]
[null,null,null,null,null,null,null,null,"k.A.","k.A.",null,null,"k.A.","k.A.",null,null,0,0,null,null,null,"k.A.",null,"k.A.",{"$error":"#VALUE!"},{"$error":"#VALUE!"},{"$error":"#VALUE!"},{"$error":"#VALUE!"},{"$error":"#VALUE!"},null,null,"",0]
[null,null,null,null,null,null,null,null,"k.A.","k.A.",null,null,"k.A.","k.A.",null,null,0,0,null,null,null,"k.A.",null,"k.A.",{"$error":"#VALUE!"},{"$error":"#VALUE!"},{"$error":"#VALUE!"},{"$error":"#VALUE!"},{"$error":"#VALUE!"},null,null,"",0]
[null,null,null,null,null,null,null,null,"k.A.","k.A.",null,null,"k.A.","k.A.",null,null,0,0,null,null,null,"k.A.",null,"k.A.",{"$error":"#VALUE!"},{"$error":"#VALUE!"},{"$error":"#VALUE!"},{"$error":"#VALUE!"},{"$error":"#VALUE!"},null,null,"",0]
[null,null,null,null,null,null,null,null,"k.A.","k.A.",null,null,"k.A.","k.A.",null,null,0,0,null,null,null,"k.A.",null,"k.A.",{"$error":"#VALUE!"},{"$error":"#VALUE!"},{"$error":"#VALUE!"},{"$error":"#VALUE!"},{"$error":"#VALUE!"},null,null,"",0]
[null,null,null,null,null,null,null,null,{"$f":"IF(OR(ISBLANK(F71)=TRUE,ISBLANK(G71)=TRUE),\"k.A.\",F71-G71)","v":"k.A."},{"$f":"IF(OR(I71=\"k.A.\",ISNUMBER(I71)=FALSE),\"k.A.\",IF(I71>0,\"über Flur\",\"unter Flur\"))","v":"k.A."},null,null,{"$f":"IF(OR(I71=\"k.A.\",ISNUMBER(K71)=FALSE),\"k.A.\",K71+I71)","v":"k.A."},{"$f":"IF(OR(I71=\"k.A.\",ISNUMBER(L71)=FALSE),\"k.A.\",L71+I71)","v":"k.A."},null,null,{"$f":"L71-K71","v":0},{"$f":"IF(ISNUMBER(Q71),Q71+O71+P71,\"\")","v":0},null,null,null,{"$f":"IF(ISBLANK(U71),\"k.A.\",IF(ISNUMBER(T71),IF(AND(U71=\"A\",X71=\"unter\"),\"PN nicht mgl.\",IF(U71=\"B\",T71+$V$5,M71-1)),\"mittlere DSH fehlt\"))","v":"k.A."},null,{"$f":"IF(T71>0,(IF(Y71>0,\"über\", \"unter\")),\"k.A.\")","v":"k.A."},{"$f":"IF(((PI()*POWER(W71/1000,2))/4*(M71-T71))<0,0,((PI()*POWER(W71/1000,2))/4*(M71-T71)))","v":{"$error":"#VALUE!"}},{"$error":"#VALUE!"},{"$error":"#VALUE!"},{"$error":"#VALUE!"},{"$f":"(AB71)/AD71","v":{"$error":"#VALUE!"}},null,null,{"$f":"IF(AG71=0,\"\",\"ja\")","v":""},0]
[null,null,null,null,null,null,null,null,"k.A.","k.A.",null,null,"k.A.","k.A.",null,null,0,0,null,null,null,"k.A.",null,"k.A.",{"$error":"#VALUE!"},{"$f":"IF(Y72>0,((PI()*POWER(S72/1000,2)/4)*(Q72)),((PI()*POWER(S72/1000,2)/4)*(Q72+(M72-T72))))","v":{"$error":"#VALUE!"}},{"$f":"((PI()*POWER(W72/1000,2)/4)*(N72-T72))","v":{"$error":"#VALUE!"}},{"$f":"IF(U72=\"A\",Z72*1000*$AB$5,(Y72+(Z72*$AB$5))*1000)","v":{"$error":"#VALUE!"}},{"$error":"#VALUE!"},null,null,"",{"$f":"SUM(AI72:BH72)","v":0}]
[null,null,null,null,null,null,null,null,"k.A.","k.A.",null,null,"k.A.","k.A.",null,null,0,0,null,null,null,"k.A.",null,"k.A.",{"$error":"#VALUE!"},{"$error":"#VALUE!"},{"$error":"#VALUE!"},{"$error":"#VALUE!"},{"$error":"#VALUE!"},null,null,"",0]
[null,null,null,null,null,null,null,null,"k.A.","k.A.",null,null,"k.A.","k.A.",null,null,0,0,null,null,null,"k.A.",null,"k.A.",{"$error":"#VALUE!"},{"$error":"#VALUE!"},{"$error":"#VALUE!"},{"$error":"#VALUE!"},{"$error":"#VALUE!"},null,null,"",0]
[null,null,null,null,null,null,null,null,"k.A.","k.A.",null,null,"k.A.","k.A.",null,null,0,0,null,null,null,"k.A.",null,"k.A.",{"$error":"#VALUE!"},{"$error":"#VALUE!"},{"$error":"#VALUE!"},{"$error":"#VALUE!"},{"$error":"#VALUE!"},null,null,"",0]
[null,null,null,null,null,null,null,null,"k.A.","k.A.",null,null,"k.A.","k.A.",null,null,0,0,null,null,null,"k.A.",null,"k.A.",{"$error":"#VALUE!"},{"$error":"#VALUE!"},{"$error":"#VALUE!"},{"$error":"#VALUE!"},{"$error":"#VALUE!"},null,null,"",0]
[null,null,null,null,null,null,null,null,"k.A.","k.A.",null,null,"k.A.","k.A.",null,null,0,0,null,null,null,"k.A.",null,"k.A.",{"$error":"#VALUE!"},{"$error":"#VALUE!"},{"$error":"#VALUE!"},{"$error":"#VALUE!"},{"$error":"#VALUE!"},null,null,"",0]
[null,null,null,null,null,null,null,null,"k.A.","k.A.",null,null,"k.A.","k.A.",null,null,0,0,null,null,null,"k.A.",null,"k.A.",{"$error":"#VALUE!"},{"$error":"#VALUE!"},{"$error":"#VALUE!"},{"$error":"#VALUE!"},{"$error":"#VALUE!"},null,null,"",0]
[null,null,null,null,null,null,null,null,"k.A.","k.A.",null,null,"k.A.","k.A.",null,null,0,0,null,null,null,"k.A.",null,"k.A.",{"$error":"#VALUE!"},{"$error":"#VALUE!"},{"$error":"#VALUE!"},{"$error":"#VALUE!"},{"$error":"#VALUE!"},null,null,"",0]
[null,null,null,null,null,null,null,null,"k.A.","k.A.",null,null,"k.A.","k.A.",null,null,0,0,null,null,null,"k.A.",null,"k.A.",{"$error":"#VALUE!"},{"$error":"#VALUE!"},{"$error":"#VALUE!"},{"$error":"#VALUE!"},{"$error":"#VALUE!"},null,null,"",0]
[null,null,null,null,null,null,null,null,"k.A.","k.A.",null,null,"k.A.","k.A.",null,null,0,0,null,null,null,"k.A.",null,"k.A.",{"$error":"#VALUE!"},{"$error":"#VALUE!"},{"$error":"#VALUE!"},{"$error":"#VALUE!"},{"$error":"#VALUE!"},null,null,"",0]
[null,null,null,null,null,null,null,null,"k.A.","k.A.",null,null,"k.A.","k.A.",null,null,0,0,null,null,null,"k.A.",null,"k.A.",{"$error":"#VALUE!"},{"$error":"#VALUE!"},{"$error":"#VALUE!"},{"$error":"#VALUE!"},{"$error":"#VALUE!"},null,null,"",0]
[null,null,null,null,null,null,null,null,"k.A.","k.A.",null,null,"k.A.","k.A.",null,null,0,0,null,null,null,"k.A.",null,"k.A.",{"$error":"#VALUE!"},{"$error":"#VALUE!"},{"$error":"#VALUE!"},{"$error":"#VALUE!"},{"$error":"#VALUE!"},null,null,"",0]
[null,null,null,null,null,null,null,null,"k.A.","k.A.",null,null,"k.A.","k.A.",null,null,0,0,null,null,null,"k.A.",null,"k.A.",{"$error":"#VALUE!"},{"$error":"#VALUE!"},{"$error":"#VALUE!"},{"$error":"#VALUE!"},{"$error":"#VALUE!"},null,null,"",0]
[null,null,null,null,null,null,null,null,"k.A.","k.A.",null,null,"k.A.","k.A.",null,null,0,0,null,null,null,"k.A.",null,"k.A.",{"$error":"#VALUE!"},{"$error":"#VALUE!"},{"$error":"#VALUE!"},{"$error":"#VALUE!"},{"$error":"#VALUE!"},null,null,"",0]
[null,null,null,null,null,null,null,null,"k.A.","k.A.",null,null,"k.A.","k.A.",null,null,0,0,null,null,null,"k.A.",null,"k.A.",{"$error":"#VALUE!"},{"$error":"#VALUE!"},{"$error":"#VALUE!"},{"$error":"#VALUE!"},{"$error":"#VALUE!"},null,null,"",0]
[null,null,null,null,null,null,null,null,"k.A.","k.A.",null,null,"k.A.","k.A.",null,null,0,0,null,null,null,"k.A.",null,"k.A.",{"$error":"#VALUE!"},{"$error":"#VALUE!"},{"$error":"#VALUE!"},{"$error":"#VALUE!"},{"$error":"#VALUE!"},null,null,"",0]
[null,null,null,null,null,null,null,null,"k.A.","k.A.",null,null,"k.A.","k.A.",null,null,0,0,null,null,null,"k.A.",null,"k.A.",{"$error":"#VALUE!"},{"$error":"#VALUE!"},{"$error":"#VALUE!"},{"$error":"#VALUE!"},{"$error":"#VALUE!"},null,null,"",0]
[null,null,null,null,null,null,null,null,"k.A.","k.A.",null,null,"k.A.","k.A.",null,null,0,0,null,null,null,"k.A.",null,"k.A.",{"$error":"#VALUE!"},{"$error":"#VALUE!"},{"$error":"#VALUE!"},{"$error":"#VALUE!"},{"$error":"#VALUE!"},null,null,"",0]
[null,null,null,null,null,null,null,null,"k.A.","k.A.",null,null,"k.A.","k.A.",null,null,0,0,null,null,null,"k.A.",null,"k.A.",{"$error":"#VALUE!"},{"$error":"#VALUE!"},{"$error":"#VALUE!"},{"$error":"#VALUE!"},{"$error":"#VALUE!"},null,null,"",0]
[null,null,null,null,null,null,null,null,"k.A.","k.A.",null,null,"k.A.","k.A.",null,null,0,0,null,null,null,"k.A.",null,"k.A.",{"$error":"#VALUE!"},{"$error":"#VALUE!"},{"$error":"#VALUE!"},{"$error":"#VALUE!"},{"$error":"#VALUE!"},null,null,"",0]
[null,null,null,null,null,null,null,null,"k.A.","k.A.",null,null,"k.A.","k.A.",null,null,0,0,null,null,null,"k.A.",null,"k.A.",{"$error":"#VALUE!"},{"$error":"#VALUE!"},{"$error":"#VALUE!"},{"$error":"#VALUE!"},{"$error":"#VALUE!"},null,null,"",0]
[null,null,null,null,null,null,null,null,"k.A.","k.A.",null,null,"k.A.","k.A.",null,null,0,0,null,null,null,"k.A.",null,"k.A.",{"$error":"#VALUE!"},{"$error":"#VALUE!"},{"$error":"#VALUE!"},{"$error":"#VALUE!"},{"$error":"#VALUE!"},null,null,"",0]
[null,null,null,null,null,null,null,null,"k.A.","k.A.",null,null,"k.A.","k.A.",null,null,0,0,null,null,null,"k.A.",null,"k.A.",{"$error":"#VALUE!"},{"$error":"#VALUE!"},{"$error":"#VALUE!"},{"$error":"#VALUE!"},{"$error":"#VALUE!"},null,null,"",0]
[null,null,null,null,null,null,null,null,"k.A.","k.A.",null,null,"k.A.","k.A.",null,null,0,0,null,null,null,"k.A.",null,"k.A.",{"$error":"#VALUE!"},{"$error":"#VALUE!"},{"$error":"#VALUE!"},{"$error":"#VALUE!"},{"$error":"#VALUE!"},null,null,"",0]
[null,null,null,null,null,null,null,null,"k.A.","k.A.",null,null,"k.A.","k.A.",null,null,0,0,null,null,null,"k.A.",null,"k.A.",{"$error":"#VALUE!"},{"$error":"#VALUE!"},{"$error":"#VALUE!"},{"$error":"#VALUE!"},{"$error":"#VALUE!"},null,null,"",0]
[null,null,null,null,null,null,null,null,"k.A.","k.A.",null,null,"k.A.","k.A.",null,null,0,0,null,null,null,"k.A.",null,"k.A.",{"$error":"#VALUE!"},{"$error":"#VALUE!"},{"$error":"#VALUE!"},{"$error":"#VALUE!"},{"$error":"#VALUE!"},null,null,"",0]
[null,null,null,null,null,null,null,null,"k.A.","k.A.",null,null,"k.A.","k.A.",null,null,0,0,null,null,null,"k.A.",null,"k.A.",{"$error":"#VALUE!"},{"$error":"#VALUE!"},{"$error":"#VALUE!"},{"$error":"#VALUE!"},{"$error":"#VALUE!"},null,null,"",0]
[null,null,null,null,null,null,null,null,"k.A.","k.A.",null,null,"k.A.","k.A.",null,null,0,0,null,null,null,"k.A.",null,"k.A.",{"$error":"#VALUE!"},{"$error":"#VALUE!"},{"$error":"#VALUE!"},{"$error":"#VALUE!"},{"$error":"#VALUE!"},null,null,"",0]
[null,null,null,null,null,null,null,null,"k.A.","k.A.",null,null,"k.A.","k.A.",null,null,0,0,null,null,null,"k.A.",null,"k.A.",{"$error":"#VALUE!"},{"$error":"#VALUE!"},{"$error":"#VALUE!"},{"$error":"#VALUE!"},{"$error":"#VALUE!"},null,null,"",0]
[null,null,null,null,null,null,null,null,"k.A.","k.A.",null,null,"k.A.","k.A.",null,null,0,0,null,null,null,"k.A.",null,"k.A.",{"$error":"#VALUE!"},{"$error":"#VALUE!"},{"$error":"#VALUE!"},{"$error":"#VALUE!"},{"$error":"#VALUE!"},null,null,"",0]
[null,null,null,null,null,null,null,null,"k.A.","k.A.",null,null,"k.A.","k.A.",null,null,0,0,null,null,null,"k.A.",null,"k.A.",{"$error":"#VALUE!"},{"$error":"#VALUE!"},{"$error":"#VALUE!"},{"$error":"#VALUE!"},{"$error":"#VALUE!"},null,null,"",0]
[null,null,null,null,null,null,null,null,"k.A.","k.A.",null,null,"k.A.","k.A.",null,null,0,0,null,null,null,"k.A.",null,"k.A.",{"$error":"#VALUE!"},{"$error":"#VALUE!"},{"$error":"#VALUE!"},{"$error":"#VALUE!"},{"$error":"#VALUE!"},null,null,"",0]
[null,null,null,null,null,null,null,null,"k.A.","k.A.",null,null,"k.A.","k.A.",null,null,0,0,null,null,null,"k.A.",null,"k.A.",{"$error":"#VALUE!"},{"$error":"#VALUE!"},{"$error":"#VALUE!"},{"$error":"#VALUE!"},{"$error":"#VALUE!"},null,null,"",0]
[null,null,null,null,null,null,null,null,"k.A.","k.A.",null,null,"k.A.","k.A.",null,null,0,0,null,null,null,"k.A.",null,"k.A.",{"$error":"#VALUE!"},{"$error":"#VALUE!"},{"$error":"#VALUE!"},{"$error":"#VALUE!"},{"$error":"#VALUE!"},null,null,"",0]
[null,null,null,null,null,null,null,null,"k.A.","k.A.",null,null,"k.A.","k.A.",null,null,0,0,null,null,null,"k.A.",null,"k.A.",{"$error":"#VALUE!"},{"$error":"#VALUE!"},{"$error":"#VALUE!"},{"$error":"#VALUE!"},{"$error":"#VALUE!"},null,null,"",0]
[null,null,null,null,null,null,null,null,"k.A.","k.A.",null,null,"k.A.","k.A.",null,null,0,0,null,null,null,"k.A.",null,"k.A.",{"$error":"#VALUE!"},{"$error":"#VALUE!"},{"$error":"#VALUE!"},{"$error":"#VALUE!"},{"$error":"#VALUE!"},null,null,"",0]
[null,null,null,null,null,null,null,null,"k.A.","k.A.",null,null,"k.A.","k.A.",null,null,0,0,null,null,null,"k.A.",null,"k.A.",{"$error":"#VALUE!"},{"$error":"#VALUE!"},{"$error":"#VALUE!"},{"$error":"#VALUE!"},{"$error":"#VALUE!"},null,null,"",0]
[null,null,null,null,null,null,null,null,"k.A.","k.A.",null,null,"k.A.","k.A.",null,null,0,0,null,null,null,"k.A.",null,"k.A.",{"$error":"#VALUE!"},{"$error":"#VALUE!"},{"$error":"#VALUE!"},{"$error":"#VALUE!"},{"$error":"#VALUE!"},null,null,"",0]
[null,null,null,null,null,null,null,null,"k.A.","k.A.",null,null,"k.A.","k.A.",null,null,0,0,null,null,null,"k.A.",null,"k.A.",{"$error":"#VALUE!"},{"$error":"#VALUE!"},{"$error":"#VALUE!"},{"$error":"#VALUE!"},{"$error":"#VALUE!"},null,null,"",0]
[null,null,null,null,null,null,null,null,"k.A.","k.A.",null,null,"k.A.","k.A.",null,null,0,0,null,null,null,"k.A.",null,"k.A.",{"$error":"#VALUE!"},{"$error":"#VALUE!"},{"$error":"#VALUE!"},{"$error":"#VALUE!"},{"$error":"#VALUE!"},null,null,"",0]
[null,null,null,null,null,null,null,null,"k.A.","k.A.",null,null,"k.A.","k.A.",null,null,0,0,null,null,null,"k.A.",null,"k.A.",{"$error":"#VALUE!"},{"$error":"#VALUE!"},{"$error":"#VALUE!"},{"$error":"#VALUE!"},{"$error":"#VALUE!"},null,null,"",0]
[null,null,null,null,null,null,null,null,"k.A.","k.A.",null,null,"k.A.","k.A.",null,null,0,0,null,null,null,"k.A.",null,"k.A.",{"$error":"#VALUE!"},{"$error":"#VALUE!"},{"$error":"#VALUE!"},{"$error":"#VALUE!"},{"$error":"#VALUE!"},null,null,"",0]
[null,null,null,null,null,null,null,null,"k.A.","k.A.",null,null,"k.A.","k.A.",null,null,0,0,null,null,null,"k.A.",null,"k.A.",{"$error":"#VALUE!"},{"$error":"#VALUE!"},{"$error":"#VALUE!"},{"$error":"#VALUE!"},{"$error":"#VALUE!"},null,null,"",0]
[null,null,null,null,null,null,null,null,"k.A.","k.A.",null,null,"k.A.","k.A.",null,null,0,0,null,null,null,"k.A.",null,"k.A.",{"$error":"#VALUE!"},{"$error":"#VALUE!"},{"$error":"#VALUE!"},{"$error":"#VALUE!"},{"$error":"#VALUE!"},null,null,"",0]
[null,null,null,null,null,null,null,null,"k.A.","k.A.",null,null,"k.A.","k.A.",null,null,0,0,null,null,null,"k.A.",null,"k.A.",{"$error":"#VALUE!"},{"$error":"#VALUE!"},{"$error":"#VALUE!"},{"$error":"#VALUE!"},{"$error":"#VALUE!"},null,null,"",0]
[null,null,null,null,null,null,null,null,"k.A.","k.A.",null,null,"k.A.","k.A.",null,null,0,0,null,null,null,"k.A.",null,"k.A.",{"$error":"#VALUE!"},{"$error":"#VALUE!"},{"$error":"#VALUE!"},{"$error":"#VALUE!"},{"$error":"#VALUE!"},null,null,"",0]
[null,null,null,null,null,null,null,null,"k.A.","k.A.",null,null,"k.A.","k.A.",null,null,0,0,null,null,null,"k.A.",null,"k.A.",{"$error":"#VALUE!"},{"$error":"#VALUE!"},{"$error":"#VALUE!"},{"$error":"#VALUE!"},{"$error":"#VALUE!"},null,null,"",0]
[null,null,null,null,null,null,null,null,"k.A.","k.A.",null,null,"k.A.","k.A.",null,null,0,0,null,null,null,"k.A.",null,"k.A.",{"$error":"#VALUE!"},{"$error":"#VALUE!"},{"$error":"#VALUE!"},{"$error":"#VALUE!"},{"$error":"#VALUE!"},null,null,"",0]
[null,null,null,null,null,null,null,null,"k.A.","k.A.",null,null,"k.A.","k.A.",null,null,0,0,null,null,null,"k.A.",null,"k.A.",{"$error":"#VALUE!"},{"$error":"#VALUE!"},{"$error":"#VALUE!"},{"$error":"#VALUE!"},{"$error":"#VALUE!"},null,null,"",0]
[null,null,null,null,null,null,null,null,"k.A.","k.A.",null,null,"k.A.","k.A.",null,null,0,0,null,null,null,"k.A.",null,"k.A.",{"$error":"#VALUE!"},{"$error":"#VALUE!"},{"$error":"#VALUE!"},{"$error":"#VALUE!"},{"$error":"#VALUE!"},null,null,"",0]
[null,null,null,null,null,null,null,null,"k.A.","k.A.",null,null,"k.A.","k.A.",null,null,0,0,null,null,null,"k.A.",null,"k.A.",{"$error":"#VALUE!"},{"$error":"#VALUE!"},{"$error":"#VALUE!"},{"$error":"#VALUE!"},{"$error":"#VALUE!"},null,null,"",0]
[null,null,null,null,null,null,null,null,"k.A.","k.A.",null,null,"k.A.","k.A.",null,null,0,0,null,null,null,"k.A.",null,"k.A.",{"$error":"#VALUE!"},{"$error":"#VALUE!"},{"$error":"#VALUE!"},{"$error":"#VALUE!"},{"$error":"#VALUE!"},null,null,"",0]
[null,null,null,null,null,null,null,null,"k.A.","k.A.",null,null,"k.A.","k.A.",null,null,0,0,null,null,null,"k.A.",null,"k.A.",{"$error":"#VALUE!"},{"$error":"#VALUE!"},{"$error":"#VALUE!"},{"$error":"#VALUE!"},{"$error":"#VALUE!"},null,null,"",0]
[null,null,null,null,null,null,null,null,"k.A.","k.A.",null,null,"k.A.","k.A.",null,null,0,0,null,null,null,"k.A.",null,"k.A.",{"$error":"#VALUE!"},{"$error":"#VALUE!"},{"$error":"#VALUE!"},{"$error":"#VALUE!"},{"$error":"#VALUE!"},null,null,"",0]
[null,null,null,null,null,null,null,null,"k.A.","k.A.",null,null,"k.A.","k.A.",null,null,0,0,null,null,null,"k.A.",null,"k.A.",{"$error":"#VALUE!"},{"$error":"#VALUE!"},{"$error":"#VALUE!"},{"$error":"#VALUE!"},{"$error":"#VALUE!"},null,null,"",0]
[null,null,null,null,null,null,null,null,"k.A.","k.A.",null,null,"k.A.","k.A.",null,null,0,0,null,null,null,"k.A.",null,"k.A.",{"$error":"#VALUE!"},{"$error":"#VALUE!"},{"$error":"#VALUE!"},{"$error":"#VALUE!"},{"$error":"#VALUE!"},null,null,"",0]
[null,null,null,null,null,null,null,null,"k.A.","k.A.",null,null,"k.A.","k.A.",null,null,0,0,null,null,null,"k.A.",null,"k.A.",{"$error":"#VALUE!"},{"$error":"#VALUE!"},{"$error":"#VALUE!"},{"$error":"#VALUE!"},{"$error":"#VALUE!"},null,null,"",0]
[null,null,null,null,null,null,null,null,"k.A.","k.A.",null,null,"k.A.","k.A.",null,null,0,0,null,null,null,"k.A.",null,"k.A.",{"$error":"#VALUE!"},{"$error":"#VALUE!"},{"$error":"#VALUE!"},{"$error":"#VALUE!"},{"$error":"#VALUE!"},null,null,"",0]
[null,null,null,null,null,null,null,null,"k.A.","k.A.",null,null,"k.A.","k.A.",null,null,0,0,null,null,null,"k.A.",null,"k.A.",{"$error":"#VALUE!"},{"$error":"#VALUE!"},{"$error":"#VALUE!"},{"$error":"#VALUE!"},{"$error":"#VALUE!"},null,null,"",0]
[null,null,null,null,null,null,null,null,"k.A.","k.A.",null,null,"k.A.","k.A.",null,null,0,0,null,null,null,"k.A.",null,"k.A.",{"$error":"#VALUE!"},{"$error":"#VALUE!"},{"$error":"#VALUE!"},{"$error":"#VALUE!"},{"$error":"#VALUE!"},null,null,"",0]
[null,null,null,null,null,null,null,null,"k.A.","k.A.",null,null,"k.A.","k.A.",null,null,0,0,null,null,null,"k.A.",null,"k.A.",{"$error":"#VALUE!"},{"$error":"#VALUE!"},{"$error":"#VALUE!"},{"$error":"#VALUE!"},{"$error":"#VALUE!"},null,null,"",0]
[null,null,null,null,null,null,null,null,"k.A.","k.A.",null,null,"k.A.","k.A.",null,null,0,0,null,null,null,"k.A.",null,"k.A.",{"$error":"#VALUE!"},{"$error":"#VALUE!"},{"$error":"#VALUE!"},{"$error":"#VALUE!"},{"$error":"#VALUE!"},null,null,"",0]
[null,null,null,null,null,null,null,null,"k.A.","k.A.",null,null,"k.A.","k.A.",null,null,0,0,null,null,null,"k.A.",null,"k.A.",{"$error":"#VALUE!"},{"$error":"#VALUE!"},{"$error":"#VALUE!"},{"$error":"#VALUE!"},{"$error":"#VALUE!"},null,null,"",0]
[null,null,null,null,null,null,null,null,{"$f":"IF(OR(ISBLANK(F135)=TRUE,ISBLANK(G135)=TRUE),\"k.A.\",F135-G135)","v":"k.A."},{"$f":"IF(OR(I135=\"k.A.\",ISNUMBER(I135)=FALSE),\"k.A.\",IF(I135>0,\"über Flur\",\"unter Flur\"))","v":"k.A."},null,null,{"$f":"IF(OR(I135=\"k.A.\",ISNUMBER(K135)=FALSE),\"k.A.\",K135+I135)","v":"k.A."},{"$f":"IF(OR(I135=\"k.A.\",ISNUMBER(L135)=FALSE),\"k.A.\",L135+I135)","v":"k.A."},null,null,{"$f":"L135-K135","v":0},{"$f":"IF(ISNUMBER(Q135),Q135+O135+P135,\"\")","v":0},null,null,null,{"$f":"IF(ISBLANK(U135),\"k.A.\",IF(ISNUMBER(T135),IF(AND(U135=\"A\",X135=\"unter\"),\"PN nicht mgl.\",IF(U135=\"B\",T135+$V$5,M135-1)),\"mittlere DSH fehlt\"))","v":"k.A."},null,{"$f":"IF(T135>0,(IF(Y135>0,\"über\", \"unter\")),\"k.A.\")","v":"k.A."},{"$f":"IF(((PI()*POWER(W135/1000,2))/4*(M135-T135))<0,0,((PI()*POWER(W135/1000,2))/4*(M135-T135)))","v":{"$error":"#VALUE!"}},{"$error":"#VALUE!"},{"$error":"#VALUE!"},{"$error":"#VALUE!"},{"$f":"(AB135)/AD135","v":{"$error":"#VALUE!"}},null,null,{"$f":"IF(AG135=0,\"\",\"ja\")","v":""},0]
[null,null,null,null,null,null,null,null,"k.A.","k.A.",null,null,"k.A.","k.A.",null,null,0,0,null,null,null,"k.A.",null,"k.A.",{"$error":"#VALUE!"},{"$f":"IF(Y136>0,((PI()*POWER(S136/1000,2)/4)*(Q136)),((PI()*POWER(S136/1000,2)/4)*(Q136+(M136-T136))))","v":{"$error":"#VALUE!"}},{"$f":"((PI()*POWER(W136/1000,2)/4)*(N136-T136))","v":{"$error":"#VALUE!"}},{"$f":"IF(U136=\"A\",Z136*1000*$AB$5,(Y136+(Z136*$AB$5))*1000)","v":{"$error":"#VALUE!"}},{"$error":"#VALUE!"},null,null,"",{"$f":"SUM(AI136:BH136)","v":0}]
[null,null,null,null,null,null,null,null,"k.A.","k.A.",null,null,"k.A.","k.A.",null,null,0,0,null,null,null,"k.A.",null,"k.A.",{"$error":"#VALUE!"},{"$error":"#VALUE!"},{"$error":"#VALUE!"},{"$error":"#VALUE!"},{"$error":"#VALUE!"},null,null,"",0]
[null,null,null,null,null,null,null,null,"k.A.","k.A.",null,null,"k.A.","k.A.",null,null,0,0,null,null,null,"k.A.",null,"k.A.",{"$error":"#VALUE!"},{"$error":"#VALUE!"},{"$error":"#VALUE!"},{"$error":"#VALUE!"},{"$error":"#VALUE!"},null,null,"",0]
[null,null,null,null,null,null,null,null,"k.A.","k.A.",null,null,"k.A.","k.A.",null,null,0,0,null,null,null,"k.A.",null,"k.A.",{"$error":"#VALUE!"},{"$error":"#VALUE!"},{"$error":"#VALUE!"},{"$error":"#VALUE!"},{"$error":"#VALUE!"},null,null,"",0]
[null,null,null,null,null,null,null,null,"k.A.","k.A.",null,null,"k.A.","k.A.",null,null,0,0,null,null,null,"k.A.",null,"k.A.",{"$error":"#VALUE!"},{"$error":"#VALUE!"},{"$error":"#VALUE!"},{"$error":"#VALUE!"},{"$error":"#VALUE!"},null,null,"",0]
[null,null,null,null,null,null,null,null,"k.A.","k.A.",null,null,"k.A.","k.A.",null,null,0,0,null,null,null,"k.A.",null,"k.A.",{"$error":"#VALUE!"},{"$error":"#VALUE!"},{"$error":"#VALUE!"},{"$error":"#VALUE!"},{"$error":"#VALUE!"},null,null,"",0]
[null,null,null,null,null,null,null,null,"k.A.","k.A.",null,null,"k.A.","k.A.",null,null,0,0,null,null,null,"k.A.",null,"k.A.",{"$error":"#VALUE!"},{"$error":"#VALUE!"},{"$error":"#VALUE!"},{"$error":"#VALUE!"},{"$error":"#VALUE!"},null,null,"",0]
[null,null,null,null,null,null,null,null,"k.A.","k.A.",null,null,"k.A.","k.A.",null,null,0,0,null,null,null,"k.A.",null,"k.A.",{"$error":"#VALUE!"},{"$error":"#VALUE!"},{"$error":"#VALUE!"},{"$error":"#VALUE!"},{"$error":"#VALUE!"},null,null,"",0]
[null,null,null,null,null,null,null,null,"k.A.","k.A.",null,null,"k.A.","k.A.",null,null,0,0,null,null,null,"k.A.",null,"k.A.",{"$error":"#VALUE!"},{"$error":"#VALUE!"},{"$error":"#VALUE!"},{"$error":"#VALUE!"},{"$error":"#VALUE!"},null,null,"",0]
[null,null,null,null,null,null,null,null,"k.A.","k.A.",null,null,"k.A.","k.A.",null,null,0,0,null,null,null,"k.A.",null,"k.A.",{"$error":"#VALUE!"},{"$error":"#VALUE!"},{"$error":"#VALUE!"},{"$error":"#VALUE!"},{"$error":"#VALUE!"},null,null,"",0]
[null,null,null,null,null,null,null,null,"k.A.","k.A.",null,null,"k.A.","k.A.",null,null,0,0,null,null,null,"k.A.",null,"k.A.",{"$error":"#VALUE!"},{"$error":"#VALUE!"},{"$error":"#VALUE!"},{"$error":"#VALUE!"},{"$error":"#VALUE!"},null,null,"",0]
[null,null,null,null,null,null,null,null,"k.A.","k.A.",null,null,"k.A.","k.A.",null,null,0,0,null,null,null,"k.A.",null,"k.A.",{"$error":"#VALUE!"},{"$error":"#VALUE!"},{"$error":"#VALUE!"},{"$error":"#VALUE!"},{"$error":"#VALUE!"},null,null,"",0]
[null,null,null,null,null,null,null,null,"k.A.","k.A.",null,null,"k.A.","k.A.",null,null,0,0,null,null,null,"k.A.",null,"k.A.",{"$error":"#VALUE!"},{"$error":"#VALUE!"},{"$error":"#VALUE!"},{"$error":"#VALUE!"},{"$error":"#VALUE!"},null,null,"",0]
[null,null,null,null,null,null,null,null,"k.A.","k.A.",null,null,"k.A.","k.A.",null,null,0,0,null,null,null,"k.A.",null,"k.A.",{"$error":"#VALUE!"},{"$error":"#VALUE!"},{"$error":"#VALUE!"},{"$error":"#VALUE!"},{"$error":"#VALUE!"},null,null,"",0]
[null,null,null,null,null,null,null,null,"k.A.","k.A.",null,null,"k.A.","k.A.",null,null,0,0,null,null,null,"k.A.",null,"k.A.",{"$error":"#VALUE!"},{"$error":"#VALUE!"},{"$error":"#VALUE!"},{"$error":"#VALUE!"},{"$error":"#VALUE!"},null,null,"",0]
[null,null,null,null,null,null,null,null,"k.A.","k.A.",null,null,"k.A.","k.A.",null,null,0,0,null,null,null,"k.A.",null,"k.A.",{"$error":"#VALUE!"},{"$error":"#VALUE!"},{"$error":"#VALUE!"},{"$error":"#VALUE!"},{"$error":"#VALUE!"},null,null,"",0]
[null,null,null,null,null,null,null,null,"k.A.","k.A.",null,null,"k.A.","k.A.",null,null,0,0,null,null,null,"k.A.",null,"k.A.",{"$error":"#VALUE!"},{"$error":"#VALUE!"},{"$error":"#VALUE!"},{"$error":"#VALUE!"},{"$error":"#VALUE!"},null,null,"",0]
[null,null,null,null,null,null,null,null,"k.A.","k.A.",null,null,"k.A.","k.A.",null,null,0,0,null,null,null,"k.A.",null,"k.A.",{"$error":"#VALUE!"},{"$error":"#VALUE!"},{"$error":"#VALUE!"},{"$error":"#VALUE!"},{"$error":"#VALUE!"},null,null,"",0]
[null,null,null,null,null,null,null,null,"k.A.","k.A.",null,null,"k.A.","k.A.",null,null,0,0,null,null,null,"k.A.",null,"k.A.",{"$error":"#VALUE!"},{"$error":"#VALUE!"},{"$error":"#VALUE!"},{"$error":"#VALUE!"},{"$error":"#VALUE!"},null,null,"",0]
[null,null,null,null,null,null,null,null,"k.A.","k.A.",null,null,"k.A.","k.A.",null,null,0,0,null,null,null,"k.A.",null,"k.A.",{"$error":"#VALUE!"},{"$error":"#VALUE!"},{"$error":"#VALUE!"},{"$error":"#VALUE!"},{"$error":"#VALUE!"},null,null,"",0]
[null,null,null,null,null,null,null,null,"k.A.","k.A.",null,null,"k.A.","k.A.",null,null,0,0,null,null,null,"k.A.",null,"k.A.",{"$error":"#VALUE!"},{"$error":"#VALUE!"},{"$error":"#VALUE!"},{"$error":"#VALUE!"},{"$error":"#VALUE!"},null,null,"",0]
[null,null,null,null,null,null,null,null,"k.A.","k.A.",null,null,"k.A.","k.A.",null,null,0,0,null,null,null,"k.A.",null,"k.A.",{"$error":"#VALUE!"},{"$error":"#VALUE!"},{"$error":"#VALUE!"},{"$error":"#VALUE!"},{"$error":"#VALUE!"},null,null,"",0]
[null,null,null,null,null,null,null,null,"k.A.","k.A.",null,null,"k.A.","k.A.",null,null,0,0,null,null,null,"k.A.",null,"k.A.",{"$error":"#VALUE!"},{"$error":"#VALUE!"},{"$error":"#VALUE!"},{"$error":"#VALUE!"},{"$error":"#VALUE!"},null,null,"",0]
[null,null,null,null,null,null,null,null,"k.A.","k.A.",null,null,"k.A.","k.A.",null,null,0,0,null,null,null,"k.A.",null,"k.A.",{"$error":"#VALUE!"},{"$error":"#VALUE!"},{"$error":"#VALUE!"},{"$error":"#VALUE!"},{"$error":"#VALUE!"},null,null,"",0]
[null,null,null,null,null,null,null,null,"k.A.","k.A.",null,null,"k.A.","k.A.",null,null,0,0,null,null,null,"k.A.",null,"k.A.",{"$error":"#VALUE!"},{"$error":"#VALUE!"},{"$error":"#VALUE!"},{"$error":"#VALUE!"},{"$error":"#VALUE!"},null,null,"",0]
[null,null,null,null,null,null,null,null,"k.A.","k.A.",null,null,"k.A.","k.A.",null,null,0,0,null,null,null,"k.A.",null,"k.A.",{"$error":"#VALUE!"},{"$error":"#VALUE!"},{"$error":"#VALUE!"},{"$error":"#VALUE!"},{"$error":"#VALUE!"},null,null,"",0]
[null,null,null,null,null,null,null,null,"k.A.","k.A.",null,null,"k.A.","k.A.",null,null,0,0,null,null,null,"k.A.",null,"k.A.",{"$error":"#VALUE!"},{"$error":"#VALUE!"},{"$error":"#VALUE!"},{"$error":"#VALUE!"},{"$error":"#VALUE!"},null,null,"",0]
[null,null,null,null,null,null,null,null,"k.A.","k.A.",null,null,"k.A.","k.A.",null,null,0,0,null,null,null,"k.A.",null,"k.A.",{"$error":"#VALUE!"},{"$error":"#VALUE!"},{"$error":"#VALUE!"},{"$error":"#VALUE!"},{"$error":"#VALUE!"},null,null,"",0]
[null,null,null,null,null,null,null,null,"k.A.","k.A.",null,null,"k.A.","k.A.",null,null,0,0,null,null,null,"k.A.",null,"k.A.",{"$error":"#VALUE!"},{"$error":"#VALUE!"},{"$error":"#VALUE!"},{"$error":"#VALUE!"},{"$error":"#VALUE!"},null,null,"",0]
[null,null,null,null,null,null,null,null,"k.A.","k.A.",null,null,"k.A.","k.A.",null,null,0,0,null,null,null,"k.A.",null,"k.A.",{"$error":"#VALUE!"},{"$error":"#VALUE!"},{"$error":"#VALUE!"},{"$error":"#VALUE!"},{"$error":"#VALUE!"},null,null,"",0]
[null,null,null,null,null,null,null,null,"k.A.","k.A.",null,null,"k.A.","k.A.",null,null,0,0,null,null,null,"k.A.",null,"k.A.",{"$error":"#VALUE!"},{"$error":"#VALUE!"},{"$error":"#VALUE!"},{"$error":"#VALUE!"},{"$error":"#VALUE!"},null,null,"",0]
[null,null,null,null,null,null,null,null,"k.A.","k.A.",null,null,"k.A.","k.A.",null,null,0,0,null,null,null,"k.A.",null,"k.A.",{"$error":"#VALUE!"},{"$error":"#VALUE!"},{"$error":"#VALUE!"},{"$error":"#VALUE!"},{"$error":"#VALUE!"},null,null,"",0]
[null,null,null,null,null,null,null,null,"k.A.","k.A.",null,null,"k.A.","k.A.",null,null,0,0,null,null,null,"k.A.",null,"k.A.",{"$error":"#VALUE!"},{"$error":"#VALUE!"},{"$error":"#VALUE!"},{"$error":"#VALUE!"},{"$error":"#VALUE!"},null,null,"",0]
[null,null,null,null,null,null,null,null,"k.A.","k.A.",null,null,"k.A.","k.A.",null,null,0,0,null,null,null,"k.A.",null,"k.A.",{"$error":"#VALUE!"},{"$error":"#VALUE!"},{"$error":"#VALUE!"},{"$error":"#VALUE!"},{"$error":"#VALUE!"},null,null,"",0]
[null,null,null,null,null,null,null,null,"k.A.","k.A.",null,null,"k.A.","k.A.",null,null,0,0,null,null,null,"k.A.",null,"k.A.",{"$error":"#VALUE!"},{"$error":"#VALUE!"},{"$error":"#VALUE!"},{"$error":"#VALUE!"},{"$error":"#VALUE!"},null,null,"",0]
[null,null,null,null,null,null,null,null,"k.A.","k.A.",null,null,"k.A.","k.A.",null,null,0,0,null,null,null,"k.A.",null,"k.A.",{"$error":"#VALUE!"},{"$error":"#VALUE!"},{"$error":"#VALUE!"},{"$error":"#VALUE!"},{"$error":"#VALUE!"},null,null,"",0]
[null,null,null,null,null,null,null,null,"k.A.","k.A.",null,null,"k.A.","k.A.",null,null,0,0,null,null,null,"k.A.",null,"k.A.",{"$error":"#VALUE!"},{"$error":"#VALUE!"},{"$error":"#VALUE!"},{"$error":"#VALUE!"},{"$error":"#VALUE!"},null,null,"",0]
[null,null,null,null,null,null,null,null,"k.A.","k.A.",null,null,"k.A.","k.A.",null,null,0,0,null,null,null,"k.A.",null,"k.A.",{"$error":"#VALUE!"},{"$error":"#VALUE!"},{"$error":"#VALUE!"},{"$error":"#VALUE!"},{"$error":"#VALUE!"},null,null,"",0]
[null,null,null,null,null,null,null,null,"k.A.","k.A.",null,null,"k.A.","k.A.",null,null,0,0,null,null,null,"k.A.",null,"k.A.",{"$error":"#VALUE!"},{"$error":"#VALUE!"},{"$error":"#VALUE!"},{"$error":"#VALUE!"},{"$error":"#VALUE!"},null,null,"",0]
[null,null,null,null,null,null,null,null,"k.A.","k.A.",null,null,"k.A.","k.A.",null,null,0,0,null,null,null,"k.A.",null,"k.A.",{"$error":"#VALUE!"},{"$error":"#VALUE!"},{"$error":"#VALUE!"},{"$error":"#VALUE!"},{"$error":"#VALUE!"},null,null,"",0]
[null,null,null,null,null,null,null,null,"k.A.","k.A.",null,null,"k.A.","k.A.",null,null,0,0,null,null,null,"k.A.",null,"k.A.",{"$error":"#VALUE!"},{"$error":"#VALUE!"},{"$error":"#VALUE!"},{"$error":"#VALUE!"},{"$error":"#VALUE!"},null,null,"",0]
[null,null,null,null,null,null,null,null,"k.A.","k.A.",null,null,"k.A.","k.A.",null,null,0,0,null,null,null,"k.A.",null,"k.A.",{"$error":"#VALUE!"},{"$error":"#VALUE!"},{"$error":"#VALUE!"},{"$error":"#VALUE!"},{"$error":"#VALUE!"},null,null,"",0]
[null,null,null,null,null,null,null,null,"k.A.","k.A.",null,null,"k.A.","k.A.",null,null,0,0,null,null,null,"k.A.",null,"k.A.",{"$error":"#VALUE!"},{"$error":"#VALUE!"},{"$error":"#VALUE!"},{"$error":"#VALUE!"},{"$error":"#VALUE!"},null,null,"",0]
[null,null,null,null,null,null,null,null,"k.A.","k.A.",null,null,"k.A.","k.A.",null,null,0,0,null,null,null,"k.A.",null,"k.A.",{"$error":"#VALUE!"},{"$error":"#VALUE!"},{"$error":"#VALUE!"},{"$error":"#VALUE!"},{"$error":"#VALUE!"},null,null,"",0]
[null,null,null,null,null,null,null,null,"k.A.","k.A.",null,null,"k.A.","k.A.",null,null,0,0,null,null,null,"k.A.",null,"k.A.",{"$error":"#VALUE!"},{"$error":"#VALUE!"},{"$error":"#VALUE!"},{"$error":"#VALUE!"},{"$error":"#VALUE!"},null,null,"",0]
[null,null,null,null,null,null,null,null,"k.A.","k.A.",null,null,"k.A.","k.A.",null,null,0,0,null,null,null,"k.A.",null,"k.A.",{"$error":"#VALUE!"},{"$error":"#VALUE!"},{"$error":"#VALUE!"},{"$error":"#VALUE!"},{"$error":"#VALUE!"},null,null,"",0]
[null,null,null,null,null,null,null,null,"k.A.","k.A.",null,null,"k.A.","k.A.",null,null,0,0,null,null,null,"k.A.",null,"k.A.",{"$error":"#VALUE!"},{"$error":"#VALUE!"},{"$error":"#VALUE!"},{"$error":"#VALUE!"},{"$error":"#VALUE!"},null,null,"",0]
[null,null,null,null,null,null,null,null,"k.A.","k.A.",null,null,"k.A.","k.A.",null,null,0,0,null,null,null,"k.A.",null,"k.A.",{"$error":"#VALUE!"},{"$error":"#VALUE!"},{"$error":"#VALUE!"},{"$error":"#VALUE!"},{"$error":"#VALUE!"},null,null,"",0]
[null,null,null,null,null,null,null,null,"k.A.","k.A.",null,null,"k.A.","k.A.",null,null,0,0,null,null,null,"k.A.",null,"k.A.",{"$error":"#VALUE!"},{"$error":"#VALUE!"},{"$error":"#VALUE!"},{"$error":"#VALUE!"},{"$error":"#VALUE!"},null,null,"",0]
[null,null,null,null,null,null,null,null,"k.A.","k.A.",null,null,"k.A.","k.A.",null,null,0,0,null,null,null,"k.A.",null,"k.A.",{"$error":"#VALUE!"},{"$error":"#VALUE!"},{"$error":"#VALUE!"},{"$error":"#VALUE!"},{"$error":"#VALUE!"},null,null,"",0]
[null,null,null,null,null,null,null,null,"k.A.","k.A.",null,null,"k.A.","k.A.",null,null,0,0,null,null,null,"k.A.",null,"k.A.",{"$error":"#VALUE!"},{"$error":"#VALUE!"},{"$error":"#VALUE!"},{"$error":"#VALUE!"},{"$error":"#VALUE!"},null,null,"",0]
[null,null,null,null,null,null,null,null,"k.A.","k.A.",null,null,"k.A.","k.A.",null,null,0,0,null,null,null,"k.A.",null,"k.A.",{"$error":"#VALUE!"},{"$error":"#VALUE!"},{"$error":"#VALUE!"},{"$error":"#VALUE!"},{"$error":"#VALUE!"},null,null,"",0]
[null,null,null,null,null,null,null,null,"k.A.","k.A.",null,null,"k.A.","k.A.",null,null,0,0,null,null,null,"k.A.",null,"k.A.",{"$error":"#VALUE!"},{"$error":"#VALUE!"},{"$error":"#VALUE!"},{"$error":"#VALUE!"},{"$error":"#VALUE!"},null,null,"",0]
[null,null,null,null,null,null,null,null,"k.A.","k.A.",null,null,"k.A.","k.A.",null,null,0,0,null,null,null,"k.A.",null,"k.A.",{"$error":"#VALUE!"},{"$error":"#VALUE!"},{"$error":"#VALUE!"},{"$error":"#VALUE!"},{"$error":"#VALUE!"},null,null,"",0]
[null,null,null,null,null,null,null,null,"k.A.","k.A.",null,null,"k.A.","k.A.",null,null,0,0,null,null,null,"k.A.",null,"k.A.",{"$error":"#VALUE!"},{"$error":"#VALUE!"},{"$error":"#VALUE!"},{"$error":"#VALUE!"},{"$error":"#VALUE!"},null,null,"",0]
[null,null,null,null,null,null,null,null,"k.A.","k.A.",null,null,"k.A.","k.A.",null,null,0,0,null,null,null,"k.A.",null,"k.A.",{"$error":"#VALUE!"},{"$error":"#VALUE!"},{"$error":"#VALUE!"},{"$error":"#VALUE!"},{"$error":"#VALUE!"},null,null,"",0]
[null,null,null,null,null,null,null,null,"k.A.","k.A.",null,null,"k.A.","k.A.",null,null,0,0,null,null,null,"k.A.",null,"k.A.",{"$error":"#VALUE!"},{"$error":"#VALUE!"},{"$error":"#VALUE!"},{"$error":"#VALUE!"},{"$error":"#VALUE!"},null,null,"",0]
[null,null,null,null,null,null,null,null,"k.A.","k.A.",null,null,"k.A.","k.A.",null,null,0,0,null,null,null,"k.A.",null,"k.A.",{"$error":"#VALUE!"},{"$error":"#VALUE!"},{"$error":"#VALUE!"},{"$error":"#VALUE!"},{"$error":"#VALUE!"},null,null,"",0]
[null,null,null,null,null,null,null,null,"k.A.","k.A.",null,null,"k.A.","k.A.",null,null,0,0,null,null,null,"k.A.",null,"k.A.",{"$error":"#VALUE!"},{"$error":"#VALUE!"},{"$error":"#VALUE!"},{"$error":"#VALUE!"},{"$error":"#VALUE!"},null,null,"",0]
[null,null,null,null,null,null,null,null,"k.A.","k.A.",null,null,"k.A.","k.A.",null,null,0,0,null,null,null,"k.A.",null,"k.A.",{"$error":"#VALUE!"},{"$error":"#VALUE!"},{"$error":"#VALUE!"},{"$error":"#VALUE!"},{"$error":"#VALUE!"},null,null,"",0]
[null,null,null,null,null,null,null,null,"k.A.","k.A.",null,null,"k.A.","k.A.",null,null,0,0,null,null,null,"k.A.",null,"k.A.",{"$error":"#VALUE!"},{"$error":"#VALUE!"},{"$error":"#VALUE!"},{"$error":"#VALUE!"},{"$error":"#VALUE!"},null,null,"",0]
[null,null,null,null,null,null,null,null,"k.A.","k.A.",null,null,"k.A.","k.A.",null,null,0,0,null,null,null,"k.A.",null,"k.A.",{"$error":"#VALUE!"},{"$error":"#VALUE!"},{"$error":"#VALUE!"},{"$error":"#VALUE!"},{"$error":"#VALUE!"},null,null,"",0]
[null,null,null,null,null,null,null,null,"k.A.","k.A.",null,null,"k.A.","k.A.",null,null,0,0,null,null,null,"k.A.",null,"k.A.",{"$error":"#VALUE!"},{"$error":"#VALUE!"},{"$error":"#VALUE!"},{"$error":"#VALUE!"},{"$error":"#VALUE!"},null,null,"",0]
[null,null,null,null,null,null,null,null,{"$f":"IF(OR(ISBLANK(F199)=TRUE,ISBLANK(G199)=TRUE),\"k.A.\",F199-G199)","v":"k.A."},{"$f":"IF(OR(I199=\"k.A.\",ISNUMBER(I199)=FALSE),\"k.A.\",IF(I199>0,\"über Flur\",\"unter Flur\"))","v":"k.A."},null,null,{"$f":"IF(OR(I199=\"k.A.\",ISNUMBER(K199)=FALSE),\"k.A.\",K199+I199)","v":"k.A."},{"$f":"IF(OR(I199=\"k.A.\",ISNUMBER(L199)=FALSE),\"k.A.\",L199+I199)","v":"k.A."},null,null,{"$f":"L199-K199","v":0},{"$f":"IF(ISNUMBER(Q199),Q199+O199+P199,\"\")","v":0},null,null,null,{"$f":"IF(ISBLANK(U199),\"k.A.\",IF(ISNUMBER(T199),IF(AND(U199=\"A\",X199=\"unter\"),\"PN nicht mgl.\",IF(U199=\"B\",T199+$V$5,M199-1)),\"mittlere DSH fehlt\"))","v":"k.A."},null,{"$f":"IF(T199>0,(IF(Y199>0,\"über\", \"unter\")),\"k.A.\")","v":"k.A."},{"$f":"IF(((PI()*POWER(W199/1000,2))/4*(M199-T199))<0,0,((PI()*POWER(W199/1000,2))/4*(M199-T199)))","v":{"$error":"#VALUE!"}},{"$error":"#VALUE!"},{"$error":"#VALUE!"},{"$error":"#VALUE!"},{"$f":"(AB199)/AD199","v":{"$error":"#VALUE!"}},null,null,{"$f":"IF(AG199=0,\"\",\"ja\")","v":""},0]
[null,null,null,null,null,null,null,null,"k.A.","k.A.",null,null,"k.A.","k.A.",null,null,0,0,null,null,null,"k.A.",null,"k.A.",{"$error":"#VALUE!"},{"$f":"IF(Y200>0,((PI()*POWER(S200/1000,2)/4)*(Q200)),((PI()*POWER(S200/1000,2)/4)*(Q200+(M200-T200))))","v":{"$error":"#VALUE!"}},{"$f":"((PI()*POWER(W200/1000,2)/4)*(N200-T200))","v":{"$error":"#VALUE!"}},{"$f":"IF(U200=\"A\",Z200*1000*$AB$5,(Y200+(Z200*$AB$5))*1000)","v":{"$error":"#VALUE!"}},{"$error":"#VALUE!"},null,null,"",{"$f":"SUM(AI200:BH200)","v":0}]
[null,null,null,null,null,null,null,null,"k.A.","k.A.",null,null,"k.A.","k.A.",null,null,0,0,null,null,null,"k.A.",null,"k.A.",{"$error":"#VALUE!"},{"$error":"#VALUE!"},{"$error":"#VALUE!"},{"$error":"#VALUE!"},{"$error":"#VALUE!"},null,null,"",0]
[null,null,null,null,null,null,null,null,"k.A.","k.A.",null,null,"k.A.","k.A.",null,null,0,0,null,null,null,"k.A.",null,"k.A.",{"$error":"#VALUE!"},{"$error":"#VALUE!"},{"$error":"#VALUE!"},{"$error":"#VALUE!"},{"$error":"#VALUE!"},null,null,"",0]
[null,null,null,null,null,null,null,null,"k.A.","k.A.",null,null,"k.A.","k.A.",null,null,0,0,null,null,null,"k.A.",null,"k.A.",{"$error":"#VALUE!"},{"$error":"#VALUE!"},{"$error":"#VALUE!"},{"$error":"#VALUE!"},{"$error":"#VALUE!"},null,null,"",0]
[null,null,null,null,null,null,null,null,"k.A.","k.A.",null,null,"k.A.","k.A.",null,null,0,0,null,null,null,"k.A.",null,"k.A.",{"$error":"#VALUE!"},{"$error":"#VALUE!"},{"$error":"#VALUE!"},{"$error":"#VALUE!"},{"$error":"#VALUE!"},null,null,"",0]
[null,null,null,null,null,null,null,null,"k.A.","k.A.",null,null,"k.A.","k.A.",null,null,0,0,null,null,null,"k.A.",null,"k.A.",{"$error":"#VALUE!"},{"$error":"#VALUE!"},{"$error":"#VALUE!"},{"$error":"#VALUE!"},{"$error":"#VALUE!"},null,null,"",0]
[null,null,null,null,null,null,null,null,"k.A.","k.A.",null,null,"k.A.","k.A.",null,null,0,0,null,null,null,"k.A.",null,"k.A.",{"$error":"#VALUE!"},{"$error":"#VALUE!"},{"$error":"#VALUE!"},{"$error":"#VALUE!"},{"$error":"#VALUE!"},null,null,"",0]
[null,null,null,null,null,null,null,null,"k.A.","k.A.",null,null,"k.A.","k.A.",null,null,0,0,null,null,null,"k.A.",null,"k.A.",{"$error":"#VALUE!"},{"$error":"#VALUE!"},{"$error":"#VALUE!"},{"$error":"#VALUE!"},{"$error":"#VALUE!"},null,null,"",0]
[null,null,null,null,null,null,null,null,"k.A.","k.A.",null,null,"k.A.","k.A.",null,null,0,0,null,null,null,"k.A.",null,"k.A.",{"$error":"#VALUE!"},{"$error":"#VALUE!"},{"$error":"#VALUE!"},{"$error":"#VALUE!"},{"$error":"#VALUE!"},null,null,"",0]
[null,null,null,null,null,null,null,null,"k.A.","k.A.",null,null,"k.A.","k.A.",null,null,0,0,null,null,null,"k.A.",null,"k.A.",{"$error":"#VALUE!"},{"$error":"#VALUE!"},{"$error":"#VALUE!"},{"$error":"#VALUE!"},{"$error":"#VALUE!"},null,null,"",0]
[null,null,null,null,null,null,null,null,"k.A.","k.A.",null,null,"k.A.","k.A.",null,null,0,0,null,null,null,"k.A.",null,"k.A.",{"$error":"#VALUE!"},{"$error":"#VALUE!"},{"$error":"#VALUE!"},{"$error":"#VALUE!"},{"$error":"#VALUE!"},null,null,"",0]
[null,null,null,null,null,null,null,null,"k.A.","k.A.",null,null,"k.A.","k.A.",null,null,0,0,null,null,null,"k.A.",null,"k.A.",{"$error":"#VALUE!"},{"$error":"#VALUE!"},{"$error":"#VALUE!"},{"$error":"#VALUE!"},{"$error":"#VALUE!"},null,null,"",0]
[null,null,null,null,null,null,null,null,"k.A.","k.A.",null,null,"k.A.","k.A.",null,null,0,0,null,null,null,"k.A.",null,"k.A.",{"$error":"#VALUE!"},{"$error":"#VALUE!"},{"$error":"#VALUE!"},{"$error":"#VALUE!"},{"$error":"#VALUE!"},null,null,"",0]
[null,null,null,null,null,null,null,null,"k.A.","k.A.",null,null,"k.A.","k.A.",null,null,0,0,null,null,null,"k.A.",null,"k.A.",{"$error":"#VALUE!"},{"$error":"#VALUE!"},{"$error":"#VALUE!"},{"$error":"#VALUE!"},{"$error":"#VALUE!"},null,null,"",0]
[null,null,null,null,null,null,null,null,"k.A.","k.A.",null,null,"k.A.","k.A.",null,null,0,0,null,null,null,"k.A.",null,"k.A.",{"$error":"#VALUE!"},{"$error":"#VALUE!"},{"$error":"#VALUE!"},{"$error":"#VALUE!"},{"$error":"#VALUE!"},null,null,"",0]
[null,null,null,null,null,null,null,null,"k.A.","k.A.",null,null,"k.A.","k.A.",null,null,0,0,null,null,null,"k.A.",null,"k.A.",{"$error":"#VALUE!"},{"$error":"#VALUE!"},{"$error":"#VALUE!"},{"$error":"#VALUE!"},{"$error":"#VALUE!"},null,null,"",0]
[null,null,null,null,null,null,null,null,"k.A.","k.A.",null,null,"k.A.","k.A.",null,null,0,0,null,null,null,"k.A.",null,"k.A.",{"$error":"#VALUE!"},{"$error":"#VALUE!"},{"$error":"#VALUE!"},{"$error":"#VALUE!"},{"$error":"#VALUE!"},null,null,"",0]
[null,null,null,null,null,null,null,null,"k.A.","k.A.",null,null,"k.A.","k.A.",null,null,0,0,null,null,null,"k.A.",null,"k.A.",{"$error":"#VALUE!"},{"$error":"#VALUE!"},{"$error":"#VALUE!"},{"$error":"#VALUE!"},{"$error":"#VALUE!"},null,null,"",0]
[null,null,null,null,null,null,null,null,"k.A.","k.A.",null,null,"k.A.","k.A.",null,null,0,0,null,null,null,"k.A.",null,"k.A.",{"$error":"#VALUE!"},{"$error":"#VALUE!"},{"$error":"#VALUE!"},{"$error":"#VALUE!"},{"$error":"#VALUE!"},null,null,"",0]
[null,null,null,null,null,null,null,null,"k.A.","k.A.",null,null,"k.A.","k.A.",null,null,0,0,null,null,null,"k.A.",null,"k.A.",{"$error":"#VALUE!"},{"$error":"#VALUE!"},{"$error":"#VALUE!"},{"$error":"#VALUE!"},{"$error":"#VALUE!"},null,null,"",0]
[null,null,null,null,null,null,null,null,"k.A.","k.A.",null,null,"k.A.","k.A.",null,null,0,0,null,null,null,"k.A.",null,"k.A.",{"$error":"#VALUE!"},{"$error":"#VALUE!"},{"$error":"#VALUE!"},{"$error":"#VALUE!"},{"$error":"#VALUE!"},null,null,"",0]
[null,null,null,null,null,null,null,null,"k.A.","k.A.",null,null,"k.A.","k.A.",null,null,0,0,null,null,null,"k.A.",null,"k.A.",{"$error":"#VALUE!"},{"$error":"#VALUE!"},{"$error":"#VALUE!"},{"$error":"#VALUE!"},{"$error":"#VALUE!"},null,null,"",0]
[null,null,null,null,null,null,null,null,"k.A.","k.A.",null,null,"k.A.","k.A.",null,null,0,0,null,null,null,"k.A.",null,"k.A.",{"$error":"#VALUE!"},{"$error":"#VALUE!"},{"$error":"#VALUE!"},{"$error":"#VALUE!"},{"$error":"#VALUE!"},null,null,"",0]
[null,null,null,null,null,null,null,null,"k.A.","k.A.",null,null,"k.A.","k.A.",null,null,0,0,null,null,null,"k.A.",null,"k.A.",{"$error":"#VALUE!"},{"$error":"#VALUE!"},{"$error":"#VALUE!"},{"$error":"#VALUE!"},{"$error":"#VALUE!"},null,null,"",0]
[null,null,null,null,null,null,null,null,"k.A.","k.A.",null,null,"k.A.","k.A.",null,null,0,0,null,null,null,"k.A.",null,"k.A.",{"$error":"#VALUE!"},{"$error":"#VALUE!"},{"$error":"#VALUE!"},{"$error":"#VALUE!"},{"$error":"#VALUE!"},null,null,"",0]
[null,null,null,null,null,null,null,null,"k.A.","k.A.",null,null,"k.A.","k.A.",null,null,0,0,null,null,null,"k.A.",null,"k.A.",{"$error":"#VALUE!"},{"$error":"#VALUE!"},{"$error":"#VALUE!"},{"$error":"#VALUE!"},{"$error":"#VALUE!"},null,null,"",0]
[null,null,null,null,null,null,null,null,"k.A.","k.A.",null,null,"k.A.","k.A.",null,null,0,0,null,null,null,"k.A.",null,"k.A.",{"$error":"#VALUE!"},{"$error":"#VALUE!"},{"$error":"#VALUE!"},{"$error":"#VALUE!"},{"$error":"#VALUE!"},null,null,"",0]
[null,null,null,null,null,null,null,null,"k.A.","k.A.",null,null,"k.A.","k.A.",null,null,0,0,null,null,null,"k.A.",null,"k.A.",{"$error":"#VALUE!"},{"$error":"#VALUE!"},{"$error":"#VALUE!"},{"$error":"#VALUE!"},{"$error":"#VALUE!"},null,null,null,0]
[null,null,null,null,null,null,null,null,"k.A.","k.A.",null,null,"k.A.","k.A.",null,null,0,0,null,null,null,"k.A.",null,"k.A.",{"$error":"#VALUE!"},{"$error":"#VALUE!"},{"$error":"#VALUE!"},{"$error":"#VALUE!"},{"$error":"#VALUE!"},null,null,{"$f":"IF(AG228=0,\"\",\"ja\")","v":""},0]
[null,null,null,null,null,null,null,null,"k.A.","k.A.",null,null,"k.A.","k.A.",null,null,0,0,null,null,null,"k.A.",null,"k.A.",{"$error":"#VALUE!"},{"$error":"#VALUE!"},{"$error":"#VALUE!"},{"$error":"#VALUE!"},{"$error":"#VALUE!"},null,null,"",0]
[null,null,null,null,null,null,null,null,"k.A.","k.A.",null,null,"k.A.","k.A.",null,null,0,0,null,null,null,"k.A.",null,"k.A.",{"$error":"#VALUE!"},{"$error":"#VALUE!"},{"$error":"#VALUE!"},{"$error":"#VALUE!"},{"$error":"#VALUE!"},null,null,"",0]
[null,null,null,null,null,null,null,null,"k.A.","k.A.",null,null,"k.A.","k.A.",null,null,0,0,null,null,null,"k.A.",null,"k.A.",{"$error":"#VALUE!"},{"$error":"#VALUE!"},{"$error":"#VALUE!"},{"$error":"#VALUE!"},{"$error":"#VALUE!"},null,null,"",0]
[null,null,null,null,null,null,null,null,"k.A.","k.A.",null,null,"k.A.","k.A.",null,null,0,0,null,null,null,"k.A.",null,"k.A.",{"$error":"#VALUE!"},{"$error":"#VALUE!"},{"$error":"#VALUE!"},{"$error":"#VALUE!"},{"$error":"#VALUE!"},null,null,"",0]
[null,null,null,null,null,null,null,null,"k.A.","k.A.",null,null,"k.A.","k.A.",null,null,0,0,null,null,null,"k.A.",null,"k.A.",{"$error":"#VALUE!"},{"$error":"#VALUE!"},{"$error":"#VALUE!"},{"$error":"#VALUE!"},{"$error":"#VALUE!"},null,null,"",0]
[null,null,null,null,null,null,null,null,"k.A.","k.A.",null,null,"k.A.","k.A.",null,null,0,0,null,null,null,"k.A.",null,"k.A.",{"$error":"#VALUE!"},{"$error":"#VALUE!"},{"$error":"#VALUE!"},{"$error":"#VALUE!"},{"$error":"#VALUE!"},null,null,"",0]
[null,null,null,null,null,null,null,null,"k.A.","k.A.",null,null,"k.A.","k.A.",null,null,0,0,null,null,null,"k.A.",null,"k.A.",{"$error":"#VALUE!"},{"$error":"#VALUE!"},{"$error":"#VALUE!"},{"$error":"#VALUE!"},{"$error":"#VALUE!"},null,null,"",0]
[null,null,null,null,null,null,null,null,"k.A.","k.A.",null,null,"k.A.","k.A.",null,null,0,0,null,null,null,"k.A.",null,"k.A.",{"$error":"#VALUE!"},{"$error":"#VALUE!"},{"$error":"#VALUE!"},{"$error":"#VALUE!"},{"$error":"#VALUE!"},null,null,"",0]
[null,null,null,null,null,null,null,null,"k.A.","k.A.",null,null,"k.A.","k.A.",null,null,0,0,null,null,null,"k.A.",null,"k.A.",{"$error":"#VALUE!"},{"$error":"#VALUE!"},{"$error":"#VALUE!"},{"$error":"#VALUE!"},{"$error":"#VALUE!"},null,null,"",0]
[null,null,null,null,null,null,null,null,"k.A.","k.A.",null,null,"k.A.","k.A.",null,null,0,0,null,null,null,"k.A.",null,"k.A.",{"$error":"#VALUE!"},{"$error":"#VALUE!"},{"$error":"#VALUE!"},{"$error":"#VALUE!"},{"$error":"#VALUE!"},null,null,"",0]
[null,null,null,null,null,null,null,null,"k.A.","k.A.",null,null,"k.A.","k.A.",null,null,0,0,null,null,null,"k.A.",null,"k.A.",{"$error":"#VALUE!"},{"$error":"#VALUE!"},{"$error":"#VALUE!"},{"$error":"#VALUE!"},{"$error":"#VALUE!"},null,null,"",0]
[null,null,null,null,null,null,null,null,"k.A.","k.A.",null,null,"k.A.","k.A.",null,null,0,0,null,null,null,"k.A.",null,"k.A.",{"$error":"#VALUE!"},{"$error":"#VALUE!"},{"$error":"#VALUE!"},{"$error":"#VALUE!"},{"$error":"#VALUE!"},null,null,"",0]
[null,null,null,null,null,null,null,null,"k.A.","k.A.",null,null,"k.A.","k.A.",null,null,0,0,null,null,null,"k.A.",null,"k.A.",{"$error":"#VALUE!"},{"$error":"#VALUE!"},{"$error":"#VALUE!"},{"$error":"#VALUE!"},{"$error":"#VALUE!"},null,null,"",0]
[null,null,null,null,null,null,null,null,"k.A.","k.A.",null,null,"k.A.","k.A.",null,null,0,0,null,null,null,"k.A.",null,"k.A.",{"$error":"#VALUE!"},{"$error":"#VALUE!"},{"$error":"#VALUE!"},{"$error":"#VALUE!"},{"$error":"#VALUE!"},null,null,"",0]
[null,null,null,null,null,null,null,null,"k.A.","k.A.",null,null,"k.A.","k.A.",null,null,0,0,null,null,null,"k.A.",null,"k.A.",{"$error":"#VALUE!"},{"$error":"#VALUE!"},{"$error":"#VALUE!"},{"$error":"#VALUE!"},{"$error":"#VALUE!"},null,null,"",0]
[null,null,null,null,null,null,null,null,"k.A.","k.A.",null,null,"k.A.","k.A.",null,null,0,0,null,null,null,"k.A.",null,"k.A.",{"$error":"#VALUE!"},{"$error":"#VALUE!"},{"$error":"#VALUE!"},{"$error":"#VALUE!"},{"$error":"#VALUE!"},null,null,"",0]
[null,null,null,null,null,null,null,null,"k.A.","k.A.",null,null,"k.A.","k.A.",null,null,0,0,null,null,null,"k.A.",null,"k.A.",{"$error":"#VALUE!"},{"$error":"#VALUE!"},{"$error":"#VALUE!"},{"$error":"#VALUE!"},{"$error":"#VALUE!"},null,null,"",0]
[null,null,null,null,null,null,null,null,"k.A.","k.A.",null,null,"k.A.","k.A.",null,null,0,0,null,null,null,"k.A.",null,"k.A.",{"$error":"#VALUE!"},{"$error":"#VALUE!"},{"$error":"#VALUE!"},{"$error":"#VALUE!"},{"$error":"#VALUE!"},null,null,"",0]
[null,null,null,null,null,null,null,null,"k.A.","k.A.",null,null,"k.A.","k.A.",null,null,0,0,null,null,null,"k.A.",null,"k.A.",{"$error":"#VALUE!"},{"$error":"#VALUE!"},{"$error":"#VALUE!"},{"$error":"#VALUE!"},{"$error":"#VALUE!"},null,null,"",0]
[null,null,null,null,null,null,null,null,"k.A.","k.A.",null,null,"k.A.","k.A.",null,null,0,0,null,null,null,"k.A.",null,"k.A.",{"$error":"#VALUE!"},{"$error":"#VALUE!"},{"$error":"#VALUE!"},{"$error":"#VALUE!"},{"$error":"#VALUE!"},null,null,"",0]
[null,null,null,null,null,null,null,null,"k.A.","k.A.",null,null,"k.A.","k.A.",null,null,0,0,null,null,null,"k.A.",null,"k.A.",{"$error":"#VALUE!"},{"$error":"#VALUE!"},{"$error":"#VALUE!"},{"$error":"#VALUE!"},{"$error":"#VALUE!"},null,null,"",0]
[null,null,null,null,null,null,null,null,"k.A.","k.A.",null,null,"k.A.","k.A.",null,null,0,0,null,null,null,"k.A.",null,"k.A.",{"$error":"#VALUE!"},{"$error":"#VALUE!"},{"$error":"#VALUE!"},{"$error":"#VALUE!"},{"$error":"#VALUE!"},null,null,"",0]
[null,null,null,null,null,null,null,null,"k.A.","k.A.",null,null,"k.A.","k.A.",null,null,0,0,null,null,null,"k.A.",null,"k.A.",{"$error":"#VALUE!"},{"$error":"#VALUE!"},{"$error":"#VALUE!"},{"$error":"#VALUE!"},{"$error":"#VALUE!"},null,null,"",0]
[null,null,null,null,null,null,null,null,"k.A.","k.A.",null,null,"k.A.","k.A.",null,null,0,0,null,null,null,"k.A.",null,"k.A.",{"$error":"#VALUE!"},{"$error":"#VALUE!"},{"$error":"#VALUE!"},{"$error":"#VALUE!"},{"$error":"#VALUE!"},null,null,"",0]
[null,null,null,null,null,null,null,null,"k.A.","k.A.",null,null,"k.A.","k.A.",null,null,0,0,null,null,null,"k.A.",null,"k.A.",{"$error":"#VALUE!"},{"$error":"#VALUE!"},{"$error":"#VALUE!"},{"$error":"#VALUE!"},{"$error":"#VALUE!"},null,null,"",0]
[null,null,null,null,null,null,null,null,"k.A.","k.A.",null,null,"k.A.","k.A.",null,null,0,0,null,null,null,"k.A.",null,"k.A.",{"$error":"#VALUE!"},{"$error":"#VALUE!"},{"$error":"#VALUE!"},{"$error":"#VALUE!"},{"$error":"#VALUE!"},null,null,"",0]
[null,null,null,null,null,null,null,null,"k.A.","k.A.",null,null,"k.A.","k.A.",null,null,0,0,null,null,null,"k.A.",null,"k.A.",{"$error":"#VALUE!"},{"$error":"#VALUE!"},{"$error":"#VALUE!"},{"$error":"#VALUE!"},{"$error":"#VALUE!"},null,null,"",0]
[null,null,null,null,null,null,null,null,"k.A.","k.A.",null,null,"k.A.","k.A.",null,null,0,0,null,null,null,"k.A.",null,"k.A.",{"$error":"#VALUE!"},{"$error":"#VALUE!"},{"$error":"#VALUE!"},{"$error":"#VALUE!"},{"$error":"#VALUE!"},null,null,"",0]
[null,null,null,null,null,null,null,null,"k.A.","k.A.",null,null,"k.A.","k.A.",null,null,0,0,null,null,null,"k.A.",null,"k.A.",{"$error":"#VALUE!"},{"$error":"#VALUE!"},{"$error":"#VALUE!"},{"$error":"#VALUE!"},{"$error":"#VALUE!"},null,null,"",0]
[null,null,null,null,null,null,null,null,"k.A.","k.A.",null,null,"k.A.","k.A.",null,null,0,0,null,null,null,"k.A.",null,"k.A.",{"$error":"#VALUE!"},{"$error":"#VALUE!"},{"$error":"#VALUE!"},{"$error":"#VALUE!"},{"$error":"#VALUE!"},null,null,"",0]
[null,null,null,null,null,null,null,null,"k.A.","k.A.",null,null,"k.A.","k.A.",null,null,0,0,null,null,null,"k.A.",null,"k.A.",{"$error":"#VALUE!"},{"$error":"#VALUE!"},{"$error":"#VALUE!"},{"$error":"#VALUE!"},{"$error":"#VALUE!"},null,null,"",0]
[null,null,null,null,null,null,null,null,"k.A.","k.A.",null,null,"k.A.","k.A.",null,null,0,0,null,null,null,"k.A.",null,"k.A.",{"$error":"#VALUE!"},{"$error":"#VALUE!"},{"$error":"#VALUE!"},{"$error":"#VALUE!"},{"$error":"#VALUE!"},null,null,"",0]
[null,null,null,null,null,null,null,null,"k.A.","k.A.",null,null,"k.A.","k.A.",null,null,0,0,null,null,null,"k.A.",null,"k.A.",{"$error":"#VALUE!"},{"$error":"#VALUE!"},{"$error":"#VALUE!"},{"$error":"#VALUE!"},{"$error":"#VALUE!"},null,null,"",0]
[null,null,null,null,null,null,null,null,"k.A.","k.A.",null,null,"k.A.","k.A.",null,null,0,0,null,null,null,"k.A.",null,"k.A.",{"$error":"#VALUE!"},{"$error":"#VALUE!"},{"$error":"#VALUE!"},{"$error":"#VALUE!"},{"$error":"#VALUE!"},null,null,"",0]
[null,null,null,null,null,null,null,null,"k.A.",{"$f":"IF(OR(I263=\"k.A.\",ISNUMBER(I263)=FALSE),\"k.A.\",IF(I263>0,\"über Flur\",\"unter Flur\"))","v":"k.A."},null,null,"k.A.","k.A.",null,null,0,{"$f":"IF(ISNUMBER(Q263),Q263+O263+P263,\"\")","v":0},null,null,null,{"$f":"IF(ISBLANK(U263),\"k.A.\",IF(ISNUMBER(T263),IF(AND(U263=\"A\",X263=\"unter\"),\"PN nicht mgl.\",IF(U263=\"B\",T263+$V$5,M263-1)),\"mittlere DSH fehlt\"))","v":"k.A."},null,{"$f":"IF(T263>0,(IF(Y263>0,\"über\", \"unter\")),\"k.A.\")","v":"k.A."},{"$error":"#VALUE!"},{"$error":"#VALUE!"},{"$error":"#VALUE!"},{"$error":"#VALUE!"},{"$f":"(AB263)/AD263","v":{"$error":"#VALUE!"}},null,null,"",0]
[null,null,null,null,null,null,null,null,"k.A.",{"$f":"IF(OR(I264=\"k.A.\",ISNUMBER(I264)=FALSE),\"k.A.\",IF(I264>0,\"über Flur\",\"unter Flur\"))","v":"k.A."},null,null,"k.A.","k.A.",null,null,0,{"$f":"IF(ISNUMBER(Q264),Q264+O264+P264,\"\")","v":0},null,null,null,{"$f":"IF(ISBLANK(U264),\"k.A.\",IF(ISNUMBER(T264),IF(AND(U264=\"A\",X264=\"unter\"),\"PN nicht mgl.\",IF(U264=\"B\",T264+$V$5,M264-1)),\"mittlere DSH fehlt\"))","v":"k.A."},null,{"$f":"IF(T264>0,(IF(Y264>0,\"über\", \"unter\")),\"k.A.\")","v":"k.A."},{"$error":"#VALUE!"},{"$f":"IF(Y264>0,((PI()*POWER(S264/1000,2)/4)*(Q264)),((PI()*POWER(S264/1000,2)/4)*(Q264+(M264-T264))))","v":{"$error":"#VALUE!"}},{"$f":"((PI()*POWER(W264/1000,2)/4)*(N264-T264))","v":{"$error":"#VALUE!"}},{"$f":"IF(U264=\"A\",Z264*1000*$AB$5,(Y264+(Z264*$AB$5))*1000)","v":{"$error":"#VALUE!"}},{"$f":"(AB264)/AD264","v":{"$error":"#VALUE!"}},null,null,"",{"$f":"SUM(AI264:BH264)","v":0}]
[null,null,null,null,null,null,null,null,"k.A.",{"$f":"IF(OR(I265=\"k.A.\",ISNUMBER(I265)=FALSE),\"k.A.\",IF(I265>0,\"über Flur\",\"unter Flur\"))","v":"k.A."},null,null,"k.A.","k.A.",null,null,0,{"$f":"IF(ISNUMBER(Q265),Q265+O265+P265,\"\")","v":0},null,null,null,{"$f":"IF(ISBLANK(U265),\"k.A.\",IF(ISNUMBER(T265),IF(AND(U265=\"A\",X265=\"unter\"),\"PN nicht mgl.\",IF(U265=\"B\",T265+$V$5,M265-1)),\"mittlere DSH fehlt\"))","v":"k.A."},null,{"$f":"IF(T265>0,(IF(Y265>0,\"über\", \"unter\")),\"k.A.\")","v":"k.A."},{"$error":"#VALUE!"},{"$f":"IF(Y265>0,((PI()*POWER(S265/1000,2)/4)*(Q265)),((PI()*POWER(S265/1000,2)/4)*(Q265+(M265-T265))))","v":{"$error":"#VALUE!"}},{"$f":"((PI()*POWER(W265/1000,2)/4)*(N265-T265))","v":{"$error":"#VALUE!"}},{"$f":"IF(U265=\"A\",Z265*1000*$AB$5,(Y265+(Z265*$AB$5))*1000)","v":{"$error":"#VALUE!"}},{"$f":"(AB265)/AD265","v":{"$error":"#VALUE!"}},null,null,"",0]
[null,null,null,null,null,null,null,null,"k.A.",{"$f":"IF(OR(I266=\"k.A.\",ISNUMBER(I266)=FALSE),\"k.A.\",IF(I266>0,\"über Flur\",\"unter Flur\"))","v":"k.A."},null,null,"k.A.","k.A.",null,null,0,{"$f":"IF(ISNUMBER(Q266),Q266+O266+P266,\"\")","v":0},null,null,null,{"$f":"IF(ISBLANK(U266),\"k.A.\",IF(ISNUMBER(T266),IF(AND(U266=\"A\",X266=\"unter\"),\"PN nicht mgl.\",IF(U266=\"B\",T266+$V$5,M266-1)),\"mittlere DSH fehlt\"))","v":"k.A."},null,{"$f":"IF(T266>0,(IF(Y266>0,\"über\", \"unter\")),\"k.A.\")","v":"k.A."},{"$error":"#VALUE!"},{"$f":"IF(Y266>0,((PI()*POWER(S266/1000,2)/4)*(Q266)),((PI()*POWER(S266/1000,2)/4)*(Q266+(M266-T266))))","v":{"$error":"#VALUE!"}},{"$f":"((PI()*POWER(W266/1000,2)/4)*(N266-T266))","v":{"$error":"#VALUE!"}},{"$f":"IF(U266=\"A\",Z266*1000*$AB$5,(Y266+(Z266*$AB$5))*1000)","v":{"$error":"#VALUE!"}},{"$f":"(AB266)/AD266","v":{"$error":"#VALUE!"}},null,null,"",0]
[null,null,null,null,null,null,null,null,null,null,null,null,null,null,null,null,null,null,null,null,null,null,null,null,null,null,null,null,null,null,{"$f":"COUNTIF(AE7:AE266,\"Ja\")","v":1},{"$f":"COUNTIF(AF7:AF266,\"ja\")","v":1},null,{"$f":"COUNTIF(AH7:AH266,\"Ja\")","v":1},{"$f":"SUM(AI7:AI266)","v":1},{"$f":"SUM(AJ7:AJ266)","v":1},1,1,{"$f":"SUM(AM7:AM266)","v":1},1,1,1,1,1,1,1,1,1,1,1,1,1,1,1,1,1,1,1,1,1]

{"sheet":"PN+AN","index":1,"n_rows":265,"n_cols":195,"rows_kept":265,"cut":false,"hidden":false,"merged":[]}
["LONGNAME","INVNAME","SMPNAME","PRNR","SMPDATE","SMPTIME","ULABOR","BEARBEIT","PRNA_ART","GERAET","UERBERGABE","BEMERK_P","LOTUNG","MSTVERSCHL","MSTZUSTAND","PUMPDSOLL","KLARSSOLL","PUMPMSOLL",null,"PUMPDAUER","KLARSTROM","PUMPMENGE",null,"PUMPDDIFF","KLARSDIFF","PUMPMDIFF",null,"INTERVROK","WSPROKVO","WSTROKENTN","WSPROKNA","TW","TL","TRUEBUNG","FAERBUNG","GERUCH","BODENSATZ","PH","LEITF","OX","O2","GETUROK","Schüssel GeODin wird soweit vorhanden automatisch ergänzt.",{"$f":"VLOOKUP(AR2,Parameter!$B$2:$D$995,2,FALSE)","v":{"$error":"#N/A"}},{"$f":"VLOOKUP(AS2,Parameter!$B$2:$D$995,2,FALSE)","v":{"$error":"#N/A"}},{"$f":"VLOOKUP(AT2,Parameter!$B$2:$D$995,2,FALSE)","v":{"$error":"#N/A"}},{"$f":"VLOOKUP(AU2,Parameter!$B$2:$D$995,2,FALSE)","v":{"$error":"#N/A"}},{"$f":"VLOOKUP(AV2,Parameter!$B$2:$D$995,2,FALSE)","v":{"$error":"#N/A"}},{"$f":"VLOOKUP(AW2,Parameter!$B$2:$D$995,2,FALSE)","v":{"$error":"#N/A"}},{"$f":"VLOOKUP(AX2,Parameter!$B$2:$D$995,2,FALSE)","v":{"$error":"#N/A"}},{"$f":"VLOOKUP(AY2,Parameter!$B$2:$D$995,2,FALSE)","v":{"$error":"#N/A"}},{"$f":"VLOOKUP(AZ2,Parameter!$B$2:$D$995,2,FALSE)","v":{"$error":"#N/A"}},{"$f":"VLOOKUP(BA2,Parameter!$B$2:$D$995,2,FALSE)","v":{"$error":"#N/A"}},{"$f":"VLOOKUP(BB2,Parameter!$B$2:$D$995,2,FALSE)","v":{"$error":"#N/A"}},{"$f":"VLOOKUP(BC2,Parameter!$B$2:$D$995,2,FALSE)","v":{"$error":"#N/A"}},{"$f":"VLOOKUP(BD2,Parameter!$B$2:$D$995,2,FALSE)","v":{"$error":"#N/A"}},{"$f":"VLOOKUP(BE2,Parameter!$B$2:$D$995,2,FALSE)","v":{"$error":"#N/A"}},{"$f":"VLOOKUP(BF2,Parameter!$B$2:$D$995,2,FALSE)","v":{"$error":"#N/A"}},{"$f":"VLOOKUP(BG2,Parameter!$B$2:$D$995,2,FALSE)","v":{"$error":"#N/A"}},{"$f":"VLOOKUP(BH2,Parameter!$B$2:$D$995,2,FALSE)","v":{"$error":"#N/A"}},{"$f":"VLOOKUP(BI2,Parameter!$B$2:$D$995,2,FALSE)","v":{"$error":"#N/A"}},{"$f":"VLOOKUP(BJ2,Parameter!$B$2:$D$995,2,FALSE)","v":{"$error":"#N/A"}},{"$f":"VLOOKUP(BK2,Parameter!$B$2:$D$995,2,FALSE)","v":{"$error":"#N/A"}},{"$f":"VLOOKUP(BL2,Parameter!$B$2:$D$995,2,FALSE)","v":{"$error":"#N/A"}},{"$f":"VLOOKUP(BM2,Parameter!$B$2:$D$995,2,FALSE)","v":{"$error":"#N/A"}},{"$f":"VLOOKUP(BN2,Parameter!$B$2:$D$995,2,FALSE)","v":{"$error":"#N/A"}},{"$f":"VLOOKUP(BO2,Parameter!$B$2:$D$995,2,FALSE)","v":{"$error":"#N/A"}},{"$f":"VLOOKUP(BP2,Parameter!$B$2:$D$995,2,FALSE)","v":{"$error":"#N/A"}},{"$f":"VLOOKUP(BQ2,Parameter!$B$2:$D$995,2,FALSE)","v":{"$error":"#N/A"}},{"$f":"VLOOKUP(BR2,Parameter!$B$2:$D$995,2,FALSE)","v":{"$error":"#N/A"}},{"$f":"VLOOKUP(BS2,Parameter!$B$2:$D$995,2,FALSE)","v":{"$error":"#N/A"}},{"$f":"VLOOKUP(BT2,Parameter!$B$2:$D$995,2,FALSE)","v":{"$error":"#N/A"}},{"$f":"VLOOKUP(BU2,Parameter!$B$2:$D$995,2,FALSE)","v":{"$error":"#N/A"}},{"$f":"VLOOKUP(BV2,Parameter!$B$2:$D$995,2,FALSE)","v":{"$error":"#N/A"}},{"$f":"VLOOKUP(BW2,Parameter!$B$2:$D$995,2,FALSE)","v":{"$error":"#N/A"}},{"$f":"VLOOKUP(BX2,Parameter!$B$2:$D$995,2,FALSE)","v":{"$error":"#N/A"}},{"$f":"VLOOKUP(BY2,Parameter!$B$2:$D$995,2,FALSE)","v":{"$error":"#N/A"}},{"$f":"VLOOKUP(BZ2,Parameter!$B$2:$D$995,2,FALSE)","v":{"$error":"#N/A"}},{"$f":"VLOOKUP(CA2,Parameter!$B$2:$D$995,2,FALSE)","v":{"$error":"#N/A"}},{"$f":"VLOOKUP(CB2,Parameter!$B$2:$D$995,2,FALSE)","v":{"$error":"#N/A"}},{"$f":"VLOOKUP(CC2,Parameter!$B$2:$D$995,2,FALSE)","v":{"$error":"#N/A"}},{"$f":"VLOOKUP(CD2,Parameter!$B$2:$D$995,2,FALSE)","v":{"$error":"#N/A"}},{"$f":"VLOOKUP(CE2,Parameter!$B$2:$D$995,2,FALSE)","v":{"$error":"#N/A"}},{"$f":"VLOOKUP(CF2,Parameter!$B$2:$D$995,2,FALSE)","v":{"$error":"#N/A"}},{"$f":"VLOOKUP(CG2,Parameter!$B$2:$D$995,2,FALSE)","v":{"$error":"#N/A"}},{"$f":"VLOOKUP(CH2,Parameter!$B$2:$D$995,2,FALSE)","v":{"$error":"#N/A"}},{"$f":"VLOOKUP(CI2,Parameter!$B$2:$D$995,2,FALSE)","v":{"$error":"#N/A"}},{"$f":"VLOOKUP(CJ2,Parameter!$B$2:$D$995,2,FALSE)","v":{"$error":"#N/A"}},{"$f":"VLOOKUP(CK2,Parameter!$B$2:$D$995,2,FALSE)","v":{"$error":"#N/A"}},{"$f":"VLOOKUP(CL2,Parameter!$B$2:$D$995,2,FALSE)","v":{"$error":"#N/A"}},{"$f":"VLOOKUP(CM2,Parameter!$B$2:$D$995,2,FALSE)","v":{"$error":"#N/A"}},{"$f":"VLOOKUP(CN2,Parameter!$B$2:$D$995,2,FALSE)","v":{"$error":"#N/A"}},{"$f":"VLOOKUP(CO2,Parameter!$B$2:$D$995,2,FALSE)","v":{"$error":"#N/A"}},{"$f":"VLOOKUP(CP2,Parameter!$B$2:$D$995,2,FALSE)","v":{"$error":"#N/A"}},{"$f":"VLOOKUP(CQ2,Parameter!$B$2:$D$995,2,FALSE)","v":{"$error":"#N/A"}},{"$f":"VLOOKUP(CR2,Parameter!$B$2:$D$995,2,FALSE)","v":{"$error":"#N/A"}},{"$f":"VLOOKUP(CS2,Parameter!$B$2:$D$995,2,FALSE)","v":{"$error":"#N/A"}},{"$f":"VLOOKUP(CT2,Parameter!$B$2:$D$995,2,FALSE)","v":{"$error":"#N/A"}},{"$f":"VLOOKUP(CU2,Parameter!$B$2:$D$995,2,FALSE)","v":{"$error":"#N/A"}},{"$f":"VLOOKUP(CV2,Parameter!$B$2:$D$995,2,FALSE)","v":{"$error":"#N/A"}},{"$f":"VLOOKUP(CW2,Parameter!$B$2:$D$995,2,FALSE)","v":{"$error":"#N/A"}},{"$f":"VLOOKUP(CX2,Parameter!$B$2:$D$995,2,FALSE)","v":{"$error":"#N/A"}},{"$f":"VLOOKUP(CY2,Parameter!$B$2:$D$995,2,FALSE)","v":{"$error":"#N/A"}},{"$f":"VLOOKUP(CZ2,Parameter!$B$2:$D$995,2,FALSE)","v":{"$error":"#N/A"}},{"$f":"VLOOKUP(DA2,Parameter!$B$2:$D$995,2,FALSE)","v":{"$error":"#N/A"}},{"$f":"VLOOKUP(DB2,Parameter!$B$2:$D$995,2,FALSE)","v":{"$error":"#N/A"}},{"$f":"VLOOKUP(DC2,Parameter!$B$2:$D$995,2,FALSE)","v":{"$error":"#N/A"}},{"$f":"VLOOKUP(DD2,Parameter!$B$2:$D$995,2,FALSE)","v":{"$error":"#N/A"}},{"$f":"VLOOKUP(DE2,Parameter!$B$2:$D$995,2,FALSE)","v":{"$error":"#N/A"}},{"$f":"VLOOKUP(DF2,Parameter!$B$2:$D$995,2,FALSE)","v":{"$error":"#N/A"}},{"$f":"VLOOKUP(DG2,Parameter!$B$2:$D$995,2,FALSE)","v":{"$error":"#N/A"}},{"$f":"VLOOKUP(DH2,Parameter!$B$2:$D$995,2,FALSE)","v":{"$error":"#N/A"}},{"$f":"VLOOKUP(DI2,Parameter!$B$2:$D$995,2,FALSE)","v":{"$error":"#N/A"}},{"$f":"VLOOKUP(DJ2,Parameter!$B$2:$D$995,2,FALSE)","v":{"$error":"#N/A"}},{"$f":"VLOOKUP(DK2,Parameter!$B$2:$D$995,2,FALSE)","v":{"$error":"#N/A"}},{"$f":"VLOOKUP(DL2,Parameter!$B$2:$D$995,2,FALSE)","v":{"$error":"#N/A"}},{"$f":"VLOOKUP(DM2,Parameter!$B$2:$D$995,2,FALSE)","v":{"$error":"#N/A"}},{"$f":"VLOOKUP(DN2,Parameter!$B$2:$D$995,2,FALSE)","v":{"$error":"#N/A"}},{"$f":"VLOOKUP(DO2,Parameter!$B$2:$D$995,2,FALSE)","v":{"$error":"#N/A"}},{"$f":"VLOOKUP(DP2,Parameter!$B$2:$D$995,2,FALSE)","v":{"$error":"#N/A"}},{"$f":"VLOOKUP(DQ2,Parameter!$B$2:$D$995,2,FALSE)","v":{"$error":"#N/A"}},{"$f":"VLOOKUP(DR2,Parameter!$B$2:$D$995,2,FALSE)","v":{"$error":"#N/A"}},{"$f":"VLOOKUP(DS2,Parameter!$B$2:$D$995,2,FALSE)","v":{"$error":"#N/A"}},{"$f":"VLOOKUP(DT2,Parameter!$B$2:$D$995,2,FALSE)","v":{"$error":"#N/A"}},{"$f":"VLOOKUP(DU2,Parameter!$B$2:$D$995,2,FALSE)","v":{"$error":"#N/A"}},{"$f":"VLOOKUP(DV2,Parameter!$B$2:$D$995,2,FALSE)","v":{"$error":"#N/A"}},{"$f":"VLOOKUP(DW2,Parameter!$B$2:$D$995,2,FALSE)","v":{"$error":"#N/A"}},{"$f":"VLOOKUP(DX2,Parameter!$B$2:$D$995,2,FALSE)","v":{"$error":"#N/A"}},{"$f":"VLOOKUP(DY2,Parameter!$B$2:$D$995,2,FALSE)","v":{"$error":"#N/A"}},{"$f":"VLOOKUP(DZ2,Parameter!$B$2:$D$995,2,FALSE)","v":{"$error":"#N/A"}},{"$f":"VLOOKUP(EA2,Parameter!$B$2:$D$995,2,FALSE)","v":{"$error":"#N/A"}},{"$f":"VLOOKUP(EB2,Parameter!$B$2:$D$995,2,FALSE)","v":{"$error":"#N/A"}},{"$f":"VLOOKUP(EC2,Parameter!$B$2:$D$995,2,FALSE)","v":{"$error":"#N/A"}},{"$f":"VLOOKUP(ED2,Parameter!$B$2:$D$995,2,FALSE)","v":{"$error":"#N/A"}},{"$f":"VLOOKUP(EE2,Parameter!$B$2:$D$995,2,FALSE)","v":{"$error":"#N/A"}},{"$f":"VLOOKUP(EF2,Parameter!$B$2:$D$995,2,FALSE)","v":{"$error":"#N/A"}},{"$f":"VLOOKUP(EG2,Parameter!$B$2:$D$995,2,FALSE)","v":{"$error":"#N/A"}},{"$f":"VLOOKUP(EH2,Parameter!$B$2:$D$995,2,FALSE)","v":{"$error":"#N/A"}},{"$f":"VLOOKUP(EI2,Parameter!$B$2:$D$995,2,FALSE)","v":{"$error":"#N/A"}},{"$f":"VLOOKUP(EJ2,Parameter!$B$2:$D$995,2,FALSE)","v":{"$error":"#N/A"}},{"$f":"VLOOKUP(EK2,Parameter!$B$2:$D$995,2,FALSE)","v":{"$error":"#N/A"}},{"$f":"VLOOKUP(EL2,Parameter!$B$2:$D$995,2,FALSE)","v":{"$error":"#N/A"}},{"$f":"VLOOKUP(EM2,Parameter!$B$2:$D$995,2,FALSE)","v":{"$error":"#N/A"}},{"$f":"VLOOKUP(EN2,Parameter!$B$2:$D$995,2,FALSE)","v":{"$error":"#N/A"}},{"$f":"VLOOKUP(EO2,Parameter!$B$2:$D$995,2,FALSE)","v":{"$error":"#N/A"}},{"$f":"VLOOKUP(EP2,Parameter!$B$2:$D$995,2,FALSE)","v":{"$error":"#N/A"}},{"$f":"VLOOKUP(EQ2,Parameter!$B$2:$D$995,2,FALSE)","v":{"$error":"#N/A"}},{"$f":"VLOOKUP(ER2,Parameter!$B$2:$D$995,2,FALSE)","v":{"$error":"#N/A"}},{"$f":"VLOOKUP(ES2,Parameter!$B$2:$D$995,2,FALSE)","v":{"$error":"#N/A"}},{"$f":"VLOOKUP(ET2,Parameter!$B$2:$D$995,2,FALSE)","v":{"$error":"#N/A"}},{"$f":"VLOOKUP(EU2,Parameter!$B$2:$D$995,2,FALSE)","v":{"$error":"#N/A"}},{"$f":"VLOOKUP(EV2,Parameter!$B$2:$D$995,2,FALSE)","v":{"$error":"#N/A"}},{"$f":"VLOOKUP(EW2,Parameter!$B$2:$D$995,2,FALSE)","v":{"$error":"#N/A"}},{"$f":"VLOOKUP(EX2,Parameter!$B$2:$D$995,2,FALSE)","v":{"$error":"#N/A"}},{"$f":"VLOOKUP(EY2,Parameter!$B$2:$D$995,2,FALSE)","v":{"$error":"#N/A"}},{"$f":"VLOOKUP(EZ2,Parameter!$B$2:$D$995,2,FALSE)","v":{"$error":"#N/A"}},{"$f":"VLOOKUP(FA2,Parameter!$B$2:$D$995,2,FALSE)","v":{"$error":"#N/A"}},{"$f":"VLOOKUP(FB2,Parameter!$B$2:$D$995,2,FALSE)","v":{"$error":"#N/A"}},{"$f":"VLOOKUP(FC2,Parameter!$B$2:$D$995,2,FALSE)","v":{"$error":"#N/A"}},{"$f":"VLOOKUP(FD2,Parameter!$B$2:$D$995,2,FALSE)","v":{"$error":"#N/A"}},{"$f":"VLOOKUP(FE2,Parameter!$B$2:$D$995,2,FALSE)","v":{"$error":"#N/A"}},{"$f":"VLOOKUP(FF2,Parameter!$B$2:$D$995,2,FALSE)","v":{"$error":"#N/A"}},{"$f":"VLOOKUP(FG2,Parameter!$B$2:$D$995,2,FALSE)","v":{"$error":"#N/A"}},{"$f":"VLOOKUP(FH2,Parameter!$B$2:$D$995,2,FALSE)","v":{"$error":"#N/A"}},{"$f":"VLOOKUP(FI2,Parameter!$B$2:$D$995,2,FALSE)","v":{"$error":"#N/A"}},{"$f":"VLOOKUP(FJ2,Parameter!$B$2:$D$995,2,FALSE)","v":{"$error":"#N/A"}},{"$f":"VLOOKUP(FK2,Parameter!$B$2:$D$995,2,FALSE)","v":{"$error":"#N/A"}},{"$f":"VLOOKUP(FL2,Parameter!$B$2:$D$995,2,FALSE)","v":{"$error":"#N/A"}},{"$f":"VLOOKUP(FM2,Parameter!$B$2:$D$995,2,FALSE)","v":{"$error":"#N/A"}},{"$f":"VLOOKUP(FN2,Parameter!$B$2:$D$995,2,FALSE)","v":{"$error":"#N/A"}},{"$f":"VLOOKUP(FO2,Parameter!$B$2:$D$995,2,FALSE)","v":{"$error":"#N/A"}},{"$f":"VLOOKUP(FP2,Parameter!$B$2:$D$995,2,FALSE)","v":{"$error":"#N/A"}},{"$f":"VLOOKUP(FQ2,Parameter!$B$2:$D$995,2,FALSE)","v":{"$error":"#N/A"}},{"$f":"VLOOKUP(FR2,Parameter!$B$2:$D$995,2,FALSE)","v":{"$error":"#N/A"}},{"$f":"VLOOKUP(FS2,Parameter!$B$2:$D$995,2,FALSE)","v":{"$error":"#N/A"}},{"$f":"VLOOKUP(FT2,Parameter!$B$2:$D$995,2,FALSE)","v":{"$error":"#N/A"}},{"$f":"VLOOKUP(FU2,Parameter!$B$2:$D$995,2,FALSE)","v":{"$error":"#N/A"}},{"$f":"VLOOKUP(FV2,Parameter!$B$2:$D$995,2,FALSE)","v":{"$error":"#N/A"}},{"$f":"VLOOKUP(FW2,Parameter!$B$2:$D$995,2,FALSE)","v":{"$error":"#N/A"}},{"$f":"VLOOKUP(FX2,Parameter!$B$2:$D$995,2,FALSE)","v":{"$error":"#N/A"}},{"$f":"VLOOKUP(FY2,Parameter!$B$2:$D$995,2,FALSE)","v":{"$error":"#N/A"}},{"$f":"VLOOKUP(FZ2,Parameter!$B$2:$D$995,2,FALSE)","v":{"$error":"#N/A"}},{"$f":"VLOOKUP(GA2,Parameter!$B$2:$D$995,2,FALSE)","v":{"$error":"#N/A"}},{"$f":"VLOOKUP(GB2,Parameter!$B$2:$D$995,2,FALSE)","v":{"$error":"#N/A"}},{"$f":"VLOOKUP(GC2,Parameter!$B$2:$D$995,2,FALSE)","v":{"$error":"#N/A"}},{"$f":"VLOOKUP(GD2,Parameter!$B$2:$D$995,2,FALSE)","v":{"$error":"#N/A"}},{"$f":"VLOOKUP(GE2,Parameter!$B$2:$D$995,2,FALSE)","v":{"$error":"#N/A"}},{"$f":"VLOOKUP(GF2,Parameter!$B$2:$D$995,2,FALSE)","v":{"$error":"#N/A"}},{"$f":"VLOOKUP(GG2,Parameter!$B$2:$D$995,2,FALSE)","v":{"$error":"#N/A"}},{"$f":"VLOOKUP(GH2,Parameter!$B$2:$D$995,2,FALSE)","v":{"$error":"#N/A"}},{"$f":"VLOOKUP(GI2,Parameter!$B$2:$D$995,2,FALSE)","v":{"$error":"#N/A"}},{"$f":"VLOOKUP(GJ2,Parameter!$B$2:$D$995,2,FALSE)","v":{"$error":"#N/A"}},{"$f":"VLOOKUP(GK2,Parameter!$B$2:$D$995,2,FALSE)","v":{"$error":"#N/A"}},{"$f":"VLOOKUP(GL2,Parameter!$B$2:$D$995,2,FALSE)","v":{"$error":"#N/A"}},{"$f":"VLOOKUP(GM2,Parameter!$B$2:$D$995,2,FALSE)","v":{"$error":"#N/A"}}]
["Pegelbezeichnung\nlang","Name des Messpunktes (GeODin)","Probename","Probennummer","Datum Probe-nahme ","Uhrzeit\nProbe-\nnahme ","Untersuchungslabor","Bearbeiter","Probe-nahmeart","Entnahme-\ngerät","Proben-\nübergabe","Bemerkung \n(Proben.)","Teufen-\nLotung","Mess-\nstellen-\nverschluss","Mess-\nstellen-\nzustand","Pump-\ndauer \nSOLL","Klarpump-\nstrom \nSOLL","Förder-\nmenge \nSOLL","Einhäng-tiefe \nTauch-pumpe","Pump-\ndauer \nIST","Klarpump-\nstrom \nIST","Förder-\nmenge \nIST","Einhäng-tiefe \nTauch-pumpe","Pump-\ndauer \nDifferenz \nSOLL/IST","Klarpump-\nstrom \nDifferenz \nSOLL/IST","Förder-\nmenge \nDifferenz \nSOLL/IST","Einhäng-tiefe \nTauch-pumpe","Entnahme-\nteufe (ROK)","Wasserst.\nvor Probe-\nnahme","Wasserst.\nwährend Probe-\nnahme","Wasserst.\nnach Probe-\nnahme","Temperatur \n(Wasser)","Temperatur \n(Luft)","Trübung \n(org.-lept.)","Färbung \n(org.-lept.)","Geruch","Bodensatz","pH-Wert \n(Feld)","Leit-\nfähigkeit","Redox-\npotential","Sauerstoff","gelotete\nEndteufe","→\nAuswahl Analysenparameter mittels Auswahlfeld."]
["Text","Text","Text",null,"TT.MM.JJJJ","hh:mm","","","","","","","m",null,null,"min","L/min","L","m uROK","min","L/min","L","m uROK","min","L/min","L","m uROK","m uROK","m uROK","m uROK","m uROK","°C","°C","","","","","","µS/cm","mV","mg/L","m uROK","Wird automatisch ergänzt.",{"$f":"VLOOKUP(AR2,Parameter!$B$2:$D$995,3,FALSE)","v":{"$error":"#N/A"}},{"$f":"VLOOKUP(AS2,Parameter!$B$2:$D$995,3,FALSE)","v":{"$error":"#N/A"}},{"$f":"VLOOKUP(AT2,Parameter!$B$2:$D$995,3,FALSE)","v":{"$error":"#N/A"}},{"$f":"VLOOKUP(AU2,Parameter!$B$2:$D$995,3,FALSE)","v":{"$error":"#N/A"}},{"$f":"VLOOKUP(AV2,Parameter!$B$2:$D$995,3,FALSE)","v":{"$error":"#N/A"}},{"$f":"VLOOKUP(AW2,Parameter!$B$2:$D$995,3,FALSE)","v":{"$error":"#N/A"}},{"$f":"VLOOKUP(AX2,Parameter!$B$2:$D$995,3,FALSE)","v":{"$error":"#N/A"}},{"$f":"VLOOKUP(AY2,Parameter!$B$2:$D$995,3,FALSE)","v":{"$error":"#N/A"}},{"$f":"VLOOKUP(AZ2,Parameter!$B$2:$D$995,3,FALSE)","v":{"$error":"#N/A"}},{"$f":"VLOOKUP(BA2,Parameter!$B$2:$D$995,3,FALSE)","v":{"$error":"#N/A"}},{"$f":"VLOOKUP(BB2,Parameter!$B$2:$D$995,3,FALSE)","v":{"$error":"#N/A"}},{"$f":"VLOOKUP(BC2,Parameter!$B$2:$D$995,3,FALSE)","v":{"$error":"#N/A"}},{"$f":"VLOOKUP(BD2,Parameter!$B$2:$D$995,3,FALSE)","v":{"$error":"#N/A"}},{"$f":"VLOOKUP(BE2,Parameter!$B$2:$D$995,3,FALSE)","v":{"$error":"#N/A"}},{"$f":"VLOOKUP(BF2,Parameter!$B$2:$D$995,3,FALSE)","v":{"$error":"#N/A"}},{"$f":"VLOOKUP(BG2,Parameter!$B$2:$D$995,3,FALSE)","v":{"$error":"#N/A"}},{"$f":"VLOOKUP(BH2,Parameter!$B$2:$D$995,3,FALSE)","v":{"$error":"#N/A"}},{"$f":"VLOOKUP(BI2,Parameter!$B$2:$D$995,3,FALSE)","v":{"$error":"#N/A"}},{"$f":"VLOOKUP(BJ2,Parameter!$B$2:$D$995,3,FALSE)","v":{"$error":"#N/A"}},{"$f":"VLOOKUP(BK2,Parameter!$B$2:$D$995,3,FALSE)","v":{"$error":"#N/A"}},{"$f":"VLOOKUP(BL2,Parameter!$B$2:$D$995,3,FALSE)","v":{"$error":"#N/A"}},{"$f":"VLOOKUP(BM2,Parameter!$B$2:$D$995,3,FALSE)","v":{"$error":"#N/A"}},{"$f":"VLOOKUP(BN2,Parameter!$B$2:$D$995,3,FALSE)","v":{"$error":"#N/A"}},{"$f":"VLOOKUP(BO2,Parameter!$B$2:$D$995,3,FALSE)","v":{"$error":"#N/A"}},{"$f":"VLOOKUP(BP2,Parameter!$B$2:$D$995,3,FALSE)","v":{"$error":"#N/A"}},{"$f":"VLOOKUP(BQ2,Parameter!$B$2:$D$995,3,FALSE)","v":{"$error":"#N/A"}},{"$f":"VLOOKUP(BR2,Parameter!$B$2:$D$995,3,FALSE)","v":{"$error":"#N/A"}},{"$f":"VLOOKUP(BS2,Parameter!$B$2:$D$995,3,FALSE)","v":{"$error":"#N/A"}},{"$f":"VLOOKUP(BT2,Parameter!$B$2:$D$995,3,FALSE)","v":{"$error":"#N/A"}},{"$f":"VLOOKUP(BU2,Parameter!$B$2:$D$995,3,FALSE)","v":{"$error":"#N/A"}},{"$f":"VLOOKUP(BV2,Parameter!$B$2:$D$995,3,FALSE)","v":{"$error":"#N/A"}},{"$f":"VLOOKUP(BW2,Parameter!$B$2:$D$995,3,FALSE)","v":{"$error":"#N/A"}},{"$f":"VLOOKUP(BX2,Parameter!$B$2:$D$995,3,FALSE)","v":{"$error":"#N/A"}},{"$f":"VLOOKUP(BY2,Parameter!$B$2:$D$995,3,FALSE)","v":{"$error":"#N/A"}},{"$f":"VLOOKUP(BZ2,Parameter!$B$2:$D$995,3,FALSE)","v":{"$error":"#N/A"}},{"$f":"VLOOKUP(CA2,Parameter!$B$2:$D$995,3,FALSE)","v":{"$error":"#N/A"}},{"$f":"VLOOKUP(CB2,Parameter!$B$2:$D$995,3,FALSE)","v":{"$error":"#N/A"}},{"$f":"VLOOKUP(CC2,Parameter!$B$2:$D$995,3,FALSE)","v":{"$error":"#N/A"}},{"$f":"VLOOKUP(CD2,Parameter!$B$2:$D$995,3,FALSE)","v":{"$error":"#N/A"}},{"$f":"VLOOKUP(CE2,Parameter!$B$2:$D$995,3,FALSE)","v":{"$error":"#N/A"}},{"$f":"VLOOKUP(CF2,Parameter!$B$2:$D$995,3,FALSE)","v":{"$error":"#N/A"}},{"$f":"VLOOKUP(CG2,Parameter!$B$2:$D$995,3,FALSE)","v":{"$error":"#N/A"}},{"$f":"VLOOKUP(CH2,Parameter!$B$2:$D$995,3,FALSE)","v":{"$error":"#N/A"}},{"$f":"VLOOKUP(CI2,Parameter!$B$2:$D$995,3,FALSE)","v":{"$error":"#N/A"}},{"$f":"VLOOKUP(CJ2,Parameter!$B$2:$D$995,3,FALSE)","v":{"$error":"#N/A"}},{"$f":"VLOOKUP(CK2,Parameter!$B$2:$D$995,3,FALSE)","v":{"$error":"#N/A"}},{"$f":"VLOOKUP(CL2,Parameter!$B$2:$D$995,3,FALSE)","v":{"$error":"#N/A"}},{"$f":"VLOOKUP(CM2,Parameter!$B$2:$D$995,3,FALSE)","v":{"$error":"#N/A"}},{"$f":"VLOOKUP(CN2,Parameter!$B$2:$D$995,3,FALSE)","v":{"$error":"#N/A"}},{"$f":"VLOOKUP(CO2,Parameter!$B$2:$D$995,3,FALSE)","v":{"$error":"#N/A"}},{"$f":"VLOOKUP(CP2,Parameter!$B$2:$D$995,3,FALSE)","v":{"$error":"#N/A"}},{"$f":"VLOOKUP(CQ2,Parameter!$B$2:$D$995,3,FALSE)","v":{"$error":"#N/A"}},{"$f":"VLOOKUP(CR2,Parameter!$B$2:$D$995,3,FALSE)","v":{"$error":"#N/A"}},{"$f":"VLOOKUP(CS2,Parameter!$B$2:$D$995,3,FALSE)","v":{"$error":"#N/A"}},{"$f":"VLOOKUP(CT2,Parameter!$B$2:$D$995,3,FALSE)","v":{"$error":"#N/A"}},{"$f":"VLOOKUP(CU2,Parameter!$B$2:$D$995,3,FALSE)","v":{"$error":"#N/A"}},{"$f":"VLOOKUP(CV2,Parameter!$B$2:$D$995,3,FALSE)","v":{"$error":"#N/A"}},{"$f":"VLOOKUP(CW2,Parameter!$B$2:$D$995,3,FALSE)","v":{"$error":"#N/A"}},{"$f":"VLOOKUP(CX2,Parameter!$B$2:$D$995,3,FALSE)","v":{"$error":"#N/A"}},{"$f":"VLOOKUP(CY2,Parameter!$B$2:$D$995,3,FALSE)","v":{"$error":"#N/A"}},{"$f":"VLOOKUP(CZ2,Parameter!$B$2:$D$995,3,FALSE)","v":{"$error":"#N/A"}},{"$f":"VLOOKUP(DA2,Parameter!$B$2:$D$995,3,FALSE)","v":{"$error":"#N/A"}},{"$f":"VLOOKUP(DB2,Parameter!$B$2:$D$995,3,FALSE)","v":{"$error":"#N/A"}},{"$f":"VLOOKUP(DC2,Parameter!$B$2:$D$995,3,FALSE)","v":{"$error":"#N/A"}},{"$f":"VLOOKUP(DD2,Parameter!$B$2:$D$995,3,FALSE)","v":{"$error":"#N/A"}},{"$f":"VLOOKUP(DE2,Parameter!$B$2:$D$995,3,FALSE)","v":{"$error":"#N/A"}},{"$f":"VLOOKUP(DF2,Parameter!$B$2:$D$995,3,FALSE)","v":{"$error":"#N/A"}},{"$f":"VLOOKUP(DG2,Parameter!$B$2:$D$995,3,FALSE)","v":{"$error":"#N/A"}},{"$f":"VLOOKUP(DH2,Parameter!$B$2:$D$995,3,FALSE)","v":{"$error":"#N/A"}},{"$f":"VLOOKUP(DI2,Parameter!$B$2:$D$995,3,FALSE)","v":{"$error":"#N/A"}},{"$f":"VLOOKUP(DJ2,Parameter!$B$2:$D$995,3,FALSE)","v":{"$error":"#N/A"}},{"$f":"VLOOKUP(DK2,Parameter!$B$2:$D$995,3,FALSE)","v":{"$error":"#N/A"}},{"$f":"VLOOKUP(DL2,Parameter!$B$2:$D$995,3,FALSE)","v":{"$error":"#N/A"}},{"$f":"VLOOKUP(DM2,Parameter!$B$2:$D$995,3,FALSE)","v":{"$error":"#N/A"}},{"$f":"VLOOKUP(DN2,Parameter!$B$2:$D$995,3,FALSE)","v":{"$error":"#N/A"}},{"$f":"VLOOKUP(DO2,Parameter!$B$2:$D$995,3,FALSE)","v":{"$error":"#N/A"}},{"$f":"VLOOKUP(DP2,Parameter!$B$2:$D$995,3,FALSE)","v":{"$error":"#N/A"}},{"$f":"VLOOKUP(DQ2,Parameter!$B$2:$D$995,3,FALSE)","v":{"$error":"#N/A"}},{"$f":"VLOOKUP(DR2,Parameter!$B$2:$D$995,3,FALSE)","v":{"$error":"#N/A"}},{"$f":"VLOOKUP(DS2,Parameter!$B$2:$D$995,3,FALSE)","v":{"$error":"#N/A"}},{"$f":"VLOOKUP(DT2,Parameter!$B$2:$D$995,3,FALSE)","v":{"$error":"#N/A"}},{"$f":"VLOOKUP(DU2,Parameter!$B$2:$D$995,3,FALSE)","v":{"$error":"#N/A"}},{"$f":"VLOOKUP(DV2,Parameter!$B$2:$D$995,3,FALSE)","v":{"$error":"#N/A"}},{"$f":"VLOOKUP(DW2,Parameter!$B$2:$D$995,3,FALSE)","v":{"$error":"#N/A"}},{"$f":"VLOOKUP(DX2,Parameter!$B$2:$D$995,3,FALSE)","v":{"$error":"#N/A"}},{"$f":"VLOOKUP(DY2,Parameter!$B$2:$D$995,3,FALSE)","v":{"$error":"#N/A"}},{"$f":"VLOOKUP(DZ2,Parameter!$B$2:$D$995,3,FALSE)","v":{"$error":"#N/A"}},{"$f":"VLOOKUP(EA2,Parameter!$B$2:$D$995,3,FALSE)","v":{"$error":"#N/A"}},{"$f":"VLOOKUP(EB2,Parameter!$B$2:$D$995,3,FALSE)","v":{"$error":"#N/A"}},{"$f":"VLOOKUP(EC2,Parameter!$B$2:$D$995,3,FALSE)","v":{"$error":"#N/A"}},{"$f":"VLOOKUP(ED2,Parameter!$B$2:$D$995,3,FALSE)","v":{"$error":"#N/A"}},{"$f":"VLOOKUP(EE2,Parameter!$B$2:$D$995,3,FALSE)","v":{"$error":"#N/A"}},{"$f":"VLOOKUP(EF2,Parameter!$B$2:$D$995,3,FALSE)","v":{"$error":"#N/A"}},{"$f":"VLOOKUP(EG2,Parameter!$B$2:$D$995,3,FALSE)","v":{"$error":"#N/A"}},{"$f":"VLOOKUP(EH2,Parameter!$B$2:$D$995,3,FALSE)","v":{"$error":"#N/A"}},{"$f":"VLOOKUP(EI2,Parameter!$B$2:$D$995,3,FALSE)","v":{"$error":"#N/A"}},{"$f":"VLOOKUP(EJ2,Parameter!$B$2:$D$995,3,FALSE)","v":{"$error":"#N/A"}},{"$f":"VLOOKUP(EK2,Parameter!$B$2:$D$995,3,FALSE)","v":{"$error":"#N/A"}},{"$f":"VLOOKUP(EL2,Parameter!$B$2:$D$995,3,FALSE)","v":{"$error":"#N/A"}},{"$f":"VLOOKUP(EM2,Parameter!$B$2:$D$995,3,FALSE)","v":{"$error":"#N/A"}},{"$f":"VLOOKUP(EN2,Parameter!$B$2:$D$995,3,FALSE)","v":{"$error":"#N/A"}},{"$f":"VLOOKUP(EO2,Parameter!$B$2:$D$995,3,FALSE)","v":{"$error":"#N/A"}},{"$f":"VLOOKUP(EP2,Parameter!$B$2:$D$995,3,FALSE)","v":{"$error":"#N/A"}},{"$f":"VLOOKUP(EQ2,Parameter!$B$2:$D$995,3,FALSE)","v":{"$error":"#N/A"}},{"$f":"VLOOKUP(ER2,Parameter!$B$2:$D$995,3,FALSE)","v":{"$error":"#N/A"}},{"$f":"VLOOKUP(ES2,Parameter!$B$2:$D$995,3,FALSE)","v":{"$error":"#N/A"}},{"$f":"VLOOKUP(ET2,Parameter!$B$2:$D$995,3,FALSE)","v":{"$error":"#N/A"}},{"$f":"VLOOKUP(EU2,Parameter!$B$2:$D$995,3,FALSE)","v":{"$error":"#N/A"}},{"$f":"VLOOKUP(EV2,Parameter!$B$2:$D$995,3,FALSE)","v":{"$error":"#N/A"}},{"$f":"VLOOKUP(EW2,Parameter!$B$2:$D$995,3,FALSE)","v":{"$error":"#N/A"}},{"$f":"VLOOKUP(EX2,Parameter!$B$2:$D$995,3,FALSE)","v":{"$error":"#N/A"}},{"$f":"VLOOKUP(EY2,Parameter!$B$2:$D$995,3,FALSE)","v":{"$error":"#N/A"}},{"$f":"VLOOKUP(EZ2,Parameter!$B$2:$D$995,3,FALSE)","v":{"$error":"#N/A"}},{"$f":"VLOOKUP(FA2,Parameter!$B$2:$D$995,3,FALSE)","v":{"$error":"#N/A"}},{"$f":"VLOOKUP(FB2,Parameter!$B$2:$D$995,3,FALSE)","v":{"$error":"#N/A"}},{"$f":"VLOOKUP(FC2,Parameter!$B$2:$D$995,3,FALSE)","v":{"$error":"#N/A"}},{"$f":"VLOOKUP(FD2,Parameter!$B$2:$D$995,3,FALSE)","v":{"$error":"#N/A"}},{"$f":"VLOOKUP(FE2,Parameter!$B$2:$D$995,3,FALSE)","v":{"$error":"#N/A"}},{"$f":"VLOOKUP(FF2,Parameter!$B$2:$D$995,3,FALSE)","v":{"$error":"#N/A"}},{"$f":"VLOOKUP(FG2,Parameter!$B$2:$D$995,3,FALSE)","v":{"$error":"#N/A"}},{"$f":"VLOOKUP(FH2,Parameter!$B$2:$D$995,3,FALSE)","v":{"$error":"#N/A"}},{"$f":"VLOOKUP(FI2,Parameter!$B$2:$D$995,3,FALSE)","v":{"$error":"#N/A"}},{"$f":"VLOOKUP(FJ2,Parameter!$B$2:$D$995,3,FALSE)","v":{"$error":"#N/A"}},{"$f":"VLOOKUP(FK2,Parameter!$B$2:$D$995,3,FALSE)","v":{"$error":"#N/A"}},{"$f":"VLOOKUP(FL2,Parameter!$B$2:$D$995,3,FALSE)","v":{"$error":"#N/A"}},{"$f":"VLOOKUP(FM2,Parameter!$B$2:$D$995,3,FALSE)","v":{"$error":"#N/A"}},{"$f":"VLOOKUP(FN2,Parameter!$B$2:$D$995,3,FALSE)","v":{"$error":"#N/A"}},{"$f":"VLOOKUP(FO2,Parameter!$B$2:$D$995,3,FALSE)","v":{"$error":"#N/A"}},{"$f":"VLOOKUP(FP2,Parameter!$B$2:$D$995,3,FALSE)","v":{"$error":"#N/A"}},{"$f":"VLOOKUP(FQ2,Parameter!$B$2:$D$995,3,FALSE)","v":{"$error":"#N/A"}},{"$f":"VLOOKUP(FR2,Parameter!$B$2:$D$995,3,FALSE)","v":{"$error":"#N/A"}},{"$f":"VLOOKUP(FS2,Parameter!$B$2:$D$995,3,FALSE)","v":{"$error":"#N/A"}},{"$f":"VLOOKUP(FT2,Parameter!$B$2:$D$995,3,FALSE)","v":{"$error":"#N/A"}},{"$f":"VLOOKUP(FU2,Parameter!$B$2:$D$995,3,FALSE)","v":{"$error":"#N/A"}},{"$f":"VLOOKUP(FV2,Parameter!$B$2:$D$995,3,FALSE)","v":{"$error":"#N/A"}},{"$f":"VLOOKUP(FW2,Parameter!$B$2:$D$995,3,FALSE)","v":{"$error":"#N/A"}},{"$f":"VLOOKUP(FX2,Parameter!$B$2:$D$995,3,FALSE)","v":{"$error":"#N/A"}},{"$f":"VLOOKUP(FY2,Parameter!$B$2:$D$995,3,FALSE)","v":{"$error":"#N/A"}},{"$f":"VLOOKUP(FZ2,Parameter!$B$2:$D$995,3,FALSE)","v":{"$error":"#N/A"}},{"$f":"VLOOKUP(GA2,Parameter!$B$2:$D$995,3,FALSE)","v":{"$error":"#N/A"}},{"$f":"VLOOKUP(GB2,Parameter!$B$2:$D$995,3,FALSE)","v":{"$error":"#N/A"}},{"$f":"VLOOKUP(GC2,Parameter!$B$2:$D$995,3,FALSE)","v":{"$error":"#N/A"}},{"$f":"VLOOKUP(GD2,Parameter!$B$2:$D$995,3,FALSE)","v":{"$error":"#N/A"}},{"$f":"VLOOKUP(GE2,Parameter!$B$2:$D$995,3,FALSE)","v":{"$error":"#N/A"}},{"$f":"VLOOKUP(GF2,Parameter!$B$2:$D$995,3,FALSE)","v":{"$error":"#N/A"}},{"$f":"VLOOKUP(GG2,Parameter!$B$2:$D$995,3,FALSE)","v":{"$error":"#N/A"}},{"$f":"VLOOKUP(GH2,Parameter!$B$2:$D$995,3,FALSE)","v":{"$error":"#N/A"}},{"$f":"VLOOKUP(GI2,Parameter!$B$2:$D$995,3,FALSE)","v":{"$error":"#N/A"}},{"$f":"VLOOKUP(GJ2,Parameter!$B$2:$D$995,3,FALSE)","v":{"$error":"#N/A"}},{"$f":"VLOOKUP(GK2,Parameter!$B$2:$D$995,3,FALSE)","v":{"$error":"#N/A"}},{"$f":"VLOOKUP(GL2,Parameter!$B$2:$D$995,3,FALSE)","v":{"$error":"#N/A"}},{"$f":"VLOOKUP(GM2,Parameter!$B$2:$D$995,3,FALSE)","v":{"$error":"#N/A"}}]
["Übertrag","Übertrag","Übertrag","Eingabe","Eingabe","Eingabe","Eingabe","Eingabe","Eingabe","Eingabe","Eingabe","Eingabe","Eingabe","Eingabe","Eingabe","Übertrag","Übertrag","Übertrag","Übertrag","Eingabe","Eingabe","Eingabe","Eintrag","Formel","Formel","Formel","Übertrag","Eingabe","Eingabe","Eingabe","Eingabe","Eingabe","Eingabe","Eingabe","Eingabe","Eingabe","Eingabe","Eingabe","Eingabe","Eingabe","Eingabe","Eingabe",null,"Eingabe","Eingabe","Eingabe","Eingabe","Eingabe","Eingabe","Eingabe","Eingabe","Eingabe","Eingabe","Eingabe","Eingabe","Eingabe","Eingabe","Eingabe","Eingabe","Eingabe","Eingabe","Eingabe","Eingabe","Eingabe","Eingabe","Eingabe","Eingabe","Eingabe","Eingabe","Eingabe","Eingabe","Eingabe","Eingabe","Eingabe","Eingabe","Eingabe","Eingabe","Eingabe","Eingabe","Eingabe","Eingabe","Eingabe","Eingabe","Eingabe","Eingabe","Eingabe","Eingabe","Eingabe","Eingabe","Eingabe","Eingabe","Eingabe","Eingabe","Eingabe","Eingabe","Eingabe","Eingabe","Eingabe","Eingabe","Eingabe","Eingabe","Eingabe","Eingabe","Eingabe","Eingabe","Eingabe","Eingabe","Eingabe","Eingabe","Eingabe","Eingabe","Eingabe","Eingabe","Eingabe","Eingabe","Eingabe","Eingabe","Eingabe","Eingabe","Eingabe","Eingabe","Eingabe","Eingabe","Eingabe","Eingabe","Eingabe","Eingabe","Eingabe","Eingabe","Eingabe","Eingabe","Eingabe","Eingabe","Eingabe","Eingabe","Eingabe","Eingabe","Eingabe","Eingabe","Eingabe","Eingabe","Eingabe","Eingabe","Eingabe","Eingabe","Eingabe","Eingabe","Eingabe","Eingabe","Eingabe","Eingabe","Eingabe","Eingabe","Eingabe","Eingabe","Eingabe","Eingabe","Eingabe","Eingabe","Eingabe","Eingabe","Eingabe","Eingabe","Eingabe","Eingabe","Eingabe","Eingabe","Eingabe","Eingabe","Eingabe","Eingabe","Eingabe","Eingabe","Eingabe","Eingabe","Eingabe","Eingabe","Eingabe","Eingabe","Eingabe","Eingabe","Eingabe","Eingabe","Eingabe","Eingabe","Eingabe","Eingabe","Eingabe","Eingabe","Eingabe","Eingabe","Eingabe","Eingabe","Eingabe","Eingabe"]
["Filter"]
[{"$f":"IF(Stammdaten_Analysenprogramm!AG7>0,Stammdaten_Analysenprogramm!A7,\"\")","v":"Beispiel GWMS XX/XX"},{"$f":"IF(Stammdaten_Analysenprogramm!AG7>0,Stammdaten_Analysenprogramm!C7,\"\")","v":"GWMS XX/XX (FOK - FUK m)"},{"$f":"A6","v":"Beispiel GWMS XX/XX"},null,null,null,null,null,null,null,null,null,null,null,null,{"$f":"Stammdaten_Analysenprogramm!AC7","v":19.294503616057497},{"$f":"Stammdaten_Analysenprogramm!AD7","v":20},{"$f":"Stammdaten_Analysenprogramm!AB7","v":385.89007232114994},{"$f":"Stammdaten_Analysenprogramm!V7","v":5.4399999999999995},null,null,null,null,{"$f":"T6-P6","v":-19.294503616057497},{"$f":"Q6-U6","v":20},{"$f":"V6-R6","v":-385.89007232114994},{"$f":"W6-S6","v":-5.4399999999999995}]
[{"$f":"IF(Stammdaten_Analysenprogramm!AG8>0,Stammdaten_Analysenprogramm!A8,\"\")","v":""},{"$f":"IF(Stammdaten_Analysenprogramm!AG8>0,Stammdaten_Analysenprogramm!C8,\"\")","v":""},{"$f":"A7","v":""},null,null,null,null,null,null,null,null,null,null,null,null,{"$f":"Stammdaten_Analysenprogramm!AC8","v":{"$error":"#VALUE!"}},{"$f":"Stammdaten_Analysenprogramm!AD8","v":0},{"$f":"Stammdaten_Analysenprogramm!AB8","v":{"$error":"#VALUE!"}},{"$f":"Stammdaten_Analysenprogramm!V8","v":"k.A."},null,null,null,null,{"$f":"T7-P7","v":{"$error":"#VALUE!"}},{"$f":"Q7-U7","v":0},{"$f":"V7-R7","v":{"$error":"#VALUE!"}},{"$f":"W7-S7","v":{"$error":"#VALUE!"}}]
[{"$f":"IF(Stammdaten_Analysenprogramm!AG9>0,Stammdaten_Analysenprogramm!A9,\"\")","v":""},{"$f":"IF(Stammdaten_Analysenprogramm!AG9>0,Stammdaten_Analysenprogramm!C9,\"\")","v":""},"",null,null,null,null,null,null,null,null,null,null,null,null,{"$f":"Stammdaten_Analysenprogramm!AC9","v":{"$error":"#VALUE!"}},{"$f":"Stammdaten_Analysenprogramm!AD9","v":0},{"$f":"Stammdaten_Analysenprogramm!AB9","v":{"$error":"#VALUE!"}},{"$f":"Stammdaten_Analysenprogramm!V9","v":"k.A."},null,null,null,null,{"$error":"#VALUE!"},0,{"$error":"#VALUE!"},{"$error":"#VALUE!"}]
[{"$f":"IF(Stammdaten_Analysenprogramm!AG10>0,Stammdaten_Analysenprogramm!A10,\"\")","v":""},{"$f":"IF(Stammdaten_Analysenprogramm!AG10>0,Stammdaten_Analysenprogramm!C10,\"\")","v":""},"",null,null,null,null,null,null,null,null,null,null,null,null,{"$f":"Stammdaten_Analysenprogramm!AC10","v":{"$error":"#VALUE!"}},{"$f":"Stammdaten_Analysenprogramm!AD10","v":0},{"$f":"Stammdaten_Analysenprogramm!AB10","v":{"$error":"#VALUE!"}},{"$f":"Stammdaten_Analysenprogramm!V10","v":"k.A."},null,null,null,null,{"$error":"#VALUE!"},0,{"$error":"#VALUE!"},{"$error":"#VALUE!"}]
[{"$f":"IF(Stammdaten_Analysenprogramm!AG11>0,Stammdaten_Analysenprogramm!A11,\"\")","v":""},{"$f":"IF(Stammdaten_Analysenprogramm!AG11>0,Stammdaten_Analysenprogramm!C11,\"\")","v":""},"",null,null,null,null,null,null,null,null,null,null,null,null,{"$f":"Stammdaten_Analysenprogramm!AC11","v":{"$error":"#VALUE!"}},{"$f":"Stammdaten_Analysenprogramm!AD11","v":0},{"$f":"Stammdaten_Analysenprogramm!AB11","v":{"$error":"#VALUE!"}},{"$f":"Stammdaten_Analysenprogramm!V11","v":"k.A."},null,null,null,null,{"$error":"#VALUE!"},0,{"$error":"#VALUE!"},{"$error":"#VALUE!"}]
[{"$f":"IF(Stammdaten_Analysenprogramm!AG12>0,Stammdaten_Analysenprogramm!A12,\"\")","v":""},{"$f":"IF(Stammdaten_Analysenprogramm!AG12>0,Stammdaten_Analysenprogramm!C12,\"\")","v":""},"",null,null,null,null,null,null,null,null,null,null,null,null,{"$f":"Stammdaten_Analysenprogramm!AC12","v":{"$error":"#VALUE!"}},{"$f":"Stammdaten_Analysenprogramm!AD12","v":0},{"$f":"Stammdaten_Analysenprogramm!AB12","v":{"$error":"#VALUE!"}},{"$f":"Stammdaten_Analysenprogramm!V12","v":"k.A."},null,null,null,null,{"$error":"#VALUE!"},0,{"$error":"#VALUE!"},{"$error":"#VALUE!"}]
[{"$f":"IF(Stammdaten_Analysenprogramm!AG13>0,Stammdaten_Analysenprogramm!A13,\"\")","v":""},{"$f":"IF(Stammdaten_Analysenprogramm!AG13>0,Stammdaten_Analysenprogramm!C13,\"\")","v":""},"",null,null,null,null,null,null,null,null,null,null,null,null,{"$f":"Stammdaten_Analysenprogramm!AC13","v":{"$error":"#VALUE!"}},{"$f":"Stammdaten_Analysenprogramm!AD13","v":0},{"$f":"Stammdaten_Analysenprogramm!AB13","v":{"$error":"#VALUE!"}},{"$f":"Stammdaten_Analysenprogramm!V13","v":"k.A."},null,null,null,null,{"$error":"#VALUE!"},0,{"$error":"#VALUE!"},{"$error":"#VALUE!"}]
[{"$f":"IF(Stammdaten_Analysenprogramm!AG14>0,Stammdaten_Analysenprogramm!A14,\"\")","v":""},{"$f":"IF(Stammdaten_Analysenprogramm!AG14>0,Stammdaten_Analysenprogramm!C14,\"\")","v":""},"",null,null,null,null,null,null,null,null,null,null,null,null,{"$f":"Stammdaten_Analysenprogramm!AC14","v":{"$error":"#VALUE!"}},{"$f":"Stammdaten_Analysenprogramm!AD14","v":0},{"$f":"Stammdaten_Analysenprogramm!AB14","v":{"$error":"#VALUE!"}},{"$f":"Stammdaten_Analysenprogramm!V14","v":"k.A."},null,null,null,null,{"$error":"#VALUE!"},0,{"$error":"#VALUE!"},{"$error":"#VALUE!"}]
[{"$f":"IF(Stammdaten_Analysenprogramm!AG15>0,Stammdaten_Analysenprogramm!A15,\"\")","v":""},{"$f":"IF(Stammdaten_Analysenprogramm!AG15>0,Stammdaten_Analysenprogramm!C15,\"\")","v":""},"",null,null,null,null,null,null,null,null,null,null,null,null,{"$f":"Stammdaten_Analysenprogramm!AC15","v":{"$error":"#VALUE!"}},{"$f":"Stammdaten_Analysenprogramm!AD15","v":0},{"$f":"Stammdaten_Analysenprogramm!AB15","v":{"$error":"#VALUE!"}},{"$f":"Stammdaten_Analysenprogramm!V15","v":"k.A."},null,null,null,null,{"$error":"#VALUE!"},0,{"$error":"#VALUE!"},{"$error":"#VALUE!"}]
[{"$f":"IF(Stammdaten_Analysenprogramm!AG16>0,Stammdaten_Analysenprogramm!A16,\"\")","v":""},{"$f":"IF(Stammdaten_Analysenprogramm!AG16>0,Stammdaten_Analysenprogramm!C16,\"\")","v":""},"",null,null,null,null,null,null,null,null,null,null,null,null,{"$f":"Stammdaten_Analysenprogramm!AC16","v":{"$error":"#VALUE!"}},{"$f":"Stammdaten_Analysenprogramm!AD16","v":0},{"$f":"Stammdaten_Analysenprogramm!AB16","v":{"$error":"#VALUE!"}},{"$f":"Stammdaten_Analysenprogramm!V16","v":"k.A."},null,null,null,null,{"$error":"#VALUE!"},0,{"$error":"#VALUE!"},{"$error":"#VALUE!"}]
[{"$f":"IF(Stammdaten_Analysenprogramm!AG17>0,Stammdaten_Analysenprogramm!A17,\"\")","v":""},{"$f":"IF(Stammdaten_Analysenprogramm!AG17>0,Stammdaten_Analysenprogramm!C17,\"\")","v":""},"",null,null,null,null,null,null,null,null,null,null,null,null,{"$f":"Stammdaten_Analysenprogramm!AC17","v":{"$error":"#VALUE!"}},{"$f":"Stammdaten_Analysenprogramm!AD17","v":0},{"$f":"Stammdaten_Analysenprogramm!AB17","v":{"$error":"#VALUE!"}},{"$f":"Stammdaten_Analysenprogramm!V17","v":"k.A."},null,null,null,null,{"$error":"#VALUE!"},0,{"$error":"#VALUE!"},{"$error":"#VALUE!"}]
[{"$f":"IF(Stammdaten_Analysenprogramm!AG18>0,Stammdaten_Analysenprogramm!A18,\"\")","v":""},{"$f":"IF(Stammdaten_Analysenprogramm!AG18>0,Stammdaten_Analysenprogramm!C18,\"\")","v":""},"",null,null,null,null,null,null,null,null,null,null,null,null,{"$f":"Stammdaten_Analysenprogramm!AC18","v":{"$error":"#VALUE!"}},{"$f":"Stammdaten_Analysenprogramm!AD18","v":0},{"$f":"Stammdaten_Analysenprogramm!AB18","v":{"$error":"#VALUE!"}},{"$f":"Stammdaten_Analysenprogramm!V18","v":"k.A."},null,null,null,null,{"$error":"#VALUE!"},0,{"$error":"#VALUE!"},{"$error":"#VALUE!"}]
[{"$f":"IF(Stammdaten_Analysenprogramm!AG19>0,Stammdaten_Analysenprogramm!A19,\"\")","v":""},{"$f":"IF(Stammdaten_Analysenprogramm!AG19>0,Stammdaten_Analysenprogramm!C19,\"\")","v":""},"",null,null,null,null,null,null,null,null,null,null,null,null,{"$f":"Stammdaten_Analysenprogramm!AC19","v":{"$error":"#VALUE!"}},{"$f":"Stammdaten_Analysenprogramm!AD19","v":0},{"$f":"Stammdaten_Analysenprogramm!AB19","v":{"$error":"#VALUE!"}},{"$f":"Stammdaten_Analysenprogramm!V19","v":"k.A."},null,null,null,null,{"$error":"#VALUE!"},0,{"$error":"#VALUE!"},{"$error":"#VALUE!"}]
[{"$f":"IF(Stammdaten_Analysenprogramm!AG20>0,Stammdaten_Analysenprogramm!A20,\"\")","v":""},{"$f":"IF(Stammdaten_Analysenprogramm!AG20>0,Stammdaten_Analysenprogramm!C20,\"\")","v":""},"",null,null,null,null,null,null,null,null,null,null,null,null,{"$f":"Stammdaten_Analysenprogramm!AC20","v":{"$error":"#VALUE!"}},{"$f":"Stammdaten_Analysenprogramm!AD20","v":0},{"$f":"Stammdaten_Analysenprogramm!AB20","v":{"$error":"#VALUE!"}},{"$f":"Stammdaten_Analysenprogramm!V20","v":"k.A."},null,null,null,null,{"$error":"#VALUE!"},0,{"$error":"#VALUE!"},{"$error":"#VALUE!"}]
[{"$f":"IF(Stammdaten_Analysenprogramm!AG21>0,Stammdaten_Analysenprogramm!A21,\"\")","v":""},{"$f":"IF(Stammdaten_Analysenprogramm!AG21>0,Stammdaten_Analysenprogramm!C21,\"\")","v":""},"",null,null,null,null,null,null,null,null,null,null,null,null,{"$f":"Stammdaten_Analysenprogramm!AC21","v":{"$error":"#VALUE!"}},{"$f":"Stammdaten_Analysenprogramm!AD21","v":0},{"$f":"Stammdaten_Analysenprogramm!AB21","v":{"$error":"#VALUE!"}},{"$f":"Stammdaten_Analysenprogramm!V21","v":"k.A."},null,null,null,null,{"$error":"#VALUE!"},0,{"$error":"#VALUE!"},{"$error":"#VALUE!"}]
[{"$f":"IF(Stammdaten_Analysenprogramm!AG22>0,Stammdaten_Analysenprogramm!A22,\"\")","v":""},{"$f":"IF(Stammdaten_Analysenprogramm!AG22>0,Stammdaten_Analysenprogramm!C22,\"\")","v":""},"",null,null,null,null,null,null,null,null,null,null,null,null,{"$f":"Stammdaten_Analysenprogramm!AC22","v":{"$error":"#VALUE!"}},{"$f":"Stammdaten_Analysenprogramm!AD22","v":0},{"$f":"Stammdaten_Analysenprogramm!AB22","v":{"$error":"#VALUE!"}},{"$f":"Stammdaten_Analysenprogramm!V22","v":"k.A."},null,null,null,null,{"$error":"#VALUE!"},0,{"$error":"#VALUE!"},{"$error":"#VALUE!"}]
[{"$f":"IF(Stammdaten_Analysenprogramm!AG23>0,Stammdaten_Analysenprogramm!A23,\"\")","v":""},{"$f":"IF(Stammdaten_Analysenprogramm!AG23>0,Stammdaten_Analysenprogramm!C23,\"\")","v":""},"",null,null,null,null,null,null,null,null,null,null,null,null,{"$f":"Stammdaten_Analysenprogramm!AC23","v":{"$error":"#VALUE!"}},{"$f":"Stammdaten_Analysenprogramm!AD23","v":0},{"$f":"Stammdaten_Analysenprogramm!AB23","v":{"$error":"#VALUE!"}},{"$f":"Stammdaten_Analysenprogramm!V23","v":"k.A."},null,null,null,null,{"$error":"#VALUE!"},0,{"$error":"#VALUE!"},{"$error":"#VALUE!"}]
[{"$f":"IF(Stammdaten_Analysenprogramm!AG24>0,Stammdaten_Analysenprogramm!A24,\"\")","v":""},{"$f":"IF(Stammdaten_Analysenprogramm!AG24>0,Stammdaten_Analysenprogramm!C24,\"\")","v":""},"",null,null,null,null,null,null,null,null,null,null,null,null,{"$f":"Stammdaten_Analysenprogramm!AC24","v":{"$error":"#VALUE!"}},{"$f":"Stammdaten_Analysenprogramm!AD24","v":0},{"$f":"Stammdaten_Analysenprogramm!AB24","v":{"$error":"#VALUE!"}},{"$f":"Stammdaten_Analysenprogramm!V24","v":"k.A."},null,null,null,null,{"$error":"#VALUE!"},0,{"$error":"#VALUE!"},{"$error":"#VALUE!"}]
[{"$f":"IF(Stammdaten_Analysenprogramm!AG25>0,Stammdaten_Analysenprogramm!A25,\"\")","v":""},{"$f":"IF(Stammdaten_Analysenprogramm!AG25>0,Stammdaten_Analysenprogramm!C25,\"\")","v":""},"",null,null,null,null,null,null,null,null,null,null,null,null,{"$f":"Stammdaten_Analysenprogramm!AC25","v":{"$error":"#VALUE!"}},{"$f":"Stammdaten_Analysenprogramm!AD25","v":0},{"$f":"Stammdaten_Analysenprogramm!AB25","v":{"$error":"#VALUE!"}},{"$f":"Stammdaten_Analysenprogramm!V25","v":"k.A."},null,null,null,null,{"$error":"#VALUE!"},0,{"$error":"#VALUE!"},{"$error":"#VALUE!"}]
[{"$f":"IF(Stammdaten_Analysenprogramm!AG26>0,Stammdaten_Analysenprogramm!A26,\"\")","v":""},{"$f":"IF(Stammdaten_Analysenprogramm!AG26>0,Stammdaten_Analysenprogramm!C26,\"\")","v":""},"",null,null,null,null,null,null,null,null,null,null,null,null,{"$f":"Stammdaten_Analysenprogramm!AC26","v":{"$error":"#VALUE!"}},{"$f":"Stammdaten_Analysenprogramm!AD26","v":0},{"$f":"Stammdaten_Analysenprogramm!AB26","v":{"$error":"#VALUE!"}},{"$f":"Stammdaten_Analysenprogramm!V26","v":"k.A."},null,null,null,null,{"$error":"#VALUE!"},0,{"$error":"#VALUE!"},{"$error":"#VALUE!"}]
[{"$f":"IF(Stammdaten_Analysenprogramm!AG27>0,Stammdaten_Analysenprogramm!A27,\"\")","v":""},{"$f":"IF(Stammdaten_Analysenprogramm!AG27>0,Stammdaten_Analysenprogramm!C27,\"\")","v":""},"",null,null,null,null,null,null,null,null,null,null,null,null,{"$f":"Stammdaten_Analysenprogramm!AC27","v":{"$error":"#VALUE!"}},{"$f":"Stammdaten_Analysenprogramm!AD27","v":0},{"$f":"Stammdaten_Analysenprogramm!AB27","v":{"$error":"#VALUE!"}},{"$f":"Stammdaten_Analysenprogramm!V27","v":"k.A."},null,null,null,null,{"$error":"#VALUE!"},0,{"$error":"#VALUE!"},{"$error":"#VALUE!"}]
[{"$f":"IF(Stammdaten_Analysenprogramm!AG28>0,Stammdaten_Analysenprogramm!A28,\"\")","v":""},{"$f":"IF(Stammdaten_Analysenprogramm!AG28>0,Stammdaten_Analysenprogramm!C28,\"\")","v":""},"",null,null,null,null,null,null,null,null,null,null,null,null,{"$f":"Stammdaten_Analysenprogramm!AC28","v":{"$error":"#VALUE!"}},{"$f":"Stammdaten_Analysenprogramm!AD28","v":0},{"$f":"Stammdaten_Analysenprogramm!AB28","v":{"$error":"#VALUE!"}},{"$f":"Stammdaten_Analysenprogramm!V28","v":"k.A."},null,null,null,null,{"$error":"#VALUE!"},0,{"$error":"#VALUE!"},{"$error":"#VALUE!"}]
[{"$f":"IF(Stammdaten_Analysenprogramm!AG29>0,Stammdaten_Analysenprogramm!A29,\"\")","v":""},{"$f":"IF(Stammdaten_Analysenprogramm!AG29>0,Stammdaten_Analysenprogramm!C29,\"\")","v":""},"",null,null,null,null,null,null,null,null,null,null,null,null,{"$f":"Stammdaten_Analysenprogramm!AC29","v":{"$error":"#VALUE!"}},{"$f":"Stammdaten_Analysenprogramm!AD29","v":0},{"$f":"Stammdaten_Analysenprogramm!AB29","v":{"$error":"#VALUE!"}},{"$f":"Stammdaten_Analysenprogramm!V29","v":"k.A."},null,null,null,null,{"$error":"#VALUE!"},0,{"$error":"#VALUE!"},{"$error":"#VALUE!"}]
[{"$f":"IF(Stammdaten_Analysenprogramm!AG30>0,Stammdaten_Analysenprogramm!A30,\"\")","v":""},{"$f":"IF(Stammdaten_Analysenprogramm!AG30>0,Stammdaten_Analysenprogramm!C30,\"\")","v":""},"",null,null,null,null,null,null,null,null,null,null,null,null,{"$f":"Stammdaten_Analysenprogramm!AC30","v":{"$error":"#VALUE!"}},{"$f":"Stammdaten_Analysenprogramm!AD30","v":0},{"$f":"Stammdaten_Analysenprogramm!AB30","v":{"$error":"#VALUE!"}},{"$f":"Stammdaten_Analysenprogramm!V30","v":"k.A."},null,null,null,null,{"$error":"#VALUE!"},0,{"$error":"#VALUE!"},{"$error":"#VALUE!"}]
[{"$f":"IF(Stammdaten_Analysenprogramm!AG31>0,Stammdaten_Analysenprogramm!A31,\"\")","v":""},{"$f":"IF(Stammdaten_Analysenprogramm!AG31>0,Stammdaten_Analysenprogramm!C31,\"\")","v":""},"",null,null,null,null,null,null,null,null,null,null,null,null,{"$f":"Stammdaten_Analysenprogramm!AC31","v":{"$error":"#VALUE!"}},{"$f":"Stammdaten_Analysenprogramm!AD31","v":0},{"$f":"Stammdaten_Analysenprogramm!AB31","v":{"$error":"#VALUE!"}},{"$f":"Stammdaten_Analysenprogramm!V31","v":"k.A."},null,null,null,null,{"$error":"#VALUE!"},0,{"$error":"#VALUE!"},{"$error":"#VALUE!"}]
[{"$f":"IF(Stammdaten_Analysenprogramm!AG32>0,Stammdaten_Analysenprogramm!A32,\"\")","v":""},{"$f":"IF(Stammdaten_Analysenprogramm!AG32>0,Stammdaten_Analysenprogramm!C32,\"\")","v":""},"",null,null,null,null,null,null,null,null,null,null,null,null,{"$f":"Stammdaten_Analysenprogramm!AC32","v":{"$error":"#VALUE!"}},{"$f":"Stammdaten_Analysenprogramm!AD32","v":0},{"$f":"Stammdaten_Analysenprogramm!AB32","v":{"$error":"#VALUE!"}},{"$f":"Stammdaten_Analysenprogramm!V32","v":"k.A."},null,null,null,null,{"$error":"#VALUE!"},0,{"$error":"#VALUE!"},{"$error":"#VALUE!"}]
[{"$f":"IF(Stammdaten_Analysenprogramm!AG33>0,Stammdaten_Analysenprogramm!A33,\"\")","v":""},{"$f":"IF(Stammdaten_Analysenprogramm!AG33>0,Stammdaten_Analysenprogramm!C33,\"\")","v":""},"",null,null,null,null,null,null,null,null,null,null,null,null,{"$f":"Stammdaten_Analysenprogramm!AC33","v":{"$error":"#VALUE!"}},{"$f":"Stammdaten_Analysenprogramm!AD33","v":0},{"$f":"Stammdaten_Analysenprogramm!AB33","v":{"$error":"#VALUE!"}},{"$f":"Stammdaten_Analysenprogramm!V33","v":"k.A."},null,null,null,null,{"$error":"#VALUE!"},0,{"$error":"#VALUE!"},{"$error":"#VALUE!"}]
[{"$f":"IF(Stammdaten_Analysenprogramm!AG34>0,Stammdaten_Analysenprogramm!A34,\"\")","v":""},{"$f":"IF(Stammdaten_Analysenprogramm!AG34>0,Stammdaten_Analysenprogramm!C34,\"\")","v":""},"",null,null,null,null,null,null,null,null,null,null,null,null,{"$f":"Stammdaten_Analysenprogramm!AC34","v":{"$error":"#VALUE!"}},{"$f":"Stammdaten_Analysenprogramm!AD34","v":0},{"$f":"Stammdaten_Analysenprogramm!AB34","v":{"$error":"#VALUE!"}},{"$f":"Stammdaten_Analysenprogramm!V34","v":"k.A."},null,null,null,null,{"$error":"#VALUE!"},0,{"$error":"#VALUE!"},{"$error":"#VALUE!"}]
[{"$f":"IF(Stammdaten_Analysenprogramm!AG35>0,Stammdaten_Analysenprogramm!A35,\"\")","v":""},{"$f":"IF(Stammdaten_Analysenprogramm!AG35>0,Stammdaten_Analysenprogramm!C35,\"\")","v":""},"",null,null,null,null,null,null,null,null,null,null,null,null,{"$f":"Stammdaten_Analysenprogramm!AC35","v":{"$error":"#VALUE!"}},{"$f":"Stammdaten_Analysenprogramm!AD35","v":0},{"$f":"Stammdaten_Analysenprogramm!AB35","v":{"$error":"#VALUE!"}},{"$f":"Stammdaten_Analysenprogramm!V35","v":"k.A."},null,null,null,null,{"$error":"#VALUE!"},0,{"$error":"#VALUE!"},{"$error":"#VALUE!"}]
[{"$f":"IF(Stammdaten_Analysenprogramm!AG36>0,Stammdaten_Analysenprogramm!A36,\"\")","v":""},{"$f":"IF(Stammdaten_Analysenprogramm!AG36>0,Stammdaten_Analysenprogramm!C36,\"\")","v":""},"",null,null,null,null,null,null,null,null,null,null,null,null,{"$f":"Stammdaten_Analysenprogramm!AC36","v":{"$error":"#VALUE!"}},{"$f":"Stammdaten_Analysenprogramm!AD36","v":0},{"$f":"Stammdaten_Analysenprogramm!AB36","v":{"$error":"#VALUE!"}},{"$f":"Stammdaten_Analysenprogramm!V36","v":"k.A."},null,null,null,null,{"$error":"#VALUE!"},0,{"$error":"#VALUE!"},{"$error":"#VALUE!"}]
[{"$f":"IF(Stammdaten_Analysenprogramm!AG37>0,Stammdaten_Analysenprogramm!A37,\"\")","v":""},{"$f":"IF(Stammdaten_Analysenprogramm!AG37>0,Stammdaten_Analysenprogramm!C37,\"\")","v":""},"",null,null,null,null,null,null,null,null,null,null,null,null,{"$f":"Stammdaten_Analysenprogramm!AC37","v":{"$error":"#VALUE!"}},{"$f":"Stammdaten_Analysenprogramm!AD37","v":0},{"$f":"Stammdaten_Analysenprogramm!AB37","v":{"$error":"#VALUE!"}},{"$f":"Stammdaten_Analysenprogramm!V37","v":"k.A."},null,null,null,null,{"$error":"#VALUE!"},0,{"$error":"#VALUE!"},{"$error":"#VALUE!"}]
[{"$f":"IF(Stammdaten_Analysenprogramm!AG38>0,Stammdaten_Analysenprogramm!A38,\"\")","v":""},{"$f":"IF(Stammdaten_Analysenprogramm!AG38>0,Stammdaten_Analysenprogramm!C38,\"\")","v":""},"",null,null,null,null,null,null,null,null,null,null,null,null,{"$f":"Stammdaten_Analysenprogramm!AC38","v":{"$error":"#VALUE!"}},{"$f":"Stammdaten_Analysenprogramm!AD38","v":0},{"$f":"Stammdaten_Analysenprogramm!AB38","v":{"$error":"#VALUE!"}},{"$f":"Stammdaten_Analysenprogramm!V38","v":"k.A."},null,null,null,null,{"$error":"#VALUE!"},0,{"$error":"#VALUE!"},{"$error":"#VALUE!"}]
[{"$f":"IF(Stammdaten_Analysenprogramm!AG39>0,Stammdaten_Analysenprogramm!A39,\"\")","v":""},{"$f":"IF(Stammdaten_Analysenprogramm!AG39>0,Stammdaten_Analysenprogramm!C39,\"\")","v":""},"",null,null,null,null,null,null,null,null,null,null,null,null,{"$f":"Stammdaten_Analysenprogramm!AC39","v":{"$error":"#VALUE!"}},{"$f":"Stammdaten_Analysenprogramm!AD39","v":0},{"$f":"Stammdaten_Analysenprogramm!AB39","v":{"$error":"#VALUE!"}},{"$f":"Stammdaten_Analysenprogramm!V39","v":"k.A."},null,null,null,null,{"$error":"#VALUE!"},0,{"$error":"#VALUE!"},{"$error":"#VALUE!"}]
[{"$f":"IF(Stammdaten_Analysenprogramm!AG40>0,Stammdaten_Analysenprogramm!A40,\"\")","v":""},{"$f":"IF(Stammdaten_Analysenprogramm!AG40>0,Stammdaten_Analysenprogramm!C40,\"\")","v":""},"",null,null,null,null,null,null,null,null,null,null,null,null,{"$f":"Stammdaten_Analysenprogramm!AC40","v":{"$error":"#VALUE!"}},{"$f":"Stammdaten_Analysenprogramm!AD40","v":0},{"$f":"Stammdaten_Analysenprogramm!AB40","v":{"$error":"#VALUE!"}},{"$f":"Stammdaten_Analysenprogramm!V40","v":"k.A."},null,null,null,null,{"$error":"#VALUE!"},0,{"$error":"#VALUE!"},{"$error":"#VALUE!"}]
[{"$f":"IF(Stammdaten_Analysenprogramm!AG41>0,Stammdaten_Analysenprogramm!A41,\"\")","v":""},{"$f":"IF(Stammdaten_Analysenprogramm!AG41>0,Stammdaten_Analysenprogramm!C41,\"\")","v":""},"",null,null,null,null,null,null,null,null,null,null,null,null,{"$f":"Stammdaten_Analysenprogramm!AC41","v":{"$error":"#VALUE!"}},{"$f":"Stammdaten_Analysenprogramm!AD41","v":0},{"$f":"Stammdaten_Analysenprogramm!AB41","v":{"$error":"#VALUE!"}},{"$f":"Stammdaten_Analysenprogramm!V41","v":"k.A."},null,null,null,null,{"$error":"#VALUE!"},0,{"$error":"#VALUE!"},{"$error":"#VALUE!"}]
[{"$f":"IF(Stammdaten_Analysenprogramm!AG42>0,Stammdaten_Analysenprogramm!A42,\"\")","v":""},{"$f":"IF(Stammdaten_Analysenprogramm!AG42>0,Stammdaten_Analysenprogramm!C42,\"\")","v":""},"",null,null,null,null,null,null,null,null,null,null,null,null,{"$f":"Stammdaten_Analysenprogramm!AC42","v":{"$error":"#VALUE!"}},{"$f":"Stammdaten_Analysenprogramm!AD42","v":0},{"$f":"Stammdaten_Analysenprogramm!AB42","v":{"$error":"#VALUE!"}},{"$f":"Stammdaten_Analysenprogramm!V42","v":"k.A."},null,null,null,null,{"$error":"#VALUE!"},0,{"$error":"#VALUE!"},{"$error":"#VALUE!"}]
[{"$f":"IF(Stammdaten_Analysenprogramm!AG43>0,Stammdaten_Analysenprogramm!A43,\"\")","v":""},{"$f":"IF(Stammdaten_Analysenprogramm!AG43>0,Stammdaten_Analysenprogramm!C43,\"\")","v":""},"",null,null,null,null,null,null,null,null,null,null,null,null,{"$f":"Stammdaten_Analysenprogramm!AC43","v":{"$error":"#VALUE!"}},{"$f":"Stammdaten_Analysenprogramm!AD43","v":0},{"$f":"Stammdaten_Analysenprogramm!AB43","v":{"$error":"#VALUE!"}},{"$f":"Stammdaten_Analysenprogramm!V43","v":"k.A."},null,null,null,null,{"$error":"#VALUE!"},0,{"$error":"#VALUE!"},{"$error":"#VALUE!"}]
[{"$f":"IF(Stammdaten_Analysenprogramm!AG44>0,Stammdaten_Analysenprogramm!A44,\"\")","v":""},{"$f":"IF(Stammdaten_Analysenprogramm!AG44>0,Stammdaten_Analysenprogramm!C44,\"\")","v":""},"",null,null,null,null,null,null,null,null,null,null,null,null,{"$f":"Stammdaten_Analysenprogramm!AC44","v":{"$error":"#VALUE!"}},{"$f":"Stammdaten_Analysenprogramm!AD44","v":0},{"$f":"Stammdaten_Analysenprogramm!AB44","v":{"$error":"#VALUE!"}},{"$f":"Stammdaten_Analysenprogramm!V44","v":"k.A."},null,null,null,null,{"$error":"#VALUE!"},0,{"$error":"#VALUE!"},{"$error":"#VALUE!"}]
[{"$f":"IF(Stammdaten_Analysenprogramm!AG45>0,Stammdaten_Analysenprogramm!A45,\"\")","v":""},{"$f":"IF(Stammdaten_Analysenprogramm!AG45>0,Stammdaten_Analysenprogramm!C45,\"\")","v":""},"",null,null,null,null,null,null,null,null,null,null,null,null,{"$f":"Stammdaten_Analysenprogramm!AC45","v":{"$error":"#VALUE!"}},{"$f":"Stammdaten_Analysenprogramm!AD45","v":0},{"$f":"Stammdaten_Analysenprogramm!AB45","v":{"$error":"#VALUE!"}},{"$f":"Stammdaten_Analysenprogramm!V45","v":"k.A."},null,null,null,null,{"$error":"#VALUE!"},0,{"$error":"#VALUE!"},{"$error":"#VALUE!"}]
[{"$f":"IF(Stammdaten_Analysenprogramm!AG46>0,Stammdaten_Analysenprogramm!A46,\"\")","v":""},{"$f":"IF(Stammdaten_Analysenprogramm!AG46>0,Stammdaten_Analysenprogramm!C46,\"\")","v":""},"",null,null,null,null,null,null,null,null,null,null,null,null,{"$f":"Stammdaten_Analysenprogramm!AC46","v":{"$error":"#VALUE!"}},{"$f":"Stammdaten_Analysenprogramm!AD46","v":0},{"$f":"Stammdaten_Analysenprogramm!AB46","v":{"$error":"#VALUE!"}},{"$f":"Stammdaten_Analysenprogramm!V46","v":"k.A."},null,null,null,null,{"$error":"#VALUE!"},0,{"$error":"#VALUE!"},{"$error":"#VALUE!"}]
[{"$f":"IF(Stammdaten_Analysenprogramm!AG47>0,Stammdaten_Analysenprogramm!A47,\"\")","v":""},{"$f":"IF(Stammdaten_Analysenprogramm!AG47>0,Stammdaten_Analysenprogramm!C47,\"\")","v":""},"",null,null,null,null,null,null,null,null,null,null,null,null,{"$f":"Stammdaten_Analysenprogramm!AC47","v":{"$error":"#VALUE!"}},{"$f":"Stammdaten_Analysenprogramm!AD47","v":0},{"$f":"Stammdaten_Analysenprogramm!AB47","v":{"$error":"#VALUE!"}},{"$f":"Stammdaten_Analysenprogramm!V47","v":"k.A."},null,null,null,null,{"$error":"#VALUE!"},0,{"$error":"#VALUE!"},{"$error":"#VALUE!"}]
[{"$f":"IF(Stammdaten_Analysenprogramm!AG48>0,Stammdaten_Analysenprogramm!A48,\"\")","v":""},{"$f":"IF(Stammdaten_Analysenprogramm!AG48>0,Stammdaten_Analysenprogramm!C48,\"\")","v":""},"",null,null,null,null,null,null,null,null,null,null,null,null,{"$f":"Stammdaten_Analysenprogramm!AC48","v":{"$error":"#VALUE!"}},{"$f":"Stammdaten_Analysenprogramm!AD48","v":0},{"$f":"Stammdaten_Analysenprogramm!AB48","v":{"$error":"#VALUE!"}},{"$f":"Stammdaten_Analysenprogramm!V48","v":"k.A."},null,null,null,null,{"$error":"#VALUE!"},0,{"$error":"#VALUE!"},{"$error":"#VALUE!"}]
[{"$f":"IF(Stammdaten_Analysenprogramm!AG49>0,Stammdaten_Analysenprogramm!A49,\"\")","v":""},{"$f":"IF(Stammdaten_Analysenprogramm!AG49>0,Stammdaten_Analysenprogramm!C49,\"\")","v":""},"",null,null,null,null,null,null,null,null,null,null,null,null,{"$f":"Stammdaten_Analysenprogramm!AC49","v":{"$error":"#VALUE!"}},{"$f":"Stammdaten_Analysenprogramm!AD49","v":0},{"$f":"Stammdaten_Analysenprogramm!AB49","v":{"$error":"#VALUE!"}},{"$f":"Stammdaten_Analysenprogramm!V49","v":"k.A."},null,null,null,null,{"$error":"#VALUE!"},0,{"$error":"#VALUE!"},{"$error":"#VALUE!"}]
[{"$f":"IF(Stammdaten_Analysenprogramm!AG50>0,Stammdaten_Analysenprogramm!A50,\"\")","v":""},{"$f":"IF(Stammdaten_Analysenprogramm!AG50>0,Stammdaten_Analysenprogramm!C50,\"\")","v":""},"",null,null,null,null,null,null,null,null,null,null,null,null,{"$f":"Stammdaten_Analysenprogramm!AC50","v":{"$error":"#VALUE!"}},{"$f":"Stammdaten_Analysenprogramm!AD50","v":0},{"$f":"Stammdaten_Analysenprogramm!AB50","v":{"$error":"#VALUE!"}},{"$f":"Stammdaten_Analysenprogramm!V50","v":"k.A."},null,null,null,null,{"$error":"#VALUE!"},0,{"$error":"#VALUE!"},{"$error":"#VALUE!"}]
[{"$f":"IF(Stammdaten_Analysenprogramm!AG51>0,Stammdaten_Analysenprogramm!A51,\"\")","v":""},{"$f":"IF(Stammdaten_Analysenprogramm!AG51>0,Stammdaten_Analysenprogramm!C51,\"\")","v":""},"",null,null,null,null,null,null,null,null,null,null,null,null,{"$f":"Stammdaten_Analysenprogramm!AC51","v":{"$error":"#VALUE!"}},{"$f":"Stammdaten_Analysenprogramm!AD51","v":0},{"$f":"Stammdaten_Analysenprogramm!AB51","v":{"$error":"#VALUE!"}},{"$f":"Stammdaten_Analysenprogramm!V51","v":"k.A."},null,null,null,null,{"$error":"#VALUE!"},0,{"$error":"#VALUE!"},{"$error":"#VALUE!"}]
[{"$f":"IF(Stammdaten_Analysenprogramm!AG52>0,Stammdaten_Analysenprogramm!A52,\"\")","v":""},{"$f":"IF(Stammdaten_Analysenprogramm!AG52>0,Stammdaten_Analysenprogramm!C52,\"\")","v":""},"",null,null,null,null,null,null,null,null,null,null,null,null,{"$f":"Stammdaten_Analysenprogramm!AC52","v":{"$error":"#VALUE!"}},{"$f":"Stammdaten_Analysenprogramm!AD52","v":0},{"$f":"Stammdaten_Analysenprogramm!AB52","v":{"$error":"#VALUE!"}},{"$f":"Stammdaten_Analysenprogramm!V52","v":"k.A."},null,null,null,null,{"$error":"#VALUE!"},0,{"$error":"#VALUE!"},{"$error":"#VALUE!"}]
[{"$f":"IF(Stammdaten_Analysenprogramm!AG53>0,Stammdaten_Analysenprogramm!A53,\"\")","v":""},{"$f":"IF(Stammdaten_Analysenprogramm!AG53>0,Stammdaten_Analysenprogramm!C53,\"\")","v":""},"",null,null,null,null,null,null,null,null,null,null,null,null,{"$f":"Stammdaten_Analysenprogramm!AC53","v":{"$error":"#VALUE!"}},{"$f":"Stammdaten_Analysenprogramm!AD53","v":0},{"$f":"Stammdaten_Analysenprogramm!AB53","v":{"$error":"#VALUE!"}},{"$f":"Stammdaten_Analysenprogramm!V53","v":"k.A."},null,null,null,null,{"$error":"#VALUE!"},0,{"$error":"#VALUE!"},{"$error":"#VALUE!"}]
[{"$f":"IF(Stammdaten_Analysenprogramm!AG54>0,Stammdaten_Analysenprogramm!A54,\"\")","v":""},{"$f":"IF(Stammdaten_Analysenprogramm!AG54>0,Stammdaten_Analysenprogramm!C54,\"\")","v":""},"",null,null,null,null,null,null,null,null,null,null,null,null,{"$f":"Stammdaten_Analysenprogramm!AC54","v":{"$error":"#VALUE!"}},{"$f":"Stammdaten_Analysenprogramm!AD54","v":0},{"$f":"Stammdaten_Analysenprogramm!AB54","v":{"$error":"#VALUE!"}},{"$f":"Stammdaten_Analysenprogramm!V54","v":"k.A."},null,null,null,null,{"$error":"#VALUE!"},0,{"$error":"#VALUE!"},{"$error":"#VALUE!"}]
[{"$f":"IF(Stammdaten_Analysenprogramm!AG55>0,Stammdaten_Analysenprogramm!A55,\"\")","v":""},{"$f":"IF(Stammdaten_Analysenprogramm!AG55>0,Stammdaten_Analysenprogramm!C55,\"\")","v":""},"",null,null,null,null,null,null,null,null,null,null,null,null,{"$f":"Stammdaten_Analysenprogramm!AC55","v":{"$error":"#VALUE!"}},{"$f":"Stammdaten_Analysenprogramm!AD55","v":0},{"$f":"Stammdaten_Analysenprogramm!AB55","v":{"$error":"#VALUE!"}},{"$f":"Stammdaten_Analysenprogramm!V55","v":"k.A."},null,null,null,null,{"$error":"#VALUE!"},0,{"$error":"#VALUE!"},{"$error":"#VALUE!"}]
[{"$f":"IF(Stammdaten_Analysenprogramm!AG56>0,Stammdaten_Analysenprogramm!A56,\"\")","v":""},{"$f":"IF(Stammdaten_Analysenprogramm!AG56>0,Stammdaten_Analysenprogramm!C56,\"\")","v":""},"",null,null,null,null,null,null,null,null,null,null,null,null,{"$f":"Stammdaten_Analysenprogramm!AC56","v":{"$error":"#VALUE!"}},{"$f":"Stammdaten_Analysenprogramm!AD56","v":0},{"$f":"Stammdaten_Analysenprogramm!AB56","v":{"$error":"#VALUE!"}},{"$f":"Stammdaten_Analysenprogramm!V56","v":"k.A."},null,null,null,null,{"$error":"#VALUE!"},0,{"$error":"#VALUE!"},{"$error":"#VALUE!"}]
[{"$f":"IF(Stammdaten_Analysenprogramm!AG57>0,Stammdaten_Analysenprogramm!A57,\"\")","v":""},{"$f":"IF(Stammdaten_Analysenprogramm!AG57>0,Stammdaten_Analysenprogramm!C57,\"\")","v":""},"",null,null,null,null,null,null,null,null,null,null,null,null,{"$f":"Stammdaten_Analysenprogramm!AC57","v":{"$error":"#VALUE!"}},{"$f":"Stammdaten_Analysenprogramm!AD57","v":0},{"$f":"Stammdaten_Analysenprogramm!AB57","v":{"$error":"#VALUE!"}},{"$f":"Stammdaten_Analysenprogramm!V57","v":"k.A."},null,null,null,null,{"$error":"#VALUE!"},0,{"$error":"#VALUE!"},{"$error":"#VALUE!"}]
[{"$f":"IF(Stammdaten_Analysenprogramm!AG58>0,Stammdaten_Analysenprogramm!A58,\"\")","v":""},{"$f":"IF(Stammdaten_Analysenprogramm!AG58>0,Stammdaten_Analysenprogramm!C58,\"\")","v":""},"",null,null,null,null,null,null,null,null,null,null,null,null,{"$f":"Stammdaten_Analysenprogramm!AC58","v":{"$error":"#VALUE!"}},{"$f":"Stammdaten_Analysenprogramm!AD58","v":0},{"$f":"Stammdaten_Analysenprogramm!AB58","v":{"$error":"#VALUE!"}},{"$f":"Stammdaten_Analysenprogramm!V58","v":"k.A."},null,null,null,null,{"$error":"#VALUE!"},0,{"$error":"#VALUE!"},{"$error":"#VALUE!"}]
[{"$f":"IF(Stammdaten_Analysenprogramm!AG59>0,Stammdaten_Analysenprogramm!A59,\"\")","v":""},{"$f":"IF(Stammdaten_Analysenprogramm!AG59>0,Stammdaten_Analysenprogramm!C59,\"\")","v":""},"",null,null,null,null,null,null,null,null,null,null,null,null,{"$f":"Stammdaten_Analysenprogramm!AC59","v":{"$error":"#VALUE!"}},{"$f":"Stammdaten_Analysenprogramm!AD59","v":0},{"$f":"Stammdaten_Analysenprogramm!AB59","v":{"$error":"#VALUE!"}},{"$f":"Stammdaten_Analysenprogramm!V59","v":"k.A."},null,null,null,null,{"$error":"#VALUE!"},0,{"$error":"#VALUE!"},{"$error":"#VALUE!"}]
[{"$f":"IF(Stammdaten_Analysenprogramm!AG60>0,Stammdaten_Analysenprogramm!A60,\"\")","v":""},{"$f":"IF(Stammdaten_Analysenprogramm!AG60>0,Stammdaten_Analysenprogramm!C60,\"\")","v":""},"",null,null,null,null,null,null,null,null,null,null,null,null,{"$f":"Stammdaten_Analysenprogramm!AC60","v":{"$error":"#VALUE!"}},{"$f":"Stammdaten_Analysenprogramm!AD60","v":0},{"$f":"Stammdaten_Analysenprogramm!AB60","v":{"$error":"#VALUE!"}},{"$f":"Stammdaten_Analysenprogramm!V60","v":"k.A."},null,null,null,null,{"$error":"#VALUE!"},0,{"$error":"#VALUE!"},{"$error":"#VALUE!"}]
[{"$f":"IF(Stammdaten_Analysenprogramm!AG61>0,Stammdaten_Analysenprogramm!A61,\"\")","v":""},{"$f":"IF(Stammdaten_Analysenprogramm!AG61>0,Stammdaten_Analysenprogramm!C61,\"\")","v":""},"",null,null,null,null,null,null,null,null,null,null,null,null,{"$f":"Stammdaten_Analysenprogramm!AC61","v":{"$error":"#VALUE!"}},{"$f":"Stammdaten_Analysenprogramm!AD61","v":0},{"$f":"Stammdaten_Analysenprogramm!AB61","v":{"$error":"#VALUE!"}},{"$f":"Stammdaten_Analysenprogramm!V61","v":"k.A."},null,null,null,null,{"$error":"#VALUE!"},0,{"$error":"#VALUE!"},{"$error":"#VALUE!"}]
[{"$f":"IF(Stammdaten_Analysenprogramm!AG62>0,Stammdaten_Analysenprogramm!A62,\"\")","v":""},{"$f":"IF(Stammdaten_Analysenprogramm!AG62>0,Stammdaten_Analysenprogramm!C62,\"\")","v":""},"",null,null,null,null,null,null,null,null,null,null,null,null,{"$f":"Stammdaten_Analysenprogramm!AC62","v":{"$error":"#VALUE!"}},{"$f":"Stammdaten_Analysenprogramm!AD62","v":0},{"$f":"Stammdaten_Analysenprogramm!AB62","v":{"$error":"#VALUE!"}},{"$f":"Stammdaten_Analysenprogramm!V62","v":"k.A."},null,null,null,null,{"$error":"#VALUE!"},0,{"$error":"#VALUE!"},{"$error":"#VALUE!"}]
[{"$f":"IF(Stammdaten_Analysenprogramm!AG63>0,Stammdaten_Analysenprogramm!A63,\"\")","v":""},{"$f":"IF(Stammdaten_Analysenprogramm!AG63>0,Stammdaten_Analysenprogramm!C63,\"\")","v":""},"",null,null,null,null,null,null,null,null,null,null,null,null,{"$f":"Stammdaten_Analysenprogramm!AC63","v":{"$error":"#VALUE!"}},{"$f":"Stammdaten_Analysenprogramm!AD63","v":0},{"$f":"Stammdaten_Analysenprogramm!AB63","v":{"$error":"#VALUE!"}},{"$f":"Stammdaten_Analysenprogramm!V63","v":"k.A."},null,null,null,null,{"$error":"#VALUE!"},0,{"$error":"#VALUE!"},{"$error":"#VALUE!"}]
[{"$f":"IF(Stammdaten_Analysenprogramm!AG64>0,Stammdaten_Analysenprogramm!A64,\"\")","v":""},{"$f":"IF(Stammdaten_Analysenprogramm!AG64>0,Stammdaten_Analysenprogramm!C64,\"\")","v":""},"",null,null,null,null,null,null,null,null,null,null,null,null,{"$f":"Stammdaten_Analysenprogramm!AC64","v":{"$error":"#VALUE!"}},{"$f":"Stammdaten_Analysenprogramm!AD64","v":0},{"$f":"Stammdaten_Analysenprogramm!AB64","v":{"$error":"#VALUE!"}},{"$f":"Stammdaten_Analysenprogramm!V64","v":"k.A."},null,null,null,null,{"$error":"#VALUE!"},0,{"$error":"#VALUE!"},{"$error":"#VALUE!"}]
[{"$f":"IF(Stammdaten_Analysenprogramm!AG65>0,Stammdaten_Analysenprogramm!A65,\"\")","v":""},{"$f":"IF(Stammdaten_Analysenprogramm!AG65>0,Stammdaten_Analysenprogramm!C65,\"\")","v":""},"",null,null,null,null,null,null,null,null,null,null,null,null,{"$f":"Stammdaten_Analysenprogramm!AC65","v":{"$error":"#VALUE!"}},{"$f":"Stammdaten_Analysenprogramm!AD65","v":0},{"$f":"Stammdaten_Analysenprogramm!AB65","v":{"$error":"#VALUE!"}},{"$f":"Stammdaten_Analysenprogramm!V65","v":"k.A."},null,null,null,null,{"$error":"#VALUE!"},0,{"$error":"#VALUE!"},{"$error":"#VALUE!"}]
[{"$f":"IF(Stammdaten_Analysenprogramm!AG66>0,Stammdaten_Analysenprogramm!A66,\"\")","v":""},{"$f":"IF(Stammdaten_Analysenprogramm!AG66>0,Stammdaten_Analysenprogramm!C66,\"\")","v":""},"",null,null,null,null,null,null,null,null,null,null,null,null,{"$f":"Stammdaten_Analysenprogramm!AC66","v":{"$error":"#VALUE!"}},{"$f":"Stammdaten_Analysenprogramm!AD66","v":0},{"$f":"Stammdaten_Analysenprogramm!AB66","v":{"$error":"#VALUE!"}},{"$f":"Stammdaten_Analysenprogramm!V66","v":"k.A."},null,null,null,null,{"$error":"#VALUE!"},0,{"$error":"#VALUE!"},{"$error":"#VALUE!"}]
[{"$f":"IF(Stammdaten_Analysenprogramm!AG67>0,Stammdaten_Analysenprogramm!A67,\"\")","v":""},{"$f":"IF(Stammdaten_Analysenprogramm!AG67>0,Stammdaten_Analysenprogramm!C67,\"\")","v":""},"",null,null,null,null,null,null,null,null,null,null,null,null,{"$f":"Stammdaten_Analysenprogramm!AC67","v":{"$error":"#VALUE!"}},{"$f":"Stammdaten_Analysenprogramm!AD67","v":0},{"$f":"Stammdaten_Analysenprogramm!AB67","v":{"$error":"#VALUE!"}},{"$f":"Stammdaten_Analysenprogramm!V67","v":"k.A."},null,null,null,null,{"$error":"#VALUE!"},0,{"$error":"#VALUE!"},{"$error":"#VALUE!"}]
[{"$f":"IF(Stammdaten_Analysenprogramm!AG68>0,Stammdaten_Analysenprogramm!A68,\"\")","v":""},{"$f":"IF(Stammdaten_Analysenprogramm!AG68>0,Stammdaten_Analysenprogramm!C68,\"\")","v":""},"",null,null,null,null,null,null,null,null,null,null,null,null,{"$f":"Stammdaten_Analysenprogramm!AC68","v":{"$error":"#VALUE!"}},{"$f":"Stammdaten_Analysenprogramm!AD68","v":0},{"$f":"Stammdaten_Analysenprogramm!AB68","v":{"$error":"#VALUE!"}},{"$f":"Stammdaten_Analysenprogramm!V68","v":"k.A."},null,null,null,null,{"$error":"#VALUE!"},0,{"$error":"#VALUE!"},{"$error":"#VALUE!"}]
[{"$f":"IF(Stammdaten_Analysenprogramm!AG69>0,Stammdaten_Analysenprogramm!A69,\"\")","v":""},{"$f":"IF(Stammdaten_Analysenprogramm!AG69>0,Stammdaten_Analysenprogramm!C69,\"\")","v":""},"",null,null,null,null,null,null,null,null,null,null,null,null,{"$f":"Stammdaten_Analysenprogramm!AC69","v":{"$error":"#VALUE!"}},{"$f":"Stammdaten_Analysenprogramm!AD69","v":0},{"$f":"Stammdaten_Analysenprogramm!AB69","v":{"$error":"#VALUE!"}},{"$f":"Stammdaten_Analysenprogramm!V69","v":"k.A."},null,null,null,null,{"$error":"#VALUE!"},0,{"$error":"#VALUE!"},{"$error":"#VALUE!"}]
[{"$f":"IF(Stammdaten_Analysenprogramm!AG70>0,Stammdaten_Analysenprogramm!A70,\"\")","v":""},{"$f":"IF(Stammdaten_Analysenprogramm!AG70>0,Stammdaten_Analysenprogramm!C70,\"\")","v":""},"",null,null,null,null,null,null,null,null,null,null,null,null,{"$f":"Stammdaten_Analysenprogramm!AC70","v":{"$error":"#VALUE!"}},{"$f":"Stammdaten_Analysenprogramm!AD70","v":0},{"$f":"Stammdaten_Analysenprogramm!AB70","v":{"$error":"#VALUE!"}},{"$f":"Stammdaten_Analysenprogramm!V70","v":"k.A."},null,null,null,null,{"$error":"#VALUE!"},0,{"$error":"#VALUE!"},{"$error":"#VALUE!"}]
[{"$f":"IF(Stammdaten_Analysenprogramm!AG71>0,Stammdaten_Analysenprogramm!A71,\"\")","v":""},{"$f":"IF(Stammdaten_Analysenprogramm!AG71>0,Stammdaten_Analysenprogramm!C71,\"\")","v":""},"",null,null,null,null,null,null,null,null,null,null,null,null,{"$f":"Stammdaten_Analysenprogramm!AC71","v":{"$error":"#VALUE!"}},{"$f":"Stammdaten_Analysenprogramm!AD71","v":0},{"$f":"Stammdaten_Analysenprogramm!AB71","v":{"$error":"#VALUE!"}},{"$f":"Stammdaten_Analysenprogramm!V71","v":"k.A."},null,null,null,null,{"$f":"T70-P70","v":{"$error":"#VALUE!"}},{"$f":"Q70-U70","v":0},{"$f":"V70-R70","v":{"$error":"#VALUE!"}},{"$f":"W70-S70","v":{"$error":"#VALUE!"}}]
[{"$f":"IF(Stammdaten_Analysenprogramm!AG72>0,Stammdaten_Analysenprogramm!A72,\"\")","v":""},{"$f":"IF(Stammdaten_Analysenprogramm!AG72>0,Stammdaten_Analysenprogramm!C72,\"\")","v":""},{"$f":"A71","v":""},null,null,null,null,null,null,null,null,null,null,null,null,{"$f":"Stammdaten_Analysenprogramm!AC72","v":{"$error":"#VALUE!"}},{"$f":"Stammdaten_Analysenprogramm!AD72","v":0},{"$f":"Stammdaten_Analysenprogramm!AB72","v":{"$error":"#VALUE!"}},{"$f":"Stammdaten_Analysenprogramm!V72","v":"k.A."},null,null,null,null,{"$error":"#VALUE!"},0,{"$error":"#VALUE!"},{"$error":"#VALUE!"}]
[{"$f":"IF(Stammdaten_Analysenprogramm!AG73>0,Stammdaten_Analysenprogramm!A73,\"\")","v":""},{"$f":"IF(Stammdaten_Analysenprogramm!AG73>0,Stammdaten_Analysenprogramm!C73,\"\")","v":""},"",null,null,null,null,null,null,null,null,null,null,null,null,{"$f":"Stammdaten_Analysenprogramm!AC73","v":{"$error":"#VALUE!"}},{"$f":"Stammdaten_Analysenprogramm!AD73","v":0},{"$f":"Stammdaten_Analysenprogramm!AB73","v":{"$error":"#VALUE!"}},{"$f":"Stammdaten_Analysenprogramm!V73","v":"k.A."},null,null,null,null,{"$error":"#VALUE!"},0,{"$error":"#VALUE!"},{"$error":"#VALUE!"}]
[{"$f":"IF(Stammdaten_Analysenprogramm!AG74>0,Stammdaten_Analysenprogramm!A74,\"\")","v":""},{"$f":"IF(Stammdaten_Analysenprogramm!AG74>0,Stammdaten_Analysenprogramm!C74,\"\")","v":""},"",null,null,null,null,null,null,null,null,null,null,null,null,{"$f":"Stammdaten_Analysenprogramm!AC74","v":{"$error":"#VALUE!"}},{"$f":"Stammdaten_Analysenprogramm!AD74","v":0},{"$f":"Stammdaten_Analysenprogramm!AB74","v":{"$error":"#VALUE!"}},{"$f":"Stammdaten_Analysenprogramm!V74","v":"k.A."},null,null,null,null,{"$error":"#VALUE!"},0,{"$error":"#VALUE!"},{"$error":"#VALUE!"}]
[{"$f":"IF(Stammdaten_Analysenprogramm!AG75>0,Stammdaten_Analysenprogramm!A75,\"\")","v":""},{"$f":"IF(Stammdaten_Analysenprogramm!AG75>0,Stammdaten_Analysenprogramm!C75,\"\")","v":""},"",null,null,null,null,null,null,null,null,null,null,null,null,{"$f":"Stammdaten_Analysenprogramm!AC75","v":{"$error":"#VALUE!"}},{"$f":"Stammdaten_Analysenprogramm!AD75","v":0},{"$f":"Stammdaten_Analysenprogramm!AB75","v":{"$error":"#VALUE!"}},{"$f":"Stammdaten_Analysenprogramm!V75","v":"k.A."},null,null,null,null,{"$error":"#VALUE!"},0,{"$error":"#VALUE!"},{"$error":"#VALUE!"}]
[{"$f":"IF(Stammdaten_Analysenprogramm!AG76>0,Stammdaten_Analysenprogramm!A76,\"\")","v":""},{"$f":"IF(Stammdaten_Analysenprogramm!AG76>0,Stammdaten_Analysenprogramm!C76,\"\")","v":""},"",null,null,null,null,null,null,null,null,null,null,null,null,{"$f":"Stammdaten_Analysenprogramm!AC76","v":{"$error":"#VALUE!"}},{"$f":"Stammdaten_Analysenprogramm!AD76","v":0},{"$f":"Stammdaten_Analysenprogramm!AB76","v":{"$error":"#VALUE!"}},{"$f":"Stammdaten_Analysenprogramm!V76","v":"k.A."},null,null,null,null,{"$error":"#VALUE!"},0,{"$error":"#VALUE!"},{"$error":"#VALUE!"}]
[{"$f":"IF(Stammdaten_Analysenprogramm!AG77>0,Stammdaten_Analysenprogramm!A77,\"\")","v":""},{"$f":"IF(Stammdaten_Analysenprogramm!AG77>0,Stammdaten_Analysenprogramm!C77,\"\")","v":""},"",null,null,null,null,null,null,null,null,null,null,null,null,{"$f":"Stammdaten_Analysenprogramm!AC77","v":{"$error":"#VALUE!"}},{"$f":"Stammdaten_Analysenprogramm!AD77","v":0},{"$f":"Stammdaten_Analysenprogramm!AB77","v":{"$error":"#VALUE!"}},{"$f":"Stammdaten_Analysenprogramm!V77","v":"k.A."},null,null,null,null,{"$error":"#VALUE!"},0,{"$error":"#VALUE!"},{"$error":"#VALUE!"}]
[{"$f":"IF(Stammdaten_Analysenprogramm!AG78>0,Stammdaten_Analysenprogramm!A78,\"\")","v":""},{"$f":"IF(Stammdaten_Analysenprogramm!AG78>0,Stammdaten_Analysenprogramm!C78,\"\")","v":""},"",null,null,null,null,null,null,null,null,null,null,null,null,{"$f":"Stammdaten_Analysenprogramm!AC78","v":{"$error":"#VALUE!"}},{"$f":"Stammdaten_Analysenprogramm!AD78","v":0},{"$f":"Stammdaten_Analysenprogramm!AB78","v":{"$error":"#VALUE!"}},{"$f":"Stammdaten_Analysenprogramm!V78","v":"k.A."},null,null,null,null,{"$error":"#VALUE!"},0,{"$error":"#VALUE!"},{"$error":"#VALUE!"}]
[{"$f":"IF(Stammdaten_Analysenprogramm!AG79>0,Stammdaten_Analysenprogramm!A79,\"\")","v":""},{"$f":"IF(Stammdaten_Analysenprogramm!AG79>0,Stammdaten_Analysenprogramm!C79,\"\")","v":""},"",null,null,null,null,null,null,null,null,null,null,null,null,{"$f":"Stammdaten_Analysenprogramm!AC79","v":{"$error":"#VALUE!"}},{"$f":"Stammdaten_Analysenprogramm!AD79","v":0},{"$f":"Stammdaten_Analysenprogramm!AB79","v":{"$error":"#VALUE!"}},{"$f":"Stammdaten_Analysenprogramm!V79","v":"k.A."},null,null,null,null,{"$error":"#VALUE!"},0,{"$error":"#VALUE!"},{"$error":"#VALUE!"}]
[{"$f":"IF(Stammdaten_Analysenprogramm!AG80>0,Stammdaten_Analysenprogramm!A80,\"\")","v":""},{"$f":"IF(Stammdaten_Analysenprogramm!AG80>0,Stammdaten_Analysenprogramm!C80,\"\")","v":""},"",null,null,null,null,null,null,null,null,null,null,null,null,{"$f":"Stammdaten_Analysenprogramm!AC80","v":{"$error":"#VALUE!"}},{"$f":"Stammdaten_Analysenprogramm!AD80","v":0},{"$f":"Stammdaten_Analysenprogramm!AB80","v":{"$error":"#VALUE!"}},{"$f":"Stammdaten_Analysenprogramm!V80","v":"k.A."},null,null,null,null,{"$error":"#VALUE!"},0,{"$error":"#VALUE!"},{"$error":"#VALUE!"}]
[{"$f":"IF(Stammdaten_Analysenprogramm!AG81>0,Stammdaten_Analysenprogramm!A81,\"\")","v":""},{"$f":"IF(Stammdaten_Analysenprogramm!AG81>0,Stammdaten_Analysenprogramm!C81,\"\")","v":""},"",null,null,null,null,null,null,null,null,null,null,null,null,{"$f":"Stammdaten_Analysenprogramm!AC81","v":{"$error":"#VALUE!"}},{"$f":"Stammdaten_Analysenprogramm!AD81","v":0},{"$f":"Stammdaten_Analysenprogramm!AB81","v":{"$error":"#VALUE!"}},{"$f":"Stammdaten_Analysenprogramm!V81","v":"k.A."},null,null,null,null,{"$error":"#VALUE!"},0,{"$error":"#VALUE!"},{"$error":"#VALUE!"}]
[{"$f":"IF(Stammdaten_Analysenprogramm!AG82>0,Stammdaten_Analysenprogramm!A82,\"\")","v":""},{"$f":"IF(Stammdaten_Analysenprogramm!AG82>0,Stammdaten_Analysenprogramm!C82,\"\")","v":""},"",null,null,null,null,null,null,null,null,null,null,null,null,{"$f":"Stammdaten_Analysenprogramm!AC82","v":{"$error":"#VALUE!"}},{"$f":"Stammdaten_Analysenprogramm!AD82","v":0},{"$f":"Stammdaten_Analysenprogramm!AB82","v":{"$error":"#VALUE!"}},{"$f":"Stammdaten_Analysenprogramm!V82","v":"k.A."},null,null,null,null,{"$error":"#VALUE!"},0,{"$error":"#VALUE!"},{"$error":"#VALUE!"}]
[{"$f":"IF(Stammdaten_Analysenprogramm!AG83>0,Stammdaten_Analysenprogramm!A83,\"\")","v":""},{"$f":"IF(Stammdaten_Analysenprogramm!AG83>0,Stammdaten_Analysenprogramm!C83,\"\")","v":""},"",null,null,null,null,null,null,null,null,null,null,null,null,{"$f":"Stammdaten_Analysenprogramm!AC83","v":{"$error":"#VALUE!"}},{"$f":"Stammdaten_Analysenprogramm!AD83","v":0},{"$f":"Stammdaten_Analysenprogramm!AB83","v":{"$error":"#VALUE!"}},{"$f":"Stammdaten_Analysenprogramm!V83","v":"k.A."},null,null,null,null,{"$error":"#VALUE!"},0,{"$error":"#VALUE!"},{"$error":"#VALUE!"}]
[{"$f":"IF(Stammdaten_Analysenprogramm!AG84>0,Stammdaten_Analysenprogramm!A84,\"\")","v":""},{"$f":"IF(Stammdaten_Analysenprogramm!AG84>0,Stammdaten_Analysenprogramm!C84,\"\")","v":""},"",null,null,null,null,null,null,null,null,null,null,null,null,{"$f":"Stammdaten_Analysenprogramm!AC84","v":{"$error":"#VALUE!"}},{"$f":"Stammdaten_Analysenprogramm!AD84","v":0},{"$f":"Stammdaten_Analysenprogramm!AB84","v":{"$error":"#VALUE!"}},{"$f":"Stammdaten_Analysenprogramm!V84","v":"k.A."},null,null,null,null,{"$error":"#VALUE!"},0,{"$error":"#VALUE!"},{"$error":"#VALUE!"}]
[{"$f":"IF(Stammdaten_Analysenprogramm!AG85>0,Stammdaten_Analysenprogramm!A85,\"\")","v":""},{"$f":"IF(Stammdaten_Analysenprogramm!AG85>0,Stammdaten_Analysenprogramm!C85,\"\")","v":""},"",null,null,null,null,null,null,null,null,null,null,null,null,{"$f":"Stammdaten_Analysenprogramm!AC85","v":{"$error":"#VALUE!"}},{"$f":"Stammdaten_Analysenprogramm!AD85","v":0},{"$f":"Stammdaten_Analysenprogramm!AB85","v":{"$error":"#VALUE!"}},{"$f":"Stammdaten_Analysenprogramm!V85","v":"k.A."},null,null,null,null,{"$error":"#VALUE!"},0,{"$error":"#VALUE!"},{"$error":"#VALUE!"}]
[{"$f":"IF(Stammdaten_Analysenprogramm!AG86>0,Stammdaten_Analysenprogramm!A86,\"\")","v":""},{"$f":"IF(Stammdaten_Analysenprogramm!AG86>0,Stammdaten_Analysenprogramm!C86,\"\")","v":""},"",null,null,null,null,null,null,null,null,null,null,null,null,{"$f":"Stammdaten_Analysenprogramm!AC86","v":{"$error":"#VALUE!"}},{"$f":"Stammdaten_Analysenprogramm!AD86","v":0},{"$f":"Stammdaten_Analysenprogramm!AB86","v":{"$error":"#VALUE!"}},{"$f":"Stammdaten_Analysenprogramm!V86","v":"k.A."},null,null,null,null,{"$error":"#VALUE!"},0,{"$error":"#VALUE!"},{"$error":"#VALUE!"}]
[{"$f":"IF(Stammdaten_Analysenprogramm!AG87>0,Stammdaten_Analysenprogramm!A87,\"\")","v":""},{"$f":"IF(Stammdaten_Analysenprogramm!AG87>0,Stammdaten_Analysenprogramm!C87,\"\")","v":""},"",null,null,null,null,null,null,null,null,null,null,null,null,{"$f":"Stammdaten_Analysenprogramm!AC87","v":{"$error":"#VALUE!"}},{"$f":"Stammdaten_Analysenprogramm!AD87","v":0},{"$f":"Stammdaten_Analysenprogramm!AB87","v":{"$error":"#VALUE!"}},{"$f":"Stammdaten_Analysenprogramm!V87","v":"k.A."},null,null,null,null,{"$error":"#VALUE!"},0,{"$error":"#VALUE!"},{"$error":"#VALUE!"}]
[{"$f":"IF(Stammdaten_Analysenprogramm!AG88>0,Stammdaten_Analysenprogramm!A88,\"\")","v":""},{"$f":"IF(Stammdaten_Analysenprogramm!AG88>0,Stammdaten_Analysenprogramm!C88,\"\")","v":""},"",null,null,null,null,null,null,null,null,null,null,null,null,{"$f":"Stammdaten_Analysenprogramm!AC88","v":{"$error":"#VALUE!"}},{"$f":"Stammdaten_Analysenprogramm!AD88","v":0},{"$f":"Stammdaten_Analysenprogramm!AB88","v":{"$error":"#VALUE!"}},{"$f":"Stammdaten_Analysenprogramm!V88","v":"k.A."},null,null,null,null,{"$error":"#VALUE!"},0,{"$error":"#VALUE!"},{"$error":"#VALUE!"}]
[{"$f":"IF(Stammdaten_Analysenprogramm!AG89>0,Stammdaten_Analysenprogramm!A89,\"\")","v":""},{"$f":"IF(Stammdaten_Analysenprogramm!AG89>0,Stammdaten_Analysenprogramm!C89,\"\")","v":""},"",null,null,null,null,null,null,null,null,null,null,null,null,{"$f":"Stammdaten_Analysenprogramm!AC89","v":{"$error":"#VALUE!"}},{"$f":"Stammdaten_Analysenprogramm!AD89","v":0},{"$f":"Stammdaten_Analysenprogramm!AB89","v":{"$error":"#VALUE!"}},{"$f":"Stammdaten_Analysenprogramm!V89","v":"k.A."},null,null,null,null,{"$error":"#VALUE!"},0,{"$error":"#VALUE!"},{"$error":"#VALUE!"}]
[{"$f":"IF(Stammdaten_Analysenprogramm!AG90>0,Stammdaten_Analysenprogramm!A90,\"\")","v":""},{"$f":"IF(Stammdaten_Analysenprogramm!AG90>0,Stammdaten_Analysenprogramm!C90,\"\")","v":""},"",null,null,null,null,null,null,null,null,null,null,null,null,{"$f":"Stammdaten_Analysenprogramm!AC90","v":{"$error":"#VALUE!"}},{"$f":"Stammdaten_Analysenprogramm!AD90","v":0},{"$f":"Stammdaten_Analysenprogramm!AB90","v":{"$error":"#VALUE!"}},{"$f":"Stammdaten_Analysenprogramm!V90","v":"k.A."},null,null,null,null,{"$error":"#VALUE!"},0,{"$error":"#VALUE!"},{"$error":"#VALUE!"}]
[{"$f":"IF(Stammdaten_Analysenprogramm!AG91>0,Stammdaten_Analysenprogramm!A91,\"\")","v":""},{"$f":"IF(Stammdaten_Analysenprogramm!AG91>0,Stammdaten_Analysenprogramm!C91,\"\")","v":""},"",null,null,null,null,null,null,null,null,null,null,null,null,{"$f":"Stammdaten_Analysenprogramm!AC91","v":{"$error":"#VALUE!"}},{"$f":"Stammdaten_Analysenprogramm!AD91","v":0},{"$f":"Stammdaten_Analysenprogramm!AB91","v":{"$error":"#VALUE!"}},{"$f":"Stammdaten_Analysenprogramm!V91","v":"k.A."},null,null,null,null,{"$error":"#VALUE!"},0,{"$error":"#VALUE!"},{"$error":"#VALUE!"}]
[{"$f":"IF(Stammdaten_Analysenprogramm!AG92>0,Stammdaten_Analysenprogramm!A92,\"\")","v":""},{"$f":"IF(Stammdaten_Analysenprogramm!AG92>0,Stammdaten_Analysenprogramm!C92,\"\")","v":""},"",null,null,null,null,null,null,null,null,null,null,null,null,{"$f":"Stammdaten_Analysenprogramm!AC92","v":{"$error":"#VALUE!"}},{"$f":"Stammdaten_Analysenprogramm!AD92","v":0},{"$f":"Stammdaten_Analysenprogramm!AB92","v":{"$error":"#VALUE!"}},{"$f":"Stammdaten_Analysenprogramm!V92","v":"k.A."},null,null,null,null,{"$error":"#VALUE!"},0,{"$error":"#VALUE!"},{"$error":"#VALUE!"}]
[{"$f":"IF(Stammdaten_Analysenprogramm!AG93>0,Stammdaten_Analysenprogramm!A93,\"\")","v":""},{"$f":"IF(Stammdaten_Analysenprogramm!AG93>0,Stammdaten_Analysenprogramm!C93,\"\")","v":""},"",null,null,null,null,null,null,null,null,null,null,null,null,{"$f":"Stammdaten_Analysenprogramm!AC93","v":{"$error":"#VALUE!"}},{"$f":"Stammdaten_Analysenprogramm!AD93","v":0},{"$f":"Stammdaten_Analysenprogramm!AB93","v":{"$error":"#VALUE!"}},{"$f":"Stammdaten_Analysenprogramm!V93","v":"k.A."},null,null,null,null,{"$error":"#VALUE!"},0,{"$error":"#VALUE!"},{"$error":"#VALUE!"}]
[{"$f":"IF(Stammdaten_Analysenprogramm!AG94>0,Stammdaten_Analysenprogramm!A94,\"\")","v":""},{"$f":"IF(Stammdaten_Analysenprogramm!AG94>0,Stammdaten_Analysenprogramm!C94,\"\")","v":""},"",null,null,null,null,null,null,null,null,null,null,null,null,{"$f":"Stammdaten_Analysenprogramm!AC94","v":{"$error":"#VALUE!"}},{"$f":"Stammdaten_Analysenprogramm!AD94","v":0},{"$f":"Stammdaten_Analysenprogramm!AB94","v":{"$error":"#VALUE!"}},{"$f":"Stammdaten_Analysenprogramm!V94","v":"k.A."},null,null,null,null,{"$error":"#VALUE!"},0,{"$error":"#VALUE!"},{"$error":"#VALUE!"}]
[{"$f":"IF(Stammdaten_Analysenprogramm!AG95>0,Stammdaten_Analysenprogramm!A95,\"\")","v":""},{"$f":"IF(Stammdaten_Analysenprogramm!AG95>0,Stammdaten_Analysenprogramm!C95,\"\")","v":""},"",null,null,null,null,null,null,null,null,null,null,null,null,{"$f":"Stammdaten_Analysenprogramm!AC95","v":{"$error":"#VALUE!"}},{"$f":"Stammdaten_Analysenprogramm!AD95","v":0},{"$f":"Stammdaten_Analysenprogramm!AB95","v":{"$error":"#VALUE!"}},{"$f":"Stammdaten_Analysenprogramm!V95","v":"k.A."},null,null,null,null,{"$error":"#VALUE!"},0,{"$error":"#VALUE!"},{"$error":"#VALUE!"}]
[{"$f":"IF(Stammdaten_Analysenprogramm!AG96>0,Stammdaten_Analysenprogramm!A96,\"\")","v":""},{"$f":"IF(Stammdaten_Analysenprogramm!AG96>0,Stammdaten_Analysenprogramm!C96,\"\")","v":""},"",null,null,null,null,null,null,null,null,null,null,null,null,{"$f":"Stammdaten_Analysenprogramm!AC96","v":{"$error":"#VALUE!"}},{"$f":"Stammdaten_Analysenprogramm!AD96","v":0},{"$f":"Stammdaten_Analysenprogramm!AB96","v":{"$error":"#VALUE!"}},{"$f":"Stammdaten_Analysenprogramm!V96","v":"k.A."},null,null,null,null,{"$error":"#VALUE!"},0,{"$error":"#VALUE!"},{"$error":"#VALUE!"}]
[{"$f":"IF(Stammdaten_Analysenprogramm!AG97>0,Stammdaten_Analysenprogramm!A97,\"\")","v":""},{"$f":"IF(Stammdaten_Analysenprogramm!AG97>0,Stammdaten_Analysenprogramm!C97,\"\")","v":""},"",null,null,null,null,null,null,null,null,null,null,null,null,{"$f":"Stammdaten_Analysenprogramm!AC97","v":{"$error":"#VALUE!"}},{"$f":"Stammdaten_Analysenprogramm!AD97","v":0},{"$f":"Stammdaten_Analysenprogramm!AB97","v":{"$error":"#VALUE!"}},{"$f":"Stammdaten_Analysenprogramm!V97","v":"k.A."},null,null,null,null,{"$error":"#VALUE!"},0,{"$error":"#VALUE!"},{"$error":"#VALUE!"}]
[{"$f":"IF(Stammdaten_Analysenprogramm!AG98>0,Stammdaten_Analysenprogramm!A98,\"\")","v":""},{"$f":"IF(Stammdaten_Analysenprogramm!AG98>0,Stammdaten_Analysenprogramm!C98,\"\")","v":""},"",null,null,null,null,null,null,null,null,null,null,null,null,{"$f":"Stammdaten_Analysenprogramm!AC98","v":{"$error":"#VALUE!"}},{"$f":"Stammdaten_Analysenprogramm!AD98","v":0},{"$f":"Stammdaten_Analysenprogramm!AB98","v":{"$error":"#VALUE!"}},{"$f":"Stammdaten_Analysenprogramm!V98","v":"k.A."},null,null,null,null,{"$error":"#VALUE!"},0,{"$error":"#VALUE!"},{"$error":"#VALUE!"}]
[{"$f":"IF(Stammdaten_Analysenprogramm!AG99>0,Stammdaten_Analysenprogramm!A99,\"\")","v":""},{"$f":"IF(Stammdaten_Analysenprogramm!AG99>0,Stammdaten_Analysenprogramm!C99,\"\")","v":""},"",null,null,null,null,null,null,null,null,null,null,null,null,{"$f":"Stammdaten_Analysenprogramm!AC99","v":{"$error":"#VALUE!"}},{"$f":"Stammdaten_Analysenprogramm!AD99","v":0},{"$f":"Stammdaten_Analysenprogramm!AB99","v":{"$error":"#VALUE!"}},{"$f":"Stammdaten_Analysenprogramm!V99","v":"k.A."},null,null,null,null,{"$error":"#VALUE!"},0,{"$error":"#VALUE!"},{"$error":"#VALUE!"}]
[{"$f":"IF(Stammdaten_Analysenprogramm!AG100>0,Stammdaten_Analysenprogramm!A100,\"\")","v":""},{"$f":"IF(Stammdaten_Analysenprogramm!AG100>0,Stammdaten_Analysenprogramm!C100,\"\")","v":""},"",null,null,null,null,null,null,null,null,null,null,null,null,{"$f":"Stammdaten_Analysenprogramm!AC100","v":{"$error":"#VALUE!"}},{"$f":"Stammdaten_Analysenprogramm!AD100","v":0},{"$f":"Stammdaten_Analysenprogramm!AB100","v":{"$error":"#VALUE!"}},{"$f":"Stammdaten_Analysenprogramm!V100","v":"k.A."},null,null,null,null,{"$error":"#VALUE!"},0,{"$error":"#VALUE!"},{"$error":"#VALUE!"}]
[{"$f":"IF(Stammdaten_Analysenprogramm!AG101>0,Stammdaten_Analysenprogramm!A101,\"\")","v":""},{"$f":"IF(Stammdaten_Analysenprogramm!AG101>0,Stammdaten_Analysenprogramm!C101,\"\")","v":""},"",null,null,null,null,null,null,null,null,null,null,null,null,{"$f":"Stammdaten_Analysenprogramm!AC101","v":{"$error":"#VALUE!"}},{"$f":"Stammdaten_Analysenprogramm!AD101","v":0},{"$f":"Stammdaten_Analysenprogramm!AB101","v":{"$error":"#VALUE!"}},{"$f":"Stammdaten_Analysenprogramm!V101","v":"k.A."},null,null,null,null,{"$error":"#VALUE!"},0,{"$error":"#VALUE!"},{"$error":"#VALUE!"}]
[{"$f":"IF(Stammdaten_Analysenprogramm!AG102>0,Stammdaten_Analysenprogramm!A102,\"\")","v":""},{"$f":"IF(Stammdaten_Analysenprogramm!AG102>0,Stammdaten_Analysenprogramm!C102,\"\")","v":""},"",null,null,null,null,null,null,null,null,null,null,null,null,{"$f":"Stammdaten_Analysenprogramm!AC102","v":{"$error":"#VALUE!"}},{"$f":"Stammdaten_Analysenprogramm!AD102","v":0},{"$f":"Stammdaten_Analysenprogramm!AB102","v":{"$error":"#VALUE!"}},{"$f":"Stammdaten_Analysenprogramm!V102","v":"k.A."},null,null,null,null,{"$error":"#VALUE!"},0,{"$error":"#VALUE!"},{"$error":"#VALUE!"}]
[{"$f":"IF(Stammdaten_Analysenprogramm!AG103>0,Stammdaten_Analysenprogramm!A103,\"\")","v":""},{"$f":"IF(Stammdaten_Analysenprogramm!AG103>0,Stammdaten_Analysenprogramm!C103,\"\")","v":""},"",null,null,null,null,null,null,null,null,null,null,null,null,{"$f":"Stammdaten_Analysenprogramm!AC103","v":{"$error":"#VALUE!"}},{"$f":"Stammdaten_Analysenprogramm!AD103","v":0},{"$f":"Stammdaten_Analysenprogramm!AB103","v":{"$error":"#VALUE!"}},{"$f":"Stammdaten_Analysenprogramm!V103","v":"k.A."},null,null,null,null,{"$error":"#VALUE!"},0,{"$error":"#VALUE!"},{"$error":"#VALUE!"}]
[{"$f":"IF(Stammdaten_Analysenprogramm!AG104>0,Stammdaten_Analysenprogramm!A104,\"\")","v":""},{"$f":"IF(Stammdaten_Analysenprogramm!AG104>0,Stammdaten_Analysenprogramm!C104,\"\")","v":""},"",null,null,null,null,null,null,null,null,null,null,null,null,{"$f":"Stammdaten_Analysenprogramm!AC104","v":{"$error":"#VALUE!"}},{"$f":"Stammdaten_Analysenprogramm!AD104","v":0},{"$f":"Stammdaten_Analysenprogramm!AB104","v":{"$error":"#VALUE!"}},{"$f":"Stammdaten_Analysenprogramm!V104","v":"k.A."},null,null,null,null,{"$error":"#VALUE!"},0,{"$error":"#VALUE!"},{"$error":"#VALUE!"}]
[{"$f":"IF(Stammdaten_Analysenprogramm!AG105>0,Stammdaten_Analysenprogramm!A105,\"\")","v":""},{"$f":"IF(Stammdaten_Analysenprogramm!AG105>0,Stammdaten_Analysenprogramm!C105,\"\")","v":""},"",null,null,null,null,null,null,null,null,null,null,null,null,{"$f":"Stammdaten_Analysenprogramm!AC105","v":{"$error":"#VALUE!"}},{"$f":"Stammdaten_Analysenprogramm!AD105","v":0},{"$f":"Stammdaten_Analysenprogramm!AB105","v":{"$error":"#VALUE!"}},{"$f":"Stammdaten_Analysenprogramm!V105","v":"k.A."},null,null,null,null,{"$error":"#VALUE!"},0,{"$error":"#VALUE!"},{"$error":"#VALUE!"}]
[{"$f":"IF(Stammdaten_Analysenprogramm!AG106>0,Stammdaten_Analysenprogramm!A106,\"\")","v":""},{"$f":"IF(Stammdaten_Analysenprogramm!AG106>0,Stammdaten_Analysenprogramm!C106,\"\")","v":""},"",null,null,null,null,null,null,null,null,null,null,null,null,{"$f":"Stammdaten_Analysenprogramm!AC106","v":{"$error":"#VALUE!"}},{"$f":"Stammdaten_Analysenprogramm!AD106","v":0},{"$f":"Stammdaten_Analysenprogramm!AB106","v":{"$error":"#VALUE!"}},{"$f":"Stammdaten_Analysenprogramm!V106","v":"k.A."},null,null,null,null,{"$error":"#VALUE!"},0,{"$error":"#VALUE!"},{"$error":"#VALUE!"}]
[{"$f":"IF(Stammdaten_Analysenprogramm!AG107>0,Stammdaten_Analysenprogramm!A107,\"\")","v":""},{"$f":"IF(Stammdaten_Analysenprogramm!AG107>0,Stammdaten_Analysenprogramm!C107,\"\")","v":""},"",null,null,null,null,null,null,null,null,null,null,null,null,{"$f":"Stammdaten_Analysenprogramm!AC107","v":{"$error":"#VALUE!"}},{"$f":"Stammdaten_Analysenprogramm!AD107","v":0},{"$f":"Stammdaten_Analysenprogramm!AB107","v":{"$error":"#VALUE!"}},{"$f":"Stammdaten_Analysenprogramm!V107","v":"k.A."},null,null,null,null,{"$error":"#VALUE!"},0,{"$error":"#VALUE!"},{"$error":"#VALUE!"}]
[{"$f":"IF(Stammdaten_Analysenprogramm!AG108>0,Stammdaten_Analysenprogramm!A108,\"\")","v":""},{"$f":"IF(Stammdaten_Analysenprogramm!AG108>0,Stammdaten_Analysenprogramm!C108,\"\")","v":""},"",null,null,null,null,null,null,null,null,null,null,null,null,{"$f":"Stammdaten_Analysenprogramm!AC108","v":{"$error":"#VALUE!"}},{"$f":"Stammdaten_Analysenprogramm!AD108","v":0},{"$f":"Stammdaten_Analysenprogramm!AB108","v":{"$error":"#VALUE!"}},{"$f":"Stammdaten_Analysenprogramm!V108","v":"k.A."},null,null,null,null,{"$error":"#VALUE!"},0,{"$error":"#VALUE!"},{"$error":"#VALUE!"}]
[{"$f":"IF(Stammdaten_Analysenprogramm!AG109>0,Stammdaten_Analysenprogramm!A109,\"\")","v":""},{"$f":"IF(Stammdaten_Analysenprogramm!AG109>0,Stammdaten_Analysenprogramm!C109,\"\")","v":""},"",null,null,null,null,null,null,null,null,null,null,null,null,{"$f":"Stammdaten_Analysenprogramm!AC109","v":{"$error":"#VALUE!"}},{"$f":"Stammdaten_Analysenprogramm!AD109","v":0},{"$f":"Stammdaten_Analysenprogramm!AB109","v":{"$error":"#VALUE!"}},{"$f":"Stammdaten_Analysenprogramm!V109","v":"k.A."},null,null,null,null,{"$error":"#VALUE!"},0,{"$error":"#VALUE!"},{"$error":"#VALUE!"}]
[{"$f":"IF(Stammdaten_Analysenprogramm!AG110>0,Stammdaten_Analysenprogramm!A110,\"\")","v":""},{"$f":"IF(Stammdaten_Analysenprogramm!AG110>0,Stammdaten_Analysenprogramm!C110,\"\")","v":""},"",null,null,null,null,null,null,null,null,null,null,null,null,{"$f":"Stammdaten_Analysenprogramm!AC110","v":{"$error":"#VALUE!"}},{"$f":"Stammdaten_Analysenprogramm!AD110","v":0},{"$f":"Stammdaten_Analysenprogramm!AB110","v":{"$error":"#VALUE!"}},{"$f":"Stammdaten_Analysenprogramm!V110","v":"k.A."},null,null,null,null,{"$error":"#VALUE!"},0,{"$error":"#VALUE!"},{"$error":"#VALUE!"}]
[{"$f":"IF(Stammdaten_Analysenprogramm!AG111>0,Stammdaten_Analysenprogramm!A111,\"\")","v":""},{"$f":"IF(Stammdaten_Analysenprogramm!AG111>0,Stammdaten_Analysenprogramm!C111,\"\")","v":""},"",null,null,null,null,null,null,null,null,null,null,null,null,{"$f":"Stammdaten_Analysenprogramm!AC111","v":{"$error":"#VALUE!"}},{"$f":"Stammdaten_Analysenprogramm!AD111","v":0},{"$f":"Stammdaten_Analysenprogramm!AB111","v":{"$error":"#VALUE!"}},{"$f":"Stammdaten_Analysenprogramm!V111","v":"k.A."},null,null,null,null,{"$error":"#VALUE!"},0,{"$error":"#VALUE!"},{"$error":"#VALUE!"}]
[{"$f":"IF(Stammdaten_Analysenprogramm!AG112>0,Stammdaten_Analysenprogramm!A112,\"\")","v":""},{"$f":"IF(Stammdaten_Analysenprogramm!AG112>0,Stammdaten_Analysenprogramm!C112,\"\")","v":""},"",null,null,null,null,null,null,null,null,null,null,null,null,{"$f":"Stammdaten_Analysenprogramm!AC112","v":{"$error":"#VALUE!"}},{"$f":"Stammdaten_Analysenprogramm!AD112","v":0},{"$f":"Stammdaten_Analysenprogramm!AB112","v":{"$error":"#VALUE!"}},{"$f":"Stammdaten_Analysenprogramm!V112","v":"k.A."},null,null,null,null,{"$error":"#VALUE!"},0,{"$error":"#VALUE!"},{"$error":"#VALUE!"}]
[{"$f":"IF(Stammdaten_Analysenprogramm!AG113>0,Stammdaten_Analysenprogramm!A113,\"\")","v":""},{"$f":"IF(Stammdaten_Analysenprogramm!AG113>0,Stammdaten_Analysenprogramm!C113,\"\")","v":""},"",null,null,null,null,null,null,null,null,null,null,null,null,{"$f":"Stammdaten_Analysenprogramm!AC113","v":{"$error":"#VALUE!"}},{"$f":"Stammdaten_Analysenprogramm!AD113","v":0},{"$f":"Stammdaten_Analysenprogramm!AB113","v":{"$error":"#VALUE!"}},{"$f":"Stammdaten_Analysenprogramm!V113","v":"k.A."},null,null,null,null,{"$error":"#VALUE!"},0,{"$error":"#VALUE!"},{"$error":"#VALUE!"}]
[{"$f":"IF(Stammdaten_Analysenprogramm!AG114>0,Stammdaten_Analysenprogramm!A114,\"\")","v":""},{"$f":"IF(Stammdaten_Analysenprogramm!AG114>0,Stammdaten_Analysenprogramm!C114,\"\")","v":""},"",null,null,null,null,null,null,null,null,null,null,null,null,{"$f":"Stammdaten_Analysenprogramm!AC114","v":{"$error":"#VALUE!"}},{"$f":"Stammdaten_Analysenprogramm!AD114","v":0},{"$f":"Stammdaten_Analysenprogramm!AB114","v":{"$error":"#VALUE!"}},{"$f":"Stammdaten_Analysenprogramm!V114","v":"k.A."},null,null,null,null,{"$error":"#VALUE!"},0,{"$error":"#VALUE!"},{"$error":"#VALUE!"}]
[{"$f":"IF(Stammdaten_Analysenprogramm!AG115>0,Stammdaten_Analysenprogramm!A115,\"\")","v":""},{"$f":"IF(Stammdaten_Analysenprogramm!AG115>0,Stammdaten_Analysenprogramm!C115,\"\")","v":""},"",null,null,null,null,null,null,null,null,null,null,null,null,{"$f":"Stammdaten_Analysenprogramm!AC115","v":{"$error":"#VALUE!"}},{"$f":"Stammdaten_Analysenprogramm!AD115","v":0},{"$f":"Stammdaten_Analysenprogramm!AB115","v":{"$error":"#VALUE!"}},{"$f":"Stammdaten_Analysenprogramm!V115","v":"k.A."},null,null,null,null,{"$error":"#VALUE!"},0,{"$error":"#VALUE!"},{"$error":"#VALUE!"}]
[{"$f":"IF(Stammdaten_Analysenprogramm!AG116>0,Stammdaten_Analysenprogramm!A116,\"\")","v":""},{"$f":"IF(Stammdaten_Analysenprogramm!AG116>0,Stammdaten_Analysenprogramm!C116,\"\")","v":""},"",null,null,null,null,null,null,null,null,null,null,null,null,{"$f":"Stammdaten_Analysenprogramm!AC116","v":{"$error":"#VALUE!"}},{"$f":"Stammdaten_Analysenprogramm!AD116","v":0},{"$f":"Stammdaten_Analysenprogramm!AB116","v":{"$error":"#VALUE!"}},{"$f":"Stammdaten_Analysenprogramm!V116","v":"k.A."},null,null,null,null,{"$error":"#VALUE!"},0,{"$error":"#VALUE!"},{"$error":"#VALUE!"}]
[{"$f":"IF(Stammdaten_Analysenprogramm!AG117>0,Stammdaten_Analysenprogramm!A117,\"\")","v":""},{"$f":"IF(Stammdaten_Analysenprogramm!AG117>0,Stammdaten_Analysenprogramm!C117,\"\")","v":""},"",null,null,null,null,null,null,null,null,null,null,null,null,{"$f":"Stammdaten_Analysenprogramm!AC117","v":{"$error":"#VALUE!"}},{"$f":"Stammdaten_Analysenprogramm!AD117","v":0},{"$f":"Stammdaten_Analysenprogramm!AB117","v":{"$error":"#VALUE!"}},{"$f":"Stammdaten_Analysenprogramm!V117","v":"k.A."},null,null,null,null,{"$error":"#VALUE!"},0,{"$error":"#VALUE!"},{"$error":"#VALUE!"}]
[{"$f":"IF(Stammdaten_Analysenprogramm!AG118>0,Stammdaten_Analysenprogramm!A118,\"\")","v":""},{"$f":"IF(Stammdaten_Analysenprogramm!AG118>0,Stammdaten_Analysenprogramm!C118,\"\")","v":""},"",null,null,null,null,null,null,null,null,null,null,null,null,{"$f":"Stammdaten_Analysenprogramm!AC118","v":{"$error":"#VALUE!"}},{"$f":"Stammdaten_Analysenprogramm!AD118","v":0},{"$f":"Stammdaten_Analysenprogramm!AB118","v":{"$error":"#VALUE!"}},{"$f":"Stammdaten_Analysenprogramm!V118","v":"k.A."},null,null,null,null,{"$error":"#VALUE!"},0,{"$error":"#VALUE!"},{"$error":"#VALUE!"}]
[{"$f":"IF(Stammdaten_Analysenprogramm!AG119>0,Stammdaten_Analysenprogramm!A119,\"\")","v":""},{"$f":"IF(Stammdaten_Analysenprogramm!AG119>0,Stammdaten_Analysenprogramm!C119,\"\")","v":""},"",null,null,null,null,null,null,null,null,null,null,null,null,{"$f":"Stammdaten_Analysenprogramm!AC119","v":{"$error":"#VALUE!"}},{"$f":"Stammdaten_Analysenprogramm!AD119","v":0},{"$f":"Stammdaten_Analysenprogramm!AB119","v":{"$error":"#VALUE!"}},{"$f":"Stammdaten_Analysenprogramm!V119","v":"k.A."},null,null,null,null,{"$error":"#VALUE!"},0,{"$error":"#VALUE!"},{"$error":"#VALUE!"}]
[{"$f":"IF(Stammdaten_Analysenprogramm!AG120>0,Stammdaten_Analysenprogramm!A120,\"\")","v":""},{"$f":"IF(Stammdaten_Analysenprogramm!AG120>0,Stammdaten_Analysenprogramm!C120,\"\")","v":""},"",null,null,null,null,null,null,null,null,null,null,null,null,{"$f":"Stammdaten_Analysenprogramm!AC120","v":{"$error":"#VALUE!"}},{"$f":"Stammdaten_Analysenprogramm!AD120","v":0},{"$f":"Stammdaten_Analysenprogramm!AB120","v":{"$error":"#VALUE!"}},{"$f":"Stammdaten_Analysenprogramm!V120","v":"k.A."},null,null,null,null,{"$error":"#VALUE!"},0,{"$error":"#VALUE!"},{"$error":"#VALUE!"}]
[{"$f":"IF(Stammdaten_Analysenprogramm!AG121>0,Stammdaten_Analysenprogramm!A121,\"\")","v":""},{"$f":"IF(Stammdaten_Analysenprogramm!AG121>0,Stammdaten_Analysenprogramm!C121,\"\")","v":""},"",null,null,null,null,null,null,null,null,null,null,null,null,{"$f":"Stammdaten_Analysenprogramm!AC121","v":{"$error":"#VALUE!"}},{"$f":"Stammdaten_Analysenprogramm!AD121","v":0},{"$f":"Stammdaten_Analysenprogramm!AB121","v":{"$error":"#VALUE!"}},{"$f":"Stammdaten_Analysenprogramm!V121","v":"k.A."},null,null,null,null,{"$error":"#VALUE!"},0,{"$error":"#VALUE!"},{"$error":"#VALUE!"}]
[{"$f":"IF(Stammdaten_Analysenprogramm!AG122>0,Stammdaten_Analysenprogramm!A122,\"\")","v":""},{"$f":"IF(Stammdaten_Analysenprogramm!AG122>0,Stammdaten_Analysenprogramm!C122,\"\")","v":""},"",null,null,null,null,null,null,null,null,null,null,null,null,{"$f":"Stammdaten_Analysenprogramm!AC122","v":{"$error":"#VALUE!"}},{"$f":"Stammdaten_Analysenprogramm!AD122","v":0},{"$f":"Stammdaten_Analysenprogramm!AB122","v":{"$error":"#VALUE!"}},{"$f":"Stammdaten_Analysenprogramm!V122","v":"k.A."},null,null,null,null,{"$error":"#VALUE!"},0,{"$error":"#VALUE!"},{"$error":"#VALUE!"}]
[{"$f":"IF(Stammdaten_Analysenprogramm!AG123>0,Stammdaten_Analysenprogramm!A123,\"\")","v":""},{"$f":"IF(Stammdaten_Analysenprogramm!AG123>0,Stammdaten_Analysenprogramm!C123,\"\")","v":""},"",null,null,null,null,null,null,null,null,null,null,null,null,{"$f":"Stammdaten_Analysenprogramm!AC123","v":{"$error":"#VALUE!"}},{"$f":"Stammdaten_Analysenprogramm!AD123","v":0},{"$f":"Stammdaten_Analysenprogramm!AB123","v":{"$error":"#VALUE!"}},{"$f":"Stammdaten_Analysenprogramm!V123","v":"k.A."},null,null,null,null,{"$error":"#VALUE!"},0,{"$error":"#VALUE!"},{"$error":"#VALUE!"}]
[{"$f":"IF(Stammdaten_Analysenprogramm!AG124>0,Stammdaten_Analysenprogramm!A124,\"\")","v":""},{"$f":"IF(Stammdaten_Analysenprogramm!AG124>0,Stammdaten_Analysenprogramm!C124,\"\")","v":""},"",null,null,null,null,null,null,null,null,null,null,null,null,{"$f":"Stammdaten_Analysenprogramm!AC124","v":{"$error":"#VALUE!"}},{"$f":"Stammdaten_Analysenprogramm!AD124","v":0},{"$f":"Stammdaten_Analysenprogramm!AB124","v":{"$error":"#VALUE!"}},{"$f":"Stammdaten_Analysenprogramm!V124","v":"k.A."},null,null,null,null,{"$error":"#VALUE!"},0,{"$error":"#VALUE!"},{"$error":"#VALUE!"}]
[{"$f":"IF(Stammdaten_Analysenprogramm!AG125>0,Stammdaten_Analysenprogramm!A125,\"\")","v":""},{"$f":"IF(Stammdaten_Analysenprogramm!AG125>0,Stammdaten_Analysenprogramm!C125,\"\")","v":""},"",null,null,null,null,null,null,null,null,null,null,null,null,{"$f":"Stammdaten_Analysenprogramm!AC125","v":{"$error":"#VALUE!"}},{"$f":"Stammdaten_Analysenprogramm!AD125","v":0},{"$f":"Stammdaten_Analysenprogramm!AB125","v":{"$error":"#VALUE!"}},{"$f":"Stammdaten_Analysenprogramm!V125","v":"k.A."},null,null,null,null,{"$error":"#VALUE!"},0,{"$error":"#VALUE!"},{"$error":"#VALUE!"}]
[{"$f":"IF(Stammdaten_Analysenprogramm!AG126>0,Stammdaten_Analysenprogramm!A126,\"\")","v":""},{"$f":"IF(Stammdaten_Analysenprogramm!AG126>0,Stammdaten_Analysenprogramm!C126,\"\")","v":""},"",null,null,null,null,null,null,null,null,null,null,null,null,{"$f":"Stammdaten_Analysenprogramm!AC126","v":{"$error":"#VALUE!"}},{"$f":"Stammdaten_Analysenprogramm!AD126","v":0},{"$f":"Stammdaten_Analysenprogramm!AB126","v":{"$error":"#VALUE!"}},{"$f":"Stammdaten_Analysenprogramm!V126","v":"k.A."},null,null,null,null,{"$error":"#VALUE!"},0,{"$error":"#VALUE!"},{"$error":"#VALUE!"}]
[{"$f":"IF(Stammdaten_Analysenprogramm!AG127>0,Stammdaten_Analysenprogramm!A127,\"\")","v":""},{"$f":"IF(Stammdaten_Analysenprogramm!AG127>0,Stammdaten_Analysenprogramm!C127,\"\")","v":""},"",null,null,null,null,null,null,null,null,null,null,null,null,{"$f":"Stammdaten_Analysenprogramm!AC127","v":{"$error":"#VALUE!"}},{"$f":"Stammdaten_Analysenprogramm!AD127","v":0},{"$f":"Stammdaten_Analysenprogramm!AB127","v":{"$error":"#VALUE!"}},{"$f":"Stammdaten_Analysenprogramm!V127","v":"k.A."},null,null,null,null,{"$error":"#VALUE!"},0,{"$error":"#VALUE!"},{"$error":"#VALUE!"}]
[{"$f":"IF(Stammdaten_Analysenprogramm!AG128>0,Stammdaten_Analysenprogramm!A128,\"\")","v":""},{"$f":"IF(Stammdaten_Analysenprogramm!AG128>0,Stammdaten_Analysenprogramm!C128,\"\")","v":""},"",null,null,null,null,null,null,null,null,null,null,null,null,{"$f":"Stammdaten_Analysenprogramm!AC128","v":{"$error":"#VALUE!"}},{"$f":"Stammdaten_Analysenprogramm!AD128","v":0},{"$f":"Stammdaten_Analysenprogramm!AB128","v":{"$error":"#VALUE!"}},{"$f":"Stammdaten_Analysenprogramm!V128","v":"k.A."},null,null,null,null,{"$error":"#VALUE!"},0,{"$error":"#VALUE!"},{"$error":"#VALUE!"}]
[{"$f":"IF(Stammdaten_Analysenprogramm!AG129>0,Stammdaten_Analysenprogramm!A129,\"\")","v":""},{"$f":"IF(Stammdaten_Analysenprogramm!AG129>0,Stammdaten_Analysenprogramm!C129,\"\")","v":""},"",null,null,null,null,null,null,null,null,null,null,null,null,{"$f":"Stammdaten_Analysenprogramm!AC129","v":{"$error":"#VALUE!"}},{"$f":"Stammdaten_Analysenprogramm!AD129","v":0},{"$f":"Stammdaten_Analysenprogramm!AB129","v":{"$error":"#VALUE!"}},{"$f":"Stammdaten_Analysenprogramm!V129","v":"k.A."},null,null,null,null,{"$error":"#VALUE!"},0,{"$error":"#VALUE!"},{"$error":"#VALUE!"}]
[{"$f":"IF(Stammdaten_Analysenprogramm!AG130>0,Stammdaten_Analysenprogramm!A130,\"\")","v":""},{"$f":"IF(Stammdaten_Analysenprogramm!AG130>0,Stammdaten_Analysenprogramm!C130,\"\")","v":""},"",null,null,null,null,null,null,null,null,null,null,null,null,{"$f":"Stammdaten_Analysenprogramm!AC130","v":{"$error":"#VALUE!"}},{"$f":"Stammdaten_Analysenprogramm!AD130","v":0},{"$f":"Stammdaten_Analysenprogramm!AB130","v":{"$error":"#VALUE!"}},{"$f":"Stammdaten_Analysenprogramm!V130","v":"k.A."},null,null,null,null,{"$error":"#VALUE!"},0,{"$error":"#VALUE!"},{"$error":"#VALUE!"}]
[{"$f":"IF(Stammdaten_Analysenprogramm!AG131>0,Stammdaten_Analysenprogramm!A131,\"\")","v":""},{"$f":"IF(Stammdaten_Analysenprogramm!AG131>0,Stammdaten_Analysenprogramm!C131,\"\")","v":""},"",null,null,null,null,null,null,null,null,null,null,null,null,{"$f":"Stammdaten_Analysenprogramm!AC131","v":{"$error":"#VALUE!"}},{"$f":"Stammdaten_Analysenprogramm!AD131","v":0},{"$f":"Stammdaten_Analysenprogramm!AB131","v":{"$error":"#VALUE!"}},{"$f":"Stammdaten_Analysenprogramm!V131","v":"k.A."},null,null,null,null,{"$error":"#VALUE!"},0,{"$error":"#VALUE!"},{"$error":"#VALUE!"}]
[{"$f":"IF(Stammdaten_Analysenprogramm!AG132>0,Stammdaten_Analysenprogramm!A132,\"\")","v":""},{"$f":"IF(Stammdaten_Analysenprogramm!AG132>0,Stammdaten_Analysenprogramm!C132,\"\")","v":""},"",null,null,null,null,null,null,null,null,null,null,null,null,{"$f":"Stammdaten_Analysenprogramm!AC132","v":{"$error":"#VALUE!"}},{"$f":"Stammdaten_Analysenprogramm!AD132","v":0},{"$f":"Stammdaten_Analysenprogramm!AB132","v":{"$error":"#VALUE!"}},{"$f":"Stammdaten_Analysenprogramm!V132","v":"k.A."},null,null,null,null,{"$error":"#VALUE!"},0,{"$error":"#VALUE!"},{"$error":"#VALUE!"}]
[{"$f":"IF(Stammdaten_Analysenprogramm!AG133>0,Stammdaten_Analysenprogramm!A133,\"\")","v":""},{"$f":"IF(Stammdaten_Analysenprogramm!AG133>0,Stammdaten_Analysenprogramm!C133,\"\")","v":""},"",null,null,null,null,null,null,null,null,null,null,null,null,{"$f":"Stammdaten_Analysenprogramm!AC133","v":{"$error":"#VALUE!"}},{"$f":"Stammdaten_Analysenprogramm!AD133","v":0},{"$f":"Stammdaten_Analysenprogramm!AB133","v":{"$error":"#VALUE!"}},{"$f":"Stammdaten_Analysenprogramm!V133","v":"k.A."},null,null,null,null,{"$error":"#VALUE!"},0,{"$error":"#VALUE!"},{"$error":"#VALUE!"}]
[{"$f":"IF(Stammdaten_Analysenprogramm!AG134>0,Stammdaten_Analysenprogramm!A134,\"\")","v":""},{"$f":"IF(Stammdaten_Analysenprogramm!AG134>0,Stammdaten_Analysenprogramm!C134,\"\")","v":""},"",null,null,null,null,null,null,null,null,null,null,null,null,{"$f":"Stammdaten_Analysenprogramm!AC134","v":{"$error":"#VALUE!"}},{"$f":"Stammdaten_Analysenprogramm!AD134","v":0},{"$f":"Stammdaten_Analysenprogramm!AB134","v":{"$error":"#VALUE!"}},{"$f":"Stammdaten_Analysenprogramm!V134","v":"k.A."},null,null,null,null,{"$error":"#VALUE!"},0,{"$error":"#VALUE!"},{"$error":"#VALUE!"}]
[{"$f":"IF(Stammdaten_Analysenprogramm!AG135>0,Stammdaten_Analysenprogramm!A135,\"\")","v":""},{"$f":"IF(Stammdaten_Analysenprogramm!AG135>0,Stammdaten_Analysenprogramm!C135,\"\")","v":""},"",null,null,null,null,null,null,null,null,null,null,null,null,{"$f":"Stammdaten_Analysenprogramm!AC135","v":{"$error":"#VALUE!"}},{"$f":"Stammdaten_Analysenprogramm!AD135","v":0},{"$f":"Stammdaten_Analysenprogramm!AB135","v":{"$error":"#VALUE!"}},{"$f":"Stammdaten_Analysenprogramm!V135","v":"k.A."},null,null,null,null,{"$f":"T134-P134","v":{"$error":"#VALUE!"}},{"$f":"Q134-U134","v":0},{"$f":"V134-R134","v":{"$error":"#VALUE!"}},{"$f":"W134-S134","v":{"$error":"#VALUE!"}}]
[{"$f":"IF(Stammdaten_Analysenprogramm!AG136>0,Stammdaten_Analysenprogramm!A136,\"\")","v":""},{"$f":"IF(Stammdaten_Analysenprogramm!AG136>0,Stammdaten_Analysenprogramm!C136,\"\")","v":""},{"$f":"A135","v":""},null,null,null,null,null,null,null,null,null,null,null,null,{"$f":"Stammdaten_Analysenprogramm!AC136","v":{"$error":"#VALUE!"}},{"$f":"Stammdaten_Analysenprogramm!AD136","v":0},{"$f":"Stammdaten_Analysenprogramm!AB136","v":{"$error":"#VALUE!"}},{"$f":"Stammdaten_Analysenprogramm!V136","v":"k.A."},null,null,null,null,{"$error":"#VALUE!"},0,{"$error":"#VALUE!"},{"$error":"#VALUE!"}]
[{"$f":"IF(Stammdaten_Analysenprogramm!AG137>0,Stammdaten_Analysenprogramm!A137,\"\")","v":""},{"$f":"IF(Stammdaten_Analysenprogramm!AG137>0,Stammdaten_Analysenprogramm!C137,\"\")","v":""},"",null,null,null,null,null,null,null,null,null,null,null,null,{"$f":"Stammdaten_Analysenprogramm!AC137","v":{"$error":"#VALUE!"}},{"$f":"Stammdaten_Analysenprogramm!AD137","v":0},{"$f":"Stammdaten_Analysenprogramm!AB137","v":{"$error":"#VALUE!"}},{"$f":"Stammdaten_Analysenprogramm!V137","v":"k.A."},null,null,null,null,{"$error":"#VALUE!"},0,{"$error":"#VALUE!"},{"$error":"#VALUE!"}]
[{"$f":"IF(Stammdaten_Analysenprogramm!AG138>0,Stammdaten_Analysenprogramm!A138,\"\")","v":""},{"$f":"IF(Stammdaten_Analysenprogramm!AG138>0,Stammdaten_Analysenprogramm!C138,\"\")","v":""},"",null,null,null,null,null,null,null,null,null,null,null,null,{"$f":"Stammdaten_Analysenprogramm!AC138","v":{"$error":"#VALUE!"}},{"$f":"Stammdaten_Analysenprogramm!AD138","v":0},{"$f":"Stammdaten_Analysenprogramm!AB138","v":{"$error":"#VALUE!"}},{"$f":"Stammdaten_Analysenprogramm!V138","v":"k.A."},null,null,null,null,{"$error":"#VALUE!"},0,{"$error":"#VALUE!"},{"$error":"#VALUE!"}]
[{"$f":"IF(Stammdaten_Analysenprogramm!AG139>0,Stammdaten_Analysenprogramm!A139,\"\")","v":""},{"$f":"IF(Stammdaten_Analysenprogramm!AG139>0,Stammdaten_Analysenprogramm!C139,\"\")","v":""},"",null,null,null,null,null,null,null,null,null,null,null,null,{"$f":"Stammdaten_Analysenprogramm!AC139","v":{"$error":"#VALUE!"}},{"$f":"Stammdaten_Analysenprogramm!AD139","v":0},{"$f":"Stammdaten_Analysenprogramm!AB139","v":{"$error":"#VALUE!"}},{"$f":"Stammdaten_Analysenprogramm!V139","v":"k.A."},null,null,null,null,{"$error":"#VALUE!"},0,{"$error":"#VALUE!"},{"$error":"#VALUE!"}]
[{"$f":"IF(Stammdaten_Analysenprogramm!AG140>0,Stammdaten_Analysenprogramm!A140,\"\")","v":""},{"$f":"IF(Stammdaten_Analysenprogramm!AG140>0,Stammdaten_Analysenprogramm!C140,\"\")","v":""},"",null,null,null,null,null,null,null,null,null,null,null,null,{"$f":"Stammdaten_Analysenprogramm!AC140","v":{"$error":"#VALUE!"}},{"$f":"Stammdaten_Analysenprogramm!AD140","v":0},{"$f":"Stammdaten_Analysenprogramm!AB140","v":{"$error":"#VALUE!"}},{"$f":"Stammdaten_Analysenprogramm!V140","v":"k.A."},null,null,null,null,{"$error":"#VALUE!"},0,{"$error":"#VALUE!"},{"$error":"#VALUE!"}]
[{"$f":"IF(Stammdaten_Analysenprogramm!AG141>0,Stammdaten_Analysenprogramm!A141,\"\")","v":""},{"$f":"IF(Stammdaten_Analysenprogramm!AG141>0,Stammdaten_Analysenprogramm!C141,\"\")","v":""},"",null,null,null,null,null,null,null,null,null,null,null,null,{"$f":"Stammdaten_Analysenprogramm!AC141","v":{"$error":"#VALUE!"}},{"$f":"Stammdaten_Analysenprogramm!AD141","v":0},{"$f":"Stammdaten_Analysenprogramm!AB141","v":{"$error":"#VALUE!"}},{"$f":"Stammdaten_Analysenprogramm!V141","v":"k.A."},null,null,null,null,{"$error":"#VALUE!"},0,{"$error":"#VALUE!"},{"$error":"#VALUE!"}]
[{"$f":"IF(Stammdaten_Analysenprogramm!AG142>0,Stammdaten_Analysenprogramm!A142,\"\")","v":""},{"$f":"IF(Stammdaten_Analysenprogramm!AG142>0,Stammdaten_Analysenprogramm!C142,\"\")","v":""},"",null,null,null,null,null,null,null,null,null,null,null,null,{"$f":"Stammdaten_Analysenprogramm!AC142","v":{"$error":"#VALUE!"}},{"$f":"Stammdaten_Analysenprogramm!AD142","v":0},{"$f":"Stammdaten_Analysenprogramm!AB142","v":{"$error":"#VALUE!"}},{"$f":"Stammdaten_Analysenprogramm!V142","v":"k.A."},null,null,null,null,{"$error":"#VALUE!"},0,{"$error":"#VALUE!"},{"$error":"#VALUE!"}]
[{"$f":"IF(Stammdaten_Analysenprogramm!AG143>0,Stammdaten_Analysenprogramm!A143,\"\")","v":""},{"$f":"IF(Stammdaten_Analysenprogramm!AG143>0,Stammdaten_Analysenprogramm!C143,\"\")","v":""},"",null,null,null,null,null,null,null,null,null,null,null,null,{"$f":"Stammdaten_Analysenprogramm!AC143","v":{"$error":"#VALUE!"}},{"$f":"Stammdaten_Analysenprogramm!AD143","v":0},{"$f":"Stammdaten_Analysenprogramm!AB143","v":{"$error":"#VALUE!"}},{"$f":"Stammdaten_Analysenprogramm!V143","v":"k.A."},null,null,null,null,{"$error":"#VALUE!"},0,{"$error":"#VALUE!"},{"$error":"#VALUE!"}]
[{"$f":"IF(Stammdaten_Analysenprogramm!AG144>0,Stammdaten_Analysenprogramm!A144,\"\")","v":""},{"$f":"IF(Stammdaten_Analysenprogramm!AG144>0,Stammdaten_Analysenprogramm!C144,\"\")","v":""},"",null,null,null,null,null,null,null,null,null,null,null,null,{"$f":"Stammdaten_Analysenprogramm!AC144","v":{"$error":"#VALUE!"}},{"$f":"Stammdaten_Analysenprogramm!AD144","v":0},{"$f":"Stammdaten_Analysenprogramm!AB144","v":{"$error":"#VALUE!"}},{"$f":"Stammdaten_Analysenprogramm!V144","v":"k.A."},null,null,null,null,{"$error":"#VALUE!"},0,{"$error":"#VALUE!"},{"$error":"#VALUE!"}]
[{"$f":"IF(Stammdaten_Analysenprogramm!AG145>0,Stammdaten_Analysenprogramm!A145,\"\")","v":""},{"$f":"IF(Stammdaten_Analysenprogramm!AG145>0,Stammdaten_Analysenprogramm!C145,\"\")","v":""},"",null,null,null,null,null,null,null,null,null,null,null,null,{"$f":"Stammdaten_Analysenprogramm!AC145","v":{"$error":"#VALUE!"}},{"$f":"Stammdaten_Analysenprogramm!AD145","v":0},{"$f":"Stammdaten_Analysenprogramm!AB145","v":{"$error":"#VALUE!"}},{"$f":"Stammdaten_Analysenprogramm!V145","v":"k.A."},null,null,null,null,{"$error":"#VALUE!"},0,{"$error":"#VALUE!"},{"$error":"#VALUE!"}]
[{"$f":"IF(Stammdaten_Analysenprogramm!AG146>0,Stammdaten_Analysenprogramm!A146,\"\")","v":""},{"$f":"IF(Stammdaten_Analysenprogramm!AG146>0,Stammdaten_Analysenprogramm!C146,\"\")","v":""},"",null,null,null,null,null,null,null,null,null,null,null,null,{"$f":"Stammdaten_Analysenprogramm!AC146","v":{"$error":"#VALUE!"}},{"$f":"Stammdaten_Analysenprogramm!AD146","v":0},{"$f":"Stammdaten_Analysenprogramm!AB146","v":{"$error":"#VALUE!"}},{"$f":"Stammdaten_Analysenprogramm!V146","v":"k.A."},null,null,null,null,{"$error":"#VALUE!"},0,{"$error":"#VALUE!"},{"$error":"#VALUE!"}]
[{"$f":"IF(Stammdaten_Analysenprogramm!AG147>0,Stammdaten_Analysenprogramm!A147,\"\")","v":""},{"$f":"IF(Stammdaten_Analysenprogramm!AG147>0,Stammdaten_Analysenprogramm!C147,\"\")","v":""},"",null,null,null,null,null,null,null,null,null,null,null,null,{"$f":"Stammdaten_Analysenprogramm!AC147","v":{"$error":"#VALUE!"}},{"$f":"Stammdaten_Analysenprogramm!AD147","v":0},{"$f":"Stammdaten_Analysenprogramm!AB147","v":{"$error":"#VALUE!"}},{"$f":"Stammdaten_Analysenprogramm!V147","v":"k.A."},null,null,null,null,{"$error":"#VALUE!"},0,{"$error":"#VALUE!"},{"$error":"#VALUE!"}]
[{"$f":"IF(Stammdaten_Analysenprogramm!AG148>0,Stammdaten_Analysenprogramm!A148,\"\")","v":""},{"$f":"IF(Stammdaten_Analysenprogramm!AG148>0,Stammdaten_Analysenprogramm!C148,\"\")","v":""},"",null,null,null,null,null,null,null,null,null,null,null,null,{"$f":"Stammdaten_Analysenprogramm!AC148","v":{"$error":"#VALUE!"}},{"$f":"Stammdaten_Analysenprogramm!AD148","v":0},{"$f":"Stammdaten_Analysenprogramm!AB148","v":{"$error":"#VALUE!"}},{"$f":"Stammdaten_Analysenprogramm!V148","v":"k.A."},null,null,null,null,{"$error":"#VALUE!"},0,{"$error":"#VALUE!"},{"$error":"#VALUE!"}]
[{"$f":"IF(Stammdaten_Analysenprogramm!AG149>0,Stammdaten_Analysenprogramm!A149,\"\")","v":""},{"$f":"IF(Stammdaten_Analysenprogramm!AG149>0,Stammdaten_Analysenprogramm!C149,\"\")","v":""},"",null,null,null,null,null,null,null,null,null,null,null,null,{"$f":"Stammdaten_Analysenprogramm!AC149","v":{"$error":"#VALUE!"}},{"$f":"Stammdaten_Analysenprogramm!AD149","v":0},{"$f":"Stammdaten_Analysenprogramm!AB149","v":{"$error":"#VALUE!"}},{"$f":"Stammdaten_Analysenprogramm!V149","v":"k.A."},null,null,null,null,{"$error":"#VALUE!"},0,{"$error":"#VALUE!"},{"$error":"#VALUE!"}]
[{"$f":"IF(Stammdaten_Analysenprogramm!AG150>0,Stammdaten_Analysenprogramm!A150,\"\")","v":""},{"$f":"IF(Stammdaten_Analysenprogramm!AG150>0,Stammdaten_Analysenprogramm!C150,\"\")","v":""},"",null,null,null,null,null,null,null,null,null,null,null,null,{"$f":"Stammdaten_Analysenprogramm!AC150","v":{"$error":"#VALUE!"}},{"$f":"Stammdaten_Analysenprogramm!AD150","v":0},{"$f":"Stammdaten_Analysenprogramm!AB150","v":{"$error":"#VALUE!"}},{"$f":"Stammdaten_Analysenprogramm!V150","v":"k.A."},null,null,null,null,{"$error":"#VALUE!"},0,{"$error":"#VALUE!"},{"$error":"#VALUE!"}]
[{"$f":"IF(Stammdaten_Analysenprogramm!AG151>0,Stammdaten_Analysenprogramm!A151,\"\")","v":""},{"$f":"IF(Stammdaten_Analysenprogramm!AG151>0,Stammdaten_Analysenprogramm!C151,\"\")","v":""},"",null,null,null,null,null,null,null,null,null,null,null,null,{"$f":"Stammdaten_Analysenprogramm!AC151","v":{"$error":"#VALUE!"}},{"$f":"Stammdaten_Analysenprogramm!AD151","v":0},{"$f":"Stammdaten_Analysenprogramm!AB151","v":{"$error":"#VALUE!"}},{"$f":"Stammdaten_Analysenprogramm!V151","v":"k.A."},null,null,null,null,{"$error":"#VALUE!"},0,{"$error":"#VALUE!"},{"$error":"#VALUE!"}]
[{"$f":"IF(Stammdaten_Analysenprogramm!AG152>0,Stammdaten_Analysenprogramm!A152,\"\")","v":""},{"$f":"IF(Stammdaten_Analysenprogramm!AG152>0,Stammdaten_Analysenprogramm!C152,\"\")","v":""},"",null,null,null,null,null,null,null,null,null,null,null,null,{"$f":"Stammdaten_Analysenprogramm!AC152","v":{"$error":"#VALUE!"}},{"$f":"Stammdaten_Analysenprogramm!AD152","v":0},{"$f":"Stammdaten_Analysenprogramm!AB152","v":{"$error":"#VALUE!"}},{"$f":"Stammdaten_Analysenprogramm!V152","v":"k.A."},null,null,null,null,{"$error":"#VALUE!"},0,{"$error":"#VALUE!"},{"$error":"#VALUE!"}]
[{"$f":"IF(Stammdaten_Analysenprogramm!AG153>0,Stammdaten_Analysenprogramm!A153,\"\")","v":""},{"$f":"IF(Stammdaten_Analysenprogramm!AG153>0,Stammdaten_Analysenprogramm!C153,\"\")","v":""},"",null,null,null,null,null,null,null,null,null,null,null,null,{"$f":"Stammdaten_Analysenprogramm!AC153","v":{"$error":"#VALUE!"}},{"$f":"Stammdaten_Analysenprogramm!AD153","v":0},{"$f":"Stammdaten_Analysenprogramm!AB153","v":{"$error":"#VALUE!"}},{"$f":"Stammdaten_Analysenprogramm!V153","v":"k.A."},null,null,null,null,{"$error":"#VALUE!"},0,{"$error":"#VALUE!"},{"$error":"#VALUE!"}]
[{"$f":"IF(Stammdaten_Analysenprogramm!AG154>0,Stammdaten_Analysenprogramm!A154,\"\")","v":""},{"$f":"IF(Stammdaten_Analysenprogramm!AG154>0,Stammdaten_Analysenprogramm!C154,\"\")","v":""},"",null,null,null,null,null,null,null,null,null,null,null,null,{"$f":"Stammdaten_Analysenprogramm!AC154","v":{"$error":"#VALUE!"}},{"$f":"Stammdaten_Analysenprogramm!AD154","v":0},{"$f":"Stammdaten_Analysenprogramm!AB154","v":{"$error":"#VALUE!"}},{"$f":"Stammdaten_Analysenprogramm!V154","v":"k.A."},null,null,null,null,{"$error":"#VALUE!"},0,{"$error":"#VALUE!"},{"$error":"#VALUE!"}]
[{"$f":"IF(Stammdaten_Analysenprogramm!AG155>0,Stammdaten_Analysenprogramm!A155,\"\")","v":""},{"$f":"IF(Stammdaten_Analysenprogramm!AG155>0,Stammdaten_Analysenprogramm!C155,\"\")","v":""},"",null,null,null,null,null,null,null,null,null,null,null,null,{"$f":"Stammdaten_Analysenprogramm!AC155","v":{"$error":"#VALUE!"}},{"$f":"Stammdaten_Analysenprogramm!AD155","v":0},{"$f":"Stammdaten_Analysenprogramm!AB155","v":{"$error":"#VALUE!"}},{"$f":"Stammdaten_Analysenprogramm!V155","v":"k.A."},null,null,null,null,{"$error":"#VALUE!"},0,{"$error":"#VALUE!"},{"$error":"#VALUE!"}]
[{"$f":"IF(Stammdaten_Analysenprogramm!AG156>0,Stammdaten_Analysenprogramm!A156,\"\")","v":""},{"$f":"IF(Stammdaten_Analysenprogramm!AG156>0,Stammdaten_Analysenprogramm!C156,\"\")","v":""},"",null,null,null,null,null,null,null,null,null,null,null,null,{"$f":"Stammdaten_Analysenprogramm!AC156","v":{"$error":"#VALUE!"}},{"$f":"Stammdaten_Analysenprogramm!AD156","v":0},{"$f":"Stammdaten_Analysenprogramm!AB156","v":{"$error":"#VALUE!"}},{"$f":"Stammdaten_Analysenprogramm!V156","v":"k.A."},null,null,null,null,{"$error":"#VALUE!"},0,{"$error":"#VALUE!"},{"$error":"#VALUE!"}]
[{"$f":"IF(Stammdaten_Analysenprogramm!AG157>0,Stammdaten_Analysenprogramm!A157,\"\")","v":""},{"$f":"IF(Stammdaten_Analysenprogramm!AG157>0,Stammdaten_Analysenprogramm!C157,\"\")","v":""},"",null,null,null,null,null,null,null,null,null,null,null,null,{"$f":"Stammdaten_Analysenprogramm!AC157","v":{"$error":"#VALUE!"}},{"$f":"Stammdaten_Analysenprogramm!AD157","v":0},{"$f":"Stammdaten_Analysenprogramm!AB157","v":{"$error":"#VALUE!"}},{"$f":"Stammdaten_Analysenprogramm!V157","v":"k.A."},null,null,null,null,{"$error":"#VALUE!"},0,{"$error":"#VALUE!"},{"$error":"#VALUE!"}]
[{"$f":"IF(Stammdaten_Analysenprogramm!AG158>0,Stammdaten_Analysenprogramm!A158,\"\")","v":""},{"$f":"IF(Stammdaten_Analysenprogramm!AG158>0,Stammdaten_Analysenprogramm!C158,\"\")","v":""},"",null,null,null,null,null,null,null,null,null,null,null,null,{"$f":"Stammdaten_Analysenprogramm!AC158","v":{"$error":"#VALUE!"}},{"$f":"Stammdaten_Analysenprogramm!AD158","v":0},{"$f":"Stammdaten_Analysenprogramm!AB158","v":{"$error":"#VALUE!"}},{"$f":"Stammdaten_Analysenprogramm!V158","v":"k.A."},null,null,null,null,{"$error":"#VALUE!"},0,{"$error":"#VALUE!"},{"$error":"#VALUE!"}]
[{"$f":"IF(Stammdaten_Analysenprogramm!AG159>0,Stammdaten_Analysenprogramm!A159,\"\")","v":""},{"$f":"IF(Stammdaten_Analysenprogramm!AG159>0,Stammdaten_Analysenprogramm!C159,\"\")","v":""},"",null,null,null,null,null,null,null,null,null,null,null,null,{"$f":"Stammdaten_Analysenprogramm!AC159","v":{"$error":"#VALUE!"}},{"$f":"Stammdaten_Analysenprogramm!AD159","v":0},{"$f":"Stammdaten_Analysenprogramm!AB159","v":{"$error":"#VALUE!"}},{"$f":"Stammdaten_Analysenprogramm!V159","v":"k.A."},null,null,null,null,{"$error":"#VALUE!"},0,{"$error":"#VALUE!"},{"$error":"#VALUE!"}]
[{"$f":"IF(Stammdaten_Analysenprogramm!AG160>0,Stammdaten_Analysenprogramm!A160,\"\")","v":""},{"$f":"IF(Stammdaten_Analysenprogramm!AG160>0,Stammdaten_Analysenprogramm!C160,\"\")","v":""},"",null,null,null,null,null,null,null,null,null,null,null,null,{"$f":"Stammdaten_Analysenprogramm!AC160","v":{"$error":"#VALUE!"}},{"$f":"Stammdaten_Analysenprogramm!AD160","v":0},{"$f":"Stammdaten_Analysenprogramm!AB160","v":{"$error":"#VALUE!"}},{"$f":"Stammdaten_Analysenprogramm!V160","v":"k.A."},null,null,null,null,{"$error":"#VALUE!"},0,{"$error":"#VALUE!"},{"$error":"#VALUE!"}]
[{"$f":"IF(Stammdaten_Analysenprogramm!AG161>0,Stammdaten_Analysenprogramm!A161,\"\")","v":""},{"$f":"IF(Stammdaten_Analysenprogramm!AG161>0,Stammdaten_Analysenprogramm!C161,\"\")","v":""},"",null,null,null,null,null,null,null,null,null,null,null,null,{"$f":"Stammdaten_Analysenprogramm!AC161","v":{"$error":"#VALUE!"}},{"$f":"Stammdaten_Analysenprogramm!AD161","v":0},{"$f":"Stammdaten_Analysenprogramm!AB161","v":{"$error":"#VALUE!"}},{"$f":"Stammdaten_Analysenprogramm!V161","v":"k.A."},null,null,null,null,{"$error":"#VALUE!"},0,{"$error":"#VALUE!"},{"$error":"#VALUE!"}]
[{"$f":"IF(Stammdaten_Analysenprogramm!AG162>0,Stammdaten_Analysenprogramm!A162,\"\")","v":""},{"$f":"IF(Stammdaten_Analysenprogramm!AG162>0,Stammdaten_Analysenprogramm!C162,\"\")","v":""},"",null,null,null,null,null,null,null,null,null,null,null,null,{"$f":"Stammdaten_Analysenprogramm!AC162","v":{"$error":"#VALUE!"}},{"$f":"Stammdaten_Analysenprogramm!AD162","v":0},{"$f":"Stammdaten_Analysenprogramm!AB162","v":{"$error":"#VALUE!"}},{"$f":"Stammdaten_Analysenprogramm!V162","v":"k.A."},null,null,null,null,{"$error":"#VALUE!"},0,{"$error":"#VALUE!"},{"$error":"#VALUE!"}]
[{"$f":"IF(Stammdaten_Analysenprogramm!AG163>0,Stammdaten_Analysenprogramm!A163,\"\")","v":""},{"$f":"IF(Stammdaten_Analysenprogramm!AG163>0,Stammdaten_Analysenprogramm!C163,\"\")","v":""},"",null,null,null,null,null,null,null,null,null,null,null,null,{"$f":"Stammdaten_Analysenprogramm!AC163","v":{"$error":"#VALUE!"}},{"$f":"Stammdaten_Analysenprogramm!AD163","v":0},{"$f":"Stammdaten_Analysenprogramm!AB163","v":{"$error":"#VALUE!"}},{"$f":"Stammdaten_Analysenprogramm!V163","v":"k.A."},null,null,null,null,{"$error":"#VALUE!"},0,{"$error":"#VALUE!"},{"$error":"#VALUE!"}]
[{"$f":"IF(Stammdaten_Analysenprogramm!AG164>0,Stammdaten_Analysenprogramm!A164,\"\")","v":""},{"$f":"IF(Stammdaten_Analysenprogramm!AG164>0,Stammdaten_Analysenprogramm!C164,\"\")","v":""},"",null,null,null,null,null,null,null,null,null,null,null,null,{"$f":"Stammdaten_Analysenprogramm!AC164","v":{"$error":"#VALUE!"}},{"$f":"Stammdaten_Analysenprogramm!AD164","v":0},{"$f":"Stammdaten_Analysenprogramm!AB164","v":{"$error":"#VALUE!"}},{"$f":"Stammdaten_Analysenprogramm!V164","v":"k.A."},null,null,null,null,{"$error":"#VALUE!"},0,{"$error":"#VALUE!"},{"$error":"#VALUE!"}]
[{"$f":"IF(Stammdaten_Analysenprogramm!AG165>0,Stammdaten_Analysenprogramm!A165,\"\")","v":""},{"$f":"IF(Stammdaten_Analysenprogramm!AG165>0,Stammdaten_Analysenprogramm!C165,\"\")","v":""},"",null,null,null,null,null,null,null,null,null,null,null,null,{"$f":"Stammdaten_Analysenprogramm!AC165","v":{"$error":"#VALUE!"}},{"$f":"Stammdaten_Analysenprogramm!AD165","v":0},{"$f":"Stammdaten_Analysenprogramm!AB165","v":{"$error":"#VALUE!"}},{"$f":"Stammdaten_Analysenprogramm!V165","v":"k.A."},null,null,null,null,{"$error":"#VALUE!"},0,{"$error":"#VALUE!"},{"$error":"#VALUE!"}]
[{"$f":"IF(Stammdaten_Analysenprogramm!AG166>0,Stammdaten_Analysenprogramm!A166,\"\")","v":""},{"$f":"IF(Stammdaten_Analysenprogramm!AG166>0,Stammdaten_Analysenprogramm!C166,\"\")","v":""},"",null,null,null,null,null,null,null,null,null,null,null,null,{"$f":"Stammdaten_Analysenprogramm!AC166","v":{"$error":"#VALUE!"}},{"$f":"Stammdaten_Analysenprogramm!AD166","v":0},{"$f":"Stammdaten_Analysenprogramm!AB166","v":{"$error":"#VALUE!"}},{"$f":"Stammdaten_Analysenprogramm!V166","v":"k.A."},null,null,null,null,{"$error":"#VALUE!"},0,{"$error":"#VALUE!"},{"$error":"#VALUE!"}]
[{"$f":"IF(Stammdaten_Analysenprogramm!AG167>0,Stammdaten_Analysenprogramm!A167,\"\")","v":""},{"$f":"IF(Stammdaten_Analysenprogramm!AG167>0,Stammdaten_Analysenprogramm!C167,\"\")","v":""},"",null,null,null,null,null,null,null,null,null,null,null,null,{"$f":"Stammdaten_Analysenprogramm!AC167","v":{"$error":"#VALUE!"}},{"$f":"Stammdaten_Analysenprogramm!AD167","v":0},{"$f":"Stammdaten_Analysenprogramm!AB167","v":{"$error":"#VALUE!"}},{"$f":"Stammdaten_Analysenprogramm!V167","v":"k.A."},null,null,null,null,{"$error":"#VALUE!"},0,{"$error":"#VALUE!"},{"$error":"#VALUE!"}]
[{"$f":"IF(Stammdaten_Analysenprogramm!AG168>0,Stammdaten_Analysenprogramm!A168,\"\")","v":""},{"$f":"IF(Stammdaten_Analysenprogramm!AG168>0,Stammdaten_Analysenprogramm!C168,\"\")","v":""},"",null,null,null,null,null,null,null,null,null,null,null,null,{"$f":"Stammdaten_Analysenprogramm!AC168","v":{"$error":"#VALUE!"}},{"$f":"Stammdaten_Analysenprogramm!AD168","v":0},{"$f":"Stammdaten_Analysenprogramm!AB168","v":{"$error":"#VALUE!"}},{"$f":"Stammdaten_Analysenprogramm!V168","v":"k.A."},null,null,null,null,{"$error":"#VALUE!"},0,{"$error":"#VALUE!"},{"$error":"#VALUE!"}]
[{"$f":"IF(Stammdaten_Analysenprogramm!AG169>0,Stammdaten_Analysenprogramm!A169,\"\")","v":""},{"$f":"IF(Stammdaten_Analysenprogramm!AG169>0,Stammdaten_Analysenprogramm!C169,\"\")","v":""},"",null,null,null,null,null,null,null,null,null,null,null,null,{"$f":"Stammdaten_Analysenprogramm!AC169","v":{"$error":"#VALUE!"}},{"$f":"Stammdaten_Analysenprogramm!AD169","v":0},{"$f":"Stammdaten_Analysenprogramm!AB169","v":{"$error":"#VALUE!"}},{"$f":"Stammdaten_Analysenprogramm!V169","v":"k.A."},null,null,null,null,{"$error":"#VALUE!"},0,{"$error":"#VALUE!"},{"$error":"#VALUE!"}]
[{"$f":"IF(Stammdaten_Analysenprogramm!AG170>0,Stammdaten_Analysenprogramm!A170,\"\")","v":""},{"$f":"IF(Stammdaten_Analysenprogramm!AG170>0,Stammdaten_Analysenprogramm!C170,\"\")","v":""},"",null,null,null,null,null,null,null,null,null,null,null,null,{"$f":"Stammdaten_Analysenprogramm!AC170","v":{"$error":"#VALUE!"}},{"$f":"Stammdaten_Analysenprogramm!AD170","v":0},{"$f":"Stammdaten_Analysenprogramm!AB170","v":{"$error":"#VALUE!"}},{"$f":"Stammdaten_Analysenprogramm!V170","v":"k.A."},null,null,null,null,{"$error":"#VALUE!"},0,{"$error":"#VALUE!"},{"$error":"#VALUE!"}]
[{"$f":"IF(Stammdaten_Analysenprogramm!AG171>0,Stammdaten_Analysenprogramm!A171,\"\")","v":""},{"$f":"IF(Stammdaten_Analysenprogramm!AG171>0,Stammdaten_Analysenprogramm!C171,\"\")","v":""},"",null,null,null,null,null,null,null,null,null,null,null,null,{"$f":"Stammdaten_Analysenprogramm!AC171","v":{"$error":"#VALUE!"}},{"$f":"Stammdaten_Analysenprogramm!AD171","v":0},{"$f":"Stammdaten_Analysenprogramm!AB171","v":{"$error":"#VALUE!"}},{"$f":"Stammdaten_Analysenprogramm!V171","v":"k.A."},null,null,null,null,{"$error":"#VALUE!"},0,{"$error":"#VALUE!"},{"$error":"#VALUE!"}]
[{"$f":"IF(Stammdaten_Analysenprogramm!AG172>0,Stammdaten_Analysenprogramm!A172,\"\")","v":""},{"$f":"IF(Stammdaten_Analysenprogramm!AG172>0,Stammdaten_Analysenprogramm!C172,\"\")","v":""},"",null,null,null,null,null,null,null,null,null,null,null,null,{"$f":"Stammdaten_Analysenprogramm!AC172","v":{"$error":"#VALUE!"}},{"$f":"Stammdaten_Analysenprogramm!AD172","v":0},{"$f":"Stammdaten_Analysenprogramm!AB172","v":{"$error":"#VALUE!"}},{"$f":"Stammdaten_Analysenprogramm!V172","v":"k.A."},null,null,null,null,{"$error":"#VALUE!"},0,{"$error":"#VALUE!"},{"$error":"#VALUE!"}]
[{"$f":"IF(Stammdaten_Analysenprogramm!AG173>0,Stammdaten_Analysenprogramm!A173,\"\")","v":""},{"$f":"IF(Stammdaten_Analysenprogramm!AG173>0,Stammdaten_Analysenprogramm!C173,\"\")","v":""},"",null,null,null,null,null,null,null,null,null,null,null,null,{"$f":"Stammdaten_Analysenprogramm!AC173","v":{"$error":"#VALUE!"}},{"$f":"Stammdaten_Analysenprogramm!AD173","v":0},{"$f":"Stammdaten_Analysenprogramm!AB173","v":{"$error":"#VALUE!"}},{"$f":"Stammdaten_Analysenprogramm!V173","v":"k.A."},null,null,null,null,{"$error":"#VALUE!"},0,{"$error":"#VALUE!"},{"$error":"#VALUE!"}]
[{"$f":"IF(Stammdaten_Analysenprogramm!AG174>0,Stammdaten_Analysenprogramm!A174,\"\")","v":""},{"$f":"IF(Stammdaten_Analysenprogramm!AG174>0,Stammdaten_Analysenprogramm!C174,\"\")","v":""},"",null,null,null,null,null,null,null,null,null,null,null,null,{"$f":"Stammdaten_Analysenprogramm!AC174","v":{"$error":"#VALUE!"}},{"$f":"Stammdaten_Analysenprogramm!AD174","v":0},{"$f":"Stammdaten_Analysenprogramm!AB174","v":{"$error":"#VALUE!"}},{"$f":"Stammdaten_Analysenprogramm!V174","v":"k.A."},null,null,null,null,{"$error":"#VALUE!"},0,{"$error":"#VALUE!"},{"$error":"#VALUE!"}]
[{"$f":"IF(Stammdaten_Analysenprogramm!AG175>0,Stammdaten_Analysenprogramm!A175,\"\")","v":""},{"$f":"IF(Stammdaten_Analysenprogramm!AG175>0,Stammdaten_Analysenprogramm!C175,\"\")","v":""},"",null,null,null,null,null,null,null,null,null,null,null,null,{"$f":"Stammdaten_Analysenprogramm!AC175","v":{"$error":"#VALUE!"}},{"$f":"Stammdaten_Analysenprogramm!AD175","v":0},{"$f":"Stammdaten_Analysenprogramm!AB175","v":{"$error":"#VALUE!"}},{"$f":"Stammdaten_Analysenprogramm!V175","v":"k.A."},null,null,null,null,{"$error":"#VALUE!"},0,{"$error":"#VALUE!"},{"$error":"#VALUE!"}]
[{"$f":"IF(Stammdaten_Analysenprogramm!AG176>0,Stammdaten_Analysenprogramm!A176,\"\")","v":""},{"$f":"IF(Stammdaten_Analysenprogramm!AG176>0,Stammdaten_Analysenprogramm!C176,\"\")","v":""},"",null,null,null,null,null,null,null,null,null,null,null,null,{"$f":"Stammdaten_Analysenprogramm!AC176","v":{"$error":"#VALUE!"}},{"$f":"Stammdaten_Analysenprogramm!AD176","v":0},{"$f":"Stammdaten_Analysenprogramm!AB176","v":{"$error":"#VALUE!"}},{"$f":"Stammdaten_Analysenprogramm!V176","v":"k.A."},null,null,null,null,{"$error":"#VALUE!"},0,{"$error":"#VALUE!"},{"$error":"#VALUE!"}]
[{"$f":"IF(Stammdaten_Analysenprogramm!AG177>0,Stammdaten_Analysenprogramm!A177,\"\")","v":""},{"$f":"IF(Stammdaten_Analysenprogramm!AG177>0,Stammdaten_Analysenprogramm!C177,\"\")","v":""},"",null,null,null,null,null,null,null,null,null,null,null,null,{"$f":"Stammdaten_Analysenprogramm!AC177","v":{"$error":"#VALUE!"}},{"$f":"Stammdaten_Analysenprogramm!AD177","v":0},{"$f":"Stammdaten_Analysenprogramm!AB177","v":{"$error":"#VALUE!"}},{"$f":"Stammdaten_Analysenprogramm!V177","v":"k.A."},null,null,null,null,{"$error":"#VALUE!"},0,{"$error":"#VALUE!"},{"$error":"#VALUE!"}]
[{"$f":"IF(Stammdaten_Analysenprogramm!AG178>0,Stammdaten_Analysenprogramm!A178,\"\")","v":""},{"$f":"IF(Stammdaten_Analysenprogramm!AG178>0,Stammdaten_Analysenprogramm!C178,\"\")","v":""},"",null,null,null,null,null,null,null,null,null,null,null,null,{"$f":"Stammdaten_Analysenprogramm!AC178","v":{"$error":"#VALUE!"}},{"$f":"Stammdaten_Analysenprogramm!AD178","v":0},{"$f":"Stammdaten_Analysenprogramm!AB178","v":{"$error":"#VALUE!"}},{"$f":"Stammdaten_Analysenprogramm!V178","v":"k.A."},null,null,null,null,{"$error":"#VALUE!"},0,{"$error":"#VALUE!"},{"$error":"#VALUE!"}]
[{"$f":"IF(Stammdaten_Analysenprogramm!AG179>0,Stammdaten_Analysenprogramm!A179,\"\")","v":""},{"$f":"IF(Stammdaten_Analysenprogramm!AG179>0,Stammdaten_Analysenprogramm!C179,\"\")","v":""},"",null,null,null,null,null,null,null,null,null,null,null,null,{"$f":"Stammdaten_Analysenprogramm!AC179","v":{"$error":"#VALUE!"}},{"$f":"Stammdaten_Analysenprogramm!AD179","v":0},{"$f":"Stammdaten_Analysenprogramm!AB179","v":{"$error":"#VALUE!"}},{"$f":"Stammdaten_Analysenprogramm!V179","v":"k.A."},null,null,null,null,{"$error":"#VALUE!"},0,{"$error":"#VALUE!"},{"$error":"#VALUE!"}]
[{"$f":"IF(Stammdaten_Analysenprogramm!AG180>0,Stammdaten_Analysenprogramm!A180,\"\")","v":""},{"$f":"IF(Stammdaten_Analysenprogramm!AG180>0,Stammdaten_Analysenprogramm!C180,\"\")","v":""},"",null,null,null,null,null,null,null,null,null,null,null,null,{"$f":"Stammdaten_Analysenprogramm!AC180","v":{"$error":"#VALUE!"}},{"$f":"Stammdaten_Analysenprogramm!AD180","v":0},{"$f":"Stammdaten_Analysenprogramm!AB180","v":{"$error":"#VALUE!"}},{"$f":"Stammdaten_Analysenprogramm!V180","v":"k.A."},null,null,null,null,{"$error":"#VALUE!"},0,{"$error":"#VALUE!"},{"$error":"#VALUE!"}]
[{"$f":"IF(Stammdaten_Analysenprogramm!AG181>0,Stammdaten_Analysenprogramm!A181,\"\")","v":""},{"$f":"IF(Stammdaten_Analysenprogramm!AG181>0,Stammdaten_Analysenprogramm!C181,\"\")","v":""},"",null,null,null,null,null,null,null,null,null,null,null,null,{"$f":"Stammdaten_Analysenprogramm!AC181","v":{"$error":"#VALUE!"}},{"$f":"Stammdaten_Analysenprogramm!AD181","v":0},{"$f":"Stammdaten_Analysenprogramm!AB181","v":{"$error":"#VALUE!"}},{"$f":"Stammdaten_Analysenprogramm!V181","v":"k.A."},null,null,null,null,{"$error":"#VALUE!"},0,{"$error":"#VALUE!"},{"$error":"#VALUE!"}]
[{"$f":"IF(Stammdaten_Analysenprogramm!AG182>0,Stammdaten_Analysenprogramm!A182,\"\")","v":""},{"$f":"IF(Stammdaten_Analysenprogramm!AG182>0,Stammdaten_Analysenprogramm!C182,\"\")","v":""},"",null,null,null,null,null,null,null,null,null,null,null,null,{"$f":"Stammdaten_Analysenprogramm!AC182","v":{"$error":"#VALUE!"}},{"$f":"Stammdaten_Analysenprogramm!AD182","v":0},{"$f":"Stammdaten_Analysenprogramm!AB182","v":{"$error":"#VALUE!"}},{"$f":"Stammdaten_Analysenprogramm!V182","v":"k.A."},null,null,null,null,{"$error":"#VALUE!"},0,{"$error":"#VALUE!"},{"$error":"#VALUE!"}]
[{"$f":"IF(Stammdaten_Analysenprogramm!AG183>0,Stammdaten_Analysenprogramm!A183,\"\")","v":""},{"$f":"IF(Stammdaten_Analysenprogramm!AG183>0,Stammdaten_Analysenprogramm!C183,\"\")","v":""},"",null,null,null,null,null,null,null,null,null,null,null,null,{"$f":"Stammdaten_Analysenprogramm!AC183","v":{"$error":"#VALUE!"}},{"$f":"Stammdaten_Analysenprogramm!AD183","v":0},{"$f":"Stammdaten_Analysenprogramm!AB183","v":{"$error":"#VALUE!"}},{"$f":"Stammdaten_Analysenprogramm!V183","v":"k.A."},null,null,null,null,{"$error":"#VALUE!"},0,{"$error":"#VALUE!"},{"$error":"#VALUE!"}]
[{"$f":"IF(Stammdaten_Analysenprogramm!AG184>0,Stammdaten_Analysenprogramm!A184,\"\")","v":""},{"$f":"IF(Stammdaten_Analysenprogramm!AG184>0,Stammdaten_Analysenprogramm!C184,\"\")","v":""},"",null,null,null,null,null,null,null,null,null,null,null,null,{"$f":"Stammdaten_Analysenprogramm!AC184","v":{"$error":"#VALUE!"}},{"$f":"Stammdaten_Analysenprogramm!AD184","v":0},{"$f":"Stammdaten_Analysenprogramm!AB184","v":{"$error":"#VALUE!"}},{"$f":"Stammdaten_Analysenprogramm!V184","v":"k.A."},null,null,null,null,{"$error":"#VALUE!"},0,{"$error":"#VALUE!"},{"$error":"#VALUE!"}]
[{"$f":"IF(Stammdaten_Analysenprogramm!AG185>0,Stammdaten_Analysenprogramm!A185,\"\")","v":""},{"$f":"IF(Stammdaten_Analysenprogramm!AG185>0,Stammdaten_Analysenprogramm!C185,\"\")","v":""},"",null,null,null,null,null,null,null,null,null,null,null,null,{"$f":"Stammdaten_Analysenprogramm!AC185","v":{"$error":"#VALUE!"}},{"$f":"Stammdaten_Analysenprogramm!AD185","v":0},{"$f":"Stammdaten_Analysenprogramm!AB185","v":{"$error":"#VALUE!"}},{"$f":"Stammdaten_Analysenprogramm!V185","v":"k.A."},null,null,null,null,{"$error":"#VALUE!"},0,{"$error":"#VALUE!"},{"$error":"#VALUE!"}]
[{"$f":"IF(Stammdaten_Analysenprogramm!AG186>0,Stammdaten_Analysenprogramm!A186,\"\")","v":""},{"$f":"IF(Stammdaten_Analysenprogramm!AG186>0,Stammdaten_Analysenprogramm!C186,\"\")","v":""},"",null,null,null,null,null,null,null,null,null,null,null,null,{"$f":"Stammdaten_Analysenprogramm!AC186","v":{"$error":"#VALUE!"}},{"$f":"Stammdaten_Analysenprogramm!AD186","v":0},{"$f":"Stammdaten_Analysenprogramm!AB186","v":{"$error":"#VALUE!"}},{"$f":"Stammdaten_Analysenprogramm!V186","v":"k.A."},null,null,null,null,{"$error":"#VALUE!"},0,{"$error":"#VALUE!"},{"$error":"#VALUE!"}]
[{"$f":"IF(Stammdaten_Analysenprogramm!AG187>0,Stammdaten_Analysenprogramm!A187,\"\")","v":""},{"$f":"IF(Stammdaten_Analysenprogramm!AG187>0,Stammdaten_Analysenprogramm!C187,\"\")","v":""},"",null,null,null,null,null,null,null,null,null,null,null,null,{"$f":"Stammdaten_Analysenprogramm!AC187","v":{"$error":"#VALUE!"}},{"$f":"Stammdaten_Analysenprogramm!AD187","v":0},{"$f":"Stammdaten_Analysenprogramm!AB187","v":{"$error":"#VALUE!"}},{"$f":"Stammdaten_Analysenprogramm!V187","v":"k.A."},null,null,null,null,{"$error":"#VALUE!"},0,{"$error":"#VALUE!"},{"$error":"#VALUE!"}]
[{"$f":"IF(Stammdaten_Analysenprogramm!AG188>0,Stammdaten_Analysenprogramm!A188,\"\")","v":""},{"$f":"IF(Stammdaten_Analysenprogramm!AG188>0,Stammdaten_Analysenprogramm!C188,\"\")","v":""},"",null,null,null,null,null,null,null,null,null,null,null,null,{"$f":"Stammdaten_Analysenprogramm!AC188","v":{"$error":"#VALUE!"}},{"$f":"Stammdaten_Analysenprogramm!AD188","v":0},{"$f":"Stammdaten_Analysenprogramm!AB188","v":{"$error":"#VALUE!"}},{"$f":"Stammdaten_Analysenprogramm!V188","v":"k.A."},null,null,null,null,{"$error":"#VALUE!"},0,{"$error":"#VALUE!"},{"$error":"#VALUE!"}]
[{"$f":"IF(Stammdaten_Analysenprogramm!AG189>0,Stammdaten_Analysenprogramm!A189,\"\")","v":""},{"$f":"IF(Stammdaten_Analysenprogramm!AG189>0,Stammdaten_Analysenprogramm!C189,\"\")","v":""},"",null,null,null,null,null,null,null,null,null,null,null,null,{"$f":"Stammdaten_Analysenprogramm!AC189","v":{"$error":"#VALUE!"}},{"$f":"Stammdaten_Analysenprogramm!AD189","v":0},{"$f":"Stammdaten_Analysenprogramm!AB189","v":{"$error":"#VALUE!"}},{"$f":"Stammdaten_Analysenprogramm!V189","v":"k.A."},null,null,null,null,{"$error":"#VALUE!"},0,{"$error":"#VALUE!"},{"$error":"#VALUE!"}]
[{"$f":"IF(Stammdaten_Analysenprogramm!AG190>0,Stammdaten_Analysenprogramm!A190,\"\")","v":""},{"$f":"IF(Stammdaten_Analysenprogramm!AG190>0,Stammdaten_Analysenprogramm!C190,\"\")","v":""},"",null,null,null,null,null,null,null,null,null,null,null,null,{"$f":"Stammdaten_Analysenprogramm!AC190","v":{"$error":"#VALUE!"}},{"$f":"Stammdaten_Analysenprogramm!AD190","v":0},{"$f":"Stammdaten_Analysenprogramm!AB190","v":{"$error":"#VALUE!"}},{"$f":"Stammdaten_Analysenprogramm!V190","v":"k.A."},null,null,null,null,{"$error":"#VALUE!"},0,{"$error":"#VALUE!"},{"$error":"#VALUE!"}]
[{"$f":"IF(Stammdaten_Analysenprogramm!AG191>0,Stammdaten_Analysenprogramm!A191,\"\")","v":""},{"$f":"IF(Stammdaten_Analysenprogramm!AG191>0,Stammdaten_Analysenprogramm!C191,\"\")","v":""},"",null,null,null,null,null,null,null,null,null,null,null,null,{"$f":"Stammdaten_Analysenprogramm!AC191","v":{"$error":"#VALUE!"}},{"$f":"Stammdaten_Analysenprogramm!AD191","v":0},{"$f":"Stammdaten_Analysenprogramm!AB191","v":{"$error":"#VALUE!"}},{"$f":"Stammdaten_Analysenprogramm!V191","v":"k.A."},null,null,null,null,{"$error":"#VALUE!"},0,{"$error":"#VALUE!"},{"$error":"#VALUE!"}]
[{"$f":"IF(Stammdaten_Analysenprogramm!AG192>0,Stammdaten_Analysenprogramm!A192,\"\")","v":""},{"$f":"IF(Stammdaten_Analysenprogramm!AG192>0,Stammdaten_Analysenprogramm!C192,\"\")","v":""},"",null,null,null,null,null,null,null,null,null,null,null,null,{"$f":"Stammdaten_Analysenprogramm!AC192","v":{"$error":"#VALUE!"}},{"$f":"Stammdaten_Analysenprogramm!AD192","v":0},{"$f":"Stammdaten_Analysenprogramm!AB192","v":{"$error":"#VALUE!"}},{"$f":"Stammdaten_Analysenprogramm!V192","v":"k.A."},null,null,null,null,{"$error":"#VALUE!"},0,{"$error":"#VALUE!"},{"$error":"#VALUE!"}]
[{"$f":"IF(Stammdaten_Analysenprogramm!AG193>0,Stammdaten_Analysenprogramm!A193,\"\")","v":""},{"$f":"IF(Stammdaten_Analysenprogramm!AG193>0,Stammdaten_Analysenprogramm!C193,\"\")","v":""},"",null,null,null,null,null,null,null,null,null,null,null,null,{"$f":"Stammdaten_Analysenprogramm!AC193","v":{"$error":"#VALUE!"}},{"$f":"Stammdaten_Analysenprogramm!AD193","v":0},{"$f":"Stammdaten_Analysenprogramm!AB193","v":{"$error":"#VALUE!"}},{"$f":"Stammdaten_Analysenprogramm!V193","v":"k.A."},null,null,null,null,{"$error":"#VALUE!"},0,{"$error":"#VALUE!"},{"$error":"#VALUE!"}]
[{"$f":"IF(Stammdaten_Analysenprogramm!AG194>0,Stammdaten_Analysenprogramm!A194,\"\")","v":""},{"$f":"IF(Stammdaten_Analysenprogramm!AG194>0,Stammdaten_Analysenprogramm!C194,\"\")","v":""},"",null,null,null,null,null,null,null,null,null,null,null,null,{"$f":"Stammdaten_Analysenprogramm!AC194","v":{"$error":"#VALUE!"}},{"$f":"Stammdaten_Analysenprogramm!AD194","v":0},{"$f":"Stammdaten_Analysenprogramm!AB194","v":{"$error":"#VALUE!"}},{"$f":"Stammdaten_Analysenprogramm!V194","v":"k.A."},null,null,null,null,{"$error":"#VALUE!"},0,{"$error":"#VALUE!"},{"$error":"#VALUE!"}]
[{"$f":"IF(Stammdaten_Analysenprogramm!AG195>0,Stammdaten_Analysenprogramm!A195,\"\")","v":""},{"$f":"IF(Stammdaten_Analysenprogramm!AG195>0,Stammdaten_Analysenprogramm!C195,\"\")","v":""},"",null,null,null,null,null,null,null,null,null,null,null,null,{"$f":"Stammdaten_Analysenprogramm!AC195","v":{"$error":"#VALUE!"}},{"$f":"Stammdaten_Analysenprogramm!AD195","v":0},{"$f":"Stammdaten_Analysenprogramm!AB195","v":{"$error":"#VALUE!"}},{"$f":"Stammdaten_Analysenprogramm!V195","v":"k.A."},null,null,null,null,{"$error":"#VALUE!"},0,{"$error":"#VALUE!"},{"$error":"#VALUE!"}]
[{"$f":"IF(Stammdaten_Analysenprogramm!AG196>0,Stammdaten_Analysenprogramm!A196,\"\")","v":""},{"$f":"IF(Stammdaten_Analysenprogramm!AG196>0,Stammdaten_Analysenprogramm!C196,\"\")","v":""},"",null,null,null,null,null,null,null,null,null,null,null,null,{"$f":"Stammdaten_Analysenprogramm!AC196","v":{"$error":"#VALUE!"}},{"$f":"Stammdaten_Analysenprogramm!AD196","v":0},{"$f":"Stammdaten_Analysenprogramm!AB196","v":{"$error":"#VALUE!"}},{"$f":"Stammdaten_Analysenprogramm!V196","v":"k.A."},null,null,null,null,{"$error":"#VALUE!"},0,{"$error":"#VALUE!"},{"$error":"#VALUE!"}]
[{"$f":"IF(Stammdaten_Analysenprogramm!AG197>0,Stammdaten_Analysenprogramm!A197,\"\")","v":""},{"$f":"IF(Stammdaten_Analysenprogramm!AG197>0,Stammdaten_Analysenprogramm!C197,\"\")","v":""},"",null,null,null,null,null,null,null,null,null,null,null,null,{"$f":"Stammdaten_Analysenprogramm!AC197","v":{"$error":"#VALUE!"}},{"$f":"Stammdaten_Analysenprogramm!AD197","v":0},{"$f":"Stammdaten_Analysenprogramm!AB197","v":{"$error":"#VALUE!"}},{"$f":"Stammdaten_Analysenprogramm!V197","v":"k.A."},null,null,null,null,{"$error":"#VALUE!"},0,{"$error":"#VALUE!"},{"$error":"#VALUE!"}]
[{"$f":"IF(Stammdaten_Analysenprogramm!AG198>0,Stammdaten_Analysenprogramm!A198,\"\")","v":""},{"$f":"IF(Stammdaten_Analysenprogramm!AG198>0,Stammdaten_Analysenprogramm!C198,\"\")","v":""},"",null,null,null,null,null,null,null,null,null,null,null,null,{"$f":"Stammdaten_Analysenprogramm!AC198","v":{"$error":"#VALUE!"}},{"$f":"Stammdaten_Analysenprogramm!AD198","v":0},{"$f":"Stammdaten_Analysenprogramm!AB198","v":{"$error":"#VALUE!"}},{"$f":"Stammdaten_Analysenprogramm!V198","v":"k.A."},null,null,null,null,{"$error":"#VALUE!"},0,{"$error":"#VALUE!"},{"$error":"#VALUE!"}]
[{"$f":"IF(Stammdaten_Analysenprogramm!AG199>0,Stammdaten_Analysenprogramm!A199,\"\")","v":""},{"$f":"IF(Stammdaten_Analysenprogramm!AG199>0,Stammdaten_Analysenprogramm!C199,\"\")","v":""},"",null,null,null,null,null,null,null,null,null,null,null,null,{"$f":"Stammdaten_Analysenprogramm!AC199","v":{"$error":"#VALUE!"}},{"$f":"Stammdaten_Analysenprogramm!AD199","v":0},{"$f":"Stammdaten_Analysenprogramm!AB199","v":{"$error":"#VALUE!"}},{"$f":"Stammdaten_Analysenprogramm!V199","v":"k.A."},null,null,null,null,{"$f":"T198-P198","v":{"$error":"#VALUE!"}},{"$f":"Q198-U198","v":0},{"$f":"V198-R198","v":{"$error":"#VALUE!"}},{"$f":"W198-S198","v":{"$error":"#VALUE!"}}]
[{"$f":"IF(Stammdaten_Analysenprogramm!AG200>0,Stammdaten_Analysenprogramm!A200,\"\")","v":""},{"$f":"IF(Stammdaten_Analysenprogramm!AG200>0,Stammdaten_Analysenprogramm!C200,\"\")","v":""},{"$f":"A199","v":""},null,null,null,null,null,null,null,null,null,null,null,null,{"$f":"Stammdaten_Analysenprogramm!AC200","v":{"$error":"#VALUE!"}},{"$f":"Stammdaten_Analysenprogramm!AD200","v":0},{"$f":"Stammdaten_Analysenprogramm!AB200","v":{"$error":"#VALUE!"}},{"$f":"Stammdaten_Analysenprogramm!V200","v":"k.A."},null,null,null,null,{"$error":"#VALUE!"},0,{"$error":"#VALUE!"},{"$error":"#VALUE!"}]
[{"$f":"IF(Stammdaten_Analysenprogramm!AG201>0,Stammdaten_Analysenprogramm!A201,\"\")","v":""},{"$f":"IF(Stammdaten_Analysenprogramm!AG201>0,Stammdaten_Analysenprogramm!C201,\"\")","v":""},"",null,null,null,null,null,null,null,null,null,null,null,null,{"$f":"Stammdaten_Analysenprogramm!AC201","v":{"$error":"#VALUE!"}},{"$f":"Stammdaten_Analysenprogramm!AD201","v":0},{"$f":"Stammdaten_Analysenprogramm!AB201","v":{"$error":"#VALUE!"}},{"$f":"Stammdaten_Analysenprogramm!V201","v":"k.A."},null,null,null,null,{"$error":"#VALUE!"},0,{"$error":"#VALUE!"},{"$error":"#VALUE!"}]
[{"$f":"IF(Stammdaten_Analysenprogramm!AG202>0,Stammdaten_Analysenprogramm!A202,\"\")","v":""},{"$f":"IF(Stammdaten_Analysenprogramm!AG202>0,Stammdaten_Analysenprogramm!C202,\"\")","v":""},"",null,null,null,null,null,null,null,null,null,null,null,null,{"$f":"Stammdaten_Analysenprogramm!AC202","v":{"$error":"#VALUE!"}},{"$f":"Stammdaten_Analysenprogramm!AD202","v":0},{"$f":"Stammdaten_Analysenprogramm!AB202","v":{"$error":"#VALUE!"}},{"$f":"Stammdaten_Analysenprogramm!V202","v":"k.A."},null,null,null,null,{"$error":"#VALUE!"},0,{"$error":"#VALUE!"},{"$error":"#VALUE!"}]
[{"$f":"IF(Stammdaten_Analysenprogramm!AG203>0,Stammdaten_Analysenprogramm!A203,\"\")","v":""},{"$f":"IF(Stammdaten_Analysenprogramm!AG203>0,Stammdaten_Analysenprogramm!C203,\"\")","v":""},"",null,null,null,null,null,null,null,null,null,null,null,null,{"$f":"Stammdaten_Analysenprogramm!AC203","v":{"$error":"#VALUE!"}},{"$f":"Stammdaten_Analysenprogramm!AD203","v":0},{"$f":"Stammdaten_Analysenprogramm!AB203","v":{"$error":"#VALUE!"}},{"$f":"Stammdaten_Analysenprogramm!V203","v":"k.A."},null,null,null,null,{"$error":"#VALUE!"},0,{"$error":"#VALUE!"},{"$error":"#VALUE!"}]
[{"$f":"IF(Stammdaten_Analysenprogramm!AG204>0,Stammdaten_Analysenprogramm!A204,\"\")","v":""},{"$f":"IF(Stammdaten_Analysenprogramm!AG204>0,Stammdaten_Analysenprogramm!C204,\"\")","v":""},"",null,null,null,null,null,null,null,null,null,null,null,null,{"$f":"Stammdaten_Analysenprogramm!AC204","v":{"$error":"#VALUE!"}},{"$f":"Stammdaten_Analysenprogramm!AD204","v":0},{"$f":"Stammdaten_Analysenprogramm!AB204","v":{"$error":"#VALUE!"}},{"$f":"Stammdaten_Analysenprogramm!V204","v":"k.A."},null,null,null,null,{"$error":"#VALUE!"},0,{"$error":"#VALUE!"},{"$error":"#VALUE!"}]
[{"$f":"IF(Stammdaten_Analysenprogramm!AG205>0,Stammdaten_Analysenprogramm!A205,\"\")","v":""},{"$f":"IF(Stammdaten_Analysenprogramm!AG205>0,Stammdaten_Analysenprogramm!C205,\"\")","v":""},"",null,null,null,null,null,null,null,null,null,null,null,null,{"$f":"Stammdaten_Analysenprogramm!AC205","v":{"$error":"#VALUE!"}},{"$f":"Stammdaten_Analysenprogramm!AD205","v":0},{"$f":"Stammdaten_Analysenprogramm!AB205","v":{"$error":"#VALUE!"}},{"$f":"Stammdaten_Analysenprogramm!V205","v":"k.A."},null,null,null,null,{"$error":"#VALUE!"},0,{"$error":"#VALUE!"},{"$error":"#VALUE!"}]
[{"$f":"IF(Stammdaten_Analysenprogramm!AG206>0,Stammdaten_Analysenprogramm!A206,\"\")","v":""},{"$f":"IF(Stammdaten_Analysenprogramm!AG206>0,Stammdaten_Analysenprogramm!C206,\"\")","v":""},"",null,null,null,null,null,null,null,null,null,null,null,null,{"$f":"Stammdaten_Analysenprogramm!AC206","v":{"$error":"#VALUE!"}},{"$f":"Stammdaten_Analysenprogramm!AD206","v":0},{"$f":"Stammdaten_Analysenprogramm!AB206","v":{"$error":"#VALUE!"}},{"$f":"Stammdaten_Analysenprogramm!V206","v":"k.A."},null,null,null,null,{"$error":"#VALUE!"},0,{"$error":"#VALUE!"},{"$error":"#VALUE!"}]
[{"$f":"IF(Stammdaten_Analysenprogramm!AG207>0,Stammdaten_Analysenprogramm!A207,\"\")","v":""},{"$f":"IF(Stammdaten_Analysenprogramm!AG207>0,Stammdaten_Analysenprogramm!C207,\"\")","v":""},"",null,null,null,null,null,null,null,null,null,null,null,null,{"$f":"Stammdaten_Analysenprogramm!AC207","v":{"$error":"#VALUE!"}},{"$f":"Stammdaten_Analysenprogramm!AD207","v":0},{"$f":"Stammdaten_Analysenprogramm!AB207","v":{"$error":"#VALUE!"}},{"$f":"Stammdaten_Analysenprogramm!V207","v":"k.A."},null,null,null,null,{"$error":"#VALUE!"},0,{"$error":"#VALUE!"},{"$error":"#VALUE!"}]
[{"$f":"IF(Stammdaten_Analysenprogramm!AG208>0,Stammdaten_Analysenprogramm!A208,\"\")","v":""},{"$f":"IF(Stammdaten_Analysenprogramm!AG208>0,Stammdaten_Analysenprogramm!C208,\"\")","v":""},"",null,null,null,null,null,null,null,null,null,null,null,null,{"$f":"Stammdaten_Analysenprogramm!AC208","v":{"$error":"#VALUE!"}},{"$f":"Stammdaten_Analysenprogramm!AD208","v":0},{"$f":"Stammdaten_Analysenprogramm!AB208","v":{"$error":"#VALUE!"}},{"$f":"Stammdaten_Analysenprogramm!V208","v":"k.A."},null,null,null,null,{"$error":"#VALUE!"},0,{"$error":"#VALUE!"},{"$error":"#VALUE!"}]
[{"$f":"IF(Stammdaten_Analysenprogramm!AG209>0,Stammdaten_Analysenprogramm!A209,\"\")","v":""},{"$f":"IF(Stammdaten_Analysenprogramm!AG209>0,Stammdaten_Analysenprogramm!C209,\"\")","v":""},"",null,null,null,null,null,null,null,null,null,null,null,null,{"$f":"Stammdaten_Analysenprogramm!AC209","v":{"$error":"#VALUE!"}},{"$f":"Stammdaten_Analysenprogramm!AD209","v":0},{"$f":"Stammdaten_Analysenprogramm!AB209","v":{"$error":"#VALUE!"}},{"$f":"Stammdaten_Analysenprogramm!V209","v":"k.A."},null,null,null,null,{"$error":"#VALUE!"},0,{"$error":"#VALUE!"},{"$error":"#VALUE!"}]
[{"$f":"IF(Stammdaten_Analysenprogramm!AG210>0,Stammdaten_Analysenprogramm!A210,\"\")","v":""},{"$f":"IF(Stammdaten_Analysenprogramm!AG210>0,Stammdaten_Analysenprogramm!C210,\"\")","v":""},"",null,null,null,null,null,null,null,null,null,null,null,null,{"$f":"Stammdaten_Analysenprogramm!AC210","v":{"$error":"#VALUE!"}},{"$f":"Stammdaten_Analysenprogramm!AD210","v":0},{"$f":"Stammdaten_Analysenprogramm!AB210","v":{"$error":"#VALUE!"}},{"$f":"Stammdaten_Analysenprogramm!V210","v":"k.A."},null,null,null,null,{"$error":"#VALUE!"},0,{"$error":"#VALUE!"},{"$error":"#VALUE!"}]
[{"$f":"IF(Stammdaten_Analysenprogramm!AG211>0,Stammdaten_Analysenprogramm!A211,\"\")","v":""},{"$f":"IF(Stammdaten_Analysenprogramm!AG211>0,Stammdaten_Analysenprogramm!C211,\"\")","v":""},"",null,null,null,null,null,null,null,null,null,null,null,null,{"$f":"Stammdaten_Analysenprogramm!AC211","v":{"$error":"#VALUE!"}},{"$f":"Stammdaten_Analysenprogramm!AD211","v":0},{"$f":"Stammdaten_Analysenprogramm!AB211","v":{"$error":"#VALUE!"}},{"$f":"Stammdaten_Analysenprogramm!V211","v":"k.A."},null,null,null,null,{"$error":"#VALUE!"},0,{"$error":"#VALUE!"},{"$error":"#VALUE!"}]
[{"$f":"IF(Stammdaten_Analysenprogramm!AG212>0,Stammdaten_Analysenprogramm!A212,\"\")","v":""},{"$f":"IF(Stammdaten_Analysenprogramm!AG212>0,Stammdaten_Analysenprogramm!C212,\"\")","v":""},"",null,null,null,null,null,null,null,null,null,null,null,null,{"$f":"Stammdaten_Analysenprogramm!AC212","v":{"$error":"#VALUE!"}},{"$f":"Stammdaten_Analysenprogramm!AD212","v":0},{"$f":"Stammdaten_Analysenprogramm!AB212","v":{"$error":"#VALUE!"}},{"$f":"Stammdaten_Analysenprogramm!V212","v":"k.A."},null,null,null,null,{"$error":"#VALUE!"},0,{"$error":"#VALUE!"},{"$error":"#VALUE!"}]
[{"$f":"IF(Stammdaten_Analysenprogramm!AG213>0,Stammdaten_Analysenprogramm!A213,\"\")","v":""},{"$f":"IF(Stammdaten_Analysenprogramm!AG213>0,Stammdaten_Analysenprogramm!C213,\"\")","v":""},"",null,null,null,null,null,null,null,null,null,null,null,null,{"$f":"Stammdaten_Analysenprogramm!AC213","v":{"$error":"#VALUE!"}},{"$f":"Stammdaten_Analysenprogramm!AD213","v":0},{"$f":"Stammdaten_Analysenprogramm!AB213","v":{"$error":"#VALUE!"}},{"$f":"Stammdaten_Analysenprogramm!V213","v":"k.A."},null,null,null,null,{"$error":"#VALUE!"},0,{"$error":"#VALUE!"},{"$error":"#VALUE!"}]
[{"$f":"IF(Stammdaten_Analysenprogramm!AG214>0,Stammdaten_Analysenprogramm!A214,\"\")","v":""},{"$f":"IF(Stammdaten_Analysenprogramm!AG214>0,Stammdaten_Analysenprogramm!C214,\"\")","v":""},"",null,null,null,null,null,null,null,null,null,null,null,null,{"$f":"Stammdaten_Analysenprogramm!AC214","v":{"$error":"#VALUE!"}},{"$f":"Stammdaten_Analysenprogramm!AD214","v":0},{"$f":"Stammdaten_Analysenprogramm!AB214","v":{"$error":"#VALUE!"}},{"$f":"Stammdaten_Analysenprogramm!V214","v":"k.A."},null,null,null,null,{"$error":"#VALUE!"},0,{"$error":"#VALUE!"},{"$error":"#VALUE!"}]
[{"$f":"IF(Stammdaten_Analysenprogramm!AG215>0,Stammdaten_Analysenprogramm!A215,\"\")","v":""},{"$f":"IF(Stammdaten_Analysenprogramm!AG215>0,Stammdaten_Analysenprogramm!C215,\"\")","v":""},"",null,null,null,null,null,null,null,null,null,null,null,null,{"$f":"Stammdaten_Analysenprogramm!AC215","v":{"$error":"#VALUE!"}},{"$f":"Stammdaten_Analysenprogramm!AD215","v":0},{"$f":"Stammdaten_Analysenprogramm!AB215","v":{"$error":"#VALUE!"}},{"$f":"Stammdaten_Analysenprogramm!V215","v":"k.A."},null,null,null,null,{"$error":"#VALUE!"},0,{"$error":"#VALUE!"},{"$error":"#VALUE!"}]
[{"$f":"IF(Stammdaten_Analysenprogramm!AG216>0,Stammdaten_Analysenprogramm!A216,\"\")","v":""},{"$f":"IF(Stammdaten_Analysenprogramm!AG216>0,Stammdaten_Analysenprogramm!C216,\"\")","v":""},"",null,null,null,null,null,null,null,null,null,null,null,null,{"$f":"Stammdaten_Analysenprogramm!AC216","v":{"$error":"#VALUE!"}},{"$f":"Stammdaten_Analysenprogramm!AD216","v":0},{"$f":"Stammdaten_Analysenprogramm!AB216","v":{"$error":"#VALUE!"}},{"$f":"Stammdaten_Analysenprogramm!V216","v":"k.A."},null,null,null,null,{"$error":"#VALUE!"},0,{"$error":"#VALUE!"},{"$error":"#VALUE!"}]
[{"$f":"IF(Stammdaten_Analysenprogramm!AG217>0,Stammdaten_Analysenprogramm!A217,\"\")","v":""},{"$f":"IF(Stammdaten_Analysenprogramm!AG217>0,Stammdaten_Analysenprogramm!C217,\"\")","v":""},"",null,null,null,null,null,null,null,null,null,null,null,null,{"$f":"Stammdaten_Analysenprogramm!AC217","v":{"$error":"#VALUE!"}},{"$f":"Stammdaten_Analysenprogramm!AD217","v":0},{"$f":"Stammdaten_Analysenprogramm!AB217","v":{"$error":"#VALUE!"}},{"$f":"Stammdaten_Analysenprogramm!V217","v":"k.A."},null,null,null,null,{"$error":"#VALUE!"},0,{"$error":"#VALUE!"},{"$error":"#VALUE!"}]
[{"$f":"IF(Stammdaten_Analysenprogramm!AG218>0,Stammdaten_Analysenprogramm!A218,\"\")","v":""},{"$f":"IF(Stammdaten_Analysenprogramm!AG218>0,Stammdaten_Analysenprogramm!C218,\"\")","v":""},"",null,null,null,null,null,null,null,null,null,null,null,null,{"$f":"Stammdaten_Analysenprogramm!AC218","v":{"$error":"#VALUE!"}},{"$f":"Stammdaten_Analysenprogramm!AD218","v":0},{"$f":"Stammdaten_Analysenprogramm!AB218","v":{"$error":"#VALUE!"}},{"$f":"Stammdaten_Analysenprogramm!V218","v":"k.A."},null,null,null,null,{"$error":"#VALUE!"},0,{"$error":"#VALUE!"},{"$error":"#VALUE!"}]
[{"$f":"IF(Stammdaten_Analysenprogramm!AG219>0,Stammdaten_Analysenprogramm!A219,\"\")","v":""},{"$f":"IF(Stammdaten_Analysenprogramm!AG219>0,Stammdaten_Analysenprogramm!C219,\"\")","v":""},"",null,null,null,null,null,null,null,null,null,null,null,null,{"$f":"Stammdaten_Analysenprogramm!AC219","v":{"$error":"#VALUE!"}},{"$f":"Stammdaten_Analysenprogramm!AD219","v":0},{"$f":"Stammdaten_Analysenprogramm!AB219","v":{"$error":"#VALUE!"}},{"$f":"Stammdaten_Analysenprogramm!V219","v":"k.A."},null,null,null,null,{"$error":"#VALUE!"},0,{"$error":"#VALUE!"},{"$error":"#VALUE!"}]
[{"$f":"IF(Stammdaten_Analysenprogramm!AG220>0,Stammdaten_Analysenprogramm!A220,\"\")","v":""},{"$f":"IF(Stammdaten_Analysenprogramm!AG220>0,Stammdaten_Analysenprogramm!C220,\"\")","v":""},"",null,null,null,null,null,null,null,null,null,null,null,null,{"$f":"Stammdaten_Analysenprogramm!AC220","v":{"$error":"#VALUE!"}},{"$f":"Stammdaten_Analysenprogramm!AD220","v":0},{"$f":"Stammdaten_Analysenprogramm!AB220","v":{"$error":"#VALUE!"}},{"$f":"Stammdaten_Analysenprogramm!V220","v":"k.A."},null,null,null,null,{"$error":"#VALUE!"},0,{"$error":"#VALUE!"},{"$error":"#VALUE!"}]
[{"$f":"IF(Stammdaten_Analysenprogramm!AG221>0,Stammdaten_Analysenprogramm!A221,\"\")","v":""},{"$f":"IF(Stammdaten_Analysenprogramm!AG221>0,Stammdaten_Analysenprogramm!C221,\"\")","v":""},"",null,null,null,null,null,null,null,null,null,null,null,null,{"$f":"Stammdaten_Analysenprogramm!AC221","v":{"$error":"#VALUE!"}},{"$f":"Stammdaten_Analysenprogramm!AD221","v":0},{"$f":"Stammdaten_Analysenprogramm!AB221","v":{"$error":"#VALUE!"}},{"$f":"Stammdaten_Analysenprogramm!V221","v":"k.A."},null,null,null,null,{"$error":"#VALUE!"},0,{"$error":"#VALUE!"},{"$error":"#VALUE!"}]
[{"$f":"IF(Stammdaten_Analysenprogramm!AG222>0,Stammdaten_Analysenprogramm!A222,\"\")","v":""},{"$f":"IF(Stammdaten_Analysenprogramm!AG222>0,Stammdaten_Analysenprogramm!C222,\"\")","v":""},"",null,null,null,null,null,null,null,null,null,null,null,null,{"$f":"Stammdaten_Analysenprogramm!AC222","v":{"$error":"#VALUE!"}},{"$f":"Stammdaten_Analysenprogramm!AD222","v":0},{"$f":"Stammdaten_Analysenprogramm!AB222","v":{"$error":"#VALUE!"}},{"$f":"Stammdaten_Analysenprogramm!V222","v":"k.A."},null,null,null,null,{"$error":"#VALUE!"},0,{"$error":"#VALUE!"},{"$error":"#VALUE!"}]
[{"$f":"IF(Stammdaten_Analysenprogramm!AG223>0,Stammdaten_Analysenprogramm!A223,\"\")","v":""},{"$f":"IF(Stammdaten_Analysenprogramm!AG223>0,Stammdaten_Analysenprogramm!C223,\"\")","v":""},"",null,null,null,null,null,null,null,null,null,null,null,null,{"$f":"Stammdaten_Analysenprogramm!AC223","v":{"$error":"#VALUE!"}},{"$f":"Stammdaten_Analysenprogramm!AD223","v":0},{"$f":"Stammdaten_Analysenprogramm!AB223","v":{"$error":"#VALUE!"}},{"$f":"Stammdaten_Analysenprogramm!V223","v":"k.A."},null,null,null,null,{"$error":"#VALUE!"},0,{"$error":"#VALUE!"},{"$error":"#VALUE!"}]
[{"$f":"IF(Stammdaten_Analysenprogramm!AG224>0,Stammdaten_Analysenprogramm!A224,\"\")","v":""},{"$f":"IF(Stammdaten_Analysenprogramm!AG224>0,Stammdaten_Analysenprogramm!C224,\"\")","v":""},"",null,null,null,null,null,null,null,null,null,null,null,null,{"$f":"Stammdaten_Analysenprogramm!AC224","v":{"$error":"#VALUE!"}},{"$f":"Stammdaten_Analysenprogramm!AD224","v":0},{"$f":"Stammdaten_Analysenprogramm!AB224","v":{"$error":"#VALUE!"}},{"$f":"Stammdaten_Analysenprogramm!V224","v":"k.A."},null,null,null,null,{"$error":"#VALUE!"},0,{"$error":"#VALUE!"},{"$error":"#VALUE!"}]
[{"$f":"IF(Stammdaten_Analysenprogramm!AG225>0,Stammdaten_Analysenprogramm!A225,\"\")","v":""},{"$f":"IF(Stammdaten_Analysenprogramm!AG225>0,Stammdaten_Analysenprogramm!C225,\"\")","v":""},"",null,null,null,null,null,null,null,null,null,null,null,null,{"$f":"Stammdaten_Analysenprogramm!AC225","v":{"$error":"#VALUE!"}},{"$f":"Stammdaten_Analysenprogramm!AD225","v":0},{"$f":"Stammdaten_Analysenprogramm!AB225","v":{"$error":"#VALUE!"}},{"$f":"Stammdaten_Analysenprogramm!V225","v":"k.A."},null,null,null,null,{"$error":"#VALUE!"},0,{"$error":"#VALUE!"},{"$error":"#VALUE!"}]
[{"$f":"IF(Stammdaten_Analysenprogramm!AG226>0,Stammdaten_Analysenprogramm!A226,\"\")","v":""},{"$f":"IF(Stammdaten_Analysenprogramm!AG226>0,Stammdaten_Analysenprogramm!C226,\"\")","v":""},"",null,null,null,null,null,null,null,null,null,null,null,null,{"$f":"Stammdaten_Analysenprogramm!AC226","v":{"$error":"#VALUE!"}},{"$f":"Stammdaten_Analysenprogramm!AD226","v":0},{"$f":"Stammdaten_Analysenprogramm!AB226","v":{"$error":"#VALUE!"}},{"$f":"Stammdaten_Analysenprogramm!V226","v":"k.A."},null,null,null,null,{"$error":"#VALUE!"},0,{"$error":"#VALUE!"},{"$error":"#VALUE!"}]
[{"$f":"IF(Stammdaten_Analysenprogramm!AG227>0,Stammdaten_Analysenprogramm!A227,\"\")","v":""},{"$f":"IF(Stammdaten_Analysenprogramm!AG227>0,Stammdaten_Analysenprogramm!C227,\"\")","v":""},"",null,null,null,null,null,null,null,null,null,null,null,null,{"$f":"Stammdaten_Analysenprogramm!AC227","v":{"$error":"#VALUE!"}},{"$f":"Stammdaten_Analysenprogramm!AD227","v":0},{"$f":"Stammdaten_Analysenprogramm!AB227","v":{"$error":"#VALUE!"}},{"$f":"Stammdaten_Analysenprogramm!V227","v":"k.A."},null,null,null,null,{"$error":"#VALUE!"},0,{"$error":"#VALUE!"},{"$error":"#VALUE!"}]
[{"$f":"IF(Stammdaten_Analysenprogramm!AG228>0,Stammdaten_Analysenprogramm!A228,\"\")","v":""},{"$f":"IF(Stammdaten_Analysenprogramm!AG228>0,Stammdaten_Analysenprogramm!C228,\"\")","v":""},"",null,null,null,null,null,null,null,null,null,null,null,null,{"$f":"Stammdaten_Analysenprogramm!AC228","v":{"$error":"#VALUE!"}},{"$f":"Stammdaten_Analysenprogramm!AD228","v":0},{"$f":"Stammdaten_Analysenprogramm!AB228","v":{"$error":"#VALUE!"}},{"$f":"Stammdaten_Analysenprogramm!V228","v":"k.A."},null,null,null,null,{"$error":"#VALUE!"},0,{"$error":"#VALUE!"},{"$error":"#VALUE!"}]
[{"$f":"IF(Stammdaten_Analysenprogramm!AG229>0,Stammdaten_Analysenprogramm!A229,\"\")","v":""},{"$f":"IF(Stammdaten_Analysenprogramm!AG229>0,Stammdaten_Analysenprogramm!C229,\"\")","v":""},"",null,null,null,null,null,null,null,null,null,null,null,null,{"$f":"Stammdaten_Analysenprogramm!AC229","v":{"$error":"#VALUE!"}},{"$f":"Stammdaten_Analysenprogramm!AD229","v":0},{"$f":"Stammdaten_Analysenprogramm!AB229","v":{"$error":"#VALUE!"}},{"$f":"Stammdaten_Analysenprogramm!V229","v":"k.A."},null,null,null,null,{"$error":"#VALUE!"},0,{"$error":"#VALUE!"},{"$error":"#VALUE!"}]
[{"$f":"IF(Stammdaten_Analysenprogramm!AG230>0,Stammdaten_Analysenprogramm!A230,\"\")","v":""},{"$f":"IF(Stammdaten_Analysenprogramm!AG230>0,Stammdaten_Analysenprogramm!C230,\"\")","v":""},"",null,null,null,null,null,null,null,null,null,null,null,null,{"$f":"Stammdaten_Analysenprogramm!AC230","v":{"$error":"#VALUE!"}},{"$f":"Stammdaten_Analysenprogramm!AD230","v":0},{"$f":"Stammdaten_Analysenprogramm!AB230","v":{"$error":"#VALUE!"}},{"$f":"Stammdaten_Analysenprogramm!V230","v":"k.A."},null,null,null,null,{"$error":"#VALUE!"},0,{"$error":"#VALUE!"},{"$error":"#VALUE!"}]
[{"$f":"IF(Stammdaten_Analysenprogramm!AG231>0,Stammdaten_Analysenprogramm!A231,\"\")","v":""},{"$f":"IF(Stammdaten_Analysenprogramm!AG231>0,Stammdaten_Analysenprogramm!C231,\"\")","v":""},"",null,null,null,null,null,null,null,null,null,null,null,null,{"$f":"Stammdaten_Analysenprogramm!AC231","v":{"$error":"#VALUE!"}},{"$f":"Stammdaten_Analysenprogramm!AD231","v":0},{"$f":"Stammdaten_Analysenprogramm!AB231","v":{"$error":"#VALUE!"}},{"$f":"Stammdaten_Analysenprogramm!V231","v":"k.A."},null,null,null,null,{"$error":"#VALUE!"},0,{"$error":"#VALUE!"},{"$error":"#VALUE!"}]
[{"$f":"IF(Stammdaten_Analysenprogramm!AG232>0,Stammdaten_Analysenprogramm!A232,\"\")","v":""},{"$f":"IF(Stammdaten_Analysenprogramm!AG232>0,Stammdaten_Analysenprogramm!C232,\"\")","v":""},"",null,null,null,null,null,null,null,null,null,null,null,null,{"$f":"Stammdaten_Analysenprogramm!AC232","v":{"$error":"#VALUE!"}},{"$f":"Stammdaten_Analysenprogramm!AD232","v":0},{"$f":"Stammdaten_Analysenprogramm!AB232","v":{"$error":"#VALUE!"}},{"$f":"Stammdaten_Analysenprogramm!V232","v":"k.A."},null,null,null,null,{"$error":"#VALUE!"},0,{"$error":"#VALUE!"},{"$error":"#VALUE!"}]
[{"$f":"IF(Stammdaten_Analysenprogramm!AG233>0,Stammdaten_Analysenprogramm!A233,\"\")","v":""},{"$f":"IF(Stammdaten_Analysenprogramm!AG233>0,Stammdaten_Analysenprogramm!C233,\"\")","v":""},"",null,null,null,null,null,null,null,null,null,null,null,null,{"$f":"Stammdaten_Analysenprogramm!AC233","v":{"$error":"#VALUE!"}},{"$f":"Stammdaten_Analysenprogramm!AD233","v":0},{"$f":"Stammdaten_Analysenprogramm!AB233","v":{"$error":"#VALUE!"}},{"$f":"Stammdaten_Analysenprogramm!V233","v":"k.A."},null,null,null,null,{"$error":"#VALUE!"},0,{"$error":"#VALUE!"},{"$error":"#VALUE!"}]
[{"$f":"IF(Stammdaten_Analysenprogramm!AG234>0,Stammdaten_Analysenprogramm!A234,\"\")","v":""},{"$f":"IF(Stammdaten_Analysenprogramm!AG234>0,Stammdaten_Analysenprogramm!C234,\"\")","v":""},"",null,null,null,null,null,null,null,null,null,null,null,null,{"$f":"Stammdaten_Analysenprogramm!AC234","v":{"$error":"#VALUE!"}},{"$f":"Stammdaten_Analysenprogramm!AD234","v":0},{"$f":"Stammdaten_Analysenprogramm!AB234","v":{"$error":"#VALUE!"}},{"$f":"Stammdaten_Analysenprogramm!V234","v":"k.A."},null,null,null,null,{"$error":"#VALUE!"},0,{"$error":"#VALUE!"},{"$error":"#VALUE!"}]
[{"$f":"IF(Stammdaten_Analysenprogramm!AG235>0,Stammdaten_Analysenprogramm!A235,\"\")","v":""},{"$f":"IF(Stammdaten_Analysenprogramm!AG235>0,Stammdaten_Analysenprogramm!C235,\"\")","v":""},"",null,null,null,null,null,null,null,null,null,null,null,null,{"$f":"Stammdaten_Analysenprogramm!AC235","v":{"$error":"#VALUE!"}},{"$f":"Stammdaten_Analysenprogramm!AD235","v":0},{"$f":"Stammdaten_Analysenprogramm!AB235","v":{"$error":"#VALUE!"}},{"$f":"Stammdaten_Analysenprogramm!V235","v":"k.A."},null,null,null,null,{"$error":"#VALUE!"},0,{"$error":"#VALUE!"},{"$error":"#VALUE!"}]
[{"$f":"IF(Stammdaten_Analysenprogramm!AG236>0,Stammdaten_Analysenprogramm!A236,\"\")","v":""},{"$f":"IF(Stammdaten_Analysenprogramm!AG236>0,Stammdaten_Analysenprogramm!C236,\"\")","v":""},"",null,null,null,null,null,null,null,null,null,null,null,null,{"$f":"Stammdaten_Analysenprogramm!AC236","v":{"$error":"#VALUE!"}},{"$f":"Stammdaten_Analysenprogramm!AD236","v":0},{"$f":"Stammdaten_Analysenprogramm!AB236","v":{"$error":"#VALUE!"}},{"$f":"Stammdaten_Analysenprogramm!V236","v":"k.A."},null,null,null,null,{"$error":"#VALUE!"},0,{"$error":"#VALUE!"},{"$error":"#VALUE!"}]
[{"$f":"IF(Stammdaten_Analysenprogramm!AG237>0,Stammdaten_Analysenprogramm!A237,\"\")","v":""},{"$f":"IF(Stammdaten_Analysenprogramm!AG237>0,Stammdaten_Analysenprogramm!C237,\"\")","v":""},"",null,null,null,null,null,null,null,null,null,null,null,null,{"$f":"Stammdaten_Analysenprogramm!AC237","v":{"$error":"#VALUE!"}},{"$f":"Stammdaten_Analysenprogramm!AD237","v":0},{"$f":"Stammdaten_Analysenprogramm!AB237","v":{"$error":"#VALUE!"}},{"$f":"Stammdaten_Analysenprogramm!V237","v":"k.A."},null,null,null,null,{"$error":"#VALUE!"},0,{"$error":"#VALUE!"},{"$error":"#VALUE!"}]
[{"$f":"IF(Stammdaten_Analysenprogramm!AG238>0,Stammdaten_Analysenprogramm!A238,\"\")","v":""},{"$f":"IF(Stammdaten_Analysenprogramm!AG238>0,Stammdaten_Analysenprogramm!C238,\"\")","v":""},"",null,null,null,null,null,null,null,null,null,null,null,null,{"$f":"Stammdaten_Analysenprogramm!AC238","v":{"$error":"#VALUE!"}},{"$f":"Stammdaten_Analysenprogramm!AD238","v":0},{"$f":"Stammdaten_Analysenprogramm!AB238","v":{"$error":"#VALUE!"}},{"$f":"Stammdaten_Analysenprogramm!V238","v":"k.A."},null,null,null,null,{"$error":"#VALUE!"},0,{"$error":"#VALUE!"},{"$error":"#VALUE!"}]
[{"$f":"IF(Stammdaten_Analysenprogramm!AG239>0,Stammdaten_Analysenprogramm!A239,\"\")","v":""},{"$f":"IF(Stammdaten_Analysenprogramm!AG239>0,Stammdaten_Analysenprogramm!C239,\"\")","v":""},"",null,null,null,null,null,null,null,null,null,null,null,null,{"$f":"Stammdaten_Analysenprogramm!AC239","v":{"$error":"#VALUE!"}},{"$f":"Stammdaten_Analysenprogramm!AD239","v":0},{"$f":"Stammdaten_Analysenprogramm!AB239","v":{"$error":"#VALUE!"}},{"$f":"Stammdaten_Analysenprogramm!V239","v":"k.A."},null,null,null,null,{"$error":"#VALUE!"},0,{"$error":"#VALUE!"},{"$error":"#VALUE!"}]
[{"$f":"IF(Stammdaten_Analysenprogramm!AG240>0,Stammdaten_Analysenprogramm!A240,\"\")","v":""},{"$f":"IF(Stammdaten_Analysenprogramm!AG240>0,Stammdaten_Analysenprogramm!C240,\"\")","v":""},"",null,null,null,null,null,null,null,null,null,null,null,null,{"$f":"Stammdaten_Analysenprogramm!AC240","v":{"$error":"#VALUE!"}},{"$f":"Stammdaten_Analysenprogramm!AD240","v":0},{"$f":"Stammdaten_Analysenprogramm!AB240","v":{"$error":"#VALUE!"}},{"$f":"Stammdaten_Analysenprogramm!V240","v":"k.A."},null,null,null,null,{"$error":"#VALUE!"},0,{"$error":"#VALUE!"},{"$error":"#VALUE!"}]
[{"$f":"IF(Stammdaten_Analysenprogramm!AG241>0,Stammdaten_Analysenprogramm!A241,\"\")","v":""},{"$f":"IF(Stammdaten_Analysenprogramm!AG241>0,Stammdaten_Analysenprogramm!C241,\"\")","v":""},"",null,null,null,null,null,null,null,null,null,null,null,null,{"$f":"Stammdaten_Analysenprogramm!AC241","v":{"$error":"#VALUE!"}},{"$f":"Stammdaten_Analysenprogramm!AD241","v":0},{"$f":"Stammdaten_Analysenprogramm!AB241","v":{"$error":"#VALUE!"}},{"$f":"Stammdaten_Analysenprogramm!V241","v":"k.A."},null,null,null,null,{"$error":"#VALUE!"},0,{"$error":"#VALUE!"},{"$error":"#VALUE!"}]
[{"$f":"IF(Stammdaten_Analysenprogramm!AG242>0,Stammdaten_Analysenprogramm!A242,\"\")","v":""},{"$f":"IF(Stammdaten_Analysenprogramm!AG242>0,Stammdaten_Analysenprogramm!C242,\"\")","v":""},"",null,null,null,null,null,null,null,null,null,null,null,null,{"$f":"Stammdaten_Analysenprogramm!AC242","v":{"$error":"#VALUE!"}},{"$f":"Stammdaten_Analysenprogramm!AD242","v":0},{"$f":"Stammdaten_Analysenprogramm!AB242","v":{"$error":"#VALUE!"}},{"$f":"Stammdaten_Analysenprogramm!V242","v":"k.A."},null,null,null,null,{"$error":"#VALUE!"},0,{"$error":"#VALUE!"},{"$error":"#VALUE!"}]
[{"$f":"IF(Stammdaten_Analysenprogramm!AG243>0,Stammdaten_Analysenprogramm!A243,\"\")","v":""},{"$f":"IF(Stammdaten_Analysenprogramm!AG243>0,Stammdaten_Analysenprogramm!C243,\"\")","v":""},"",null,null,null,null,null,null,null,null,null,null,null,null,{"$f":"Stammdaten_Analysenprogramm!AC243","v":{"$error":"#VALUE!"}},{"$f":"Stammdaten_Analysenprogramm!AD243","v":0},{"$f":"Stammdaten_Analysenprogramm!AB243","v":{"$error":"#VALUE!"}},{"$f":"Stammdaten_Analysenprogramm!V243","v":"k.A."},null,null,null,null,{"$error":"#VALUE!"},0,{"$error":"#VALUE!"},{"$error":"#VALUE!"}]
[{"$f":"IF(Stammdaten_Analysenprogramm!AG244>0,Stammdaten_Analysenprogramm!A244,\"\")","v":""},{"$f":"IF(Stammdaten_Analysenprogramm!AG244>0,Stammdaten_Analysenprogramm!C244,\"\")","v":""},"",null,null,null,null,null,null,null,null,null,null,null,null,{"$f":"Stammdaten_Analysenprogramm!AC244","v":{"$error":"#VALUE!"}},{"$f":"Stammdaten_Analysenprogramm!AD244","v":0},{"$f":"Stammdaten_Analysenprogramm!AB244","v":{"$error":"#VALUE!"}},{"$f":"Stammdaten_Analysenprogramm!V244","v":"k.A."},null,null,null,null,{"$error":"#VALUE!"},0,{"$error":"#VALUE!"},{"$error":"#VALUE!"}]
[{"$f":"IF(Stammdaten_Analysenprogramm!AG245>0,Stammdaten_Analysenprogramm!A245,\"\")","v":""},{"$f":"IF(Stammdaten_Analysenprogramm!AG245>0,Stammdaten_Analysenprogramm!C245,\"\")","v":""},"",null,null,null,null,null,null,null,null,null,null,null,null,{"$f":"Stammdaten_Analysenprogramm!AC245","v":{"$error":"#VALUE!"}},{"$f":"Stammdaten_Analysenprogramm!AD245","v":0},{"$f":"Stammdaten_Analysenprogramm!AB245","v":{"$error":"#VALUE!"}},{"$f":"Stammdaten_Analysenprogramm!V245","v":"k.A."},null,null,null,null,{"$error":"#VALUE!"},0,{"$error":"#VALUE!"},{"$error":"#VALUE!"}]
[{"$f":"IF(Stammdaten_Analysenprogramm!AG246>0,Stammdaten_Analysenprogramm!A246,\"\")","v":""},{"$f":"IF(Stammdaten_Analysenprogramm!AG246>0,Stammdaten_Analysenprogramm!C246,\"\")","v":""},"",null,null,null,null,null,null,null,null,null,null,null,null,{"$f":"Stammdaten_Analysenprogramm!AC246","v":{"$error":"#VALUE!"}},{"$f":"Stammdaten_Analysenprogramm!AD246","v":0},{"$f":"Stammdaten_Analysenprogramm!AB246","v":{"$error":"#VALUE!"}},{"$f":"Stammdaten_Analysenprogramm!V246","v":"k.A."},null,null,null,null,{"$error":"#VALUE!"},0,{"$error":"#VALUE!"},{"$error":"#VALUE!"}]
[{"$f":"IF(Stammdaten_Analysenprogramm!AG247>0,Stammdaten_Analysenprogramm!A247,\"\")","v":""},{"$f":"IF(Stammdaten_Analysenprogramm!AG247>0,Stammdaten_Analysenprogramm!C247,\"\")","v":""},"",null,null,null,null,null,null,null,null,null,null,null,null,{"$f":"Stammdaten_Analysenprogramm!AC247","v":{"$error":"#VALUE!"}},{"$f":"Stammdaten_Analysenprogramm!AD247","v":0},{"$f":"Stammdaten_Analysenprogramm!AB247","v":{"$error":"#VALUE!"}},{"$f":"Stammdaten_Analysenprogramm!V247","v":"k.A."},null,null,null,null,{"$error":"#VALUE!"},0,{"$error":"#VALUE!"},{"$error":"#VALUE!"}]
[{"$f":"IF(Stammdaten_Analysenprogramm!AG248>0,Stammdaten_Analysenprogramm!A248,\"\")","v":""},{"$f":"IF(Stammdaten_Analysenprogramm!AG248>0,Stammdaten_Analysenprogramm!C248,\"\")","v":""},"",null,null,null,null,null,null,null,null,null,null,null,null,{"$f":"Stammdaten_Analysenprogramm!AC248","v":{"$error":"#VALUE!"}},{"$f":"Stammdaten_Analysenprogramm!AD248","v":0},{"$f":"Stammdaten_Analysenprogramm!AB248","v":{"$error":"#VALUE!"}},{"$f":"Stammdaten_Analysenprogramm!V248","v":"k.A."},null,null,null,null,{"$error":"#VALUE!"},0,{"$error":"#VALUE!"},{"$error":"#VALUE!"}]
[{"$f":"IF(Stammdaten_Analysenprogramm!AG249>0,Stammdaten_Analysenprogramm!A249,\"\")","v":""},{"$f":"IF(Stammdaten_Analysenprogramm!AG249>0,Stammdaten_Analysenprogramm!C249,\"\")","v":""},"",null,null,null,null,null,null,null,null,null,null,null,null,{"$f":"Stammdaten_Analysenprogramm!AC249","v":{"$error":"#VALUE!"}},{"$f":"Stammdaten_Analysenprogramm!AD249","v":0},{"$f":"Stammdaten_Analysenprogramm!AB249","v":{"$error":"#VALUE!"}},{"$f":"Stammdaten_Analysenprogramm!V249","v":"k.A."},null,null,null,null,{"$error":"#VALUE!"},0,{"$error":"#VALUE!"},{"$error":"#VALUE!"}]
[{"$f":"IF(Stammdaten_Analysenprogramm!AG250>0,Stammdaten_Analysenprogramm!A250,\"\")","v":""},{"$f":"IF(Stammdaten_Analysenprogramm!AG250>0,Stammdaten_Analysenprogramm!C250,\"\")","v":""},"",null,null,null,null,null,null,null,null,null,null,null,null,{"$f":"Stammdaten_Analysenprogramm!AC250","v":{"$error":"#VALUE!"}},{"$f":"Stammdaten_Analysenprogramm!AD250","v":0},{"$f":"Stammdaten_Analysenprogramm!AB250","v":{"$error":"#VALUE!"}},{"$f":"Stammdaten_Analysenprogramm!V250","v":"k.A."},null,null,null,null,{"$error":"#VALUE!"},0,{"$error":"#VALUE!"},{"$error":"#VALUE!"}]
[{"$f":"IF(Stammdaten_Analysenprogramm!AG251>0,Stammdaten_Analysenprogramm!A251,\"\")","v":""},{"$f":"IF(Stammdaten_Analysenprogramm!AG251>0,Stammdaten_Analysenprogramm!C251,\"\")","v":""},"",null,null,null,null,null,null,null,null,null,null,null,null,{"$f":"Stammdaten_Analysenprogramm!AC251","v":{"$error":"#VALUE!"}},{"$f":"Stammdaten_Analysenprogramm!AD251","v":0},{"$f":"Stammdaten_Analysenprogramm!AB251","v":{"$error":"#VALUE!"}},{"$f":"Stammdaten_Analysenprogramm!V251","v":"k.A."},null,null,null,null,{"$error":"#VALUE!"},0,{"$error":"#VALUE!"},{"$error":"#VALUE!"}]
[{"$f":"IF(Stammdaten_Analysenprogramm!AG252>0,Stammdaten_Analysenprogramm!A252,\"\")","v":""},{"$f":"IF(Stammdaten_Analysenprogramm!AG252>0,Stammdaten_Analysenprogramm!C252,\"\")","v":""},"",null,null,null,null,null,null,null,null,null,null,null,null,{"$f":"Stammdaten_Analysenprogramm!AC252","v":{"$error":"#VALUE!"}},{"$f":"Stammdaten_Analysenprogramm!AD252","v":0},{"$f":"Stammdaten_Analysenprogramm!AB252","v":{"$error":"#VALUE!"}},{"$f":"Stammdaten_Analysenprogramm!V252","v":"k.A."},null,null,null,null,{"$error":"#VALUE!"},0,{"$error":"#VALUE!"},{"$error":"#VALUE!"}]
[{"$f":"IF(Stammdaten_Analysenprogramm!AG253>0,Stammdaten_Analysenprogramm!A253,\"\")","v":""},{"$f":"IF(Stammdaten_Analysenprogramm!AG253>0,Stammdaten_Analysenprogramm!C253,\"\")","v":""},"",null,null,null,null,null,null,null,null,null,null,null,null,{"$f":"Stammdaten_Analysenprogramm!AC253","v":{"$error":"#VALUE!"}},{"$f":"Stammdaten_Analysenprogramm!AD253","v":0},{"$f":"Stammdaten_Analysenprogramm!AB253","v":{"$error":"#VALUE!"}},{"$f":"Stammdaten_Analysenprogramm!V253","v":"k.A."},null,null,null,null,{"$error":"#VALUE!"},0,{"$error":"#VALUE!"},{"$error":"#VALUE!"}]
[{"$f":"IF(Stammdaten_Analysenprogramm!AG254>0,Stammdaten_Analysenprogramm!A254,\"\")","v":""},{"$f":"IF(Stammdaten_Analysenprogramm!AG254>0,Stammdaten_Analysenprogramm!C254,\"\")","v":""},"",null,null,null,null,null,null,null,null,null,null,null,null,{"$f":"Stammdaten_Analysenprogramm!AC254","v":{"$error":"#VALUE!"}},{"$f":"Stammdaten_Analysenprogramm!AD254","v":0},{"$f":"Stammdaten_Analysenprogramm!AB254","v":{"$error":"#VALUE!"}},{"$f":"Stammdaten_Analysenprogramm!V254","v":"k.A."},null,null,null,null,{"$error":"#VALUE!"},0,{"$error":"#VALUE!"},{"$error":"#VALUE!"}]
[{"$f":"IF(Stammdaten_Analysenprogramm!AG255>0,Stammdaten_Analysenprogramm!A255,\"\")","v":""},{"$f":"IF(Stammdaten_Analysenprogramm!AG255>0,Stammdaten_Analysenprogramm!C255,\"\")","v":""},"",null,null,null,null,null,null,null,null,null,null,null,null,{"$f":"Stammdaten_Analysenprogramm!AC255","v":{"$error":"#VALUE!"}},{"$f":"Stammdaten_Analysenprogramm!AD255","v":0},{"$f":"Stammdaten_Analysenprogramm!AB255","v":{"$error":"#VALUE!"}},{"$f":"Stammdaten_Analysenprogramm!V255","v":"k.A."},null,null,null,null,{"$error":"#VALUE!"},0,{"$error":"#VALUE!"},{"$error":"#VALUE!"}]
[{"$f":"IF(Stammdaten_Analysenprogramm!AG256>0,Stammdaten_Analysenprogramm!A256,\"\")","v":""},{"$f":"IF(Stammdaten_Analysenprogramm!AG256>0,Stammdaten_Analysenprogramm!C256,\"\")","v":""},"",null,null,null,null,null,null,null,null,null,null,null,null,{"$f":"Stammdaten_Analysenprogramm!AC256","v":{"$error":"#VALUE!"}},{"$f":"Stammdaten_Analysenprogramm!AD256","v":0},{"$f":"Stammdaten_Analysenprogramm!AB256","v":{"$error":"#VALUE!"}},{"$f":"Stammdaten_Analysenprogramm!V256","v":"k.A."},null,null,null,null,{"$error":"#VALUE!"},0,{"$error":"#VALUE!"},{"$error":"#VALUE!"}]
[{"$f":"IF(Stammdaten_Analysenprogramm!AG257>0,Stammdaten_Analysenprogramm!A257,\"\")","v":""},{"$f":"IF(Stammdaten_Analysenprogramm!AG257>0,Stammdaten_Analysenprogramm!C257,\"\")","v":""},"",null,null,null,null,null,null,null,null,null,null,null,null,{"$f":"Stammdaten_Analysenprogramm!AC257","v":{"$error":"#VALUE!"}},{"$f":"Stammdaten_Analysenprogramm!AD257","v":0},{"$f":"Stammdaten_Analysenprogramm!AB257","v":{"$error":"#VALUE!"}},{"$f":"Stammdaten_Analysenprogramm!V257","v":"k.A."},null,null,null,null,{"$error":"#VALUE!"},0,{"$error":"#VALUE!"},{"$error":"#VALUE!"}]
[{"$f":"IF(Stammdaten_Analysenprogramm!AG258>0,Stammdaten_Analysenprogramm!A258,\"\")","v":""},{"$f":"IF(Stammdaten_Analysenprogramm!AG258>0,Stammdaten_Analysenprogramm!C258,\"\")","v":""},"",null,null,null,null,null,null,null,null,null,null,null,null,{"$f":"Stammdaten_Analysenprogramm!AC258","v":{"$error":"#VALUE!"}},{"$f":"Stammdaten_Analysenprogramm!AD258","v":0},{"$f":"Stammdaten_Analysenprogramm!AB258","v":{"$error":"#VALUE!"}},{"$f":"Stammdaten_Analysenprogramm!V258","v":"k.A."},null,null,null,null,{"$error":"#VALUE!"},0,{"$error":"#VALUE!"},{"$error":"#VALUE!"}]
[{"$f":"IF(Stammdaten_Analysenprogramm!AG259>0,Stammdaten_Analysenprogramm!A259,\"\")","v":""},{"$f":"IF(Stammdaten_Analysenprogramm!AG259>0,Stammdaten_Analysenprogramm!C259,\"\")","v":""},"",null,null,null,null,null,null,null,null,null,null,null,null,{"$f":"Stammdaten_Analysenprogramm!AC259","v":{"$error":"#VALUE!"}},{"$f":"Stammdaten_Analysenprogramm!AD259","v":0},{"$f":"Stammdaten_Analysenprogramm!AB259","v":{"$error":"#VALUE!"}},{"$f":"Stammdaten_Analysenprogramm!V259","v":"k.A."},null,null,null,null,{"$error":"#VALUE!"},0,{"$error":"#VALUE!"},{"$error":"#VALUE!"}]
[{"$f":"IF(Stammdaten_Analysenprogramm!AG260>0,Stammdaten_Analysenprogramm!A260,\"\")","v":""},{"$f":"IF(Stammdaten_Analysenprogramm!AG260>0,Stammdaten_Analysenprogramm!C260,\"\")","v":""},"",null,null,null,null,null,null,null,null,null,null,null,null,{"$f":"Stammdaten_Analysenprogramm!AC260","v":{"$error":"#VALUE!"}},{"$f":"Stammdaten_Analysenprogramm!AD260","v":0},{"$f":"Stammdaten_Analysenprogramm!AB260","v":{"$error":"#VALUE!"}},{"$f":"Stammdaten_Analysenprogramm!V260","v":"k.A."},null,null,null,null,{"$error":"#VALUE!"},0,{"$error":"#VALUE!"},{"$error":"#VALUE!"}]
[{"$f":"IF(Stammdaten_Analysenprogramm!AG261>0,Stammdaten_Analysenprogramm!A261,\"\")","v":""},{"$f":"IF(Stammdaten_Analysenprogramm!AG261>0,Stammdaten_Analysenprogramm!C261,\"\")","v":""},"",null,null,null,null,null,null,null,null,null,null,null,null,{"$f":"Stammdaten_Analysenprogramm!AC261","v":{"$error":"#VALUE!"}},{"$f":"Stammdaten_Analysenprogramm!AD261","v":0},{"$f":"Stammdaten_Analysenprogramm!AB261","v":{"$error":"#VALUE!"}},{"$f":"Stammdaten_Analysenprogramm!V261","v":"k.A."},null,null,null,null,{"$error":"#VALUE!"},0,{"$error":"#VALUE!"},{"$error":"#VALUE!"}]
[{"$f":"IF(Stammdaten_Analysenprogramm!AG262>0,Stammdaten_Analysenprogramm!A262,\"\")","v":""},{"$f":"IF(Stammdaten_Analysenprogramm!AG262>0,Stammdaten_Analysenprogramm!C262,\"\")","v":""},"",null,null,null,null,null,null,null,null,null,null,null,null,{"$f":"Stammdaten_Analysenprogramm!AC262","v":{"$error":"#VALUE!"}},{"$f":"Stammdaten_Analysenprogramm!AD262","v":0},{"$f":"Stammdaten_Analysenprogramm!AB262","v":{"$error":"#VALUE!"}},{"$f":"Stammdaten_Analysenprogramm!V262","v":"k.A."},null,null,null,null,{"$error":"#VALUE!"},0,{"$error":"#VALUE!"},{"$error":"#VALUE!"}]
[{"$f":"IF(Stammdaten_Analysenprogramm!AG263>0,Stammdaten_Analysenprogramm!A263,\"\")","v":""},{"$f":"IF(Stammdaten_Analysenprogramm!AG263>0,Stammdaten_Analysenprogramm!C263,\"\")","v":""},"",null,null,null,null,null,null,null,null,null,null,null,null,{"$f":"Stammdaten_Analysenprogramm!AC263","v":{"$error":"#VALUE!"}},{"$f":"Stammdaten_Analysenprogramm!AD263","v":0},{"$f":"Stammdaten_Analysenprogramm!AB263","v":{"$error":"#VALUE!"}},{"$f":"Stammdaten_Analysenprogramm!V263","v":"k.A."},null,null,null,null,{"$error":"#VALUE!"},0,{"$error":"#VALUE!"},{"$error":"#VALUE!"}]
[{"$f":"IF(Stammdaten_Analysenprogramm!AG264>0,Stammdaten_Analysenprogramm!A264,\"\")","v":""},{"$f":"IF(Stammdaten_Analysenprogramm!AG264>0,Stammdaten_Analysenprogramm!C264,\"\")","v":""},{"$f":"A263","v":""},null,null,null,null,null,null,null,null,null,null,null,null,{"$f":"Stammdaten_Analysenprogramm!AC264","v":{"$error":"#VALUE!"}},{"$f":"Stammdaten_Analysenprogramm!AD264","v":0},{"$f":"Stammdaten_Analysenprogramm!AB264","v":{"$error":"#VALUE!"}},{"$f":"Stammdaten_Analysenprogramm!V264","v":"k.A."},null,null,null,null,{"$error":"#VALUE!"},0,{"$error":"#VALUE!"},{"$error":"#VALUE!"}]
[{"$f":"IF(Stammdaten_Analysenprogramm!AG265>0,Stammdaten_Analysenprogramm!A265,\"\")","v":""},{"$f":"IF(Stammdaten_Analysenprogramm!AG265>0,Stammdaten_Analysenprogramm!C265,\"\")","v":""},"",null,null,null,null,null,null,null,null,null,null,null,null,{"$f":"Stammdaten_Analysenprogramm!AC265","v":{"$error":"#VALUE!"}},{"$f":"Stammdaten_Analysenprogramm!AD265","v":0},{"$f":"Stammdaten_Analysenprogramm!AB265","v":{"$error":"#VALUE!"}},{"$f":"Stammdaten_Analysenprogramm!V265","v":"k.A."},null,null,null,null,{"$error":"#VALUE!"},0,{"$error":"#VALUE!"},{"$error":"#VALUE!"}]
[{"$f":"IF(Stammdaten_Analysenprogramm!AG266>0,Stammdaten_Analysenprogramm!A266,\"\")","v":""},{"$f":"IF(Stammdaten_Analysenprogramm!AG266>0,Stammdaten_Analysenprogramm!C266,\"\")","v":""},"",null,null,null,null,null,null,null,null,null,null,null,null,{"$f":"Stammdaten_Analysenprogramm!AC266","v":{"$error":"#VALUE!"}},{"$f":"Stammdaten_Analysenprogramm!AD266","v":0},{"$f":"Stammdaten_Analysenprogramm!AB266","v":{"$error":"#VALUE!"}},{"$f":"Stammdaten_Analysenprogramm!V266","v":"k.A."},null,null,null,null,{"$error":"#VALUE!"},0,{"$error":"#VALUE!"},{"$error":"#VALUE!"}]

{"sheet":"STGW","index":2,"n_rows":264,"n_cols":13,"rows_kept":264,"cut":false,"hidden":false,"merged":[]}
["LONGNAME","INVNAME","SMPNAME","ROK_AKTNHN","SMPDATE","SMPTIME","ULABOR","BEARBEITER","GERAET","BEMERKUNG","LOTUNG","WASSPROK","WASSPNHN"]
["Pegelbezeichnung","Name des Messpunktes (GeODin)","Probename","Höhe ROK","Datum\nMessung","Uhrzeit\nMessung","Unter-\nsuchungs-\nlabor","Bearbeiter","Mess-\ngerät","Bemerkung \n(Proben.)","Teufen-\nLotung","Ruhewasserstand","Ruhewasserstand"]
[null,null,null,"mNN/ NHN","TT.MM.JJJJ","hh:mm","","","","","m","m uROK","mNN/ NHN"]
["Formel","Formel","Übertrag","Formel","Eingabe","Eingabe","Eingabe","Eingabe","Eingabe","Eingabe","Eingabe","Eingabe","Formel"]
[{"$f":"IF(Stammdaten_Analysenprogramm!AE7=\"Ja\",Stammdaten_Analysenprogramm!A7,\"\")","v":"Beispiel GWMS XX/XX"},{"$f":"IF(Stammdaten_Analysenprogramm!AE7=\"Ja\",Stammdaten_Analysenprogramm!C7,\"\")","v":"GWMS XX/XX (FOK - FUK m)"},{"$f":"A5","v":"Beispiel GWMS XX/XX"},{"$f":"IF(A5=\"\",\"\",IF(ISNUMBER(Stammdaten_Analysenprogramm!F7),Stammdaten_Analysenprogramm!F7,\"fehlt\"))","v":31},null,null,null,null,null,null,null,3.5,{"$f":"IF(AND(ISNUMBER(L5),ISNUMBER(D5)),D5-L5,\"\")","v":27.5}]
[{"$f":"IF(Stammdaten_Analysenprogramm!AE8=\"Ja\",Stammdaten_Analysenprogramm!A8,\"\")","v":""},{"$f":"IF(Stammdaten_Analysenprogramm!AE8=\"Ja\",Stammdaten_Analysenprogramm!C8,\"\")","v":""},{"$f":"A6","v":""},{"$f":"IF(A6=\"\",\"\",IF(ISNUMBER(Stammdaten_Analysenprogramm!F8),Stammdaten_Analysenprogramm!F8,\"fehlt\"))","v":""},null,null,null,null,null,null,null,null,{"$f":"IF(AND(ISNUMBER(L6),ISNUMBER(D6)),D6-L6,\"\")","v":""}]
[{"$f":"IF(Stammdaten_Analysenprogramm!AE9=\"Ja\",Stammdaten_Analysenprogramm!A9,\"\")","v":""},{"$f":"IF(Stammdaten_Analysenprogramm!AE9=\"Ja\",Stammdaten_Analysenprogramm!C9,\"\")","v":""},"",{"$f":"IF(A7=\"\",\"\",IF(ISNUMBER(Stammdaten_Analysenprogramm!F9),Stammdaten_Analysenprogramm!F9,\"fehlt\"))","v":""},null,null,null,null,null,null,null,null,""]
[{"$f":"IF(Stammdaten_Analysenprogramm!AE10=\"Ja\",Stammdaten_Analysenprogramm!A10,\"\")","v":""},{"$f":"IF(Stammdaten_Analysenprogramm!AE10=\"Ja\",Stammdaten_Analysenprogramm!C10,\"\")","v":""},"",{"$f":"IF(A8=\"\",\"\",IF(ISNUMBER(Stammdaten_Analysenprogramm!F10),Stammdaten_Analysenprogramm!F10,\"fehlt\"))","v":""},null,null,null,null,null,null,null,null,""]
[{"$f":"IF(Stammdaten_Analysenprogramm!AE11=\"Ja\",Stammdaten_Analysenprogramm!A11,\"\")","v":""},{"$f":"IF(Stammdaten_Analysenprogramm!AE11=\"Ja\",Stammdaten_Analysenprogramm!C11,\"\")","v":""},"",{"$f":"IF(A9=\"\",\"\",IF(ISNUMBER(Stammdaten_Analysenprogramm!F11),Stammdaten_Analysenprogramm!F11,\"fehlt\"))","v":""},null,null,null,null,null,null,null,null,""]
[{"$f":"IF(Stammdaten_Analysenprogramm!AE12=\"Ja\",Stammdaten_Analysenprogramm!A12,\"\")","v":""},{"$f":"IF(Stammdaten_Analysenprogramm!AE12=\"Ja\",Stammdaten_Analysenprogramm!C12,\"\")","v":""},"",{"$f":"IF(A10=\"\",\"\",IF(ISNUMBER(Stammdaten_Analysenprogramm!F12),Stammdaten_Analysenprogramm!F12,\"fehlt\"))","v":""},null,null,null,null,null,null,null,null,""]
[{"$f":"IF(Stammdaten_Analysenprogramm!AE13=\"Ja\",Stammdaten_Analysenprogramm!A13,\"\")","v":""},{"$f":"IF(Stammdaten_Analysenprogramm!AE13=\"Ja\",Stammdaten_Analysenprogramm!C13,\"\")","v":""},"",{"$f":"IF(A11=\"\",\"\",IF(ISNUMBER(Stammdaten_Analysenprogramm!F13),Stammdaten_Analysenprogramm!F13,\"fehlt\"))","v":""},null,null,null,null,null,null,null,null,""]
[{"$f":"IF(Stammdaten_Analysenprogramm!AE14=\"Ja\",Stammdaten_Analysenprogramm!A14,\"\")","v":""},{"$f":"IF(Stammdaten_Analysenprogramm!AE14=\"Ja\",Stammdaten_Analysenprogramm!C14,\"\")","v":""},"",{"$f":"IF(A12=\"\",\"\",IF(ISNUMBER(Stammdaten_Analysenprogramm!F14),Stammdaten_Analysenprogramm!F14,\"fehlt\"))","v":""},null,null,null,null,null,null,null,null,""]
[{"$f":"IF(Stammdaten_Analysenprogramm!AE15=\"Ja\",Stammdaten_Analysenprogramm!A15,\"\")","v":""},{"$f":"IF(Stammdaten_Analysenprogramm!AE15=\"Ja\",Stammdaten_Analysenprogramm!C15,\"\")","v":""},"",{"$f":"IF(A13=\"\",\"\",IF(ISNUMBER(Stammdaten_Analysenprogramm!F15),Stammdaten_Analysenprogramm!F15,\"fehlt\"))","v":""},null,null,null,null,null,null,null,null,""]
[{"$f":"IF(Stammdaten_Analysenprogramm!AE16=\"Ja\",Stammdaten_Analysenprogramm!A16,\"\")","v":""},{"$f":"IF(Stammdaten_Analysenprogramm!AE16=\"Ja\",Stammdaten_Analysenprogramm!C16,\"\")","v":""},"",{"$f":"IF(A14=\"\",\"\",IF(ISNUMBER(Stammdaten_Analysenprogramm!F16),Stammdaten_Analysenprogramm!F16,\"fehlt\"))","v":""},null,null,null,null,null,null,null,null,""]
[{"$f":"IF(Stammdaten_Analysenprogramm!AE17=\"Ja\",Stammdaten_Analysenprogramm!A17,\"\")","v":""},{"$f":"IF(Stammdaten_Analysenprogramm!AE17=\"Ja\",Stammdaten_Analysenprogramm!C17,\"\")","v":""},"",{"$f":"IF(A15=\"\",\"\",IF(ISNUMBER(Stammdaten_Analysenprogramm!F17),Stammdaten_Analysenprogramm!F17,\"fehlt\"))","v":""},null,null,null,null,null,null,null,null,""]
[{"$f":"IF(Stammdaten_Analysenprogramm!AE18=\"Ja\",Stammdaten_Analysenprogramm!A18,\"\")","v":""},{"$f":"IF(Stammdaten_Analysenprogramm!AE18=\"Ja\",Stammdaten_Analysenprogramm!C18,\"\")","v":""},"",{"$f":"IF(A16=\"\",\"\",IF(ISNUMBER(Stammdaten_Analysenprogramm!F18),Stammdaten_Analysenprogramm!F18,\"fehlt\"))","v":""},null,null,null,null,null,null,null,null,""]
[{"$f":"IF(Stammdaten_Analysenprogramm!AE19=\"Ja\",Stammdaten_Analysenprogramm!A19,\"\")","v":""},{"$f":"IF(Stammdaten_Analysenprogramm!AE19=\"Ja\",Stammdaten_Analysenprogramm!C19,\"\")","v":""},"",{"$f":"IF(A17=\"\",\"\",IF(ISNUMBER(Stammdaten_Analysenprogramm!F19),Stammdaten_Analysenprogramm!F19,\"fehlt\"))","v":""},null,null,null,null,null,null,null,null,""]
[{"$f":"IF(Stammdaten_Analysenprogramm!AE20=\"Ja\",Stammdaten_Analysenprogramm!A20,\"\")","v":""},{"$f":"IF(Stammdaten_Analysenprogramm!AE20=\"Ja\",Stammdaten_Analysenprogramm!C20,\"\")","v":""},"",{"$f":"IF(A18=\"\",\"\",IF(ISNUMBER(Stammdaten_Analysenprogramm!F20),Stammdaten_Analysenprogramm!F20,\"fehlt\"))","v":""},null,null,null,null,null,null,null,null,""]
[{"$f":"IF(Stammdaten_Analysenprogramm!AE21=\"Ja\",Stammdaten_Analysenprogramm!A21,\"\")","v":""},{"$f":"IF(Stammdaten_Analysenprogramm!AE21=\"Ja\",Stammdaten_Analysenprogramm!C21,\"\")","v":""},"",{"$f":"IF(A19=\"\",\"\",IF(ISNUMBER(Stammdaten_Analysenprogramm!F21),Stammdaten_Analysenprogramm!F21,\"fehlt\"))","v":""},null,null,null,null,null,null,null,null,""]
[{"$f":"IF(Stammdaten_Analysenprogramm!AE22=\"Ja\",Stammdaten_Analysenprogramm!A22,\"\")","v":""},{"$f":"IF(Stammdaten_Analysenprogramm!AE22=\"Ja\",Stammdaten_Analysenprogramm!C22,\"\")","v":""},"",{"$f":"IF(A20=\"\",\"\",IF(ISNUMBER(Stammdaten_Analysenprogramm!F22),Stammdaten_Analysenprogramm!F22,\"fehlt\"))","v":""},null,null,null,null,null,null,null,null,""]
[{"$f":"IF(Stammdaten_Analysenprogramm!AE23=\"Ja\",Stammdaten_Analysenprogramm!A23,\"\")","v":""},{"$f":"IF(Stammdaten_Analysenprogramm!AE23=\"Ja\",Stammdaten_Analysenprogramm!C23,\"\")","v":""},"",{"$f":"IF(A21=\"\",\"\",IF(ISNUMBER(Stammdaten_Analysenprogramm!F23),Stammdaten_Analysenprogramm!F23,\"fehlt\"))","v":""},null,null,null,null,null,null,null,null,""]
[{"$f":"IF(Stammdaten_Analysenprogramm!AE24=\"Ja\",Stammdaten_Analysenprogramm!A24,\"\")","v":""},{"$f":"IF(Stammdaten_Analysenprogramm!AE24=\"Ja\",Stammdaten_Analysenprogramm!C24,\"\")","v":""},"",{"$f":"IF(A22=\"\",\"\",IF(ISNUMBER(Stammdaten_Analysenprogramm!F24),Stammdaten_Analysenprogramm!F24,\"fehlt\"))","v":""},null,null,null,null,null,null,null,null,""]
[{"$f":"IF(Stammdaten_Analysenprogramm!AE25=\"Ja\",Stammdaten_Analysenprogramm!A25,\"\")","v":""},{"$f":"IF(Stammdaten_Analysenprogramm!AE25=\"Ja\",Stammdaten_Analysenprogramm!C25,\"\")","v":""},"",{"$f":"IF(A23=\"\",\"\",IF(ISNUMBER(Stammdaten_Analysenprogramm!F25),Stammdaten_Analysenprogramm!F25,\"fehlt\"))","v":""},null,null,null,null,null,null,null,null,""]
[{"$f":"IF(Stammdaten_Analysenprogramm!AE26=\"Ja\",Stammdaten_Analysenprogramm!A26,\"\")","v":""},{"$f":"IF(Stammdaten_Analysenprogramm!AE26=\"Ja\",Stammdaten_Analysenprogramm!C26,\"\")","v":""},"",{"$f":"IF(A24=\"\",\"\",IF(ISNUMBER(Stammdaten_Analysenprogramm!F26),Stammdaten_Analysenprogramm!F26,\"fehlt\"))","v":""},null,null,null,null,null,null,null,null,""]
[{"$f":"IF(Stammdaten_Analysenprogramm!AE27=\"Ja\",Stammdaten_Analysenprogramm!A27,\"\")","v":""},{"$f":"IF(Stammdaten_Analysenprogramm!AE27=\"Ja\",Stammdaten_Analysenprogramm!C27,\"\")","v":""},"",{"$f":"IF(A25=\"\",\"\",IF(ISNUMBER(Stammdaten_Analysenprogramm!F27),Stammdaten_Analysenprogramm!F27,\"fehlt\"))","v":""},null,null,null,null,null,null,null,null,""]
[{"$f":"IF(Stammdaten_Analysenprogramm!AE28=\"Ja\",Stammdaten_Analysenprogramm!A28,\"\")","v":""},{"$f":"IF(Stammdaten_Analysenprogramm!AE28=\"Ja\",Stammdaten_Analysenprogramm!C28,\"\")","v":""},"",{"$f":"IF(A26=\"\",\"\",IF(ISNUMBER(Stammdaten_Analysenprogramm!F28),Stammdaten_Analysenprogramm!F28,\"fehlt\"))","v":""},null,null,null,null,null,null,null,null,""]
[{"$f":"IF(Stammdaten_Analysenprogramm!AE29=\"Ja\",Stammdaten_Analysenprogramm!A29,\"\")","v":""},{"$f":"IF(Stammdaten_Analysenprogramm!AE29=\"Ja\",Stammdaten_Analysenprogramm!C29,\"\")","v":""},"",{"$f":"IF(A27=\"\",\"\",IF(ISNUMBER(Stammdaten_Analysenprogramm!F29),Stammdaten_Analysenprogramm!F29,\"fehlt\"))","v":""},null,null,null,null,null,null,null,null,""]
[{"$f":"IF(Stammdaten_Analysenprogramm!AE30=\"Ja\",Stammdaten_Analysenprogramm!A30,\"\")","v":""},{"$f":"IF(Stammdaten_Analysenprogramm!AE30=\"Ja\",Stammdaten_Analysenprogramm!C30,\"\")","v":""},"",{"$f":"IF(A28=\"\",\"\",IF(ISNUMBER(Stammdaten_Analysenprogramm!F30),Stammdaten_Analysenprogramm!F30,\"fehlt\"))","v":""},null,null,null,null,null,null,null,null,""]
[{"$f":"IF(Stammdaten_Analysenprogramm!AE31=\"Ja\",Stammdaten_Analysenprogramm!A31,\"\")","v":""},{"$f":"IF(Stammdaten_Analysenprogramm!AE31=\"Ja\",Stammdaten_Analysenprogramm!C31,\"\")","v":""},"",{"$f":"IF(A29=\"\",\"\",IF(ISNUMBER(Stammdaten_Analysenprogramm!F31),Stammdaten_Analysenprogramm!F31,\"fehlt\"))","v":""},null,null,null,null,null,null,null,null,""]
[{"$f":"IF(Stammdaten_Analysenprogramm!AE32=\"Ja\",Stammdaten_Analysenprogramm!A32,\"\")","v":""},{"$f":"IF(Stammdaten_Analysenprogramm!AE32=\"Ja\",Stammdaten_Analysenprogramm!C32,\"\")","v":""},"",{"$f":"IF(A30=\"\",\"\",IF(ISNUMBER(Stammdaten_Analysenprogramm!F32),Stammdaten_Analysenprogramm!F32,\"fehlt\"))","v":""},null,null,null,null,null,null,null,null,""]
[{"$f":"IF(Stammdaten_Analysenprogramm!AE33=\"Ja\",Stammdaten_Analysenprogramm!A33,\"\")","v":""},{"$f":"IF(Stammdaten_Analysenprogramm!AE33=\"Ja\",Stammdaten_Analysenprogramm!C33,\"\")","v":""},"",{"$f":"IF(A31=\"\",\"\",IF(ISNUMBER(Stammdaten_Analysenprogramm!F33),Stammdaten_Analysenprogramm!F33,\"fehlt\"))","v":""},null,null,null,null,null,null,null,null,""]
[{"$f":"IF(Stammdaten_Analysenprogramm!AE34=\"Ja\",Stammdaten_Analysenprogramm!A34,\"\")","v":""},{"$f":"IF(Stammdaten_Analysenprogramm!AE34=\"Ja\",Stammdaten_Analysenprogramm!C34,\"\")","v":""},"",{"$f":"IF(A32=\"\",\"\",IF(ISNUMBER(Stammdaten_Analysenprogramm!F34),Stammdaten_Analysenprogramm!F34,\"fehlt\"))","v":""},null,null,null,null,null,null,null,null,""]
[{"$f":"IF(Stammdaten_Analysenprogramm!AE35=\"Ja\",Stammdaten_Analysenprogramm!A35,\"\")","v":""},{"$f":"IF(Stammdaten_Analysenprogramm!AE35=\"Ja\",Stammdaten_Analysenprogramm!C35,\"\")","v":""},"",{"$f":"IF(A33=\"\",\"\",IF(ISNUMBER(Stammdaten_Analysenprogramm!F35),Stammdaten_Analysenprogramm!F35,\"fehlt\"))","v":""},null,null,null,null,null,null,null,null,""]
[{"$f":"IF(Stammdaten_Analysenprogramm!AE36=\"Ja\",Stammdaten_Analysenprogramm!A36,\"\")","v":""},{"$f":"IF(Stammdaten_Analysenprogramm!AE36=\"Ja\",Stammdaten_Analysenprogramm!C36,\"\")","v":""},"",{"$f":"IF(A34=\"\",\"\",IF(ISNUMBER(Stammdaten_Analysenprogramm!F36),Stammdaten_Analysenprogramm!F36,\"fehlt\"))","v":""},null,null,null,null,null,null,null,null,""]
[{"$f":"IF(Stammdaten_Analysenprogramm!AE37=\"Ja\",Stammdaten_Analysenprogramm!A37,\"\")","v":""},{"$f":"IF(Stammdaten_Analysenprogramm!AE37=\"Ja\",Stammdaten_Analysenprogramm!C37,\"\")","v":""},"",{"$f":"IF(A35=\"\",\"\",IF(ISNUMBER(Stammdaten_Analysenprogramm!F37),Stammdaten_Analysenprogramm!F37,\"fehlt\"))","v":""},null,null,null,null,null,null,null,null,""]
[{"$f":"IF(Stammdaten_Analysenprogramm!AE38=\"Ja\",Stammdaten_Analysenprogramm!A38,\"\")","v":""},{"$f":"IF(Stammdaten_Analysenprogramm!AE38=\"Ja\",Stammdaten_Analysenprogramm!C38,\"\")","v":""},"",{"$f":"IF(A36=\"\",\"\",IF(ISNUMBER(Stammdaten_Analysenprogramm!F38),Stammdaten_Analysenprogramm!F38,\"fehlt\"))","v":""},null,null,null,null,null,null,null,null,""]
[{"$f":"IF(Stammdaten_Analysenprogramm!AE39=\"Ja\",Stammdaten_Analysenprogramm!A39,\"\")","v":""},{"$f":"IF(Stammdaten_Analysenprogramm!AE39=\"Ja\",Stammdaten_Analysenprogramm!C39,\"\")","v":""},"",{"$f":"IF(A37=\"\",\"\",IF(ISNUMBER(Stammdaten_Analysenprogramm!F39),Stammdaten_Analysenprogramm!F39,\"fehlt\"))","v":""},null,null,null,null,null,null,null,null,""]
[{"$f":"IF(Stammdaten_Analysenprogramm!AE40=\"Ja\",Stammdaten_Analysenprogramm!A40,\"\")","v":""},{"$f":"IF(Stammdaten_Analysenprogramm!AE40=\"Ja\",Stammdaten_Analysenprogramm!C40,\"\")","v":""},"",{"$f":"IF(A38=\"\",\"\",IF(ISNUMBER(Stammdaten_Analysenprogramm!F40),Stammdaten_Analysenprogramm!F40,\"fehlt\"))","v":""},null,null,null,null,null,null,null,null,""]
[{"$f":"IF(Stammdaten_Analysenprogramm!AE41=\"Ja\",Stammdaten_Analysenprogramm!A41,\"\")","v":""},{"$f":"IF(Stammdaten_Analysenprogramm!AE41=\"Ja\",Stammdaten_Analysenprogramm!C41,\"\")","v":""},"",{"$f":"IF(A39=\"\",\"\",IF(ISNUMBER(Stammdaten_Analysenprogramm!F41),Stammdaten_Analysenprogramm!F41,\"fehlt\"))","v":""},null,null,null,null,null,null,null,null,""]
[{"$f":"IF(Stammdaten_Analysenprogramm!AE42=\"Ja\",Stammdaten_Analysenprogramm!A42,\"\")","v":""},{"$f":"IF(Stammdaten_Analysenprogramm!AE42=\"Ja\",Stammdaten_Analysenprogramm!C42,\"\")","v":""},"",{"$f":"IF(A40=\"\",\"\",IF(ISNUMBER(Stammdaten_Analysenprogramm!F42),Stammdaten_Analysenprogramm!F42,\"fehlt\"))","v":""},null,null,null,null,null,null,null,null,""]
[{"$f":"IF(Stammdaten_Analysenprogramm!AE43=\"Ja\",Stammdaten_Analysenprogramm!A43,\"\")","v":""},{"$f":"IF(Stammdaten_Analysenprogramm!AE43=\"Ja\",Stammdaten_Analysenprogramm!C43,\"\")","v":""},"",{"$f":"IF(A41=\"\",\"\",IF(ISNUMBER(Stammdaten_Analysenprogramm!F43),Stammdaten_Analysenprogramm!F43,\"fehlt\"))","v":""},null,null,null,null,null,null,null,null,""]
[{"$f":"IF(Stammdaten_Analysenprogramm!AE44=\"Ja\",Stammdaten_Analysenprogramm!A44,\"\")","v":""},{"$f":"IF(Stammdaten_Analysenprogramm!AE44=\"Ja\",Stammdaten_Analysenprogramm!C44,\"\")","v":""},"",{"$f":"IF(A42=\"\",\"\",IF(ISNUMBER(Stammdaten_Analysenprogramm!F44),Stammdaten_Analysenprogramm!F44,\"fehlt\"))","v":""},null,null,null,null,null,null,null,null,""]
[{"$f":"IF(Stammdaten_Analysenprogramm!AE45=\"Ja\",Stammdaten_Analysenprogramm!A45,\"\")","v":""},{"$f":"IF(Stammdaten_Analysenprogramm!AE45=\"Ja\",Stammdaten_Analysenprogramm!C45,\"\")","v":""},"",{"$f":"IF(A43=\"\",\"\",IF(ISNUMBER(Stammdaten_Analysenprogramm!F45),Stammdaten_Analysenprogramm!F45,\"fehlt\"))","v":""},null,null,null,null,null,null,null,null,""]
[{"$f":"IF(Stammdaten_Analysenprogramm!AE46=\"Ja\",Stammdaten_Analysenprogramm!A46,\"\")","v":""},{"$f":"IF(Stammdaten_Analysenprogramm!AE46=\"Ja\",Stammdaten_Analysenprogramm!C46,\"\")","v":""},"",{"$f":"IF(A44=\"\",\"\",IF(ISNUMBER(Stammdaten_Analysenprogramm!F46),Stammdaten_Analysenprogramm!F46,\"fehlt\"))","v":""},null,null,null,null,null,null,null,null,""]
[{"$f":"IF(Stammdaten_Analysenprogramm!AE47=\"Ja\",Stammdaten_Analysenprogramm!A47,\"\")","v":""},{"$f":"IF(Stammdaten_Analysenprogramm!AE47=\"Ja\",Stammdaten_Analysenprogramm!C47,\"\")","v":""},"",{"$f":"IF(A45=\"\",\"\",IF(ISNUMBER(Stammdaten_Analysenprogramm!F47),Stammdaten_Analysenprogramm!F47,\"fehlt\"))","v":""},null,null,null,null,null,null,null,null,""]
[{"$f":"IF(Stammdaten_Analysenprogramm!AE48=\"Ja\",Stammdaten_Analysenprogramm!A48,\"\")","v":""},{"$f":"IF(Stammdaten_Analysenprogramm!AE48=\"Ja\",Stammdaten_Analysenprogramm!C48,\"\")","v":""},"",{"$f":"IF(A46=\"\",\"\",IF(ISNUMBER(Stammdaten_Analysenprogramm!F48),Stammdaten_Analysenprogramm!F48,\"fehlt\"))","v":""},null,null,null,null,null,null,null,null,""]
[{"$f":"IF(Stammdaten_Analysenprogramm!AE49=\"Ja\",Stammdaten_Analysenprogramm!A49,\"\")","v":""},{"$f":"IF(Stammdaten_Analysenprogramm!AE49=\"Ja\",Stammdaten_Analysenprogramm!C49,\"\")","v":""},"",{"$f":"IF(A47=\"\",\"\",IF(ISNUMBER(Stammdaten_Analysenprogramm!F49),Stammdaten_Analysenprogramm!F49,\"fehlt\"))","v":""},null,null,null,null,null,null,null,null,""]
[{"$f":"IF(Stammdaten_Analysenprogramm!AE50=\"Ja\",Stammdaten_Analysenprogramm!A50,\"\")","v":""},{"$f":"IF(Stammdaten_Analysenprogramm!AE50=\"Ja\",Stammdaten_Analysenprogramm!C50,\"\")","v":""},"",{"$f":"IF(A48=\"\",\"\",IF(ISNUMBER(Stammdaten_Analysenprogramm!F50),Stammdaten_Analysenprogramm!F50,\"fehlt\"))","v":""},null,null,null,null,null,null,null,null,""]
[{"$f":"IF(Stammdaten_Analysenprogramm!AE51=\"Ja\",Stammdaten_Analysenprogramm!A51,\"\")","v":""},{"$f":"IF(Stammdaten_Analysenprogramm!AE51=\"Ja\",Stammdaten_Analysenprogramm!C51,\"\")","v":""},"",{"$f":"IF(A49=\"\",\"\",IF(ISNUMBER(Stammdaten_Analysenprogramm!F51),Stammdaten_Analysenprogramm!F51,\"fehlt\"))","v":""},null,null,null,null,null,null,null,null,""]
[{"$f":"IF(Stammdaten_Analysenprogramm!AE52=\"Ja\",Stammdaten_Analysenprogramm!A52,\"\")","v":""},{"$f":"IF(Stammdaten_Analysenprogramm!AE52=\"Ja\",Stammdaten_Analysenprogramm!C52,\"\")","v":""},"",{"$f":"IF(A50=\"\",\"\",IF(ISNUMBER(Stammdaten_Analysenprogramm!F52),Stammdaten_Analysenprogramm!F52,\"fehlt\"))","v":""},null,null,null,null,null,null,null,null,""]
[{"$f":"IF(Stammdaten_Analysenprogramm!AE53=\"Ja\",Stammdaten_Analysenprogramm!A53,\"\")","v":""},{"$f":"IF(Stammdaten_Analysenprogramm!AE53=\"Ja\",Stammdaten_Analysenprogramm!C53,\"\")","v":""},"",{"$f":"IF(A51=\"\",\"\",IF(ISNUMBER(Stammdaten_Analysenprogramm!F53),Stammdaten_Analysenprogramm!F53,\"fehlt\"))","v":""},null,null,null,null,null,null,null,null,""]
[{"$f":"IF(Stammdaten_Analysenprogramm!AE54=\"Ja\",Stammdaten_Analysenprogramm!A54,\"\")","v":""},{"$f":"IF(Stammdaten_Analysenprogramm!AE54=\"Ja\",Stammdaten_Analysenprogramm!C54,\"\")","v":""},"",{"$f":"IF(A52=\"\",\"\",IF(ISNUMBER(Stammdaten_Analysenprogramm!F54),Stammdaten_Analysenprogramm!F54,\"fehlt\"))","v":""},null,null,null,null,null,null,null,null,""]
[{"$f":"IF(Stammdaten_Analysenprogramm!AE55=\"Ja\",Stammdaten_Analysenprogramm!A55,\"\")","v":""},{"$f":"IF(Stammdaten_Analysenprogramm!AE55=\"Ja\",Stammdaten_Analysenprogramm!C55,\"\")","v":""},"",{"$f":"IF(A53=\"\",\"\",IF(ISNUMBER(Stammdaten_Analysenprogramm!F55),Stammdaten_Analysenprogramm!F55,\"fehlt\"))","v":""},null,null,null,null,null,null,null,null,""]
[{"$f":"IF(Stammdaten_Analysenprogramm!AE56=\"Ja\",Stammdaten_Analysenprogramm!A56,\"\")","v":""},{"$f":"IF(Stammdaten_Analysenprogramm!AE56=\"Ja\",Stammdaten_Analysenprogramm!C56,\"\")","v":""},"",{"$f":"IF(A54=\"\",\"\",IF(ISNUMBER(Stammdaten_Analysenprogramm!F56),Stammdaten_Analysenprogramm!F56,\"fehlt\"))","v":""},null,null,null,null,null,null,null,null,""]
[{"$f":"IF(Stammdaten_Analysenprogramm!AE57=\"Ja\",Stammdaten_Analysenprogramm!A57,\"\")","v":""},{"$f":"IF(Stammdaten_Analysenprogramm!AE57=\"Ja\",Stammdaten_Analysenprogramm!C57,\"\")","v":""},"",{"$f":"IF(A55=\"\",\"\",IF(ISNUMBER(Stammdaten_Analysenprogramm!F57),Stammdaten_Analysenprogramm!F57,\"fehlt\"))","v":""},null,null,null,null,null,null,null,null,""]
[{"$f":"IF(Stammdaten_Analysenprogramm!AE58=\"Ja\",Stammdaten_Analysenprogramm!A58,\"\")","v":""},{"$f":"IF(Stammdaten_Analysenprogramm!AE58=\"Ja\",Stammdaten_Analysenprogramm!C58,\"\")","v":""},"",{"$f":"IF(A56=\"\",\"\",IF(ISNUMBER(Stammdaten_Analysenprogramm!F58),Stammdaten_Analysenprogramm!F58,\"fehlt\"))","v":""},null,null,null,null,null,null,null,null,""]
[{"$f":"IF(Stammdaten_Analysenprogramm!AE59=\"Ja\",Stammdaten_Analysenprogramm!A59,\"\")","v":""},{"$f":"IF(Stammdaten_Analysenprogramm!AE59=\"Ja\",Stammdaten_Analysenprogramm!C59,\"\")","v":""},"",{"$f":"IF(A57=\"\",\"\",IF(ISNUMBER(Stammdaten_Analysenprogramm!F59),Stammdaten_Analysenprogramm!F59,\"fehlt\"))","v":""},null,null,null,null,null,null,null,null,""]
[{"$f":"IF(Stammdaten_Analysenprogramm!AE60=\"Ja\",Stammdaten_Analysenprogramm!A60,\"\")","v":""},{"$f":"IF(Stammdaten_Analysenprogramm!AE60=\"Ja\",Stammdaten_Analysenprogramm!C60,\"\")","v":""},"",{"$f":"IF(A58=\"\",\"\",IF(ISNUMBER(Stammdaten_Analysenprogramm!F60),Stammdaten_Analysenprogramm!F60,\"fehlt\"))","v":""},null,null,null,null,null,null,null,null,""]
[{"$f":"IF(Stammdaten_Analysenprogramm!AE61=\"Ja\",Stammdaten_Analysenprogramm!A61,\"\")","v":""},{"$f":"IF(Stammdaten_Analysenprogramm!AE61=\"Ja\",Stammdaten_Analysenprogramm!C61,\"\")","v":""},"",{"$f":"IF(A59=\"\",\"\",IF(ISNUMBER(Stammdaten_Analysenprogramm!F61),Stammdaten_Analysenprogramm!F61,\"fehlt\"))","v":""},null,null,null,null,null,null,null,null,""]
[{"$f":"IF(Stammdaten_Analysenprogramm!AE62=\"Ja\",Stammdaten_Analysenprogramm!A62,\"\")","v":""},{"$f":"IF(Stammdaten_Analysenprogramm!AE62=\"Ja\",Stammdaten_Analysenprogramm!C62,\"\")","v":""},"",{"$f":"IF(A60=\"\",\"\",IF(ISNUMBER(Stammdaten_Analysenprogramm!F62),Stammdaten_Analysenprogramm!F62,\"fehlt\"))","v":""},null,null,null,null,null,null,null,null,""]
[{"$f":"IF(Stammdaten_Analysenprogramm!AE63=\"Ja\",Stammdaten_Analysenprogramm!A63,\"\")","v":""},{"$f":"IF(Stammdaten_Analysenprogramm!AE63=\"Ja\",Stammdaten_Analysenprogramm!C63,\"\")","v":""},"",{"$f":"IF(A61=\"\",\"\",IF(ISNUMBER(Stammdaten_Analysenprogramm!F63),Stammdaten_Analysenprogramm!F63,\"fehlt\"))","v":""},null,null,null,null,null,null,null,null,""]
[{"$f":"IF(Stammdaten_Analysenprogramm!AE64=\"Ja\",Stammdaten_Analysenprogramm!A64,\"\")","v":""},{"$f":"IF(Stammdaten_Analysenprogramm!AE64=\"Ja\",Stammdaten_Analysenprogramm!C64,\"\")","v":""},"",{"$f":"IF(A62=\"\",\"\",IF(ISNUMBER(Stammdaten_Analysenprogramm!F64),Stammdaten_Analysenprogramm!F64,\"fehlt\"))","v":""},null,null,null,null,null,null,null,null,""]
[{"$f":"IF(Stammdaten_Analysenprogramm!AE65=\"Ja\",Stammdaten_Analysenprogramm!A65,\"\")","v":""},{"$f":"IF(Stammdaten_Analysenprogramm!AE65=\"Ja\",Stammdaten_Analysenprogramm!C65,\"\")","v":""},"",{"$f":"IF(A63=\"\",\"\",IF(ISNUMBER(Stammdaten_Analysenprogramm!F65),Stammdaten_Analysenprogramm!F65,\"fehlt\"))","v":""},null,null,null,null,null,null,null,null,""]
[{"$f":"IF(Stammdaten_Analysenprogramm!AE66=\"Ja\",Stammdaten_Analysenprogramm!A66,\"\")","v":""},{"$f":"IF(Stammdaten_Analysenprogramm!AE66=\"Ja\",Stammdaten_Analysenprogramm!C66,\"\")","v":""},"",{"$f":"IF(A64=\"\",\"\",IF(ISNUMBER(Stammdaten_Analysenprogramm!F66),Stammdaten_Analysenprogramm!F66,\"fehlt\"))","v":""},null,null,null,null,null,null,null,null,""]
[{"$f":"IF(Stammdaten_Analysenprogramm!AE67=\"Ja\",Stammdaten_Analysenprogramm!A67,\"\")","v":""},{"$f":"IF(Stammdaten_Analysenprogramm!AE67=\"Ja\",Stammdaten_Analysenprogramm!C67,\"\")","v":""},"",{"$f":"IF(A65=\"\",\"\",IF(ISNUMBER(Stammdaten_Analysenprogramm!F67),Stammdaten_Analysenprogramm!F67,\"fehlt\"))","v":""},null,null,null,null,null,null,null,null,""]
[{"$f":"IF(Stammdaten_Analysenprogramm!AE68=\"Ja\",Stammdaten_Analysenprogramm!A68,\"\")","v":""},{"$f":"IF(Stammdaten_Analysenprogramm!AE68=\"Ja\",Stammdaten_Analysenprogramm!C68,\"\")","v":""},"",{"$f":"IF(A66=\"\",\"\",IF(ISNUMBER(Stammdaten_Analysenprogramm!F68),Stammdaten_Analysenprogramm!F68,\"fehlt\"))","v":""},null,null,null,null,null,null,null,null,""]
[{"$f":"IF(Stammdaten_Analysenprogramm!AE69=\"Ja\",Stammdaten_Analysenprogramm!A69,\"\")","v":""},{"$f":"IF(Stammdaten_Analysenprogramm!AE69=\"Ja\",Stammdaten_Analysenprogramm!C69,\"\")","v":""},"",{"$f":"IF(A67=\"\",\"\",IF(ISNUMBER(Stammdaten_Analysenprogramm!F69),Stammdaten_Analysenprogramm!F69,\"fehlt\"))","v":""},null,null,null,null,null,null,null,null,""]
[{"$f":"IF(Stammdaten_Analysenprogramm!AE70=\"Ja\",Stammdaten_Analysenprogramm!A70,\"\")","v":""},{"$f":"IF(Stammdaten_Analysenprogramm!AE70=\"Ja\",Stammdaten_Analysenprogramm!C70,\"\")","v":""},"",{"$f":"IF(A68=\"\",\"\",IF(ISNUMBER(Stammdaten_Analysenprogramm!F70),Stammdaten_Analysenprogramm!F70,\"fehlt\"))","v":""},null,null,null,null,null,null,null,null,""]
[{"$f":"IF(Stammdaten_Analysenprogramm!AE71=\"Ja\",Stammdaten_Analysenprogramm!A71,\"\")","v":""},{"$f":"IF(Stammdaten_Analysenprogramm!AE71=\"Ja\",Stammdaten_Analysenprogramm!C71,\"\")","v":""},"",{"$f":"IF(A69=\"\",\"\",IF(ISNUMBER(Stammdaten_Analysenprogramm!F71),Stammdaten_Analysenprogramm!F71,\"fehlt\"))","v":""},null,null,null,null,null,null,null,null,""]
[{"$f":"IF(Stammdaten_Analysenprogramm!AE72=\"Ja\",Stammdaten_Analysenprogramm!A72,\"\")","v":""},{"$f":"IF(Stammdaten_Analysenprogramm!AE72=\"Ja\",Stammdaten_Analysenprogramm!C72,\"\")","v":""},{"$f":"A70","v":""},{"$f":"IF(A70=\"\",\"\",IF(ISNUMBER(Stammdaten_Analysenprogramm!F72),Stammdaten_Analysenprogramm!F72,\"fehlt\"))","v":""},null,null,null,null,null,null,null,null,{"$f":"IF(AND(ISNUMBER(L70),ISNUMBER(D70)),D70-L70,\"\")","v":""}]
[{"$f":"IF(Stammdaten_Analysenprogramm!AE73=\"Ja\",Stammdaten_Analysenprogramm!A73,\"\")","v":""},{"$f":"IF(Stammdaten_Analysenprogramm!AE73=\"Ja\",Stammdaten_Analysenprogramm!C73,\"\")","v":""},"",{"$f":"IF(A71=\"\",\"\",IF(ISNUMBER(Stammdaten_Analysenprogramm!F73),Stammdaten_Analysenprogramm!F73,\"fehlt\"))","v":""},null,null,null,null,null,null,null,null,""]
[{"$f":"IF(Stammdaten_Analysenprogramm!AE74=\"Ja\",Stammdaten_Analysenprogramm!A74,\"\")","v":""},{"$f":"IF(Stammdaten_Analysenprogramm!AE74=\"Ja\",Stammdaten_Analysenprogramm!C74,\"\")","v":""},"",{"$f":"IF(A72=\"\",\"\",IF(ISNUMBER(Stammdaten_Analysenprogramm!F74),Stammdaten_Analysenprogramm!F74,\"fehlt\"))","v":""},null,null,null,null,null,null,null,null,""]
[{"$f":"IF(Stammdaten_Analysenprogramm!AE75=\"Ja\",Stammdaten_Analysenprogramm!A75,\"\")","v":""},{"$f":"IF(Stammdaten_Analysenprogramm!AE75=\"Ja\",Stammdaten_Analysenprogramm!C75,\"\")","v":""},"",{"$f":"IF(A73=\"\",\"\",IF(ISNUMBER(Stammdaten_Analysenprogramm!F75),Stammdaten_Analysenprogramm!F75,\"fehlt\"))","v":""},null,null,null,null,null,null,null,null,""]
[{"$f":"IF(Stammdaten_Analysenprogramm!AE76=\"Ja\",Stammdaten_Analysenprogramm!A76,\"\")","v":""},{"$f":"IF(Stammdaten_Analysenprogramm!AE76=\"Ja\",Stammdaten_Analysenprogramm!C76,\"\")","v":""},"",{"$f":"IF(A74=\"\",\"\",IF(ISNUMBER(Stammdaten_Analysenprogramm!F76),Stammdaten_Analysenprogramm!F76,\"fehlt\"))","v":""},null,null,null,null,null,null,null,null,""]
[{"$f":"IF(Stammdaten_Analysenprogramm!AE77=\"Ja\",Stammdaten_Analysenprogramm!A77,\"\")","v":""},{"$f":"IF(Stammdaten_Analysenprogramm!AE77=\"Ja\",Stammdaten_Analysenprogramm!C77,\"\")","v":""},"",{"$f":"IF(A75=\"\",\"\",IF(ISNUMBER(Stammdaten_Analysenprogramm!F77),Stammdaten_Analysenprogramm!F77,\"fehlt\"))","v":""},null,null,null,null,null,null,null,null,""]
[{"$f":"IF(Stammdaten_Analysenprogramm!AE78=\"Ja\",Stammdaten_Analysenprogramm!A78,\"\")","v":""},{"$f":"IF(Stammdaten_Analysenprogramm!AE78=\"Ja\",Stammdaten_Analysenprogramm!C78,\"\")","v":""},"",{"$f":"IF(A76=\"\",\"\",IF(ISNUMBER(Stammdaten_Analysenprogramm!F78),Stammdaten_Analysenprogramm!F78,\"fehlt\"))","v":""},null,null,null,null,null,null,null,null,""]
[{"$f":"IF(Stammdaten_Analysenprogramm!AE79=\"Ja\",Stammdaten_Analysenprogramm!A79,\"\")","v":""},{"$f":"IF(Stammdaten_Analysenprogramm!AE79=\"Ja\",Stammdaten_Analysenprogramm!C79,\"\")","v":""},"",{"$f":"IF(A77=\"\",\"\",IF(ISNUMBER(Stammdaten_Analysenprogramm!F79),Stammdaten_Analysenprogramm!F79,\"fehlt\"))","v":""},null,null,null,null,null,null,null,null,""]
[{"$f":"IF(Stammdaten_Analysenprogramm!AE80=\"Ja\",Stammdaten_Analysenprogramm!A80,\"\")","v":""},{"$f":"IF(Stammdaten_Analysenprogramm!AE80=\"Ja\",Stammdaten_Analysenprogramm!C80,\"\")","v":""},"",{"$f":"IF(A78=\"\",\"\",IF(ISNUMBER(Stammdaten_Analysenprogramm!F80),Stammdaten_Analysenprogramm!F80,\"fehlt\"))","v":""},null,null,null,null,null,null,null,null,""]
[{"$f":"IF(Stammdaten_Analysenprogramm!AE81=\"Ja\",Stammdaten_Analysenprogramm!A81,\"\")","v":""},{"$f":"IF(Stammdaten_Analysenprogramm!AE81=\"Ja\",Stammdaten_Analysenprogramm!C81,\"\")","v":""},"",{"$f":"IF(A79=\"\",\"\",IF(ISNUMBER(Stammdaten_Analysenprogramm!F81),Stammdaten_Analysenprogramm!F81,\"fehlt\"))","v":""},null,null,null,null,null,null,null,null,""]
[{"$f":"IF(Stammdaten_Analysenprogramm!AE82=\"Ja\",Stammdaten_Analysenprogramm!A82,\"\")","v":""},{"$f":"IF(Stammdaten_Analysenprogramm!AE82=\"Ja\",Stammdaten_Analysenprogramm!C82,\"\")","v":""},"",{"$f":"IF(A80=\"\",\"\",IF(ISNUMBER(Stammdaten_Analysenprogramm!F82),Stammdaten_Analysenprogramm!F82,\"fehlt\"))","v":""},null,null,null,null,null,null,null,null,""]
[{"$f":"IF(Stammdaten_Analysenprogramm!AE83=\"Ja\",Stammdaten_Analysenprogramm!A83,\"\")","v":""},{"$f":"IF(Stammdaten_Analysenprogramm!AE83=\"Ja\",Stammdaten_Analysenprogramm!C83,\"\")","v":""},"",{"$f":"IF(A81=\"\",\"\",IF(ISNUMBER(Stammdaten_Analysenprogramm!F83),Stammdaten_Analysenprogramm!F83,\"fehlt\"))","v":""},null,null,null,null,null,null,null,null,""]
[{"$f":"IF(Stammdaten_Analysenprogramm!AE84=\"Ja\",Stammdaten_Analysenprogramm!A84,\"\")","v":""},{"$f":"IF(Stammdaten_Analysenprogramm!AE84=\"Ja\",Stammdaten_Analysenprogramm!C84,\"\")","v":""},"",{"$f":"IF(A82=\"\",\"\",IF(ISNUMBER(Stammdaten_Analysenprogramm!F84),Stammdaten_Analysenprogramm!F84,\"fehlt\"))","v":""},null,null,null,null,null,null,null,null,""]
[{"$f":"IF(Stammdaten_Analysenprogramm!AE85=\"Ja\",Stammdaten_Analysenprogramm!A85,\"\")","v":""},{"$f":"IF(Stammdaten_Analysenprogramm!AE85=\"Ja\",Stammdaten_Analysenprogramm!C85,\"\")","v":""},"",{"$f":"IF(A83=\"\",\"\",IF(ISNUMBER(Stammdaten_Analysenprogramm!F85),Stammdaten_Analysenprogramm!F85,\"fehlt\"))","v":""},null,null,null,null,null,null,null,null,""]
[{"$f":"IF(Stammdaten_Analysenprogramm!AE86=\"Ja\",Stammdaten_Analysenprogramm!A86,\"\")","v":""},{"$f":"IF(Stammdaten_Analysenprogramm!AE86=\"Ja\",Stammdaten_Analysenprogramm!C86,\"\")","v":""},"",{"$f":"IF(A84=\"\",\"\",IF(ISNUMBER(Stammdaten_Analysenprogramm!F86),Stammdaten_Analysenprogramm!F86,\"fehlt\"))","v":""},null,null,null,null,null,null,null,null,""]
[{"$f":"IF(Stammdaten_Analysenprogramm!AE87=\"Ja\",Stammdaten_Analysenprogramm!A87,\"\")","v":""},{"$f":"IF(Stammdaten_Analysenprogramm!AE87=\"Ja\",Stammdaten_Analysenprogramm!C87,\"\")","v":""},"",{"$f":"IF(A85=\"\",\"\",IF(ISNUMBER(Stammdaten_Analysenprogramm!F87),Stammdaten_Analysenprogramm!F87,\"fehlt\"))","v":""},null,null,null,null,null,null,null,null,""]
[{"$f":"IF(Stammdaten_Analysenprogramm!AE88=\"Ja\",Stammdaten_Analysenprogramm!A88,\"\")","v":""},{"$f":"IF(Stammdaten_Analysenprogramm!AE88=\"Ja\",Stammdaten_Analysenprogramm!C88,\"\")","v":""},"",{"$f":"IF(A86=\"\",\"\",IF(ISNUMBER(Stammdaten_Analysenprogramm!F88),Stammdaten_Analysenprogramm!F88,\"fehlt\"))","v":""},null,null,null,null,null,null,null,null,""]
[{"$f":"IF(Stammdaten_Analysenprogramm!AE89=\"Ja\",Stammdaten_Analysenprogramm!A89,\"\")","v":""},{"$f":"IF(Stammdaten_Analysenprogramm!AE89=\"Ja\",Stammdaten_Analysenprogramm!C89,\"\")","v":""},"",{"$f":"IF(A87=\"\",\"\",IF(ISNUMBER(Stammdaten_Analysenprogramm!F89),Stammdaten_Analysenprogramm!F89,\"fehlt\"))","v":""},null,null,null,null,null,null,null,null,""]
[{"$f":"IF(Stammdaten_Analysenprogramm!AE90=\"Ja\",Stammdaten_Analysenprogramm!A90,\"\")","v":""},{"$f":"IF(Stammdaten_Analysenprogramm!AE90=\"Ja\",Stammdaten_Analysenprogramm!C90,\"\")","v":""},"",{"$f":"IF(A88=\"\",\"\",IF(ISNUMBER(Stammdaten_Analysenprogramm!F90),Stammdaten_Analysenprogramm!F90,\"fehlt\"))","v":""},null,null,null,null,null,null,null,null,""]
[{"$f":"IF(Stammdaten_Analysenprogramm!AE91=\"Ja\",Stammdaten_Analysenprogramm!A91,\"\")","v":""},{"$f":"IF(Stammdaten_Analysenprogramm!AE91=\"Ja\",Stammdaten_Analysenprogramm!C91,\"\")","v":""},"",{"$f":"IF(A89=\"\",\"\",IF(ISNUMBER(Stammdaten_Analysenprogramm!F91),Stammdaten_Analysenprogramm!F91,\"fehlt\"))","v":""},null,null,null,null,null,null,null,null,""]
[{"$f":"IF(Stammdaten_Analysenprogramm!AE92=\"Ja\",Stammdaten_Analysenprogramm!A92,\"\")","v":""},{"$f":"IF(Stammdaten_Analysenprogramm!AE92=\"Ja\",Stammdaten_Analysenprogramm!C92,\"\")","v":""},"",{"$f":"IF(A90=\"\",\"\",IF(ISNUMBER(Stammdaten_Analysenprogramm!F92),Stammdaten_Analysenprogramm!F92,\"fehlt\"))","v":""},null,null,null,null,null,null,null,null,""]
[{"$f":"IF(Stammdaten_Analysenprogramm!AE93=\"Ja\",Stammdaten_Analysenprogramm!A93,\"\")","v":""},{"$f":"IF(Stammdaten_Analysenprogramm!AE93=\"Ja\",Stammdaten_Analysenprogramm!C93,\"\")","v":""},"",{"$f":"IF(A91=\"\",\"\",IF(ISNUMBER(Stammdaten_Analysenprogramm!F93),Stammdaten_Analysenprogramm!F93,\"fehlt\"))","v":""},null,null,null,null,null,null,null,null,""]
[{"$f":"IF(Stammdaten_Analysenprogramm!AE94=\"Ja\",Stammdaten_Analysenprogramm!A94,\"\")","v":""},{"$f":"IF(Stammdaten_Analysenprogramm!AE94=\"Ja\",Stammdaten_Analysenprogramm!C94,\"\")","v":""},"",{"$f":"IF(A92=\"\",\"\",IF(ISNUMBER(Stammdaten_Analysenprogramm!F94),Stammdaten_Analysenprogramm!F94,\"fehlt\"))","v":""},null,null,null,null,null,null,null,null,""]
[{"$f":"IF(Stammdaten_Analysenprogramm!AE95=\"Ja\",Stammdaten_Analysenprogramm!A95,\"\")","v":""},{"$f":"IF(Stammdaten_Analysenprogramm!AE95=\"Ja\",Stammdaten_Analysenprogramm!C95,\"\")","v":""},"",{"$f":"IF(A93=\"\",\"\",IF(ISNUMBER(Stammdaten_Analysenprogramm!F95),Stammdaten_Analysenprogramm!F95,\"fehlt\"))","v":""},null,null,null,null,null,null,null,null,""]
[{"$f":"IF(Stammdaten_Analysenprogramm!AE96=\"Ja\",Stammdaten_Analysenprogramm!A96,\"\")","v":""},{"$f":"IF(Stammdaten_Analysenprogramm!AE96=\"Ja\",Stammdaten_Analysenprogramm!C96,\"\")","v":""},"",{"$f":"IF(A94=\"\",\"\",IF(ISNUMBER(Stammdaten_Analysenprogramm!F96),Stammdaten_Analysenprogramm!F96,\"fehlt\"))","v":""},null,null,null,null,null,null,null,null,""]
[{"$f":"IF(Stammdaten_Analysenprogramm!AE97=\"Ja\",Stammdaten_Analysenprogramm!A97,\"\")","v":""},{"$f":"IF(Stammdaten_Analysenprogramm!AE97=\"Ja\",Stammdaten_Analysenprogramm!C97,\"\")","v":""},"",{"$f":"IF(A95=\"\",\"\",IF(ISNUMBER(Stammdaten_Analysenprogramm!F97),Stammdaten_Analysenprogramm!F97,\"fehlt\"))","v":""},null,null,null,null,null,null,null,null,""]
[{"$f":"IF(Stammdaten_Analysenprogramm!AE98=\"Ja\",Stammdaten_Analysenprogramm!A98,\"\")","v":""},{"$f":"IF(Stammdaten_Analysenprogramm!AE98=\"Ja\",Stammdaten_Analysenprogramm!C98,\"\")","v":""},"",{"$f":"IF(A96=\"\",\"\",IF(ISNUMBER(Stammdaten_Analysenprogramm!F98),Stammdaten_Analysenprogramm!F98,\"fehlt\"))","v":""},null,null,null,null,null,null,null,null,""]
[{"$f":"IF(Stammdaten_Analysenprogramm!AE99=\"Ja\",Stammdaten_Analysenprogramm!A99,\"\")","v":""},{"$f":"IF(Stammdaten_Analysenprogramm!AE99=\"Ja\",Stammdaten_Analysenprogramm!C99,\"\")","v":""},"",{"$f":"IF(A97=\"\",\"\",IF(ISNUMBER(Stammdaten_Analysenprogramm!F99),Stammdaten_Analysenprogramm!F99,\"fehlt\"))","v":""},null,null,null,null,null,null,null,null,""]
[{"$f":"IF(Stammdaten_Analysenprogramm!AE100=\"Ja\",Stammdaten_Analysenprogramm!A100,\"\")","v":""},{"$f":"IF(Stammdaten_Analysenprogramm!AE100=\"Ja\",Stammdaten_Analysenprogramm!C100,\"\")","v":""},"",{"$f":"IF(A98=\"\",\"\",IF(ISNUMBER(Stammdaten_Analysenprogramm!F100),Stammdaten_Analysenprogramm!F100,\"fehlt\"))","v":""},null,null,null,null,null,null,null,null,""]
[{"$f":"IF(Stammdaten_Analysenprogramm!AE101=\"Ja\",Stammdaten_Analysenprogramm!A101,\"\")","v":""},{"$f":"IF(Stammdaten_Analysenprogramm!AE101=\"Ja\",Stammdaten_Analysenprogramm!C101,\"\")","v":""},"",{"$f":"IF(A99=\"\",\"\",IF(ISNUMBER(Stammdaten_Analysenprogramm!F101),Stammdaten_Analysenprogramm!F101,\"fehlt\"))","v":""},null,null,null,null,null,null,null,null,""]
[{"$f":"IF(Stammdaten_Analysenprogramm!AE102=\"Ja\",Stammdaten_Analysenprogramm!A102,\"\")","v":""},{"$f":"IF(Stammdaten_Analysenprogramm!AE102=\"Ja\",Stammdaten_Analysenprogramm!C102,\"\")","v":""},"",{"$f":"IF(A100=\"\",\"\",IF(ISNUMBER(Stammdaten_Analysenprogramm!F102),Stammdaten_Analysenprogramm!F102,\"fehlt\"))","v":""},null,null,null,null,null,null,null,null,""]
[{"$f":"IF(Stammdaten_Analysenprogramm!AE103=\"Ja\",Stammdaten_Analysenprogramm!A103,\"\")","v":""},{"$f":"IF(Stammdaten_Analysenprogramm!AE103=\"Ja\",Stammdaten_Analysenprogramm!C103,\"\")","v":""},"",{"$f":"IF(A101=\"\",\"\",IF(ISNUMBER(Stammdaten_Analysenprogramm!F103),Stammdaten_Analysenprogramm!F103,\"fehlt\"))","v":""},null,null,null,null,null,null,null,null,""]
[{"$f":"IF(Stammdaten_Analysenprogramm!AE104=\"Ja\",Stammdaten_Analysenprogramm!A104,\"\")","v":""},{"$f":"IF(Stammdaten_Analysenprogramm!AE104=\"Ja\",Stammdaten_Analysenprogramm!C104,\"\")","v":""},"",{"$f":"IF(A102=\"\",\"\",IF(ISNUMBER(Stammdaten_Analysenprogramm!F104),Stammdaten_Analysenprogramm!F104,\"fehlt\"))","v":""},null,null,null,null,null,null,null,null,""]
[{"$f":"IF(Stammdaten_Analysenprogramm!AE105=\"Ja\",Stammdaten_Analysenprogramm!A105,\"\")","v":""},{"$f":"IF(Stammdaten_Analysenprogramm!AE105=\"Ja\",Stammdaten_Analysenprogramm!C105,\"\")","v":""},"",{"$f":"IF(A103=\"\",\"\",IF(ISNUMBER(Stammdaten_Analysenprogramm!F105),Stammdaten_Analysenprogramm!F105,\"fehlt\"))","v":""},null,null,null,null,null,null,null,null,""]
[{"$f":"IF(Stammdaten_Analysenprogramm!AE106=\"Ja\",Stammdaten_Analysenprogramm!A106,\"\")","v":""},{"$f":"IF(Stammdaten_Analysenprogramm!AE106=\"Ja\",Stammdaten_Analysenprogramm!C106,\"\")","v":""},"",{"$f":"IF(A104=\"\",\"\",IF(ISNUMBER(Stammdaten_Analysenprogramm!F106),Stammdaten_Analysenprogramm!F106,\"fehlt\"))","v":""},null,null,null,null,null,null,null,null,""]
[{"$f":"IF(Stammdaten_Analysenprogramm!AE107=\"Ja\",Stammdaten_Analysenprogramm!A107,\"\")","v":""},{"$f":"IF(Stammdaten_Analysenprogramm!AE107=\"Ja\",Stammdaten_Analysenprogramm!C107,\"\")","v":""},"",{"$f":"IF(A105=\"\",\"\",IF(ISNUMBER(Stammdaten_Analysenprogramm!F107),Stammdaten_Analysenprogramm!F107,\"fehlt\"))","v":""},null,null,null,null,null,null,null,null,""]
[{"$f":"IF(Stammdaten_Analysenprogramm!AE108=\"Ja\",Stammdaten_Analysenprogramm!A108,\"\")","v":""},{"$f":"IF(Stammdaten_Analysenprogramm!AE108=\"Ja\",Stammdaten_Analysenprogramm!C108,\"\")","v":""},"",{"$f":"IF(A106=\"\",\"\",IF(ISNUMBER(Stammdaten_Analysenprogramm!F108),Stammdaten_Analysenprogramm!F108,\"fehlt\"))","v":""},null,null,null,null,null,null,null,null,""]
[{"$f":"IF(Stammdaten_Analysenprogramm!AE109=\"Ja\",Stammdaten_Analysenprogramm!A109,\"\")","v":""},{"$f":"IF(Stammdaten_Analysenprogramm!AE109=\"Ja\",Stammdaten_Analysenprogramm!C109,\"\")","v":""},"",{"$f":"IF(A107=\"\",\"\",IF(ISNUMBER(Stammdaten_Analysenprogramm!F109),Stammdaten_Analysenprogramm!F109,\"fehlt\"))","v":""},null,null,null,null,null,null,null,null,""]
[{"$f":"IF(Stammdaten_Analysenprogramm!AE110=\"Ja\",Stammdaten_Analysenprogramm!A110,\"\")","v":""},{"$f":"IF(Stammdaten_Analysenprogramm!AE110=\"Ja\",Stammdaten_Analysenprogramm!C110,\"\")","v":""},"",{"$f":"IF(A108=\"\",\"\",IF(ISNUMBER(Stammdaten_Analysenprogramm!F110),Stammdaten_Analysenprogramm!F110,\"fehlt\"))","v":""},null,null,null,null,null,null,null,null,""]
[{"$f":"IF(Stammdaten_Analysenprogramm!AE111=\"Ja\",Stammdaten_Analysenprogramm!A111,\"\")","v":""},{"$f":"IF(Stammdaten_Analysenprogramm!AE111=\"Ja\",Stammdaten_Analysenprogramm!C111,\"\")","v":""},"",{"$f":"IF(A109=\"\",\"\",IF(ISNUMBER(Stammdaten_Analysenprogramm!F111),Stammdaten_Analysenprogramm!F111,\"fehlt\"))","v":""},null,null,null,null,null,null,null,null,""]
[{"$f":"IF(Stammdaten_Analysenprogramm!AE112=\"Ja\",Stammdaten_Analysenprogramm!A112,\"\")","v":""},{"$f":"IF(Stammdaten_Analysenprogramm!AE112=\"Ja\",Stammdaten_Analysenprogramm!C112,\"\")","v":""},"",{"$f":"IF(A110=\"\",\"\",IF(ISNUMBER(Stammdaten_Analysenprogramm!F112),Stammdaten_Analysenprogramm!F112,\"fehlt\"))","v":""},null,null,null,null,null,null,null,null,""]
[{"$f":"IF(Stammdaten_Analysenprogramm!AE113=\"Ja\",Stammdaten_Analysenprogramm!A113,\"\")","v":""},{"$f":"IF(Stammdaten_Analysenprogramm!AE113=\"Ja\",Stammdaten_Analysenprogramm!C113,\"\")","v":""},"",{"$f":"IF(A111=\"\",\"\",IF(ISNUMBER(Stammdaten_Analysenprogramm!F113),Stammdaten_Analysenprogramm!F113,\"fehlt\"))","v":""},null,null,null,null,null,null,null,null,""]
[{"$f":"IF(Stammdaten_Analysenprogramm!AE114=\"Ja\",Stammdaten_Analysenprogramm!A114,\"\")","v":""},{"$f":"IF(Stammdaten_Analysenprogramm!AE114=\"Ja\",Stammdaten_Analysenprogramm!C114,\"\")","v":""},"",{"$f":"IF(A112=\"\",\"\",IF(ISNUMBER(Stammdaten_Analysenprogramm!F114),Stammdaten_Analysenprogramm!F114,\"fehlt\"))","v":""},null,null,null,null,null,null,null,null,""]
[{"$f":"IF(Stammdaten_Analysenprogramm!AE115=\"Ja\",Stammdaten_Analysenprogramm!A115,\"\")","v":""},{"$f":"IF(Stammdaten_Analysenprogramm!AE115=\"Ja\",Stammdaten_Analysenprogramm!C115,\"\")","v":""},"",{"$f":"IF(A113=\"\",\"\",IF(ISNUMBER(Stammdaten_Analysenprogramm!F115),Stammdaten_Analysenprogramm!F115,\"fehlt\"))","v":""},null,null,null,null,null,null,null,null,""]
[{"$f":"IF(Stammdaten_Analysenprogramm!AE116=\"Ja\",Stammdaten_Analysenprogramm!A116,\"\")","v":""},{"$f":"IF(Stammdaten_Analysenprogramm!AE116=\"Ja\",Stammdaten_Analysenprogramm!C116,\"\")","v":""},"",{"$f":"IF(A114=\"\",\"\",IF(ISNUMBER(Stammdaten_Analysenprogramm!F116),Stammdaten_Analysenprogramm!F116,\"fehlt\"))","v":""},null,null,null,null,null,null,null,null,""]
[{"$f":"IF(Stammdaten_Analysenprogramm!AE117=\"Ja\",Stammdaten_Analysenprogramm!A117,\"\")","v":""},{"$f":"IF(Stammdaten_Analysenprogramm!AE117=\"Ja\",Stammdaten_Analysenprogramm!C117,\"\")","v":""},"",{"$f":"IF(A115=\"\",\"\",IF(ISNUMBER(Stammdaten_Analysenprogramm!F117),Stammdaten_Analysenprogramm!F117,\"fehlt\"))","v":""},null,null,null,null,null,null,null,null,""]
[{"$f":"IF(Stammdaten_Analysenprogramm!AE118=\"Ja\",Stammdaten_Analysenprogramm!A118,\"\")","v":""},{"$f":"IF(Stammdaten_Analysenprogramm!AE118=\"Ja\",Stammdaten_Analysenprogramm!C118,\"\")","v":""},"",{"$f":"IF(A116=\"\",\"\",IF(ISNUMBER(Stammdaten_Analysenprogramm!F118),Stammdaten_Analysenprogramm!F118,\"fehlt\"))","v":""},null,null,null,null,null,null,null,null,""]
[{"$f":"IF(Stammdaten_Analysenprogramm!AE119=\"Ja\",Stammdaten_Analysenprogramm!A119,\"\")","v":""},{"$f":"IF(Stammdaten_Analysenprogramm!AE119=\"Ja\",Stammdaten_Analysenprogramm!C119,\"\")","v":""},"",{"$f":"IF(A117=\"\",\"\",IF(ISNUMBER(Stammdaten_Analysenprogramm!F119),Stammdaten_Analysenprogramm!F119,\"fehlt\"))","v":""},null,null,null,null,null,null,null,null,""]
[{"$f":"IF(Stammdaten_Analysenprogramm!AE120=\"Ja\",Stammdaten_Analysenprogramm!A120,\"\")","v":""},{"$f":"IF(Stammdaten_Analysenprogramm!AE120=\"Ja\",Stammdaten_Analysenprogramm!C120,\"\")","v":""},"",{"$f":"IF(A118=\"\",\"\",IF(ISNUMBER(Stammdaten_Analysenprogramm!F120),Stammdaten_Analysenprogramm!F120,\"fehlt\"))","v":""},null,null,null,null,null,null,null,null,""]
[{"$f":"IF(Stammdaten_Analysenprogramm!AE121=\"Ja\",Stammdaten_Analysenprogramm!A121,\"\")","v":""},{"$f":"IF(Stammdaten_Analysenprogramm!AE121=\"Ja\",Stammdaten_Analysenprogramm!C121,\"\")","v":""},"",{"$f":"IF(A119=\"\",\"\",IF(ISNUMBER(Stammdaten_Analysenprogramm!F121),Stammdaten_Analysenprogramm!F121,\"fehlt\"))","v":""},null,null,null,null,null,null,null,null,""]
[{"$f":"IF(Stammdaten_Analysenprogramm!AE122=\"Ja\",Stammdaten_Analysenprogramm!A122,\"\")","v":""},{"$f":"IF(Stammdaten_Analysenprogramm!AE122=\"Ja\",Stammdaten_Analysenprogramm!C122,\"\")","v":""},"",{"$f":"IF(A120=\"\",\"\",IF(ISNUMBER(Stammdaten_Analysenprogramm!F122),Stammdaten_Analysenprogramm!F122,\"fehlt\"))","v":""},null,null,null,null,null,null,null,null,""]
[{"$f":"IF(Stammdaten_Analysenprogramm!AE123=\"Ja\",Stammdaten_Analysenprogramm!A123,\"\")","v":""},{"$f":"IF(Stammdaten_Analysenprogramm!AE123=\"Ja\",Stammdaten_Analysenprogramm!C123,\"\")","v":""},"",{"$f":"IF(A121=\"\",\"\",IF(ISNUMBER(Stammdaten_Analysenprogramm!F123),Stammdaten_Analysenprogramm!F123,\"fehlt\"))","v":""},null,null,null,null,null,null,null,null,""]
[{"$f":"IF(Stammdaten_Analysenprogramm!AE124=\"Ja\",Stammdaten_Analysenprogramm!A124,\"\")","v":""},{"$f":"IF(Stammdaten_Analysenprogramm!AE124=\"Ja\",Stammdaten_Analysenprogramm!C124,\"\")","v":""},"",{"$f":"IF(A122=\"\",\"\",IF(ISNUMBER(Stammdaten_Analysenprogramm!F124),Stammdaten_Analysenprogramm!F124,\"fehlt\"))","v":""},null,null,null,null,null,null,null,null,""]
[{"$f":"IF(Stammdaten_Analysenprogramm!AE125=\"Ja\",Stammdaten_Analysenprogramm!A125,\"\")","v":""},{"$f":"IF(Stammdaten_Analysenprogramm!AE125=\"Ja\",Stammdaten_Analysenprogramm!C125,\"\")","v":""},"",{"$f":"IF(A123=\"\",\"\",IF(ISNUMBER(Stammdaten_Analysenprogramm!F125),Stammdaten_Analysenprogramm!F125,\"fehlt\"))","v":""},null,null,null,null,null,null,null,null,""]
[{"$f":"IF(Stammdaten_Analysenprogramm!AE126=\"Ja\",Stammdaten_Analysenprogramm!A126,\"\")","v":""},{"$f":"IF(Stammdaten_Analysenprogramm!AE126=\"Ja\",Stammdaten_Analysenprogramm!C126,\"\")","v":""},"",{"$f":"IF(A124=\"\",\"\",IF(ISNUMBER(Stammdaten_Analysenprogramm!F126),Stammdaten_Analysenprogramm!F126,\"fehlt\"))","v":""},null,null,null,null,null,null,null,null,""]
[{"$f":"IF(Stammdaten_Analysenprogramm!AE127=\"Ja\",Stammdaten_Analysenprogramm!A127,\"\")","v":""},{"$f":"IF(Stammdaten_Analysenprogramm!AE127=\"Ja\",Stammdaten_Analysenprogramm!C127,\"\")","v":""},"",{"$f":"IF(A125=\"\",\"\",IF(ISNUMBER(Stammdaten_Analysenprogramm!F127),Stammdaten_Analysenprogramm!F127,\"fehlt\"))","v":""},null,null,null,null,null,null,null,null,""]
[{"$f":"IF(Stammdaten_Analysenprogramm!AE128=\"Ja\",Stammdaten_Analysenprogramm!A128,\"\")","v":""},{"$f":"IF(Stammdaten_Analysenprogramm!AE128=\"Ja\",Stammdaten_Analysenprogramm!C128,\"\")","v":""},"",{"$f":"IF(A126=\"\",\"\",IF(ISNUMBER(Stammdaten_Analysenprogramm!F128),Stammdaten_Analysenprogramm!F128,\"fehlt\"))","v":""},null,null,null,null,null,null,null,null,""]
[{"$f":"IF(Stammdaten_Analysenprogramm!AE129=\"Ja\",Stammdaten_Analysenprogramm!A129,\"\")","v":""},{"$f":"IF(Stammdaten_Analysenprogramm!AE129=\"Ja\",Stammdaten_Analysenprogramm!C129,\"\")","v":""},"",{"$f":"IF(A127=\"\",\"\",IF(ISNUMBER(Stammdaten_Analysenprogramm!F129),Stammdaten_Analysenprogramm!F129,\"fehlt\"))","v":""},null,null,null,null,null,null,null,null,""]
[{"$f":"IF(Stammdaten_Analysenprogramm!AE130=\"Ja\",Stammdaten_Analysenprogramm!A130,\"\")","v":""},{"$f":"IF(Stammdaten_Analysenprogramm!AE130=\"Ja\",Stammdaten_Analysenprogramm!C130,\"\")","v":""},"",{"$f":"IF(A128=\"\",\"\",IF(ISNUMBER(Stammdaten_Analysenprogramm!F130),Stammdaten_Analysenprogramm!F130,\"fehlt\"))","v":""},null,null,null,null,null,null,null,null,""]
[{"$f":"IF(Stammdaten_Analysenprogramm!AE131=\"Ja\",Stammdaten_Analysenprogramm!A131,\"\")","v":""},{"$f":"IF(Stammdaten_Analysenprogramm!AE131=\"Ja\",Stammdaten_Analysenprogramm!C131,\"\")","v":""},"",{"$f":"IF(A129=\"\",\"\",IF(ISNUMBER(Stammdaten_Analysenprogramm!F131),Stammdaten_Analysenprogramm!F131,\"fehlt\"))","v":""},null,null,null,null,null,null,null,null,""]
[{"$f":"IF(Stammdaten_Analysenprogramm!AE132=\"Ja\",Stammdaten_Analysenprogramm!A132,\"\")","v":""},{"$f":"IF(Stammdaten_Analysenprogramm!AE132=\"Ja\",Stammdaten_Analysenprogramm!C132,\"\")","v":""},"",{"$f":"IF(A130=\"\",\"\",IF(ISNUMBER(Stammdaten_Analysenprogramm!F132),Stammdaten_Analysenprogramm!F132,\"fehlt\"))","v":""},null,null,null,null,null,null,null,null,""]
[{"$f":"IF(Stammdaten_Analysenprogramm!AE133=\"Ja\",Stammdaten_Analysenprogramm!A133,\"\")","v":""},{"$f":"IF(Stammdaten_Analysenprogramm!AE133=\"Ja\",Stammdaten_Analysenprogramm!C133,\"\")","v":""},"",{"$f":"IF(A131=\"\",\"\",IF(ISNUMBER(Stammdaten_Analysenprogramm!F133),Stammdaten_Analysenprogramm!F133,\"fehlt\"))","v":""},null,null,null,null,null,null,null,null,""]
[{"$f":"IF(Stammdaten_Analysenprogramm!AE134=\"Ja\",Stammdaten_Analysenprogramm!A134,\"\")","v":""},{"$f":"IF(Stammdaten_Analysenprogramm!AE134=\"Ja\",Stammdaten_Analysenprogramm!C134,\"\")","v":""},"",{"$f":"IF(A132=\"\",\"\",IF(ISNUMBER(Stammdaten_Analysenprogramm!F134),Stammdaten_Analysenprogramm!F134,\"fehlt\"))","v":""},null,null,null,null,null,null,null,null,""]
[{"$f":"IF(Stammdaten_Analysenprogramm!AE135=\"Ja\",Stammdaten_Analysenprogramm!A135,\"\")","v":""},{"$f":"IF(Stammdaten_Analysenprogramm!AE135=\"Ja\",Stammdaten_Analysenprogramm!C135,\"\")","v":""},"",{"$f":"IF(A133=\"\",\"\",IF(ISNUMBER(Stammdaten_Analysenprogramm!F135),Stammdaten_Analysenprogramm!F135,\"fehlt\"))","v":""},null,null,null,null,null,null,null,null,""]
[{"$f":"IF(Stammdaten_Analysenprogramm!AE136=\"Ja\",Stammdaten_Analysenprogramm!A136,\"\")","v":""},{"$f":"IF(Stammdaten_Analysenprogramm!AE136=\"Ja\",Stammdaten_Analysenprogramm!C136,\"\")","v":""},{"$f":"A134","v":""},{"$f":"IF(A134=\"\",\"\",IF(ISNUMBER(Stammdaten_Analysenprogramm!F136),Stammdaten_Analysenprogramm!F136,\"fehlt\"))","v":""},null,null,null,null,null,null,null,null,{"$f":"IF(AND(ISNUMBER(L134),ISNUMBER(D134)),D134-L134,\"\")","v":""}]
[{"$f":"IF(Stammdaten_Analysenprogramm!AE137=\"Ja\",Stammdaten_Analysenprogramm!A137,\"\")","v":""},{"$f":"IF(Stammdaten_Analysenprogramm!AE137=\"Ja\",Stammdaten_Analysenprogramm!C137,\"\")","v":""},"",{"$f":"IF(A135=\"\",\"\",IF(ISNUMBER(Stammdaten_Analysenprogramm!F137),Stammdaten_Analysenprogramm!F137,\"fehlt\"))","v":""},null,null,null,null,null,null,null,null,""]
[{"$f":"IF(Stammdaten_Analysenprogramm!AE138=\"Ja\",Stammdaten_Analysenprogramm!A138,\"\")","v":""},{"$f":"IF(Stammdaten_Analysenprogramm!AE138=\"Ja\",Stammdaten_Analysenprogramm!C138,\"\")","v":""},"",{"$f":"IF(A136=\"\",\"\",IF(ISNUMBER(Stammdaten_Analysenprogramm!F138),Stammdaten_Analysenprogramm!F138,\"fehlt\"))","v":""},null,null,null,null,null,null,null,null,""]
[{"$f":"IF(Stammdaten_Analysenprogramm!AE139=\"Ja\",Stammdaten_Analysenprogramm!A139,\"\")","v":""},{"$f":"IF(Stammdaten_Analysenprogramm!AE139=\"Ja\",Stammdaten_Analysenprogramm!C139,\"\")","v":""},"",{"$f":"IF(A137=\"\",\"\",IF(ISNUMBER(Stammdaten_Analysenprogramm!F139),Stammdaten_Analysenprogramm!F139,\"fehlt\"))","v":""},null,null,null,null,null,null,null,null,""]
[{"$f":"IF(Stammdaten_Analysenprogramm!AE140=\"Ja\",Stammdaten_Analysenprogramm!A140,\"\")","v":""},{"$f":"IF(Stammdaten_Analysenprogramm!AE140=\"Ja\",Stammdaten_Analysenprogramm!C140,\"\")","v":""},"",{"$f":"IF(A138=\"\",\"\",IF(ISNUMBER(Stammdaten_Analysenprogramm!F140),Stammdaten_Analysenprogramm!F140,\"fehlt\"))","v":""},null,null,null,null,null,null,null,null,""]
[{"$f":"IF(Stammdaten_Analysenprogramm!AE141=\"Ja\",Stammdaten_Analysenprogramm!A141,\"\")","v":""},{"$f":"IF(Stammdaten_Analysenprogramm!AE141=\"Ja\",Stammdaten_Analysenprogramm!C141,\"\")","v":""},"",{"$f":"IF(A139=\"\",\"\",IF(ISNUMBER(Stammdaten_Analysenprogramm!F141),Stammdaten_Analysenprogramm!F141,\"fehlt\"))","v":""},null,null,null,null,null,null,null,null,""]
[{"$f":"IF(Stammdaten_Analysenprogramm!AE142=\"Ja\",Stammdaten_Analysenprogramm!A142,\"\")","v":""},{"$f":"IF(Stammdaten_Analysenprogramm!AE142=\"Ja\",Stammdaten_Analysenprogramm!C142,\"\")","v":""},"",{"$f":"IF(A140=\"\",\"\",IF(ISNUMBER(Stammdaten_Analysenprogramm!F142),Stammdaten_Analysenprogramm!F142,\"fehlt\"))","v":""},null,null,null,null,null,null,null,null,""]
[{"$f":"IF(Stammdaten_Analysenprogramm!AE143=\"Ja\",Stammdaten_Analysenprogramm!A143,\"\")","v":""},{"$f":"IF(Stammdaten_Analysenprogramm!AE143=\"Ja\",Stammdaten_Analysenprogramm!C143,\"\")","v":""},"",{"$f":"IF(A141=\"\",\"\",IF(ISNUMBER(Stammdaten_Analysenprogramm!F143),Stammdaten_Analysenprogramm!F143,\"fehlt\"))","v":""},null,null,null,null,null,null,null,null,""]
[{"$f":"IF(Stammdaten_Analysenprogramm!AE144=\"Ja\",Stammdaten_Analysenprogramm!A144,\"\")","v":""},{"$f":"IF(Stammdaten_Analysenprogramm!AE144=\"Ja\",Stammdaten_Analysenprogramm!C144,\"\")","v":""},"",{"$f":"IF(A142=\"\",\"\",IF(ISNUMBER(Stammdaten_Analysenprogramm!F144),Stammdaten_Analysenprogramm!F144,\"fehlt\"))","v":""},null,null,null,null,null,null,null,null,""]
[{"$f":"IF(Stammdaten_Analysenprogramm!AE145=\"Ja\",Stammdaten_Analysenprogramm!A145,\"\")","v":""},{"$f":"IF(Stammdaten_Analysenprogramm!AE145=\"Ja\",Stammdaten_Analysenprogramm!C145,\"\")","v":""},"",{"$f":"IF(A143=\"\",\"\",IF(ISNUMBER(Stammdaten_Analysenprogramm!F145),Stammdaten_Analysenprogramm!F145,\"fehlt\"))","v":""},null,null,null,null,null,null,null,null,""]
[{"$f":"IF(Stammdaten_Analysenprogramm!AE146=\"Ja\",Stammdaten_Analysenprogramm!A146,\"\")","v":""},{"$f":"IF(Stammdaten_Analysenprogramm!AE146=\"Ja\",Stammdaten_Analysenprogramm!C146,\"\")","v":""},"",{"$f":"IF(A144=\"\",\"\",IF(ISNUMBER(Stammdaten_Analysenprogramm!F146),Stammdaten_Analysenprogramm!F146,\"fehlt\"))","v":""},null,null,null,null,null,null,null,null,""]
[{"$f":"IF(Stammdaten_Analysenprogramm!AE147=\"Ja\",Stammdaten_Analysenprogramm!A147,\"\")","v":""},{"$f":"IF(Stammdaten_Analysenprogramm!AE147=\"Ja\",Stammdaten_Analysenprogramm!C147,\"\")","v":""},"",{"$f":"IF(A145=\"\",\"\",IF(ISNUMBER(Stammdaten_Analysenprogramm!F147),Stammdaten_Analysenprogramm!F147,\"fehlt\"))","v":""},null,null,null,null,null,null,null,null,""]
[{"$f":"IF(Stammdaten_Analysenprogramm!AE148=\"Ja\",Stammdaten_Analysenprogramm!A148,\"\")","v":""},{"$f":"IF(Stammdaten_Analysenprogramm!AE148=\"Ja\",Stammdaten_Analysenprogramm!C148,\"\")","v":""},"",{"$f":"IF(A146=\"\",\"\",IF(ISNUMBER(Stammdaten_Analysenprogramm!F148),Stammdaten_Analysenprogramm!F148,\"fehlt\"))","v":""},null,null,null,null,null,null,null,null,""]
[{"$f":"IF(Stammdaten_Analysenprogramm!AE149=\"Ja\",Stammdaten_Analysenprogramm!A149,\"\")","v":""},{"$f":"IF(Stammdaten_Analysenprogramm!AE149=\"Ja\",Stammdaten_Analysenprogramm!C149,\"\")","v":""},"",{"$f":"IF(A147=\"\",\"\",IF(ISNUMBER(Stammdaten_Analysenprogramm!F149),Stammdaten_Analysenprogramm!F149,\"fehlt\"))","v":""},null,null,null,null,null,null,null,null,""]
[{"$f":"IF(Stammdaten_Analysenprogramm!AE150=\"Ja\",Stammdaten_Analysenprogramm!A150,\"\")","v":""},{"$f":"IF(Stammdaten_Analysenprogramm!AE150=\"Ja\",Stammdaten_Analysenprogramm!C150,\"\")","v":""},"",{"$f":"IF(A148=\"\",\"\",IF(ISNUMBER(Stammdaten_Analysenprogramm!F150),Stammdaten_Analysenprogramm!F150,\"fehlt\"))","v":""},null,null,null,null,null,null,null,null,""]
[{"$f":"IF(Stammdaten_Analysenprogramm!AE151=\"Ja\",Stammdaten_Analysenprogramm!A151,\"\")","v":""},{"$f":"IF(Stammdaten_Analysenprogramm!AE151=\"Ja\",Stammdaten_Analysenprogramm!C151,\"\")","v":""},"",{"$f":"IF(A149=\"\",\"\",IF(ISNUMBER(Stammdaten_Analysenprogramm!F151),Stammdaten_Analysenprogramm!F151,\"fehlt\"))","v":""},null,null,null,null,null,null,null,null,""]
[{"$f":"IF(Stammdaten_Analysenprogramm!AE152=\"Ja\",Stammdaten_Analysenprogramm!A152,\"\")","v":""},{"$f":"IF(Stammdaten_Analysenprogramm!AE152=\"Ja\",Stammdaten_Analysenprogramm!C152,\"\")","v":""},"",{"$f":"IF(A150=\"\",\"\",IF(ISNUMBER(Stammdaten_Analysenprogramm!F152),Stammdaten_Analysenprogramm!F152,\"fehlt\"))","v":""},null,null,null,null,null,null,null,null,""]
[{"$f":"IF(Stammdaten_Analysenprogramm!AE153=\"Ja\",Stammdaten_Analysenprogramm!A153,\"\")","v":""},{"$f":"IF(Stammdaten_Analysenprogramm!AE153=\"Ja\",Stammdaten_Analysenprogramm!C153,\"\")","v":""},"",{"$f":"IF(A151=\"\",\"\",IF(ISNUMBER(Stammdaten_Analysenprogramm!F153),Stammdaten_Analysenprogramm!F153,\"fehlt\"))","v":""},null,null,null,null,null,null,null,null,""]
[{"$f":"IF(Stammdaten_Analysenprogramm!AE154=\"Ja\",Stammdaten_Analysenprogramm!A154,\"\")","v":""},{"$f":"IF(Stammdaten_Analysenprogramm!AE154=\"Ja\",Stammdaten_Analysenprogramm!C154,\"\")","v":""},"",{"$f":"IF(A152=\"\",\"\",IF(ISNUMBER(Stammdaten_Analysenprogramm!F154),Stammdaten_Analysenprogramm!F154,\"fehlt\"))","v":""},null,null,null,null,null,null,null,null,""]
[{"$f":"IF(Stammdaten_Analysenprogramm!AE155=\"Ja\",Stammdaten_Analysenprogramm!A155,\"\")","v":""},{"$f":"IF(Stammdaten_Analysenprogramm!AE155=\"Ja\",Stammdaten_Analysenprogramm!C155,\"\")","v":""},"",{"$f":"IF(A153=\"\",\"\",IF(ISNUMBER(Stammdaten_Analysenprogramm!F155),Stammdaten_Analysenprogramm!F155,\"fehlt\"))","v":""},null,null,null,null,null,null,null,null,""]
[{"$f":"IF(Stammdaten_Analysenprogramm!AE156=\"Ja\",Stammdaten_Analysenprogramm!A156,\"\")","v":""},{"$f":"IF(Stammdaten_Analysenprogramm!AE156=\"Ja\",Stammdaten_Analysenprogramm!C156,\"\")","v":""},"",{"$f":"IF(A154=\"\",\"\",IF(ISNUMBER(Stammdaten_Analysenprogramm!F156),Stammdaten_Analysenprogramm!F156,\"fehlt\"))","v":""},null,null,null,null,null,null,null,null,""]
[{"$f":"IF(Stammdaten_Analysenprogramm!AE157=\"Ja\",Stammdaten_Analysenprogramm!A157,\"\")","v":""},{"$f":"IF(Stammdaten_Analysenprogramm!AE157=\"Ja\",Stammdaten_Analysenprogramm!C157,\"\")","v":""},"",{"$f":"IF(A155=\"\",\"\",IF(ISNUMBER(Stammdaten_Analysenprogramm!F157),Stammdaten_Analysenprogramm!F157,\"fehlt\"))","v":""},null,null,null,null,null,null,null,null,""]
[{"$f":"IF(Stammdaten_Analysenprogramm!AE158=\"Ja\",Stammdaten_Analysenprogramm!A158,\"\")","v":""},{"$f":"IF(Stammdaten_Analysenprogramm!AE158=\"Ja\",Stammdaten_Analysenprogramm!C158,\"\")","v":""},"",{"$f":"IF(A156=\"\",\"\",IF(ISNUMBER(Stammdaten_Analysenprogramm!F158),Stammdaten_Analysenprogramm!F158,\"fehlt\"))","v":""},null,null,null,null,null,null,null,null,""]
[{"$f":"IF(Stammdaten_Analysenprogramm!AE159=\"Ja\",Stammdaten_Analysenprogramm!A159,\"\")","v":""},{"$f":"IF(Stammdaten_Analysenprogramm!AE159=\"Ja\",Stammdaten_Analysenprogramm!C159,\"\")","v":""},"",{"$f":"IF(A157=\"\",\"\",IF(ISNUMBER(Stammdaten_Analysenprogramm!F159),Stammdaten_Analysenprogramm!F159,\"fehlt\"))","v":""},null,null,null,null,null,null,null,null,""]
[{"$f":"IF(Stammdaten_Analysenprogramm!AE160=\"Ja\",Stammdaten_Analysenprogramm!A160,\"\")","v":""},{"$f":"IF(Stammdaten_Analysenprogramm!AE160=\"Ja\",Stammdaten_Analysenprogramm!C160,\"\")","v":""},"",{"$f":"IF(A158=\"\",\"\",IF(ISNUMBER(Stammdaten_Analysenprogramm!F160),Stammdaten_Analysenprogramm!F160,\"fehlt\"))","v":""},null,null,null,null,null,null,null,null,""]
[{"$f":"IF(Stammdaten_Analysenprogramm!AE161=\"Ja\",Stammdaten_Analysenprogramm!A161,\"\")","v":""},{"$f":"IF(Stammdaten_Analysenprogramm!AE161=\"Ja\",Stammdaten_Analysenprogramm!C161,\"\")","v":""},"",{"$f":"IF(A159=\"\",\"\",IF(ISNUMBER(Stammdaten_Analysenprogramm!F161),Stammdaten_Analysenprogramm!F161,\"fehlt\"))","v":""},null,null,null,null,null,null,null,null,""]
[{"$f":"IF(Stammdaten_Analysenprogramm!AE162=\"Ja\",Stammdaten_Analysenprogramm!A162,\"\")","v":""},{"$f":"IF(Stammdaten_Analysenprogramm!AE162=\"Ja\",Stammdaten_Analysenprogramm!C162,\"\")","v":""},"",{"$f":"IF(A160=\"\",\"\",IF(ISNUMBER(Stammdaten_Analysenprogramm!F162),Stammdaten_Analysenprogramm!F162,\"fehlt\"))","v":""},null,null,null,null,null,null,null,null,""]
[{"$f":"IF(Stammdaten_Analysenprogramm!AE163=\"Ja\",Stammdaten_Analysenprogramm!A163,\"\")","v":""},{"$f":"IF(Stammdaten_Analysenprogramm!AE163=\"Ja\",Stammdaten_Analysenprogramm!C163,\"\")","v":""},"",{"$f":"IF(A161=\"\",\"\",IF(ISNUMBER(Stammdaten_Analysenprogramm!F163),Stammdaten_Analysenprogramm!F163,\"fehlt\"))","v":""},null,null,null,null,null,null,null,null,""]
[{"$f":"IF(Stammdaten_Analysenprogramm!AE164=\"Ja\",Stammdaten_Analysenprogramm!A164,\"\")","v":""},{"$f":"IF(Stammdaten_Analysenprogramm!AE164=\"Ja\",Stammdaten_Analysenprogramm!C164,\"\")","v":""},"",{"$f":"IF(A162=\"\",\"\",IF(ISNUMBER(Stammdaten_Analysenprogramm!F164),Stammdaten_Analysenprogramm!F164,\"fehlt\"))","v":""},null,null,null,null,null,null,null,null,""]
[{"$f":"IF(Stammdaten_Analysenprogramm!AE165=\"Ja\",Stammdaten_Analysenprogramm!A165,\"\")","v":""},{"$f":"IF(Stammdaten_Analysenprogramm!AE165=\"Ja\",Stammdaten_Analysenprogramm!C165,\"\")","v":""},"",{"$f":"IF(A163=\"\",\"\",IF(ISNUMBER(Stammdaten_Analysenprogramm!F165),Stammdaten_Analysenprogramm!F165,\"fehlt\"))","v":""},null,null,null,null,null,null,null,null,""]
[{"$f":"IF(Stammdaten_Analysenprogramm!AE166=\"Ja\",Stammdaten_Analysenprogramm!A166,\"\")","v":""},{"$f":"IF(Stammdaten_Analysenprogramm!AE166=\"Ja\",Stammdaten_Analysenprogramm!C166,\"\")","v":""},"",{"$f":"IF(A164=\"\",\"\",IF(ISNUMBER(Stammdaten_Analysenprogramm!F166),Stammdaten_Analysenprogramm!F166,\"fehlt\"))","v":""},null,null,null,null,null,null,null,null,""]
[{"$f":"IF(Stammdaten_Analysenprogramm!AE167=\"Ja\",Stammdaten_Analysenprogramm!A167,\"\")","v":""},{"$f":"IF(Stammdaten_Analysenprogramm!AE167=\"Ja\",Stammdaten_Analysenprogramm!C167,\"\")","v":""},"",{"$f":"IF(A165=\"\",\"\",IF(ISNUMBER(Stammdaten_Analysenprogramm!F167),Stammdaten_Analysenprogramm!F167,\"fehlt\"))","v":""},null,null,null,null,null,null,null,null,""]
[{"$f":"IF(Stammdaten_Analysenprogramm!AE168=\"Ja\",Stammdaten_Analysenprogramm!A168,\"\")","v":""},{"$f":"IF(Stammdaten_Analysenprogramm!AE168=\"Ja\",Stammdaten_Analysenprogramm!C168,\"\")","v":""},"",{"$f":"IF(A166=\"\",\"\",IF(ISNUMBER(Stammdaten_Analysenprogramm!F168),Stammdaten_Analysenprogramm!F168,\"fehlt\"))","v":""},null,null,null,null,null,null,null,null,""]
[{"$f":"IF(Stammdaten_Analysenprogramm!AE169=\"Ja\",Stammdaten_Analysenprogramm!A169,\"\")","v":""},{"$f":"IF(Stammdaten_Analysenprogramm!AE169=\"Ja\",Stammdaten_Analysenprogramm!C169,\"\")","v":""},"",{"$f":"IF(A167=\"\",\"\",IF(ISNUMBER(Stammdaten_Analysenprogramm!F169),Stammdaten_Analysenprogramm!F169,\"fehlt\"))","v":""},null,null,null,null,null,null,null,null,""]
[{"$f":"IF(Stammdaten_Analysenprogramm!AE170=\"Ja\",Stammdaten_Analysenprogramm!A170,\"\")","v":""},{"$f":"IF(Stammdaten_Analysenprogramm!AE170=\"Ja\",Stammdaten_Analysenprogramm!C170,\"\")","v":""},"",{"$f":"IF(A168=\"\",\"\",IF(ISNUMBER(Stammdaten_Analysenprogramm!F170),Stammdaten_Analysenprogramm!F170,\"fehlt\"))","v":""},null,null,null,null,null,null,null,null,""]
[{"$f":"IF(Stammdaten_Analysenprogramm!AE171=\"Ja\",Stammdaten_Analysenprogramm!A171,\"\")","v":""},{"$f":"IF(Stammdaten_Analysenprogramm!AE171=\"Ja\",Stammdaten_Analysenprogramm!C171,\"\")","v":""},"",{"$f":"IF(A169=\"\",\"\",IF(ISNUMBER(Stammdaten_Analysenprogramm!F171),Stammdaten_Analysenprogramm!F171,\"fehlt\"))","v":""},null,null,null,null,null,null,null,null,""]
[{"$f":"IF(Stammdaten_Analysenprogramm!AE172=\"Ja\",Stammdaten_Analysenprogramm!A172,\"\")","v":""},{"$f":"IF(Stammdaten_Analysenprogramm!AE172=\"Ja\",Stammdaten_Analysenprogramm!C172,\"\")","v":""},"",{"$f":"IF(A170=\"\",\"\",IF(ISNUMBER(Stammdaten_Analysenprogramm!F172),Stammdaten_Analysenprogramm!F172,\"fehlt\"))","v":""},null,null,null,null,null,null,null,null,""]
[{"$f":"IF(Stammdaten_Analysenprogramm!AE173=\"Ja\",Stammdaten_Analysenprogramm!A173,\"\")","v":""},{"$f":"IF(Stammdaten_Analysenprogramm!AE173=\"Ja\",Stammdaten_Analysenprogramm!C173,\"\")","v":""},"",{"$f":"IF(A171=\"\",\"\",IF(ISNUMBER(Stammdaten_Analysenprogramm!F173),Stammdaten_Analysenprogramm!F173,\"fehlt\"))","v":""},null,null,null,null,null,null,null,null,""]
[{"$f":"IF(Stammdaten_Analysenprogramm!AE174=\"Ja\",Stammdaten_Analysenprogramm!A174,\"\")","v":""},{"$f":"IF(Stammdaten_Analysenprogramm!AE174=\"Ja\",Stammdaten_Analysenprogramm!C174,\"\")","v":""},"",{"$f":"IF(A172=\"\",\"\",IF(ISNUMBER(Stammdaten_Analysenprogramm!F174),Stammdaten_Analysenprogramm!F174,\"fehlt\"))","v":""},null,null,null,null,null,null,null,null,""]
[{"$f":"IF(Stammdaten_Analysenprogramm!AE175=\"Ja\",Stammdaten_Analysenprogramm!A175,\"\")","v":""},{"$f":"IF(Stammdaten_Analysenprogramm!AE175=\"Ja\",Stammdaten_Analysenprogramm!C175,\"\")","v":""},"",{"$f":"IF(A173=\"\",\"\",IF(ISNUMBER(Stammdaten_Analysenprogramm!F175),Stammdaten_Analysenprogramm!F175,\"fehlt\"))","v":""},null,null,null,null,null,null,null,null,""]
[{"$f":"IF(Stammdaten_Analysenprogramm!AE176=\"Ja\",Stammdaten_Analysenprogramm!A176,\"\")","v":""},{"$f":"IF(Stammdaten_Analysenprogramm!AE176=\"Ja\",Stammdaten_Analysenprogramm!C176,\"\")","v":""},"",{"$f":"IF(A174=\"\",\"\",IF(ISNUMBER(Stammdaten_Analysenprogramm!F176),Stammdaten_Analysenprogramm!F176,\"fehlt\"))","v":""},null,null,null,null,null,null,null,null,""]
[{"$f":"IF(Stammdaten_Analysenprogramm!AE177=\"Ja\",Stammdaten_Analysenprogramm!A177,\"\")","v":""},{"$f":"IF(Stammdaten_Analysenprogramm!AE177=\"Ja\",Stammdaten_Analysenprogramm!C177,\"\")","v":""},"",{"$f":"IF(A175=\"\",\"\",IF(ISNUMBER(Stammdaten_Analysenprogramm!F177),Stammdaten_Analysenprogramm!F177,\"fehlt\"))","v":""},null,null,null,null,null,null,null,null,""]
[{"$f":"IF(Stammdaten_Analysenprogramm!AE178=\"Ja\",Stammdaten_Analysenprogramm!A178,\"\")","v":""},{"$f":"IF(Stammdaten_Analysenprogramm!AE178=\"Ja\",Stammdaten_Analysenprogramm!C178,\"\")","v":""},"",{"$f":"IF(A176=\"\",\"\",IF(ISNUMBER(Stammdaten_Analysenprogramm!F178),Stammdaten_Analysenprogramm!F178,\"fehlt\"))","v":""},null,null,null,null,null,null,null,null,""]
[{"$f":"IF(Stammdaten_Analysenprogramm!AE179=\"Ja\",Stammdaten_Analysenprogramm!A179,\"\")","v":""},{"$f":"IF(Stammdaten_Analysenprogramm!AE179=\"Ja\",Stammdaten_Analysenprogramm!C179,\"\")","v":""},"",{"$f":"IF(A177=\"\",\"\",IF(ISNUMBER(Stammdaten_Analysenprogramm!F179),Stammdaten_Analysenprogramm!F179,\"fehlt\"))","v":""},null,null,null,null,null,null,null,null,""]
[{"$f":"IF(Stammdaten_Analysenprogramm!AE180=\"Ja\",Stammdaten_Analysenprogramm!A180,\"\")","v":""},{"$f":"IF(Stammdaten_Analysenprogramm!AE180=\"Ja\",Stammdaten_Analysenprogramm!C180,\"\")","v":""},"",{"$f":"IF(A178=\"\",\"\",IF(ISNUMBER(Stammdaten_Analysenprogramm!F180),Stammdaten_Analysenprogramm!F180,\"fehlt\"))","v":""},null,null,null,null,null,null,null,null,""]
[{"$f":"IF(Stammdaten_Analysenprogramm!AE181=\"Ja\",Stammdaten_Analysenprogramm!A181,\"\")","v":""},{"$f":"IF(Stammdaten_Analysenprogramm!AE181=\"Ja\",Stammdaten_Analysenprogramm!C181,\"\")","v":""},"",{"$f":"IF(A179=\"\",\"\",IF(ISNUMBER(Stammdaten_Analysenprogramm!F181),Stammdaten_Analysenprogramm!F181,\"fehlt\"))","v":""},null,null,null,null,null,null,null,null,""]
[{"$f":"IF(Stammdaten_Analysenprogramm!AE182=\"Ja\",Stammdaten_Analysenprogramm!A182,\"\")","v":""},{"$f":"IF(Stammdaten_Analysenprogramm!AE182=\"Ja\",Stammdaten_Analysenprogramm!C182,\"\")","v":""},"",{"$f":"IF(A180=\"\",\"\",IF(ISNUMBER(Stammdaten_Analysenprogramm!F182),Stammdaten_Analysenprogramm!F182,\"fehlt\"))","v":""},null,null,null,null,null,null,null,null,""]
[{"$f":"IF(Stammdaten_Analysenprogramm!AE183=\"Ja\",Stammdaten_Analysenprogramm!A183,\"\")","v":""},{"$f":"IF(Stammdaten_Analysenprogramm!AE183=\"Ja\",Stammdaten_Analysenprogramm!C183,\"\")","v":""},"",{"$f":"IF(A181=\"\",\"\",IF(ISNUMBER(Stammdaten_Analysenprogramm!F183),Stammdaten_Analysenprogramm!F183,\"fehlt\"))","v":""},null,null,null,null,null,null,null,null,""]
[{"$f":"IF(Stammdaten_Analysenprogramm!AE184=\"Ja\",Stammdaten_Analysenprogramm!A184,\"\")","v":""},{"$f":"IF(Stammdaten_Analysenprogramm!AE184=\"Ja\",Stammdaten_Analysenprogramm!C184,\"\")","v":""},"",{"$f":"IF(A182=\"\",\"\",IF(ISNUMBER(Stammdaten_Analysenprogramm!F184),Stammdaten_Analysenprogramm!F184,\"fehlt\"))","v":""},null,null,null,null,null,null,null,null,""]
[{"$f":"IF(Stammdaten_Analysenprogramm!AE185=\"Ja\",Stammdaten_Analysenprogramm!A185,\"\")","v":""},{"$f":"IF(Stammdaten_Analysenprogramm!AE185=\"Ja\",Stammdaten_Analysenprogramm!C185,\"\")","v":""},"",{"$f":"IF(A183=\"\",\"\",IF(ISNUMBER(Stammdaten_Analysenprogramm!F185),Stammdaten_Analysenprogramm!F185,\"fehlt\"))","v":""},null,null,null,null,null,null,null,null,""]
[{"$f":"IF(Stammdaten_Analysenprogramm!AE186=\"Ja\",Stammdaten_Analysenprogramm!A186,\"\")","v":""},{"$f":"IF(Stammdaten_Analysenprogramm!AE186=\"Ja\",Stammdaten_Analysenprogramm!C186,\"\")","v":""},"",{"$f":"IF(A184=\"\",\"\",IF(ISNUMBER(Stammdaten_Analysenprogramm!F186),Stammdaten_Analysenprogramm!F186,\"fehlt\"))","v":""},null,null,null,null,null,null,null,null,""]
[{"$f":"IF(Stammdaten_Analysenprogramm!AE187=\"Ja\",Stammdaten_Analysenprogramm!A187,\"\")","v":""},{"$f":"IF(Stammdaten_Analysenprogramm!AE187=\"Ja\",Stammdaten_Analysenprogramm!C187,\"\")","v":""},"",{"$f":"IF(A185=\"\",\"\",IF(ISNUMBER(Stammdaten_Analysenprogramm!F187),Stammdaten_Analysenprogramm!F187,\"fehlt\"))","v":""},null,null,null,null,null,null,null,null,""]
[{"$f":"IF(Stammdaten_Analysenprogramm!AE188=\"Ja\",Stammdaten_Analysenprogramm!A188,\"\")","v":""},{"$f":"IF(Stammdaten_Analysenprogramm!AE188=\"Ja\",Stammdaten_Analysenprogramm!C188,\"\")","v":""},"",{"$f":"IF(A186=\"\",\"\",IF(ISNUMBER(Stammdaten_Analysenprogramm!F188),Stammdaten_Analysenprogramm!F188,\"fehlt\"))","v":""},null,null,null,null,null,null,null,null,""]
[{"$f":"IF(Stammdaten_Analysenprogramm!AE189=\"Ja\",Stammdaten_Analysenprogramm!A189,\"\")","v":""},{"$f":"IF(Stammdaten_Analysenprogramm!AE189=\"Ja\",Stammdaten_Analysenprogramm!C189,\"\")","v":""},"",{"$f":"IF(A187=\"\",\"\",IF(ISNUMBER(Stammdaten_Analysenprogramm!F189),Stammdaten_Analysenprogramm!F189,\"fehlt\"))","v":""},null,null,null,null,null,null,null,null,""]
[{"$f":"IF(Stammdaten_Analysenprogramm!AE190=\"Ja\",Stammdaten_Analysenprogramm!A190,\"\")","v":""},{"$f":"IF(Stammdaten_Analysenprogramm!AE190=\"Ja\",Stammdaten_Analysenprogramm!C190,\"\")","v":""},"",{"$f":"IF(A188=\"\",\"\",IF(ISNUMBER(Stammdaten_Analysenprogramm!F190),Stammdaten_Analysenprogramm!F190,\"fehlt\"))","v":""},null,null,null,null,null,null,null,null,""]
[{"$f":"IF(Stammdaten_Analysenprogramm!AE191=\"Ja\",Stammdaten_Analysenprogramm!A191,\"\")","v":""},{"$f":"IF(Stammdaten_Analysenprogramm!AE191=\"Ja\",Stammdaten_Analysenprogramm!C191,\"\")","v":""},"",{"$f":"IF(A189=\"\",\"\",IF(ISNUMBER(Stammdaten_Analysenprogramm!F191),Stammdaten_Analysenprogramm!F191,\"fehlt\"))","v":""},null,null,null,null,null,null,null,null,""]
[{"$f":"IF(Stammdaten_Analysenprogramm!AE192=\"Ja\",Stammdaten_Analysenprogramm!A192,\"\")","v":""},{"$f":"IF(Stammdaten_Analysenprogramm!AE192=\"Ja\",Stammdaten_Analysenprogramm!C192,\"\")","v":""},"",{"$f":"IF(A190=\"\",\"\",IF(ISNUMBER(Stammdaten_Analysenprogramm!F192),Stammdaten_Analysenprogramm!F192,\"fehlt\"))","v":""},null,null,null,null,null,null,null,null,""]
[{"$f":"IF(Stammdaten_Analysenprogramm!AE193=\"Ja\",Stammdaten_Analysenprogramm!A193,\"\")","v":""},{"$f":"IF(Stammdaten_Analysenprogramm!AE193=\"Ja\",Stammdaten_Analysenprogramm!C193,\"\")","v":""},"",{"$f":"IF(A191=\"\",\"\",IF(ISNUMBER(Stammdaten_Analysenprogramm!F193),Stammdaten_Analysenprogramm!F193,\"fehlt\"))","v":""},null,null,null,null,null,null,null,null,""]
[{"$f":"IF(Stammdaten_Analysenprogramm!AE194=\"Ja\",Stammdaten_Analysenprogramm!A194,\"\")","v":""},{"$f":"IF(Stammdaten_Analysenprogramm!AE194=\"Ja\",Stammdaten_Analysenprogramm!C194,\"\")","v":""},"",{"$f":"IF(A192=\"\",\"\",IF(ISNUMBER(Stammdaten_Analysenprogramm!F194),Stammdaten_Analysenprogramm!F194,\"fehlt\"))","v":""},null,null,null,null,null,null,null,null,""]
[{"$f":"IF(Stammdaten_Analysenprogramm!AE195=\"Ja\",Stammdaten_Analysenprogramm!A195,\"\")","v":""},{"$f":"IF(Stammdaten_Analysenprogramm!AE195=\"Ja\",Stammdaten_Analysenprogramm!C195,\"\")","v":""},"",{"$f":"IF(A193=\"\",\"\",IF(ISNUMBER(Stammdaten_Analysenprogramm!F195),Stammdaten_Analysenprogramm!F195,\"fehlt\"))","v":""},null,null,null,null,null,null,null,null,""]
[{"$f":"IF(Stammdaten_Analysenprogramm!AE196=\"Ja\",Stammdaten_Analysenprogramm!A196,\"\")","v":""},{"$f":"IF(Stammdaten_Analysenprogramm!AE196=\"Ja\",Stammdaten_Analysenprogramm!C196,\"\")","v":""},"",{"$f":"IF(A194=\"\",\"\",IF(ISNUMBER(Stammdaten_Analysenprogramm!F196),Stammdaten_Analysenprogramm!F196,\"fehlt\"))","v":""},null,null,null,null,null,null,null,null,""]
[{"$f":"IF(Stammdaten_Analysenprogramm!AE197=\"Ja\",Stammdaten_Analysenprogramm!A197,\"\")","v":""},{"$f":"IF(Stammdaten_Analysenprogramm!AE197=\"Ja\",Stammdaten_Analysenprogramm!C197,\"\")","v":""},"",{"$f":"IF(A195=\"\",\"\",IF(ISNUMBER(Stammdaten_Analysenprogramm!F197),Stammdaten_Analysenprogramm!F197,\"fehlt\"))","v":""},null,null,null,null,null,null,null,null,""]
[{"$f":"IF(Stammdaten_Analysenprogramm!AE198=\"Ja\",Stammdaten_Analysenprogramm!A198,\"\")","v":""},{"$f":"IF(Stammdaten_Analysenprogramm!AE198=\"Ja\",Stammdaten_Analysenprogramm!C198,\"\")","v":""},"",{"$f":"IF(A196=\"\",\"\",IF(ISNUMBER(Stammdaten_Analysenprogramm!F198),Stammdaten_Analysenprogramm!F198,\"fehlt\"))","v":""},null,null,null,null,null,null,null,null,""]
[{"$f":"IF(Stammdaten_Analysenprogramm!AE199=\"Ja\",Stammdaten_Analysenprogramm!A199,\"\")","v":""},{"$f":"IF(Stammdaten_Analysenprogramm!AE199=\"Ja\",Stammdaten_Analysenprogramm!C199,\"\")","v":""},"",{"$f":"IF(A197=\"\",\"\",IF(ISNUMBER(Stammdaten_Analysenprogramm!F199),Stammdaten_Analysenprogramm!F199,\"fehlt\"))","v":""},null,null,null,null,null,null,null,null,""]
[{"$f":"IF(Stammdaten_Analysenprogramm!AE200=\"Ja\",Stammdaten_Analysenprogramm!A200,\"\")","v":""},{"$f":"IF(Stammdaten_Analysenprogramm!AE200=\"Ja\",Stammdaten_Analysenprogramm!C200,\"\")","v":""},{"$f":"A198","v":""},{"$f":"IF(A198=\"\",\"\",IF(ISNUMBER(Stammdaten_Analysenprogramm!F200),Stammdaten_Analysenprogramm!F200,\"fehlt\"))","v":""},null,null,null,null,null,null,null,null,{"$f":"IF(AND(ISNUMBER(L198),ISNUMBER(D198)),D198-L198,\"\")","v":""}]
[{"$f":"IF(Stammdaten_Analysenprogramm!AE201=\"Ja\",Stammdaten_Analysenprogramm!A201,\"\")","v":""},{"$f":"IF(Stammdaten_Analysenprogramm!AE201=\"Ja\",Stammdaten_Analysenprogramm!C201,\"\")","v":""},"",{"$f":"IF(A199=\"\",\"\",IF(ISNUMBER(Stammdaten_Analysenprogramm!F201),Stammdaten_Analysenprogramm!F201,\"fehlt\"))","v":""},null,null,null,null,null,null,null,null,""]
[{"$f":"IF(Stammdaten_Analysenprogramm!AE202=\"Ja\",Stammdaten_Analysenprogramm!A202,\"\")","v":""},{"$f":"IF(Stammdaten_Analysenprogramm!AE202=\"Ja\",Stammdaten_Analysenprogramm!C202,\"\")","v":""},"",{"$f":"IF(A200=\"\",\"\",IF(ISNUMBER(Stammdaten_Analysenprogramm!F202),Stammdaten_Analysenprogramm!F202,\"fehlt\"))","v":""},null,null,null,null,null,null,null,null,""]
[{"$f":"IF(Stammdaten_Analysenprogramm!AE203=\"Ja\",Stammdaten_Analysenprogramm!A203,\"\")","v":""},{"$f":"IF(Stammdaten_Analysenprogramm!AE203=\"Ja\",Stammdaten_Analysenprogramm!C203,\"\")","v":""},"",{"$f":"IF(A201=\"\",\"\",IF(ISNUMBER(Stammdaten_Analysenprogramm!F203),Stammdaten_Analysenprogramm!F203,\"fehlt\"))","v":""},null,null,null,null,null,null,null,null,""]
[{"$f":"IF(Stammdaten_Analysenprogramm!AE204=\"Ja\",Stammdaten_Analysenprogramm!A204,\"\")","v":""},{"$f":"IF(Stammdaten_Analysenprogramm!AE204=\"Ja\",Stammdaten_Analysenprogramm!C204,\"\")","v":""},"",{"$f":"IF(A202=\"\",\"\",IF(ISNUMBER(Stammdaten_Analysenprogramm!F204),Stammdaten_Analysenprogramm!F204,\"fehlt\"))","v":""},null,null,null,null,null,null,null,null,""]
[{"$f":"IF(Stammdaten_Analysenprogramm!AE205=\"Ja\",Stammdaten_Analysenprogramm!A205,\"\")","v":""},{"$f":"IF(Stammdaten_Analysenprogramm!AE205=\"Ja\",Stammdaten_Analysenprogramm!C205,\"\")","v":""},"",{"$f":"IF(A203=\"\",\"\",IF(ISNUMBER(Stammdaten_Analysenprogramm!F205),Stammdaten_Analysenprogramm!F205,\"fehlt\"))","v":""},null,null,null,null,null,null,null,null,""]
[{"$f":"IF(Stammdaten_Analysenprogramm!AE206=\"Ja\",Stammdaten_Analysenprogramm!A206,\"\")","v":""},{"$f":"IF(Stammdaten_Analysenprogramm!AE206=\"Ja\",Stammdaten_Analysenprogramm!C206,\"\")","v":""},"",{"$f":"IF(A204=\"\",\"\",IF(ISNUMBER(Stammdaten_Analysenprogramm!F206),Stammdaten_Analysenprogramm!F206,\"fehlt\"))","v":""},null,null,null,null,null,null,null,null,""]
[{"$f":"IF(Stammdaten_Analysenprogramm!AE207=\"Ja\",Stammdaten_Analysenprogramm!A207,\"\")","v":""},{"$f":"IF(Stammdaten_Analysenprogramm!AE207=\"Ja\",Stammdaten_Analysenprogramm!C207,\"\")","v":""},"",{"$f":"IF(A205=\"\",\"\",IF(ISNUMBER(Stammdaten_Analysenprogramm!F207),Stammdaten_Analysenprogramm!F207,\"fehlt\"))","v":""},null,null,null,null,null,null,null,null,""]
[{"$f":"IF(Stammdaten_Analysenprogramm!AE208=\"Ja\",Stammdaten_Analysenprogramm!A208,\"\")","v":""},{"$f":"IF(Stammdaten_Analysenprogramm!AE208=\"Ja\",Stammdaten_Analysenprogramm!C208,\"\")","v":""},"",{"$f":"IF(A206=\"\",\"\",IF(ISNUMBER(Stammdaten_Analysenprogramm!F208),Stammdaten_Analysenprogramm!F208,\"fehlt\"))","v":""},null,null,null,null,null,null,null,null,""]
[{"$f":"IF(Stammdaten_Analysenprogramm!AE209=\"Ja\",Stammdaten_Analysenprogramm!A209,\"\")","v":""},{"$f":"IF(Stammdaten_Analysenprogramm!AE209=\"Ja\",Stammdaten_Analysenprogramm!C209,\"\")","v":""},"",{"$f":"IF(A207=\"\",\"\",IF(ISNUMBER(Stammdaten_Analysenprogramm!F209),Stammdaten_Analysenprogramm!F209,\"fehlt\"))","v":""},null,null,null,null,null,null,null,null,""]
[{"$f":"IF(Stammdaten_Analysenprogramm!AE210=\"Ja\",Stammdaten_Analysenprogramm!A210,\"\")","v":""},{"$f":"IF(Stammdaten_Analysenprogramm!AE210=\"Ja\",Stammdaten_Analysenprogramm!C210,\"\")","v":""},"",{"$f":"IF(A208=\"\",\"\",IF(ISNUMBER(Stammdaten_Analysenprogramm!F210),Stammdaten_Analysenprogramm!F210,\"fehlt\"))","v":""},null,null,null,null,null,null,null,null,""]
[{"$f":"IF(Stammdaten_Analysenprogramm!AE211=\"Ja\",Stammdaten_Analysenprogramm!A211,\"\")","v":""},{"$f":"IF(Stammdaten_Analysenprogramm!AE211=\"Ja\",Stammdaten_Analysenprogramm!C211,\"\")","v":""},"",{"$f":"IF(A209=\"\",\"\",IF(ISNUMBER(Stammdaten_Analysenprogramm!F211),Stammdaten_Analysenprogramm!F211,\"fehlt\"))","v":""},null,null,null,null,null,null,null,null,""]
[{"$f":"IF(Stammdaten_Analysenprogramm!AE212=\"Ja\",Stammdaten_Analysenprogramm!A212,\"\")","v":""},{"$f":"IF(Stammdaten_Analysenprogramm!AE212=\"Ja\",Stammdaten_Analysenprogramm!C212,\"\")","v":""},"",{"$f":"IF(A210=\"\",\"\",IF(ISNUMBER(Stammdaten_Analysenprogramm!F212),Stammdaten_Analysenprogramm!F212,\"fehlt\"))","v":""},null,null,null,null,null,null,null,null,""]
[{"$f":"IF(Stammdaten_Analysenprogramm!AE213=\"Ja\",Stammdaten_Analysenprogramm!A213,\"\")","v":""},{"$f":"IF(Stammdaten_Analysenprogramm!AE213=\"Ja\",Stammdaten_Analysenprogramm!C213,\"\")","v":""},"",{"$f":"IF(A211=\"\",\"\",IF(ISNUMBER(Stammdaten_Analysenprogramm!F213),Stammdaten_Analysenprogramm!F213,\"fehlt\"))","v":""},null,null,null,null,null,null,null,null,""]
[{"$f":"IF(Stammdaten_Analysenprogramm!AE214=\"Ja\",Stammdaten_Analysenprogramm!A214,\"\")","v":""},{"$f":"IF(Stammdaten_Analysenprogramm!AE214=\"Ja\",Stammdaten_Analysenprogramm!C214,\"\")","v":""},"",{"$f":"IF(A212=\"\",\"\",IF(ISNUMBER(Stammdaten_Analysenprogramm!F214),Stammdaten_Analysenprogramm!F214,\"fehlt\"))","v":""},null,null,null,null,null,null,null,null,""]
[{"$f":"IF(Stammdaten_Analysenprogramm!AE215=\"Ja\",Stammdaten_Analysenprogramm!A215,\"\")","v":""},{"$f":"IF(Stammdaten_Analysenprogramm!AE215=\"Ja\",Stammdaten_Analysenprogramm!C215,\"\")","v":""},"",{"$f":"IF(A213=\"\",\"\",IF(ISNUMBER(Stammdaten_Analysenprogramm!F215),Stammdaten_Analysenprogramm!F215,\"fehlt\"))","v":""},null,null,null,null,null,null,null,null,""]
[{"$f":"IF(Stammdaten_Analysenprogramm!AE216=\"Ja\",Stammdaten_Analysenprogramm!A216,\"\")","v":""},{"$f":"IF(Stammdaten_Analysenprogramm!AE216=\"Ja\",Stammdaten_Analysenprogramm!C216,\"\")","v":""},"",{"$f":"IF(A214=\"\",\"\",IF(ISNUMBER(Stammdaten_Analysenprogramm!F216),Stammdaten_Analysenprogramm!F216,\"fehlt\"))","v":""},null,null,null,null,null,null,null,null,""]
[{"$f":"IF(Stammdaten_Analysenprogramm!AE217=\"Ja\",Stammdaten_Analysenprogramm!A217,\"\")","v":""},{"$f":"IF(Stammdaten_Analysenprogramm!AE217=\"Ja\",Stammdaten_Analysenprogramm!C217,\"\")","v":""},"",{"$f":"IF(A215=\"\",\"\",IF(ISNUMBER(Stammdaten_Analysenprogramm!F217),Stammdaten_Analysenprogramm!F217,\"fehlt\"))","v":""},null,null,null,null,null,null,null,null,""]
[{"$f":"IF(Stammdaten_Analysenprogramm!AE218=\"Ja\",Stammdaten_Analysenprogramm!A218,\"\")","v":""},{"$f":"IF(Stammdaten_Analysenprogramm!AE218=\"Ja\",Stammdaten_Analysenprogramm!C218,\"\")","v":""},"",{"$f":"IF(A216=\"\",\"\",IF(ISNUMBER(Stammdaten_Analysenprogramm!F218),Stammdaten_Analysenprogramm!F218,\"fehlt\"))","v":""},null,null,null,null,null,null,null,null,""]
[{"$f":"IF(Stammdaten_Analysenprogramm!AE219=\"Ja\",Stammdaten_Analysenprogramm!A219,\"\")","v":""},{"$f":"IF(Stammdaten_Analysenprogramm!AE219=\"Ja\",Stammdaten_Analysenprogramm!C219,\"\")","v":""},"",{"$f":"IF(A217=\"\",\"\",IF(ISNUMBER(Stammdaten_Analysenprogramm!F219),Stammdaten_Analysenprogramm!F219,\"fehlt\"))","v":""},null,null,null,null,null,null,null,null,""]
[{"$f":"IF(Stammdaten_Analysenprogramm!AE220=\"Ja\",Stammdaten_Analysenprogramm!A220,\"\")","v":""},{"$f":"IF(Stammdaten_Analysenprogramm!AE220=\"Ja\",Stammdaten_Analysenprogramm!C220,\"\")","v":""},"",{"$f":"IF(A218=\"\",\"\",IF(ISNUMBER(Stammdaten_Analysenprogramm!F220),Stammdaten_Analysenprogramm!F220,\"fehlt\"))","v":""},null,null,null,null,null,null,null,null,""]
[{"$f":"IF(Stammdaten_Analysenprogramm!AE221=\"Ja\",Stammdaten_Analysenprogramm!A221,\"\")","v":""},{"$f":"IF(Stammdaten_Analysenprogramm!AE221=\"Ja\",Stammdaten_Analysenprogramm!C221,\"\")","v":""},"",{"$f":"IF(A219=\"\",\"\",IF(ISNUMBER(Stammdaten_Analysenprogramm!F221),Stammdaten_Analysenprogramm!F221,\"fehlt\"))","v":""},null,null,null,null,null,null,null,null,""]
[{"$f":"IF(Stammdaten_Analysenprogramm!AE222=\"Ja\",Stammdaten_Analysenprogramm!A222,\"\")","v":""},{"$f":"IF(Stammdaten_Analysenprogramm!AE222=\"Ja\",Stammdaten_Analysenprogramm!C222,\"\")","v":""},"",{"$f":"IF(A220=\"\",\"\",IF(ISNUMBER(Stammdaten_Analysenprogramm!F222),Stammdaten_Analysenprogramm!F222,\"fehlt\"))","v":""},null,null,null,null,null,null,null,null,""]
[{"$f":"IF(Stammdaten_Analysenprogramm!AE223=\"Ja\",Stammdaten_Analysenprogramm!A223,\"\")","v":""},{"$f":"IF(Stammdaten_Analysenprogramm!AE223=\"Ja\",Stammdaten_Analysenprogramm!C223,\"\")","v":""},"",{"$f":"IF(A221=\"\",\"\",IF(ISNUMBER(Stammdaten_Analysenprogramm!F223),Stammdaten_Analysenprogramm!F223,\"fehlt\"))","v":""},null,null,null,null,null,null,null,null,""]
[{"$f":"IF(Stammdaten_Analysenprogramm!AE224=\"Ja\",Stammdaten_Analysenprogramm!A224,\"\")","v":""},{"$f":"IF(Stammdaten_Analysenprogramm!AE224=\"Ja\",Stammdaten_Analysenprogramm!C224,\"\")","v":""},"",{"$f":"IF(A222=\"\",\"\",IF(ISNUMBER(Stammdaten_Analysenprogramm!F224),Stammdaten_Analysenprogramm!F224,\"fehlt\"))","v":""},null,null,null,null,null,null,null,null,""]
[{"$f":"IF(Stammdaten_Analysenprogramm!AE225=\"Ja\",Stammdaten_Analysenprogramm!A225,\"\")","v":""},{"$f":"IF(Stammdaten_Analysenprogramm!AE225=\"Ja\",Stammdaten_Analysenprogramm!C225,\"\")","v":""},"",{"$f":"IF(A223=\"\",\"\",IF(ISNUMBER(Stammdaten_Analysenprogramm!F225),Stammdaten_Analysenprogramm!F225,\"fehlt\"))","v":""},null,null,null,null,null,null,null,null,""]
[{"$f":"IF(Stammdaten_Analysenprogramm!AE226=\"Ja\",Stammdaten_Analysenprogramm!A226,\"\")","v":""},{"$f":"IF(Stammdaten_Analysenprogramm!AE226=\"Ja\",Stammdaten_Analysenprogramm!C226,\"\")","v":""},"",{"$f":"IF(A224=\"\",\"\",IF(ISNUMBER(Stammdaten_Analysenprogramm!F226),Stammdaten_Analysenprogramm!F226,\"fehlt\"))","v":""},null,null,null,null,null,null,null,null,""]
[{"$f":"IF(Stammdaten_Analysenprogramm!AE227=\"Ja\",Stammdaten_Analysenprogramm!A227,\"\")","v":""},{"$f":"IF(Stammdaten_Analysenprogramm!AE227=\"Ja\",Stammdaten_Analysenprogramm!C227,\"\")","v":""},"",{"$f":"IF(A225=\"\",\"\",IF(ISNUMBER(Stammdaten_Analysenprogramm!F227),Stammdaten_Analysenprogramm!F227,\"fehlt\"))","v":""},null,null,null,null,null,null,null,null,""]
[{"$f":"IF(Stammdaten_Analysenprogramm!AE228=\"Ja\",Stammdaten_Analysenprogramm!A228,\"\")","v":""},{"$f":"IF(Stammdaten_Analysenprogramm!AE228=\"Ja\",Stammdaten_Analysenprogramm!C228,\"\")","v":""},"",{"$f":"IF(A226=\"\",\"\",IF(ISNUMBER(Stammdaten_Analysenprogramm!F228),Stammdaten_Analysenprogramm!F228,\"fehlt\"))","v":""},null,null,null,null,null,null,null,null,""]
[{"$f":"IF(Stammdaten_Analysenprogramm!AE229=\"Ja\",Stammdaten_Analysenprogramm!A229,\"\")","v":""},{"$f":"IF(Stammdaten_Analysenprogramm!AE229=\"Ja\",Stammdaten_Analysenprogramm!C229,\"\")","v":""},"",{"$f":"IF(A227=\"\",\"\",IF(ISNUMBER(Stammdaten_Analysenprogramm!F229),Stammdaten_Analysenprogramm!F229,\"fehlt\"))","v":""},null,null,null,null,null,null,null,null,""]
[{"$f":"IF(Stammdaten_Analysenprogramm!AE230=\"Ja\",Stammdaten_Analysenprogramm!A230,\"\")","v":""},{"$f":"IF(Stammdaten_Analysenprogramm!AE230=\"Ja\",Stammdaten_Analysenprogramm!C230,\"\")","v":""},"",{"$f":"IF(A228=\"\",\"\",IF(ISNUMBER(Stammdaten_Analysenprogramm!F230),Stammdaten_Analysenprogramm!F230,\"fehlt\"))","v":""},null,null,null,null,null,null,null,null,""]
[{"$f":"IF(Stammdaten_Analysenprogramm!AE231=\"Ja\",Stammdaten_Analysenprogramm!A231,\"\")","v":""},{"$f":"IF(Stammdaten_Analysenprogramm!AE231=\"Ja\",Stammdaten_Analysenprogramm!C231,\"\")","v":""},"",{"$f":"IF(A229=\"\",\"\",IF(ISNUMBER(Stammdaten_Analysenprogramm!F231),Stammdaten_Analysenprogramm!F231,\"fehlt\"))","v":""},null,null,null,null,null,null,null,null,""]
[{"$f":"IF(Stammdaten_Analysenprogramm!AE232=\"Ja\",Stammdaten_Analysenprogramm!A232,\"\")","v":""},{"$f":"IF(Stammdaten_Analysenprogramm!AE232=\"Ja\",Stammdaten_Analysenprogramm!C232,\"\")","v":""},"",{"$f":"IF(A230=\"\",\"\",IF(ISNUMBER(Stammdaten_Analysenprogramm!F232),Stammdaten_Analysenprogramm!F232,\"fehlt\"))","v":""},null,null,null,null,null,null,null,null,""]
[{"$f":"IF(Stammdaten_Analysenprogramm!AE233=\"Ja\",Stammdaten_Analysenprogramm!A233,\"\")","v":""},{"$f":"IF(Stammdaten_Analysenprogramm!AE233=\"Ja\",Stammdaten_Analysenprogramm!C233,\"\")","v":""},"",{"$f":"IF(A231=\"\",\"\",IF(ISNUMBER(Stammdaten_Analysenprogramm!F233),Stammdaten_Analysenprogramm!F233,\"fehlt\"))","v":""},null,null,null,null,null,null,null,null,""]
[{"$f":"IF(Stammdaten_Analysenprogramm!AE234=\"Ja\",Stammdaten_Analysenprogramm!A234,\"\")","v":""},{"$f":"IF(Stammdaten_Analysenprogramm!AE234=\"Ja\",Stammdaten_Analysenprogramm!C234,\"\")","v":""},"",{"$f":"IF(A232=\"\",\"\",IF(ISNUMBER(Stammdaten_Analysenprogramm!F234),Stammdaten_Analysenprogramm!F234,\"fehlt\"))","v":""},null,null,null,null,null,null,null,null,""]
[{"$f":"IF(Stammdaten_Analysenprogramm!AE235=\"Ja\",Stammdaten_Analysenprogramm!A235,\"\")","v":""},{"$f":"IF(Stammdaten_Analysenprogramm!AE235=\"Ja\",Stammdaten_Analysenprogramm!C235,\"\")","v":""},"",{"$f":"IF(A233=\"\",\"\",IF(ISNUMBER(Stammdaten_Analysenprogramm!F235),Stammdaten_Analysenprogramm!F235,\"fehlt\"))","v":""},null,null,null,null,null,null,null,null,""]
[{"$f":"IF(Stammdaten_Analysenprogramm!AE236=\"Ja\",Stammdaten_Analysenprogramm!A236,\"\")","v":""},{"$f":"IF(Stammdaten_Analysenprogramm!AE236=\"Ja\",Stammdaten_Analysenprogramm!C236,\"\")","v":""},"",{"$f":"IF(A234=\"\",\"\",IF(ISNUMBER(Stammdaten_Analysenprogramm!F236),Stammdaten_Analysenprogramm!F236,\"fehlt\"))","v":""},null,null,null,null,null,null,null,null,""]
[{"$f":"IF(Stammdaten_Analysenprogramm!AE237=\"Ja\",Stammdaten_Analysenprogramm!A237,\"\")","v":""},{"$f":"IF(Stammdaten_Analysenprogramm!AE237=\"Ja\",Stammdaten_Analysenprogramm!C237,\"\")","v":""},"",{"$f":"IF(A235=\"\",\"\",IF(ISNUMBER(Stammdaten_Analysenprogramm!F237),Stammdaten_Analysenprogramm!F237,\"fehlt\"))","v":""},null,null,null,null,null,null,null,null,""]
[{"$f":"IF(Stammdaten_Analysenprogramm!AE238=\"Ja\",Stammdaten_Analysenprogramm!A238,\"\")","v":""},{"$f":"IF(Stammdaten_Analysenprogramm!AE238=\"Ja\",Stammdaten_Analysenprogramm!C238,\"\")","v":""},"",{"$f":"IF(A236=\"\",\"\",IF(ISNUMBER(Stammdaten_Analysenprogramm!F238),Stammdaten_Analysenprogramm!F238,\"fehlt\"))","v":""},null,null,null,null,null,null,null,null,""]
[{"$f":"IF(Stammdaten_Analysenprogramm!AE239=\"Ja\",Stammdaten_Analysenprogramm!A239,\"\")","v":""},{"$f":"IF(Stammdaten_Analysenprogramm!AE239=\"Ja\",Stammdaten_Analysenprogramm!C239,\"\")","v":""},"",{"$f":"IF(A237=\"\",\"\",IF(ISNUMBER(Stammdaten_Analysenprogramm!F239),Stammdaten_Analysenprogramm!F239,\"fehlt\"))","v":""},null,null,null,null,null,null,null,null,""]
[{"$f":"IF(Stammdaten_Analysenprogramm!AE240=\"Ja\",Stammdaten_Analysenprogramm!A240,\"\")","v":""},{"$f":"IF(Stammdaten_Analysenprogramm!AE240=\"Ja\",Stammdaten_Analysenprogramm!C240,\"\")","v":""},"",{"$f":"IF(A238=\"\",\"\",IF(ISNUMBER(Stammdaten_Analysenprogramm!F240),Stammdaten_Analysenprogramm!F240,\"fehlt\"))","v":""},null,null,null,null,null,null,null,null,""]
[{"$f":"IF(Stammdaten_Analysenprogramm!AE241=\"Ja\",Stammdaten_Analysenprogramm!A241,\"\")","v":""},{"$f":"IF(Stammdaten_Analysenprogramm!AE241=\"Ja\",Stammdaten_Analysenprogramm!C241,\"\")","v":""},"",{"$f":"IF(A239=\"\",\"\",IF(ISNUMBER(Stammdaten_Analysenprogramm!F241),Stammdaten_Analysenprogramm!F241,\"fehlt\"))","v":""},null,null,null,null,null,null,null,null,""]
[{"$f":"IF(Stammdaten_Analysenprogramm!AE242=\"Ja\",Stammdaten_Analysenprogramm!A242,\"\")","v":""},{"$f":"IF(Stammdaten_Analysenprogramm!AE242=\"Ja\",Stammdaten_Analysenprogramm!C242,\"\")","v":""},"",{"$f":"IF(A240=\"\",\"\",IF(ISNUMBER(Stammdaten_Analysenprogramm!F242),Stammdaten_Analysenprogramm!F242,\"fehlt\"))","v":""},null,null,null,null,null,null,null,null,""]
[{"$f":"IF(Stammdaten_Analysenprogramm!AE243=\"Ja\",Stammdaten_Analysenprogramm!A243,\"\")","v":""},{"$f":"IF(Stammdaten_Analysenprogramm!AE243=\"Ja\",Stammdaten_Analysenprogramm!C243,\"\")","v":""},"",{"$f":"IF(A241=\"\",\"\",IF(ISNUMBER(Stammdaten_Analysenprogramm!F243),Stammdaten_Analysenprogramm!F243,\"fehlt\"))","v":""},null,null,null,null,null,null,null,null,""]
[{"$f":"IF(Stammdaten_Analysenprogramm!AE244=\"Ja\",Stammdaten_Analysenprogramm!A244,\"\")","v":""},{"$f":"IF(Stammdaten_Analysenprogramm!AE244=\"Ja\",Stammdaten_Analysenprogramm!C244,\"\")","v":""},"",{"$f":"IF(A242=\"\",\"\",IF(ISNUMBER(Stammdaten_Analysenprogramm!F244),Stammdaten_Analysenprogramm!F244,\"fehlt\"))","v":""},null,null,null,null,null,null,null,null,""]
[{"$f":"IF(Stammdaten_Analysenprogramm!AE245=\"Ja\",Stammdaten_Analysenprogramm!A245,\"\")","v":""},{"$f":"IF(Stammdaten_Analysenprogramm!AE245=\"Ja\",Stammdaten_Analysenprogramm!C245,\"\")","v":""},"",{"$f":"IF(A243=\"\",\"\",IF(ISNUMBER(Stammdaten_Analysenprogramm!F245),Stammdaten_Analysenprogramm!F245,\"fehlt\"))","v":""},null,null,null,null,null,null,null,null,""]
[{"$f":"IF(Stammdaten_Analysenprogramm!AE246=\"Ja\",Stammdaten_Analysenprogramm!A246,\"\")","v":""},{"$f":"IF(Stammdaten_Analysenprogramm!AE246=\"Ja\",Stammdaten_Analysenprogramm!C246,\"\")","v":""},"",{"$f":"IF(A244=\"\",\"\",IF(ISNUMBER(Stammdaten_Analysenprogramm!F246),Stammdaten_Analysenprogramm!F246,\"fehlt\"))","v":""},null,null,null,null,null,null,null,null,""]
[{"$f":"IF(Stammdaten_Analysenprogramm!AE247=\"Ja\",Stammdaten_Analysenprogramm!A247,\"\")","v":""},{"$f":"IF(Stammdaten_Analysenprogramm!AE247=\"Ja\",Stammdaten_Analysenprogramm!C247,\"\")","v":""},"",{"$f":"IF(A245=\"\",\"\",IF(ISNUMBER(Stammdaten_Analysenprogramm!F247),Stammdaten_Analysenprogramm!F247,\"fehlt\"))","v":""},null,null,null,null,null,null,null,null,""]
[{"$f":"IF(Stammdaten_Analysenprogramm!AE248=\"Ja\",Stammdaten_Analysenprogramm!A248,\"\")","v":""},{"$f":"IF(Stammdaten_Analysenprogramm!AE248=\"Ja\",Stammdaten_Analysenprogramm!C248,\"\")","v":""},"",{"$f":"IF(A246=\"\",\"\",IF(ISNUMBER(Stammdaten_Analysenprogramm!F248),Stammdaten_Analysenprogramm!F248,\"fehlt\"))","v":""},null,null,null,null,null,null,null,null,""]
[{"$f":"IF(Stammdaten_Analysenprogramm!AE249=\"Ja\",Stammdaten_Analysenprogramm!A249,\"\")","v":""},{"$f":"IF(Stammdaten_Analysenprogramm!AE249=\"Ja\",Stammdaten_Analysenprogramm!C249,\"\")","v":""},"",{"$f":"IF(A247=\"\",\"\",IF(ISNUMBER(Stammdaten_Analysenprogramm!F249),Stammdaten_Analysenprogramm!F249,\"fehlt\"))","v":""},null,null,null,null,null,null,null,null,""]
[{"$f":"IF(Stammdaten_Analysenprogramm!AE250=\"Ja\",Stammdaten_Analysenprogramm!A250,\"\")","v":""},{"$f":"IF(Stammdaten_Analysenprogramm!AE250=\"Ja\",Stammdaten_Analysenprogramm!C250,\"\")","v":""},"",{"$f":"IF(A248=\"\",\"\",IF(ISNUMBER(Stammdaten_Analysenprogramm!F250),Stammdaten_Analysenprogramm!F250,\"fehlt\"))","v":""},null,null,null,null,null,null,null,null,""]
[{"$f":"IF(Stammdaten_Analysenprogramm!AE251=\"Ja\",Stammdaten_Analysenprogramm!A251,\"\")","v":""},{"$f":"IF(Stammdaten_Analysenprogramm!AE251=\"Ja\",Stammdaten_Analysenprogramm!C251,\"\")","v":""},"",{"$f":"IF(A249=\"\",\"\",IF(ISNUMBER(Stammdaten_Analysenprogramm!F251),Stammdaten_Analysenprogramm!F251,\"fehlt\"))","v":""},null,null,null,null,null,null,null,null,""]
[{"$f":"IF(Stammdaten_Analysenprogramm!AE252=\"Ja\",Stammdaten_Analysenprogramm!A252,\"\")","v":""},{"$f":"IF(Stammdaten_Analysenprogramm!AE252=\"Ja\",Stammdaten_Analysenprogramm!C252,\"\")","v":""},"",{"$f":"IF(A250=\"\",\"\",IF(ISNUMBER(Stammdaten_Analysenprogramm!F252),Stammdaten_Analysenprogramm!F252,\"fehlt\"))","v":""},null,null,null,null,null,null,null,null,""]
[{"$f":"IF(Stammdaten_Analysenprogramm!AE253=\"Ja\",Stammdaten_Analysenprogramm!A253,\"\")","v":""},{"$f":"IF(Stammdaten_Analysenprogramm!AE253=\"Ja\",Stammdaten_Analysenprogramm!C253,\"\")","v":""},"",{"$f":"IF(A251=\"\",\"\",IF(ISNUMBER(Stammdaten_Analysenprogramm!F253),Stammdaten_Analysenprogramm!F253,\"fehlt\"))","v":""},null,null,null,null,null,null,null,null,""]
[{"$f":"IF(Stammdaten_Analysenprogramm!AE254=\"Ja\",Stammdaten_Analysenprogramm!A254,\"\")","v":""},{"$f":"IF(Stammdaten_Analysenprogramm!AE254=\"Ja\",Stammdaten_Analysenprogramm!C254,\"\")","v":""},"",{"$f":"IF(A252=\"\",\"\",IF(ISNUMBER(Stammdaten_Analysenprogramm!F254),Stammdaten_Analysenprogramm!F254,\"fehlt\"))","v":""},null,null,null,null,null,null,null,null,""]
[{"$f":"IF(Stammdaten_Analysenprogramm!AE255=\"Ja\",Stammdaten_Analysenprogramm!A255,\"\")","v":""},{"$f":"IF(Stammdaten_Analysenprogramm!AE255=\"Ja\",Stammdaten_Analysenprogramm!C255,\"\")","v":""},"",{"$f":"IF(A253=\"\",\"\",IF(ISNUMBER(Stammdaten_Analysenprogramm!F255),Stammdaten_Analysenprogramm!F255,\"fehlt\"))","v":""},null,null,null,null,null,null,null,null,""]
[{"$f":"IF(Stammdaten_Analysenprogramm!AE256=\"Ja\",Stammdaten_Analysenprogramm!A256,\"\")","v":""},{"$f":"IF(Stammdaten_Analysenprogramm!AE256=\"Ja\",Stammdaten_Analysenprogramm!C256,\"\")","v":""},"",{"$f":"IF(A254=\"\",\"\",IF(ISNUMBER(Stammdaten_Analysenprogramm!F256),Stammdaten_Analysenprogramm!F256,\"fehlt\"))","v":""},null,null,null,null,null,null,null,null,""]
[{"$f":"IF(Stammdaten_Analysenprogramm!AE257=\"Ja\",Stammdaten_Analysenprogramm!A257,\"\")","v":""},{"$f":"IF(Stammdaten_Analysenprogramm!AE257=\"Ja\",Stammdaten_Analysenprogramm!C257,\"\")","v":""},"",{"$f":"IF(A255=\"\",\"\",IF(ISNUMBER(Stammdaten_Analysenprogramm!F257),Stammdaten_Analysenprogramm!F257,\"fehlt\"))","v":""},null,null,null,null,null,null,null,null,""]
[{"$f":"IF(Stammdaten_Analysenprogramm!AE258=\"Ja\",Stammdaten_Analysenprogramm!A258,\"\")","v":""},{"$f":"IF(Stammdaten_Analysenprogramm!AE258=\"Ja\",Stammdaten_Analysenprogramm!C258,\"\")","v":""},"",{"$f":"IF(A256=\"\",\"\",IF(ISNUMBER(Stammdaten_Analysenprogramm!F258),Stammdaten_Analysenprogramm!F258,\"fehlt\"))","v":""},null,null,null,null,null,null,null,null,""]
[{"$f":"IF(Stammdaten_Analysenprogramm!AE259=\"Ja\",Stammdaten_Analysenprogramm!A259,\"\")","v":""},{"$f":"IF(Stammdaten_Analysenprogramm!AE259=\"Ja\",Stammdaten_Analysenprogramm!C259,\"\")","v":""},"",{"$f":"IF(A257=\"\",\"\",IF(ISNUMBER(Stammdaten_Analysenprogramm!F259),Stammdaten_Analysenprogramm!F259,\"fehlt\"))","v":""},null,null,null,null,null,null,null,null,""]
[{"$f":"IF(Stammdaten_Analysenprogramm!AE260=\"Ja\",Stammdaten_Analysenprogramm!A260,\"\")","v":""},{"$f":"IF(Stammdaten_Analysenprogramm!AE260=\"Ja\",Stammdaten_Analysenprogramm!C260,\"\")","v":""},"",{"$f":"IF(A258=\"\",\"\",IF(ISNUMBER(Stammdaten_Analysenprogramm!F260),Stammdaten_Analysenprogramm!F260,\"fehlt\"))","v":""},null,null,null,null,null,null,null,null,""]
[{"$f":"IF(Stammdaten_Analysenprogramm!AE261=\"Ja\",Stammdaten_Analysenprogramm!A261,\"\")","v":""},{"$f":"IF(Stammdaten_Analysenprogramm!AE261=\"Ja\",Stammdaten_Analysenprogramm!C261,\"\")","v":""},"",{"$f":"IF(A259=\"\",\"\",IF(ISNUMBER(Stammdaten_Analysenprogramm!F261),Stammdaten_Analysenprogramm!F261,\"fehlt\"))","v":""},null,null,null,null,null,null,null,null,""]
[{"$f":"IF(Stammdaten_Analysenprogramm!AE262=\"Ja\",Stammdaten_Analysenprogramm!A262,\"\")","v":""},{"$f":"IF(Stammdaten_Analysenprogramm!AE262=\"Ja\",Stammdaten_Analysenprogramm!C262,\"\")","v":""},"",{"$f":"IF(A260=\"\",\"\",IF(ISNUMBER(Stammdaten_Analysenprogramm!F262),Stammdaten_Analysenprogramm!F262,\"fehlt\"))","v":""},null,null,null,null,null,null,null,null,""]
[{"$f":"IF(Stammdaten_Analysenprogramm!AE263=\"Ja\",Stammdaten_Analysenprogramm!A263,\"\")","v":""},{"$f":"IF(Stammdaten_Analysenprogramm!AE263=\"Ja\",Stammdaten_Analysenprogramm!C263,\"\")","v":""},"",{"$f":"IF(A261=\"\",\"\",IF(ISNUMBER(Stammdaten_Analysenprogramm!F263),Stammdaten_Analysenprogramm!F263,\"fehlt\"))","v":""},null,null,null,null,null,null,null,null,""]
[{"$f":"IF(Stammdaten_Analysenprogramm!AE264=\"Ja\",Stammdaten_Analysenprogramm!A264,\"\")","v":""},{"$f":"IF(Stammdaten_Analysenprogramm!AE264=\"Ja\",Stammdaten_Analysenprogramm!C264,\"\")","v":""},{"$f":"A262","v":""},{"$f":"IF(A262=\"\",\"\",IF(ISNUMBER(Stammdaten_Analysenprogramm!F264),Stammdaten_Analysenprogramm!F264,\"fehlt\"))","v":""},null,null,null,null,null,null,null,null,{"$f":"IF(AND(ISNUMBER(L262),ISNUMBER(D262)),D262-L262,\"\")","v":""}]
[{"$f":"IF(Stammdaten_Analysenprogramm!AE265=\"Ja\",Stammdaten_Analysenprogramm!A265,\"\")","v":""},{"$f":"IF(Stammdaten_Analysenprogramm!AE265=\"Ja\",Stammdaten_Analysenprogramm!C265,\"\")","v":""},"",{"$f":"IF(A263=\"\",\"\",IF(ISNUMBER(Stammdaten_Analysenprogramm!F265),Stammdaten_Analysenprogramm!F265,\"fehlt\"))","v":""},null,null,null,null,null,null,null,null,""]
[{"$f":"IF(Stammdaten_Analysenprogramm!AE266=\"Ja\",Stammdaten_Analysenprogramm!A266,\"\")","v":""},{"$f":"IF(Stammdaten_Analysenprogramm!AE266=\"Ja\",Stammdaten_Analysenprogramm!C266,\"\")","v":""},"",{"$f":"IF(A264=\"\",\"\",IF(ISNUMBER(Stammdaten_Analysenprogramm!F266),Stammdaten_Analysenprogramm!F266,\"fehlt\"))","v":""},null,null,null,null,null,null,null,null,""]

{"sheet":"Parameter","index":3,"n_rows":674,"n_cols":22,"rows_kept":674,"cut":false,"hidden":false,"merged":[]}
["Schadstoffgruppe","Parameter lang","Schlüssel GeODin","Einheit",null,"Note: Parameterliste kann jederzeit ergänzt werden. GeoDIN-Schlüssel und Einheit in GeoDIN können sich je nach verwendeten Datentyp unterscheiden. ",null,null,null,null,null,null,null,null,null,null,null,null,null,null,"Stand: ","2023-04-14"]
["Aldehyde","Formaldehyd","FORMALDEH","µg/L"]
["Aldehyde","Benzaldehyd","BENZALDEH","µg/L"]
["aliphatische KW","n-Hexan","N_HEXAN","µg/L"]
["aliphatische KW","iso-Oktan","ISO_OKTAN","µg/L"]
["aliphatische KW","n-Oktan","N_OKTAN","µg/L"]
["aliphatische KW","n-Heptan","N_HEPTAN","µg/L"]
["aliphatische KW","Methan","METHAN","µg/L"]
["aliphatische KW","Ethan","ETHAN","µg/L"]
["aliphatische KW","Propan","PROPAN","µg/L"]
["aliphatische KW","n-Butan","BUTAN","µg/L"]
["aliphatische KW","n-Pentan","PENTAN","µg/L"]
["aliphatische KW","n-Nonan","NONAN","µg/L"]
["aliphatische KW","n-Dekan","DEKAN","µg/L"]
["aliphatische KW","Ethen","ETHEN","µg/L"]
["aliphatische KW","Isobutan","ISOBUTAN","µg/L"]
["aliphatische KW","n-Hexadekan","HEHADEKAN","µg/L"]
["aliphatische KW","n-Dodekan","DODEKAN","µg/L"]
["aliphatische KW","n-Undekan","UNDEKAN","µg/L"]
["Alkohole","1-Hexanol","HEXANOL_1","mg/L"]
["Alkohole","2-Hexanol","HEXANOL_2","mg/L"]
["Alkohole","3-Hexanol","HEXANOL_3","mg/L"]
["Alkohole","Glykol","GLYKOL","mg/L"]
["Alkohole","Isopropanol","ISOPROP","mg/L"]
["Alkohole","Methanol","METHANOL","mg/L"]
["Alkohole","n-Propanol","PROPANOL_N","mg/L"]
["Alkohole","n-Butanol","BUTANOL_N","mg/L"]
["Alkohole","Ethanol","ETHANOL","mg/L"]
["Amine","Triethylamin","TRIETHYLAM","µg/L"]
["Amine","2,3-Naphthylendiamin","NAPHDIAM23","µg/L"]
["Amine","Methylamin","METAMIN","µg/L"]
["Amine","Dimethylamin","DIMETAM","µg/L"]
["Amine","Ethylamin","ETAMIN","µg/L"]
["Amine","Diethylamin","DIETAMIN","µg/L"]
["Amine","n-Propylamin","NPROPYLAM","µg/L"]
["Amine","n-Butylamin","NBUTYLAM","µg/L"]
["Amine","Cyclohexylamin","CYLCOHEXAM","µg/L"]
["Amine","Ethanolamin","ETHANOLAM","µg/L"]
["Amine","Diethanolamin","DIETHAM","µg/L"]
["Aniline","Anilin","ANILIN","µg/L"]
["Aniline","2-Methylanilin (o-Toluidin)","METANIL2","µg/L"]
["Aniline","3-Methylanilin (m-Toluidin)","METANIL3","µg/L"]
["Aniline","4-Methylanilin (p-Toluidin)","METANIL4","µg/L"]
["Aniline","2,3,4-Methylanilin","METHANL234","µg/L"]
["Aniline","2,3-Dimethylanilin","DIMETANL23","µg/L"]
["Aniline","2,4-Dimethylanilin","DIMETANL24","µg/L"]
["Aniline","2,5-Dimethylanilin","DIMETANL25","µg/L"]
["Aniline","2,6-Dimethylanilin","DIMETANL26","µg/L"]
["Aniline","3,4-Dimethylanilin","DIMETANL34","µg/L"]
["Aniline","3,5-Dimethylanilin","DIMETANL35","µg/L"]
["Aniline","2,5/2,6/3,5-Dimethylanilin","DIMANL2526","µg/L"]
["Aniline","N,N-Dimethylanilin","DIMETANLNN","µg/L"]
["Aniline","2-Chloranilin","CHANIL2","µg/L"]
["Aniline","3-Chloranilin","CHANIL3","µg/L"]
["Aniline","4-Chloranilin","CHANIL4","µg/L"]
["Aniline","3+4-Chloranilin","CHANIL34","µg/L"]
["Aniline","2,3-Dichloranilin","DICHANIL23","µg/L"]
["Aniline","2,4-Dichloranilin","DICHANIL24","µg/L"]
["Aniline","2,5-Dichloranilin","DICHANIL25","µg/L"]
["Aniline","2,6-Dichloranilin","DICHANIL26","µg/L"]
["Aniline","2,4+2,5-Dichloranilin","DICHANIL45","µg/L"]
["Aniline","3,4-Dichloranilin","DICHANIL34","µg/L"]
["Aniline","3,5-Dichloranilin","DICHANIL35","µg/L"]
["Aniline","2,4,6-Tribromanilin","TRIANI","µg/L"]
["Aniline","2,4,5-Trichloranilin","TRCHANIL24","µg/L"]
["Aniline","2,3,4-Trichloranilin","TRCHANIL23","µg/L"]
["Aniline","2,4,6-Trichloranilin","TRCHANIL26","µg/L"]
["Aniline","3,4,5-Trichloranilin","TRCHANIL34","µg/L"]
["Aniline","2,4,5+2,3,4-Trichloranilin","TCA245_234","µg/L"]
["Aniline","2-Chlor-4-Methylanilin","CL2METANL4","µg/L"]
["Aniline","2-Chlor-5-Methylanilin","CL2METANL5","µg/L"]
["Aniline","2-Chlor-6-Methylanilin","CL2METANL6","µg/L"]
["Aniline","3-Chlor-2-Methylanilin","CL3METANL2","µg/L"]
["Aniline","3-Chlor-4-Methylanilin","CL3METANL4","µg/L"]
["Aniline","4-Chlor-2-Methylanilin","CL4METANL2","µg/L"]
["Aniline","5-Chlor-2-Methylanilin","CL5METANL2","µg/L"]
["Aniline","3+4-Methylanilin","METANL34","µg/L"]
["Aniline","2+4-Methylanilin","METANL24","µg/L"]
["Aniline","2,4,6-Trimethylanilin","TRMETANIL2","µg/L"]
["Aniline","2-Ethoxyanilin","ETHOXANL2","µg/L"]
["Aniline","3-Ethoxyanilin","EHTOXYANI3","µg/L"]
["Aniline","3,4-Ethoxyanilin","ETHOXANL34","µg/L"]
["Aniline","4-Ethoxyanilin","ETHOXYANI4","µg/L"]
["Aniline","2,4+2,6-Dimethylanilin","DIMETA2426","µg/L"]
["Aniline","2,3+2,4-Dimethylanilin","DIMETA2334","µg/L"]
["Anionen","Chlorid","CL","mg/L"]
["Anionen","Fluorid","F","mg/L"]
["Anionen","Hydrogencarbonat","HCO3","mg/L"]
["Anionen","Nitrit","NO2","mg/L"]
["Anionen","Nitrat","NO3","mg/L"]
["Anionen","Phosphat (ges.)","PO4_G","mg/L"]
["Anionen","Ortho-Phosphat","PO4_O","mg/L"]
["Anionen","Sulfid","S","mg/L"]
["Anionen","Sulfat","SO4","mg/L"]
["Anionen","Siliziumdioxid","SIO2","mg/L"]
["Anionen","Cyanide (frei)","CYAN_FREI","mg/L"]
["Anionen","Cyanide (gebunden)","CYAN_GEB","mg/L"]
["Anionen","Cyanide (ges.)","CYANID","mg/L"]
["Anionen","Chlor (ges.)","CL_G","mg/L"]
["Anionen","Bromid","BR","mg/L"]
["Anionen","Hydroxidionen","OH","mg/L"]
["Anionen","Schwefel (ges.)","S_G","mg/L"]
["Anionen","Dihydrogensulfid","H2SO3","mg/L"]
["Anionen","Jod","JOD","µg/L"]
["Anionen","Jodid","JODID","µg/L"]
["Anionen","Bromat","BROMAT","mg/L"]
["Biochem. Sauerstoffbedarf","BSB nach 1 Tag","BSB1","mgO2/L"]
["Biochem. Sauerstoffbedarf","BSB nach 2 Tagen","BSB2","mgO2/L"]
["Biochem. Sauerstoffbedarf","BSB nach 5 Tagen","BSB5","mgO2/L"]
["Bromierte KW","Tribrommethan","CHBR3","µg/L"]
["Bromierte KW","Dibromethan","DIBRETHAN","µg/L"]
["Bromierte KW","Dibrommethan","DIBRMETHAN","µg/L"]
["Bromierte KW","1-Bromnaphthalin","BRNAPHT1","µg/L"]
["Bromierte KW","Bromchlormethan","BRCLMETHAN","µg/L"]
["Bromierte KW","2-Bromnaphthalin","BRNAPHT2","µg/L"]
["Bromierte KW","Tetrabrommethan","TETBRMETHA","µg/L"]
["Bromierte KW","1,2-Dibrommethan","DBM12","µg/L"]
["Bromierte KW","1,4-Dibromnaphthalin","DIBRNAP14","µg/L"]
["BTEX","Benzen","BENZEN","µg/L"]
["BTEX","Diethylbenzen","DIETHBENZ","µg/L"]
["BTEX","Ethylbenzen","ETHBENZEN","µg/L"]
["BTEX","i-Propylbenzen","IPROPYL","µg/L"]
["BTEX","n-Propylbenzen","NPROPYL","µg/L"]
["BTEX","Toluen","TOLUEN","µg/L"]
["BTEX","Xylen (Isom.)","XYLEN","µg/L"]
["BTEX","Xylen (meta,ortho)","XYLEN_MO","µg/L"]
["BTEX","Xylen (meta,para)","XYLEN_MP","µg/L"]
["BTEX","Xylen (ortho)","XYLEN_O","µg/L"]
["BTEX","Xylen (meta)","XYLEN_m","µg/L"]
["BTEX","Xylen (para)","XYLEN_P","µg/L"]
["BTEX","Styren / Styrol","STYREN","µg/L"]
["BTEX","Trimethylbenzen","TRIMETHBEN","µg/L"]
["BTEX","1,3,5-Trimethylbenzen","TRIMBEN135","µg/L"]
["BTEX","1,2,4-Trimethylbenzen","TRIMBEN124","µg/L"]
["BTEX","1,2,3-Trimethylbenzen","TRIMBEN123","µg/L"]
["BTEX","Cumol","CUMOL","µg/L"]
["BTEX","2-Ethyltoluen","ETHYTOLU2","µg/L"]
["BTEX","3+4-Ethyltoluol","ETHYLTOL34","µg/L"]
["BTEX","Thiophen","THIOPHEN","µg/L"]
["BTEX","Mesitylen","MESITYLEN","µg/L"]
["Carbamate","Carbaryl","CARBARYL","µg/L"]
["Carbamate","Carbofuran","CARBOFURAN","µg/L"]
["Carbonsäurederivate","24_D","D_24","µg/L"]
["Carbonsäurederivate","24_DB","DB_24","µg/L"]
["Carbonsäurederivate","Dichlorprop","DICHLORPRO","µg/L"]
["Carbonsäurederivate","MCPA","MCPA","µg/L"]
["Carbonsäurederivate","MCPB","MCPB","µg/L"]
["Carbonsäurederivate","MCPP","MCPP","µg/L"]
["Carbonsäurederivate","2,4,5-TP (Fenoprop)","T_245","µg/L"]
["Chem. Sauerstoffbedarf","CSB","CSB","mgO2/L"]
["Chlorbenzole","1,2,3-Trichlorbenzen","TRICB123","µg/L"]
["Chlorbenzole","Chlorbenzen","CLBENZEN","µg/L"]
["Chlorbenzole","1,2,4-Trichlorbenzen","TRICB124","µg/L"]
["Chlorbenzole","1,3,5-Trichlorbenzen","TRICB135","µg/L"]
["Chlorbenzole","1,2,3,4-Tetrachlorbenzen","TETCB1234","µg/L"]
["Chlorbenzole","Pentachlornitrobenzen","PENTCLNBEN","µg/L"]
["Chlorbenzole","1,2,3,5-Tetrachlorbenzen","TETCB1235","µg/L"]
["Chlorbenzole","1,2,4,5-Tetrachlorbenzen","TETCB1245","µg/L"]
["Chlorbenzole","1,2-Dichlorbenzen","DCBENZ12","µg/L"]
["Chlorbenzole","1,3-Dichlorbenzen","DCBENZ13","µg/L"]
["Chlorbenzole","1,4-Dichlorbenzen","DCBENZ14","µg/L"]
["Chlorbenzole","Oktachlorstyren","OCS","µg/L"]
["Chlorbenzole","Pentachlorbenzen","QCS","µg/L"]
["Chlorbenzole","Hexachlorbenzen","HCB","µg/L"]
["Chlorbenzole","Monochlorbenzen","MONCBENZ","µg/L"]
["Chlorbenzole","Dichlorbenzen","DICBENZ","µg/L"]
["Chlorbenzole","Trichlorbenzen","TRICBENZ","µg/L"]
["Chlorbenzole","Tetrachlorbenzen","TETCBENZ","µg/L"]
["Chlorbenzole","1,2,3,5+1,2,4,5-Tetrachlorbenzen","TC12351245","µg/L"]
["Chlorbenzole","Chlorbenzen (Mono)","CLBENZOLMO","µg/L"]
["Chlorbenzole","Pentachloranisol","PENTCHANI","µg/L"]
["Chlorierte KW","Dichlormethan","DCM","µg/L"]
["Chlorierte KW","Trichlormethan","TRICM","µg/L"]
["Chlorierte KW","Tetrachlormethan","TETCM","µg/L"]
["Chlorierte KW","Dichlorethan (Isom.)","DCEA","µg/L"]
["Chlorierte KW","1,2-Dichlorethan","DCEA12","µg/L"]
["Chlorierte KW","1,1-Dichlorethan","DCEA11","µg/L"]
["Chlorierte KW","Dichlorethen (Isom.)","DCEE","µg/L"]
["Chlorierte KW","1,1-Dichlorethen","DCE11","µg/L"]
["Chlorierte KW","cis-1,2-Dichlorethen","DCE12CI","µg/L"]
["Chlorierte KW","trans-1,2-Dichlorethen","DCE12TR","µg/L"]
["Chlorierte KW","1,1,1-Trichlorethan","TRICE111","µg/L"]
["Chlorierte KW","1,1,2-Trichlorethan","TRICE112","µg/L"]
["Chlorierte KW","Trichlorethen","TRICE","µg/L"]
["Chlorierte KW","Tetrachlorethen","TETCE","µg/L"]
["Chlorierte KW","Tetrachlorethan","TETCEA","µg/L"]
["Chlorierte KW","1,1,1,2-Tetrachlorethan","TCE_1112","µg/L"]
["Chlorierte KW","1,1,2,2-Tetrachlorethan","TCE_1122","µg/L"]
["Chlorierte KW","Vinylchlorid","VINYLCL","µg/L"]
["Chlorierte KW","Chlormethan","CLMETHAN","µg/L"]
["Chlorierte KW","1,2-Dichlorpropan","DICLPROP12","µg/L"]
["Chlorierte KW","1,1,1-Trichlormethan","TRIME111","µg/L"]
["Chlorierte KW","1,1-Dichlorpropan","DICLPROP11","µg/L"]
["Chlorierte KW","1,3-Dichlorpropan","DICLPROP13","µg/L"]
["Chlorierte KW","2,2-Dichlorpropan","DICLPROP22","µg/L"]
["Chlorierte KW","Bromoform","BROMFORM","µg/L"]
["Chlorierte KW","Bromdichlormethan","BRDICLMETH","µg/L"]
["Chlorierte KW","Dibromchlormethan","DIBRCLMETH","µg/L"]
["Chlorierte KW","cis-Chlordan","CISCHLOR","µg/L"]
["Chlorierte KW","trans-Chlordan","TRANSCHLOR","µg/L"]
["Chlorphenole","Monochlorphenol","MONCPHEN_G","µg/L"]
["Chlorphenole","2-Chlorphenol","CL_PHENOL2","µg/L"]
["Chlorphenole","Dichlorphenol","DICPHEN_G","µg/L"]
["Chlorphenole","2,4-Dichlorphenol","DICLPHENOL","µg/L"]
["Chlorphenole","4-Chlor-3-methylphenol","CLMETPHEN","µg/L"]
["Chlorphenole","4-Chlor-2-methylphenol","CLMETPH42","µg/L"]
["Chlorphenole","Trichlorphenol","TRICPHEN_G","µg/L"]
["Chlorphenole","2,4,6-Trichlorphenol","TRICLPHEN","µg/L"]
["Chlorphenole","Tetrachlorphenol","TETCPHEN_G","µg/L"]
["Chlorphenole","Pentachlorphenol","PENTCLPHEN","µg/L"]
["Chlorphenole","2,4,5-Trichlorphenol","TRICLPH245","µg/L"]
["Chlorphenole","2,3,4,6-Tetrachlorphenol","TETCPH2346","µg/L"]
["Dithiocarbamate","Maneb","MANEB","µg/L"]
["Fluorchlor KW","1,2-Dichlor-1,1,2-Trifluorethen","DC12TRF112","µg/L"]
["Fluorchlor KW","1,1,2-Trichlortrifluorethan","CL3F3ET112","µg/L"]
["Fluorchlor KW","Dichlordifluormethan","CL2F2METHA","µg/L"]
["Fluorchlor KW","Trichlorfluormethan","CL3FMETHAN","µg/L"]
["Fluorchlor KW","Chlortrifluorethen","CLF3ETHEN","µg/L"]
["Fluorchlor KW","Chlorfluormethan","CLFMETHAN","µg/L"]
["Fluorchlor KW","Chlordifluormethan","CLF2METHAN","µg/L"]
["Fluorchlor KW","1,2-Dichlortetrafluorethan","CL2F4ETHAN","µg/L"]
["Fluorchlor KW","Dichlorfluormethan","CL2FMETHAN","µg/L"]
["Halogenorganika","alpha-Endosulfan","A_ENDOSUL","µg/L"]
["Halogenorganika","beta-Endosulfan","B_ENDOSUL","µg/L"]
["Halogenorganika","alpha-HCH","A_HCH","µg/L"]
["Halogenorganika","beta-HCH","B_HCH","µg/L"]
["Halogenorganika","gamma-HCH (Lindan)","G_HCH","µg/L"]
["Halogenorganika","trans-Heptachlorepoxid","HEPTCLEPOX","µg/L"]
["Halogenorganika","cis-Heptachlorepoxid","CIS_HEPTEP","µg/L"]
["Halogenorganika","delta-HCH","D_HCH","µg/L"]
["Halogenorganika","Aldrin","ALDRIN","µg/L"]
["Halogenorganika","Dieldrin","DIELDRIN","µg/L"]
["Halogenorganika","Endrin","ENDRIN","µg/L"]
["Halogenorganika","Heptachlor","HEPTACL","µg/L"]
["Halogenorganika","Methoxychlor","METHOXCL","µg/L"]
["Halogenorganika","Hexachlorbutadien","HCBE","µg/L"]
["Halogenorganika","DDT (para, para)","DDT_PP","µg/L"]
["Halogenorganika","DDE (para, para)","DDE_PP","µg/L"]
["Halogenorganika","DDD (para, para)","DDD_PP","µg/L"]
["Halogenorganika","DDT (ortho, para)","DDT_OP","µg/L"]
["Halogenorganika","DDE (ortho, para)","DDE_OP","µg/L"]
["Halogenorganika","DDD (ortho, para)","DDD_OP","µg/L"]
["Halogenorganika","DDA (para, para)","DDA_PP","µg/L"]
["Halogenorganika","DDA (ortho, para)","DDA_OP","µg/L"]
["Halogenorganika","epsilon-HCH","E_HCH","µg/L"]
["Halogenorganika","Endosulfansulfat","ENDOSULFAN","µg/L"]
["Halogenorganika","DDMU (para, para)","DDMU_PP","µg/L"]
["Halogenorganika","Isodrin","ISODRIN","µg/L"]
["Halogenorganika","Mirex","MIREX","µg/L"]
["Harnstoffderivate","Chlortoluron","CHLORTOLUR","µg/L"]
["Harnstoffderivate","Monolinuron","MONOLINURO","µg/L"]
["Harnstoffderivate","Isoproturon","ISOPROTURO","µg/L"]
["Harnstoffderivate","Metoxuron","METOXURON","µg/L"]
["Harnstoffderivate","Metobromuron","METOBROMUR","µg/L"]
["Harnstoffderivate","Dimefuron","DIMEFURON","µg/L"]
["Harnstoffderivate","Diuron","DIURON","µg/L"]
["Harnstoffderivate","Linuron","LINURON","µg/L"]
["Harnstoffderivate","Metabenzthiazuron","METHABENZT","µg/L"]
["Harnstoffderivate","Bromacil","BROMAC","µg/L"]
["Harnstoffderivate","Lenacil","LENACIL","µg/L"]
["Harnstoffderivate","Fenuron","FENURON","µg/L"]
["Harnstoffderivate","Thiazuafluron","THIAZUAFLU","µg/L"]
["Harnstoffderivate","Chloroxuron","CHLOXURON","µg/L"]
["Heterozyklen","1-Methylisochinolin","METHISOCHI","µg/L"]
["Heterozyklen","2,3-Dimethylbenzofuran","DMETHBENZF","µg/L"]
["Heterozyklen","2,4-Dimethylchinolin","METHCHIN24","µg/L"]
["Heterozyklen","2-Methylbenzofuran","METHBENZ2","µg/L"]
["Heterozyklen","2,6-Dimethylchinolin","METHCHIN26","µg/L"]
["Heterozyklen","2-Methylchinolin","METHCHINO2","µg/L"]
["Heterozyklen","2-Methylthionaphthen","METHTHIONA","µg/L"]
["Heterozyklen","3-Methylbenzothiophen","METBENTHIO","µg/L"]
["Heterozyklen","3-Methylchinolin","METHCHINO3","µg/L"]
["Heterozyklen","4-Methylchinolin","METHCHINO4","µg/L"]
["Heterozyklen","6+7-Methylchinolin","METHCHIN67","µg/L"]
["Heterozyklen","8-Methylchinolin","METHCHINO8","µg/L"]
["Heterozyklen","Benzo(b)thiophen","BENZBTHIO","µg/L"]
["Heterozyklen","Benzofuran","BENZOFURAN","µg/L"]
["Heterozyklen","Carbazol","CARBAZOL","µg/L"]
["Heterozyklen","Chinolin","CHINOLIN","µg/L"]
["Heterozyklen","Dibenzofuran","DIBENZOFUR","µg/L"]
["Heterozyklen","Dibenzothiophen","DIBENZTHIO","µg/L"]
["Heterozyklen","Isochinolin","ISOCHINOLI","µg/L"]
["Heterozyklen","Phenanthridin","PHENANTHRI","µg/L"]
["Heterozyklen","Xanthen","XANTHEN","µg/L"]
["Heterozyklen","Xanthon","XANTHON","µg/L"]
["Heterozyklen","Acridinon","ACRIDINON","µg/L"]
["Heterozyklen","Dimethylbenzofurane","DIMETHBENZ","µg/L"]
["Heterozyklen","Isochinolinone","ISOCHINOL","µg/L"]
["Heterozyklen","Methylbenzofurane","METHBENZ","µg/L"]
["Heterozyklen","Methylbenzothiophene","METHBENZTH","µg/L"]
["Heterozyklen","Methylchinoline","METHCHINO","µg/L"]
["Heterozyklen","Methylchinolinone","METHCHINOL","µg/L"]
["Heterozyklen","Methylisochinoline","METHSOCH","µg/L"]
["Heterozyklen","Hydroxybiphenyle","HYDROXYBI","µg/L"]
["Heterozyklen","Phenanthridinon","PHENTHRI","µg/L"]
["Heterozyklen","Dimethylchinoline","DIMETHCHIN","µg/L"]
["Heterozyklen","Methyldibenzofurane","METHDIBENZ","µg/L"]
["Heterozyklen","Chinolinone","CHINOLINE","µg/L"]
["Humanpharmaka","Naproxen","NAPROXEN","µg/L"]
["Humanpharmaka","Ibuprofen","IBUPROFEN","µg/L"]
["Humanpharmaka","Ketoprofen","KETOPROFEN","µg/L"]
["Humanpharmaka","Diclofenac","DICLOFENAC","µg/L"]
["Humanpharmaka","Bezafibrat","BEZAFIBRAT","µg/L"]
["Humanpharmaka","Fenofibrinsäure","FENOFIBRIN","µg/L"]
["Humanpharmaka","Gemfibrozil","GEMFOBRIZI","µg/L"]
["Humanpharmaka","Clofibrinsäure","CLOFIBRINS","mg/L"]
["Humanpharmaka","Metamizol","METAMIZOL","mg/L"]
["Humanpharmaka","Phenanzon","PHENAZON","µg/L"]
["Humanpharmaka","Aminophenazon","A_PHENAZON","µg/L"]
["Humanpharmaka","Propyphenazon","P_PHENAZON","µg/L"]
["Hydrazin","Hydrazin","N2H4","mg/L"]
["Kationen","Ammonium","NH4","mg/L"]
["Kationen","Eisen-2","FE_2","mg/L"]
["Kationen","Eisen-3","FE_3","mg/L"]
["Kationen","Eisen (ges.)","FE_G","mg/L"]
["Kationen","Kalium","K","mg/L"]
["Kationen","Calcium","CA","mg/L"]
["Kationen","Magnesium","MG","mg/L"]
["Kationen","Mangan-2","MN_2","mg/L"]
["Kationen","Natrium","NA","mg/L"]
["Kationen","Silizium","SI","mg/L"]
["Ketone","Cyclohexanon","CYCOHEXAN","µg/L"]
["Ketone","Aceton","ACETON","µg/L"]
["Ketone","Cyclohexan","CYCLOHEXAN","µg/L"]
["Ketone","Methylisobutylketon","MIBK","µg/L"]
["Komplexbildner","EDTA","ETDA","µg/L"]
["Komplexbildner","NTA","NTA","µg/L"]
["Metalle","Aluminium","AL","mg/L"]
["Metalle","Antimon","SB","µg/L"]
["Metalle","Arsen","ARS","µg/L"]
["Metalle","Barium","BA","µg/L"]
["Metalle","Beryllium","BE","µg/L"]
["Metalle","Blei","PB","µg/L"]
["Metalle","Bor","B","µg/L"]
["Metalle","Cadmium","CD","µg/L"]
["Metalle","Cer","CE","µg/L"]
["Metalle","Chrom","CR","µg/L"]
["Metalle","Chrom (VI)","CR_6","µg/L"]
["Metalle","Cobalt","CO","µg/L"]
["Metalle","Kupfer","CU","µg/L"]
["Metalle","Lanthan","LA","µg/L"]
["Metalle","Lithium","LI","mg/L"]
["Metalle","Mangan","MN","mg/L"]
["Metalle","Molybdän","MO","mg/L"]
["Metalle","Nickel","NI","µg/L"]
["Metalle","Quecksilber","HG","µg/L"]
["Metalle","Selen","SE","µg/L"]
["Metalle","Silber","AG","µg/L"]
["Metalle","Strontium","SR","µg/L"]
["Metalle","Thallium","TH","µg/L"]
["Metalle","Uran","U","µg/L"]
["Metalle","Vanadium","V","µg/L"]
["Metalle","Wismut","BI","µg/L"]
["Metalle","Yttrium","Y","µg/L"]
["Metalle","Zink","ZN","mg/L"]
["Metalle","Zinn","SN","µg/L"]
["Metalle","Zirkon","ZR","µg/L"]
["Metalle","Thorium","THO","mg/L"]
["Methylphenole","2-Methylphenol (o-Kresol)","METHYLPH2","µg/L"]
["Methylphenole","3-Methylphenol (m-Kresol)","METPHEN3","µg/L"]
["Methylphenole","3+4-Methylphenol","METHYLPH3","µg/L"]
["Methylphenole","4-Methylphenol (p-Kresol)","METPHEN4","µg/L"]
["Methylphenole","2-Methyl-4,6-dinitrophenol","MEDIPH246","µg/L"]
["Methylphenole","2,6-Dimethylphenol","DIMETPHN26","µg/L"]
["Methylphenole","2,4-Dimethylphenol","DIMETHPHEN","µg/L"]
["Methylphenole","2,5+2,6-Dimethylphenol","DIMETHPH25","µg/L"]
["Methylphenole","3,5-Dimethylphenol","DIMETHPH35","µg/L"]
["Methylphenole","2,4+2,5-Dimethylphenol","DIMPH_2425","µg/L"]
["Methylphenole","2,3-Dimethylphenol","DIMETHPH23","µg/L"]
["Methylphenole","2,5-Dimethylphenol","DIMETHPH25","µg/L"]
["Methylphenole","3,4-Dimethylphenol","DIMETHPH34","µg/L"]
["Methylphenole","2,4,6-Trimethylphenol","TRIMETH246","µg/L"]
["Methylphenole","2,3,5-Trimethylphenol","TRIMETH235","µg/L"]
["Methylphenole","3,4,5-Trimethylphenol","TRIMETH345","µg/L"]
["Methylphenole","2,3,6-Trimethylphenol","TRIMETH236","µg/L"]
["Methylphenole","2,4,5-Trimethylphenol","TRIMETH245","µg/L"]
["Methylphenole","2,3,4-Trimethylphenol","TRIMETH234","µg/L"]
["Methylphenole","3,5-Dimethylphenol, 3+4-Ethylphenol","DMP35EP34","µg/L"]
["MTBE","MTBE","MTBE","µg/L"]
["MTBE","tert-Butylalkohol (TBA)","BUTYLALKT","µg/L"]
["MTBE","tert-Butylformiat (TBF)","BUTYLFORT","µg/L"]
["Nitrobenzene","Nitrobenzen","NITROB","µg/L"]
["Nitrobenzene","2,3-Dichlor-1-nitrobenzen","NITDICH23","µg/L"]
["Nitrobenzene","2,4-Dichlor-1-nitrobenzen","NITDICH24","µg/L"]
["Nitrobenzene","2,5-Dichlor-1-nitrobenzen","NITDICH25","µg/L"]
["Nitrobenzene","3,4-Dichlor-1-nitrobenzen","NITDICH34","µg/L"]
["Nitrobenzene","3,5-Dichlor-1-nitrobenzen","NITDICH35","µg/L"]
["Nitrobenzene","1,2-Dinitrobenzen","DINITRO12","µg/L"]
["Nitrobenzene","1,3-Dinitrobenzen","DINITRO13","µg/L"]
["Nitrobenzene","1,4-Dinitrobenzen","DINITRO14","µg/L"]
["Nitrobenzene","1,3,5-Trinitrobenzen","TRINITRO13","µg/L"]
["Nitrobenzene","1-Chlor-2-nitrobenzen","NITCH12","µg/L"]
["Nitrobenzene","1-Chlor-3-nitrobenzen","NITCH13","µg/L"]
["Nitrobenzene","1-Chlor-4-nitrobenzen","NITCH14","µg/L"]
["Nitrobenzene","1,2-Dichlor-3-nitrobenzen","NITDICH123","µg/L"]
["Nitrobenzene","2,4,5-Trichlor-1-nitrobenzen","TRCHNI245","µg/L"]
["Nitrobenzene","2,3,4-Trichlor-1-nitrobenzen","TRCHNI234","µg/L"]
["Nitrobenzene","1-Chlor-3 + 1-Chlor-4-nitrobenzen","NITCH1314","µg/L"]
["Nitrotoluene","2-Nitrotoluen","NITROTO2","µg/L"]
["Nitrotoluene","3-Nitrotoluen","NITROTO3","µg/L"]
["Nitrotoluene","4-Nitrotoluen","NITROTO4","µg/L"]
["Nitrotoluene","2,3-Dinitrotoluen","DINITRO23","µg/L"]
["Nitrotoluene","2,4-Dinitrotoluen","DINITRO24","µg/L"]
["Nitrotoluene","2,6-Dinitrotoluen","DINITRO26","µg/L"]
["Nitrotoluene","3,4-Dinitrotoluen","DINITRO34","µg/L"]
["Nitrotoluene","3,5-Dinitrotoluen","DINITRO35","µg/L"]
["Nitrotoluene","2,4,6-Trinitrotoluen","TRNITRO246","µg/L"]
["Nitrotoluene","2-A-4,6-Dinitrotoluen","DINITRO2A4","µg/L"]
["Nitrotoluene","4-A-2,6-Dinitrotoluen","DINITRO4A2","µg/L"]
["Nitrotoluene","2,3+2,6-Dinitrotoluen","DINITRO236","µg/L"]
["PAK","Naphthalin","NAPHTALIN","µg/L"]
["PAK","Acenaphthylen","ACENA_YLEN","µg/L"]
["PAK","Acenaphthen","ACENA_THEN","µg/L"]
["PAK","Fluoren","FLUOREN","µg/L"]
["PAK","Phenanthren","PHENANTREN","µg/L"]
["PAK","Anthracen","ANTHRACEN","µg/L"]
["PAK","Fluoranthen","FLUORANTHE","µg/L"]
["PAK","Pyren","PYREN","µg/L"]
["PAK","Benz-a-anthracen","BENZ_A_ANT","µg/L"]
["PAK","Chrysen","CHRYSEN","µg/L"]
["PAK","Benz-b-fluoranthen","BENZ_B_FLU","µg/L"]
["PAK","Benz-k-fluoranthen","BENZ_K_FLU","µg/L"]
["PAK","Benz-a-pyren","BENZ_A_PYR","µg/L"]
["PAK","Dibenz-a,h-anthracen","DIBENZAHAN","µg/L"]
["PAK","Benz-g,h,i-perylen","BENZGHIPER","µg/L"]
["PAK","Indeno-1,2,3-c,d-pyren","INDENO123P","µg/L"]
["PAK","Methylindan","METHYLINDA","µg/L"]
["PAK","Benz-e-pyren","BENZ_E_PYR","µg/L"]
["PAK","1-Methylnaphthalin","METHNAPHT1","µg/L"]
["PAK","2-Methylnaphthalin","METHNAPHT2","µg/L"]
["PAK","Dimethylnaphthalin","DIMETHNAPH","µg/L"]
["PAK","Chlornaphthalin","CLNAPHTALE","µg/L"]
["PCB","PCB 28","PCB_28","µg/L"]
["PCB","PCB 52","PCB_52","µg/L"]
["PCB","PCB 101","PCB_101","µg/L"]
["PCB","PCB 138","PCB_138","µg/L"]
["PCB","PCB 153","PCB_153","µg/L"]
["PCB","PCB 180","PCB_180","µg/L"]
["PCB","PCB 31","PCB_31","µg/L"]
["PCB","PCB 20","PCB_20","µg/L"]
["PCB","PCB 118","PCB_118","µg/L"]
["Pestizide / PBSM","Bentazon","BENTAZON","µg/L"]
["Pestizide / PBSM","Trifluralin","TRIFURALIN","µg/L"]
["Pestizide / PBSM","Chloridazon","CHLORIDAZO","µg/L"]
["Pestizide / PBSM","Fenpropimorph","FNPRMORPH","µg/L"]
["Pestizide / PBSM","AMPA","AMPA","µg/L"]
["Pestizide / PBSM","Propyzamid","PROPYZAMID","µg/L"]
["Pestizide / PBSM","Iprodion","IPRODION","µg/L"]
["Pestizide / PBSM","Dichlofluanid","DI_FLUANID","µg/L"]
["Pestizide / PBSM","Deltamethrin","D_METHRIN","µg/L"]
["Pestizide / PBSM","Primicarb","PIRIMICARB","µg/L"]
["Pestizide / PBSM","Methyloxydemeton","OXY_METHYL","µg/L"]
["Pestizide / PBSM","Indomethacin","INMETHACIN","µg/L"]
["Pestizide / PBSM","Dicamba","DICAMBA","µg/L"]
["Pestizide / PBSM","Mecoprop","MECOPROP","µg/L"]
["Pestizide / PBSM","Chlorflurenol","CHLOFUREOL","µg/L"]
["Pestizide / PBSM","Propoxur","PROPOXUR","µg/L"]
["Pestizide / PBSM","Glufosinat","GLUFOSINAT","µg/L"]
["Pestizide / PBSM","Glyphosat","GLYPHOSAT","µg/L"]
["Pestizide / PBSM","Chlorpyrifos","CH_PYRIFOS","µg/L"]
["Pestizide / PBSM","Carbetamid","CARBETAMID","µg/L"]
["Pestizide / PBSM","Monuron","MONURON","µg/L"]
["Pestizide / PBSM","Oxadixyl","OXADIXYL","µg/L"]
["Pestizide / PBSM","Propham","PROPHAM","µg/L"]
["Pestizide / PBSM","Chlorpropham","CLPROPHAM","µg/L"]
["Pestizide / PBSM","Ethofumesat","ETHOFUM","µg/L"]
["Pestizide / PBSM","Dikegulac","DIKEGULAC","µg/L"]
["PFAS","Perfluorbutansäure","PFBA","µg/L"]
["PFAS","Perfluorpentansäure","PFPEA","µg/L"]
["PFAS","Perfluorhexansäure","PFHXA","µg/L"]
["PFAS","Perfluorheptansäure","PFHPA","µg/L"]
["PFAS","Perfluoroctansäure","PFOA","µg/L"]
["PFAS","Perfluornonansäure","PFNA","µg/L"]
["PFAS","Perfluordecansäure","PFDA","µg/L"]
["PFAS","Perfluorundecansäure","PFUNDA","µg/L"]
["PFAS","Perfluordodecansäure","PFDODA","µg/L"]
["PFAS","Perfluortridecansäure","PFTRDA","µg/L"]
["PFAS","Perfluortetradecansäure","PFTEDA","µg/L"]
["PFAS","Perfluorhexadecansäure","PFHXDA","µg/L"]
["PFAS","Perfluoroctadecansäure","PFOCDA","µg/L"]
["PFAS","Perfluorbutansulfonsäure","PFBS","µg/L"]
["PFAS","Perfluorpentansulfonsäure","PFPES","µg/L"]
["PFAS","Perfluorhexansulfonsäure","PFHXS_N","µg/L"]
["PFAS","iso-Perfluorhexansulfonsäure","PFHXS_BR","µg/L"]
["PFAS","n-PFHxS, br-PFHxS (Total PFHxS)","PFHXS_SUM","µg/L"]
["PFAS","Perfluorheptansulfonsäure","PFHPS","µg/L"]
["PFAS","Perfluoroctansulfonsäure","PFOS_N","µg/L"]
["PFAS","iso-Perfluoroctansulfonsäure","PFOS_BR","µg/L"]
["PFAS","n-PFOS, br-PFOS (Total PFOS)","PFOS_SUM","µg/L"]
["PFAS","Perfluornonansulfonsäure","PFNS","µg/L"]
["PFAS","Perfluordecansulfonsäure","PFDS","µg/L"]
["PFAS","Perfluorundecansulfonsäure","PFUNDS","µg/L"]
["PFAS","Perfluordodecansulfonsäure","PFDODS","µg/L"]
["PFAS","Perfluortridecansulfonsäure","PFTRDS","µg/L"]
["PFAS","Perfluoroctansulfonamid","PFOSA","µg/L"]
["PFAS","6:2-Fluortelomersulfonsäure","H4PFOS","µg/L"]
["PFAS","4:2-Fluortelomersulfonsäure","H4PFHXS","µg/L"]
["PFAS","8:2-Fluortelomersulfonsäure","H4PFDS","µg/L"]
["PFAS","2H,2H,3H,3H-Perfluorundecansäure","H4PFUNDA","µg/L"]
["PFAS","2H,2H-Perfluordecansäure","H2PFDA","µg/L"]
["PFAS","7H-Perfluorheptansäure","H7PFHPA","µg/L"]
["PFAS","Perfluor-3,7-dimethyloctansäure","PF37DMOA","µg/L"]
["PFAS","Capstone Produkt A","CAPST_PR_A","µg/L"]
["PFAS","Capstone Produkt B","CAPST_PR_B","µg/L"]
["PFAS","N-Methyl-Perfluoroctansulfonamid","N_MEFOSA","µg/L"]
["PFAS","N-Ethyl-Perfluoroctansulfonamid","N_ETFOSA","µg/L"]
["PFAS","N-Methyl-Perfluoroctansulfonamidoessigsäure","N_MEFOSAA","µg/L"]
["PFAS","N-Ethyl-\nPerfluoroctansulfonamidoessigsäure","N_ETFOSAA","µg/L"]
["PFAS","9-Chlorhexadecafluor-3-oxanon-sulfonsäure","CL9_PF3ONS","µg/L"]
["PFAS","8:2 Ungesättigte Fluortelomersäure","FTUCA_8_2","µg/L"]
["PFAS","8:2 Polyfluoralkylphosphorsäurediester","DIPAP_8_2","µg/L"]
["PFAS","Hexafluorpropylenoxiddimersäure","HFPO_DA","µg/L"]
["PFAS","Perfluor-4,8-dioxa-3H-nonansäure","DONA","µg/L"]
["PFAS","Perfluorobutansulfonamid","FBSA","µg/L"]
["PFAS","Perfluorohexansulfonamid","FHXSA","µg/L"]
["PFAS","6:2-Fluortelomeralkohol","FTOH62","µg/L"]
["PFAS","8:2-Fluortelomeralkohol","FTOH82","µg/L"]
["PFAS","Perfluor[(5-methoxy-1,3-dioxolan-4-yl)oxy]essigsäure","C6O4","µg/L"]
["PFAS","Ammonium-2,2,3-trifluor-3-[1,1,2,2,3,3-hexafluor-3-(trifluormethoxy)propoxy]propionate","ADONA","µg/L"]
["PFAS","Ammonium-2,3,3,3-tetrafluor-2-(heptafluorpropoxy)propanoat ","GENX","µg/L"]
["PFAS","1H,1H, 2H,2H-perfluorododecansulfonsäure","H4PFDOS","µg/L"]
["PFAS","11-Chloreicosafluor-3-oxaundekan-1-sulfonsäure","CL11PF3OUS","µg/L"]
["Phenole","2-Nitrophenol","NI_PHENOL2","µg/L"]
["Phenole","2,4-Dinitrophenol","DINIPHEN","µg/L"]
["Phenole","4-Nitrophenol","NI_PHENOL4","µg/L"]
["Phenole","Katechol","KATECHOL","µg/L"]
["Phenole","Hydrochinon","HYDROCHINO","µg/L"]
["Phenole","Phenol","PHENOL","µg/L"]
["Phenole","Resorzinol","RESORZINOL","µg/L"]
["Phenole","1-Naphthol","NAPHTHOL1","µg/L"]
["Phenole","2-Ethylphenol","ETHYLPH2","µg/L"]
["Phenole","2-Methoxyphenol","OXYPHENOL","µg/L"]
["Phenole","2-Naphthol","NAPHTHOL2","µg/L"]
["Phenole","3-Ethylphenol","ETHPHY3","µg/L"]
["Phenole","4-Ethylphenol","ETHYLPH4","µg/L"]
["Phenole","o-Phenylphenol","PHENYLPHO","µg/L"]
["Phenole","2,4,6-Trinitrophenol","TRINITRO","µg/L"]
["Phosphorsäurederivate","Dimethoate","DIETHOAT","µg/L"]
["Phosphorsäurederivate","Methylparathion","PARATHIO","µg/L"]
["Phosphorsäurederivate","Malathion","MALATHION","µg/L"]
["Phosphorsäurederivate","Ethylparathion","PTHION_ETH","µg/L"]
["Phosphorsäurederivate","Dichlorvos","DICHLORVO","µg/L"]
["Phosphorsäurederivate","Fenitrothion","FENITROTH","µg/L"]
["Phosphorsäurederivate","Fenthion","FENTHION","µg/L"]
["Phosphorsäurederivate","Ethylazinphos","AZINPH_ET","µg/L"]
["Phosphorsäurederivate","Methylazinphos","AZINPH_ME","µg/L"]
["Phthalate","Phthalat","PHTALATH","µg/L"]
["Phthalate","Dimethylphthalat","DIMETHYLPH","µg/L"]
["Phthalate","Diethylphthalat","DIETHYLPHT","µg/L"]
["Phthalate","Benzylbutylphthalat","BENZBUTYPH","µg/L"]
["Phthalate","Di-1-octylphthalat","DIOCTYLPHT","µg/L"]
["Phthalate","Di-2-ethylhexylphthalat","DI2ETHYLPH","µg/L"]
["Phthalate","Dibutylphthalat","DIBUTYLPH","µg/L"]
["Pyridine","3-Methylpyridin","METHYLPY3","µg/L"]
["Pyridine","4-Ethylpyridin","ETHYLPY4","µg/L"]
["Pyridine","Pyridin","PYRIDIN","µg/L"]
["Pyridine","2,4,6-Trimethylpyridin","TMETHPY246","µg/L"]
["Pyridine","2-6-Dimethylpyridin","DMETHYPY26","µg/L"]
["Pyridine","2-Methylpyridin","METHPYRI2","µg/L"]
["Säurekapazität","Säure-Kap. bis 4.3","AC_43","mmol/L"]
["STV","Nitroglycerin","NITROGYLCE","µg/L"]
["STV","Nitropenta","NITROPENTA","µg/L"]
["STV","Hexogen","HEXOGEN","µg/L"]
["STV","Hexyl","HEXYL","µg/L"]
["STV","Tetryl","TETRYL","µg/L"]
["STV","Diphenylamin","DPA","µg/L"]
["STV","Oktogen","OKTOGEN","µg/L"]
["STV","Tetrazen","TETRAZEN","µg/L"]
["STV","Nitroguandin","NITROGU","µg/L"]
["Summenparameter","Summe Trichloraniline","TCA_SUM","µg/L"]
["Summenparameter","Chlorbenzene (Summe)","CHLORBENZS","µg/L"]
["Summenparameter","Dichlorbenzene (Summe)","DICHLBENZS","µg/L"]
["Summenparameter","Trichlorbenzene (Summe)","TRICBENZ_S","µg/L"]
["Summenparameter","Summe Tri-, Tetrachlorbenzene","S_TRITETC","µg/L"]
["Summenparameter","Summe Dichlorpropan","DICHLPROP_","µg/L"]
["Summenparameter","Summe pp-DDD, op-DDT","PPDDAOPD","µg/L"]
["Summenparameter","anionische Tenside","AAT","mg/L"]
["Summenparameter","nicht-ionische Tenside","NAT","mg/L"]
["Summenparameter","AOX","AOX","µg/L"]
["Summenparameter","BTEX+TMB","BTEXTMB","µg/L"]
["Summenparameter","CKW (Summe)","CKW","µg/L"]
["Summenparameter","gel. org. Kohlenstoff (DOC)","DOC","mg/L C"]
["Summenparameter","LCKW (Summe)","LCKW","µg/L"]
["Summenparameter","MKW (IR-KW)","MKW","µg/L"]
["Summenparameter","PAK (EPA)","PAK_EPA","µg/L"]
["Summenparameter","Aniline (Summe)","ANILINE_S","µg/L"]
["Summenparameter","Phenolindex (ges.)","PHENOL_G","µg/L"]
["Summenparameter","Phenolindex (wdf.)","PHENOL_W","µg/L"]
["Summenparameter","Phenole (EPA)","PHENOL_EPA","µg/L"]
["Summenparameter","Chlorphenole (ges.)","CL_PHEN_G","µg/L"]
["Summenparameter","Chloraniline (Summe)","CLANIL","µg/L"]
["Summenparameter","LCKW (karzinogen)","LCKW_3","µg/L"]
["Summenparameter","MKW (C10-C22)","MKW_C10C22","mg/L"]
["Summenparameter","MKW (C22-C40)","MKW_C22C40","mg/L"]
["Summenparameter","MKW (C5-C10)","MKW_C5C10","mg/L"]
["Summenparameter","MKW (GC)","MKW_GC","mg/L"]
["Summenparameter","gel. anorg. Kohlenstoff (DIC)","DIC","mg/L C"]
["Summenparameter","LHKW (Summe)","LHKW","µg/L"]
["Summenparameter","LCKW ohne VC","LHKW_O_VC","µg/L"]
["Summenparameter","KW-Index","KWINDEX","µg/L"]
["Summenparameter","Heterozyklen (Summe)","HETEROZYKL","µg/L"]
["Summenparameter","KW-Index (C10-C22)","KWIND10_22","mg/L"]
["Summenparameter","KW-Index (C10-C40)","KWIND10_40","mg/L"]
["Summenparameter","Pyridine (Summe)","PYRIDINE_S","µg/L"]
["Summenparameter","Methylaniline (Summe)","METHANIL","µg/L"]
["Summenparameter","Chlormethylaniline (Summe)","CLMEANIL","µg/L"]
["Summenparameter","Nitrotoluene (Summe)","NITRTOL_S","µg/L"]
["Summenparameter","Nitrobenzene (Summe)","NITROBEN_S","µg/L"]
["Summenparameter","Phenole (Summe)","PHENOL_S","µg/L"]
["Summenparameter","Methylphenole (Summe)","METHPHEN_S","µg/L"]
["Summenparameter","Triazine (Summe)","TRIAZINE_S","µg/L"]
["Summenparameter","Dimethylaniline (Summe)","DIMETHSUM","µg/L"]
["Summenparameter","Dichloraniline (Summe)","DICHLORSUM","µg/L"]
["Summenparameter","Chlornitrobenzene (Summe)","SUM_CHL","µg/L"]
["Summenparameter","Monochloraniline (Summe)","SUM_MONO","µg/L"]
["Summenparameter","Trimethylaniline (Summe)","SUM_TRIMET","µg/L"]
["Summenparameter","STV (Summe)","SUM_SPRENG","µg/L"]
["Summenparameter","Monomethylaniline (Summe)","MOMETHSUM","µg/L"]
["Summenparameter","Anilin/Methylanilin (Summe)","SUM_ANMETA","µg/L"]
["Summenparameter","Trimethylbenzene (Summe)","SUM_TMB","µg/L"]
["Summenparameter","Aromatische KW (Summe)","SUM_AKW","µg/L"]
["Summenparameter","extrahierb. org. Halogene","EOX","µg/L"]
["Summenparameter","ausblasb. org. Halogene","POX","µg/L"]
["Summenparameter","Uranin","URANIN","µg/L"]
["Summenparameter","Insektizidwirkstoffe","INSEKTIZID","µg/L"]
["Summenparameter","Herbizidwirkstoffe","HERBIZID","µg/L"]
["Summenparameter","DDT/DDD/DDE","DDT_G","µg/L"]
["Summenparameter","HCH-Verbindungen","HCH_G","µg/L"]
["Summenparameter","Alkylphenole (Summe)","ALKYLPHEN","µg/L"]
["Summenparameter","Chlorphenole nach EPA","CLPHEN_EPA","µg/L"]
["Summenparameter","PSM und Biozide (Summe)","PBSM_S","µg/L"]
["Summenparameter","FCKW (Summe)","FCKW_S","µg/L"]
["Summenparameter","bromierte KW (Summe)","BKW_S","µg/L"]
["Summenparameter","DDA (Summe)","DDA_S","µg/L"]
["Summenparameter","COP (HCB, x-HCH)","COP","µg/L"]
["Summenparameter","Alkohole (Summe)","ALKOHOL_S","mg/L"]
["Summenparameter","Bromnaphthaline (Summe)","BROMNAPH_S","µg/L"]
["Summenparameter","kationische Tenside","KAT","µg/L"]
["Summenparameter","Pharmatyp. Stoffe (Summe)","PHARMATYP","µg/L"]
["Summenparameter","Tri- und Tetrachlorethen","TTCE","µg/L"]
["Summenparameter","BTEX (Summe)","BTEX","µg/L"]
["Summenparameter","PAK (ohne Naphthalin)","PAK_EPA_ON","µg/L"]
["Summenparameter","PCB (6 Kongenere)","PCB","µg/L"]
["Summenparameter","Adsorbierbares org. Fluor","AOF","µg/L"]
["Summenparameter","TOP-Assay","TOP_ASSAY","µg/L"]
["Summenparameter","Summe 11 PFT (Carbonsäuren)","PFT_11_SUM","µg/L"]
["Summenparameter","Summe 13 PFAS","PFT_13_SUM","µg/L"]
["Summenparameter","Summe 20 PFAS (TW-Richtlinie)","PFT_20_SUM","µg/L"]
["Summenparameter","Summe 4 PFAS Leitsubstanzen","PFT_4_SUM","µg/L"]
["Summenparameter","Summe PFAS (ges.)","SUM_PFAS","µg/L"]
["Summenparameter","Summe Perfluoralkylsulfonamide","FASA_SUM","µg/L"]
["Summenparameter","Methylenblauaktive Substanzen","MBAS","mg/L"]
["Thiophenderivate","Tetrahydrothiophen","TETHYTHIOP","µg/L"]
["Triazine","Triazin (Immunoass.)","IMMUNOASS","µg/L"]
["Triazine","Ametryn","AMETRYN","µg/L"]
["Triazine","Atrazin","ATRAZIN","µg/L"]
["Triazine","Desethylatrazin","DESYLATR","µg/L"]
["Triazine","Simazin","SIMAZIN","µg/L"]
["Triazine","Prometryn","PROMETRYN","µg/L"]
["Triazine","Propazin","PROPAZIN","µg/L"]
["Triazine","Terbutryn","TERBUTRYN","µg/L"]
["Triazine","Terbutylazin","TERBUTYLAZ","µg/L"]
["Triazine","Metazachlor","METAZCHLOR","µg/L"]
["Triazine","Metolachlor","METOLCHLOR","µg/L"]
["Triazine","Desisopropylatrazin","DESISOPROP","µg/L"]
["Triazine","Sebuthylazin","SEBUTHYLAZ","µg/L"]
["Triazine","Nitrofen","NITROFEN","µg/L"]
["Triazine","Hexazinon","HEXAZINON","µg/L"]
["Triazine","Cyanazin","CYANAZIN","µg/L"]
["Triazine","Azipotrin","AZIP","µg/L"]
["Triazine","Desethylterbuthylazin","DETBUAZIN","µg/L"]
["Triazine","Metribuzin","METRIBUZIN","µg/L"]
["Triazine","Desmetryn","DESMETRYN","µg/L"]
["Triazine","Desethylsimazin","DESTSIMAZ","µg/L"]